Workbook

Sheet Original ABG Allocation
A1: ORIGINAL
A2: BLOCK GRANT ALLOCATION
A3: FY 2022-23 | C3: (1) | D3: (2) | E3: (3) | F3: (4) | G3: (5) | H3: (6) | I3: (7) | J3: (8)
C4: REGULAR | D4: CAREGIVER | E4: FED. CAREGIVER | G4: PA MEDI | H4: HEALTH | J4: TOTAL ALL
C5: BLOCK GRANT | D5: SUPPORT | E5: SUPPORT | F5: NSIP | G5: APPRISE | H5: PROMOTION | I5: OTHER | J5: FUNDS
A6: 01 | B6: ERIE | C6: 4411598 | D6: 156011 | E6: 134766 | F6: 66325 | G6: 20097 | H6: 25670 | I6: 0 | J6: =SUM(C6:I6) -> 4814467
A7: 02 | B7: CRAWFORD | C7: 2137845 | D7: 94962 | E7: 55648 | F7: 47328 | G7: 10676 | H7: 12253 | I7: 0 | J7: 2358712
A8: 03 | B8: CAM/ELK/MCKEAN | C8: 2104494 | D8: 104392 | E8: 69557 | F8: 35588 | G8: 11237 | H8: 13477 | I8: 0 | J8: 2338745
A9: 04 | B9: BEAVER | C9: 3472650 | D9: 120693 | E9: 115200 | F9: 23968 | G9: 15815 | H9: 22039 | I9: 0 | J9: 3770365
A10: 05 | B10: INDIANA | C10: 1949787 | D10: 72332 | E10: 65877 | F10: 51905 | G10: 10185 | H10: 12618 | I10: 0 | J10: 2162704
A11: 06 | B11: ALLEGHENY | C11: 29841874 | D11: 1024598 | E11: 1027359 | F11: 419219 | G11: 107007 | H11: 158619 | I11: 0 | J11: 32578676
A12: 07 | B12: WESTMORELAND | C12: 7750368 | D12: 279704 | E12: 249205 | F12: 123773 | G12: 33328 | H12: 47027 | I12: 0 | J12: 8483405
A13: 08 | B13: WASH/FAY/GREENE | C13: 10511355 | D13: 393598 | E13: 534972 | F13: 354500 | G13: 39938 | H13: 68098 | I13: 0 | J13: 11902461
A14: 09 | B14: SOMERSET | C14: 2326690 | D14: 81631 | E14: 93246 | F14: 72579 | G14: 11799 | H14: 14877 | I14: 0 | J14: 2600822
A15: 10 | B15: CAMBRIA | C15: 4034624 | D15: 140343 | E15: 133780 | F15: 178185 | G15: 17087 | H15: 25081 | I15: 0 | J15: 4529100
A16: 11 | B16: BLAIR | C16: 2763377 | D16: 114081 | E16: 109683 | F16: 118873 | G16: 11735 | H16: 17034 | I16: 0 | J16: 3134783
A17: 12 | B17: BED/FULT/HUNT | C17: 3121983 | D17: 120022 | E17: 106084 | F17: 66409 | G17: 14807 | H17: 19221 | I17: 0 | J17: 3448526
A18: 13 | B18: CENTRE | C18: 1381274 | D18: 45132 | E18: 36131 | F18: 42135 | G18: 10000 | H18: 8909 | I18: 0 | J18: 1523581
A19: 14 | B19: LYCOM/CLINTON | C19: 3159609 | D19: 117392 | E19: 98452 | F19: 80903 | G19: 16355 | H19: 18458 | I19: 0 | J19: 3491169
A20: 15 | B20: COLUM/MONT | C20: 1789613 | D20: 66474 | E20: 53326 | F20: 26259 | G20: 10000 | H20: 10126 | I20: 0 | J20: 1955798
A21: 16 | B21: NORTHUMBERLND | C21: 2955045 | D21: 122953 | E21: 109123 | F21: 38517 | G21: 11327 | H21: 17718 | I21: 0 | J21: 3254683
A22: 17 | B22: UNION/SNYDER | C22: 1295880 | D22: 41818 | E22: 38788 | F22: 16745 | G22: 10000 | H22: 8635 | I22: 0 | J22: 1411866
A23: 18 | B23: MIFF/JUNIATA | C23: 1827966 | D23: 64859 | E23: 74111 | F23: 44916 | G23: 10222 | H23: 11964 | I23: 0 | J23: 2034038
A24: 19 | B24: FRANKLIN | C24: 2436382 | D24: 83393 | E24: 78131 | F24: 66539 | G24: 15528 | H24: 14543 | I24: 0 | J24: 2694516
A25: 20 | B25: ADAMS | C25: 1263446 | D25: 39383 | E25: 32448 | F25: 29737 | G25: 10175 | H25: 7955 | I25: 0 | J25: 1383144
A26: 21 | B26: CUMBERLAND | C26: 2273659 | D26: 80733 | E26: 57284 | F26: 21248 | G26: 17010 | H26: 9223 | I26: 0 | J26: 2459157
A27: 22 | B27: PERRY | C27: 767004 | D27: 25396 | E27: 23988 | F27: 28967 | G27: 10000 | H27: 7923 | I27: 0 | J27: 863278
A28: 23 | B28: DAUPHIN | C28: 4488392 | D28: 171730 | E28: 127675 | F28: 76056 | G28: 18822 | H28: 23922 | I28: 0 | J28: 4906597
A29: 24 | B29: LEBANON | C29: 1934714 | D29: 68543 | E29: 56539 | F29: 40188 | G29: 11419 | H29: 9146 | I29: 0 | J29: 2120549
A30: 25 | B30: YORK | C30: 5364017 | D30: 199228 | E30: 133054 | F30: 204767 | G30: 27448 | H30: 25017 | I30: 0 | J30: 5953531
A31: 26 | B31: LANCASTER | C31: 5609386 | D31: 198436 | E31: 164965 | F31: 60963 | G31: 33008 | H31: 30859 | I31: 0 | J31: 6097617
A32: 27 | B32: CHESTER | C32: 3766491 | D32: 114753 | E32: 74312 | F32: 65735 | G32: 25091 | H32: 14330 | I32: 0 | J32: 4060712
A33: 28 | B33: MONTGOMERY | C33: 8212898 | D33: 236029 | E33: 238996 | F33: 222009 | G33: 47311 | H33: 27365 | I33: 0 | J33: 8984608
A34: 29 | B34: BUCKS | C34: 5247058 | D34: 206856 | E34: 197793 | F34: 80421 | G34: 33291 | H34: 24480 | I34: 0 | J34: 5789899
A35: 30 | B35: DELAWARE | C35: 8091925 | D35: 278240 | E35: 230814 | F35: 92075 | G35: 35954 | H35: 44239 | I35: 0 | J35: 8773247
A36: 31 | B36: PHILADELPHIA | C36: 56025883 | D36: 1702584 | E36: 2431642 | F36: 803599 | G36: 107007 | H36: 307815 | I36: 0 | J36: 61378530
A37: 32 | B37: BERKS | C37: 6004484 | D37: 235166 | E37: 262043 | F37: 158821 | G37: 29191 | H37: 32781 | I37: 0 | J37: 6722486
A38: 33 | B38: LEHIGH | C38: 4654532 | D38: 172458 | E38: 119971 | F38: 42793 | G38: 21310 | H38: 17348 | I38: 0 | J38: =SUM(C38:I38) -> 5028412
A39: 34 | B39: NORTHAMPTON | C39: 4087354 | D39: 153486 | E39: 102099 | F39: 73789 | G39: 19506 | H39: 19316 | I39: 0 | J39: 4455550
A40: 35 | B40: PIKE | C40: 714453 | D40: 25399 | E40: 20229 | F40: 20687 | G40: 10000 | H40: 7908 | I40: 0 | J40: 798676
A41: 36 | B41: B/S/S/T | C41: 3993199 | D41: 141181 | E41: 136248 | F41: 98527 | G41: 20201 | H41: 24698 | I41: 0 | J41: 4414054
A42: 37 | B42: LUZERNE/WYOMING | C42: 9360224 | D42: 343992 | E42: 282547 | F42: 219979 | G42: 31720 | H42: 54157 | I42: 0 | J42: 10292619
A43: 38 | B43: LACKAWANNA | C43: 5223495 | D43: 202907 | E43: 231866 | F43: 124839 | G43: 18501 | H43: 33436 | I43: 0 | J43: 5835044
A44: 39 | B44: CARBON | C44: 1185509 | D44: 44213 | E44: 39403 | F44: 30903 | G44: 10000 | H44: 7982 | I44: 0 | J44: 1318010
A45: 40 | B45: SCHUYLKILL | C45: 4568989 | D45: 181495 | E45: 156510 | F45: 56511 | G45: 18478 | H45: 29322 | I45: 0 | J45: 5011305
A46: 41 | B46: CLEARFIELD | C46: 2229583 | D46: 79676 | E46: 76522 | F46: 110249 | G46: 11341 | H46: 14212 | I46: 0 | J46: 2521583
A47: 42 | B47: JEFFERSON | C47: 1281851 | D47: 51609 | E47: 59466 | F47: 28079 | G47: 10000 | H47: 8874 | I47: 0 | J47: 1439879
A48: 43 | B48: FOREST/WARREN | C48: 1026619 | D48: 34269 | E48: 30176 | F48: 27753 | G48: 10000 | H48: 7946 | I48: 0 | J48: 1136763
A49: 44 | B49: VENANGO | C49: 1267563 | D49: 48574 | E49: 55242 | F49: 36107 | G49: 10000 | H49: 8569 | I49: 0 | J49: 1426055
A50: 45 | B50: ARMSTRONG | C50: 1994604 | D50: 75493 | E50: 62026 | F50: 71631 | G50: 10719 | H50: 12115 | I50: 0 | J50: 2226588
A51: 46 | B51: LAWRENCE | C51: 2116483 | D51: 79407 | E51: 65793 | F51: 43055 | G51: 10341 | H51: 12981 | I51: 0 | J51: 2328060
A52: 47 | B52: MERCER | C52: 2322893 | D52: 80316 | E52: 77331 | F52: 41143 | G52: 13302 | H52: 14661 | I52: 0 | J52: 2549646
A53: 48 | B53: MONROE | C53: 1655963 | D53: 46961 | E53: 65227 | F53: 37809 | G53: 13317 | H53: 8435 | I53: 0 | J53: 1827712
A54: 49 | B54: CLARION | C54: 954686 | D54: 32868 | E54: 43252 | F54: 29696 | G54: 10000 | H54: 7961 | I54: 0 | J54: 1078463
A55: 50 | B55: BUTLER | C55: 2546870 | D55: 104331 | E55: 112372 | F55: 40783 | G55: 16742 | H55: 14150 | I55: 0 | J55: 2835248
A56: 51 | B56: POTTER | C56: 589962 | D56: 25400 | E56: 20017 | F56: 14811 | G56: 10000 | H56: 7905 | I56: 0 | J56: 668095
A57: 52 | B57: WAYNE | C57: 1178872 | D57: 35500 | E57: 38682 | F57: 55047 | G57: 10000 | H57: 8635 | I57: 0 | J57: 1326736
B58: TOTALS | C58: =SUM(C6:C57) -> 251275475 | D58: 8761000 | E58: 9009971 | F58: 4963443 | G58: 1078348 | H58: 1412033 | I58: 0 | J58: 276500270

Sheet Revision No. 1
A1: CHANGE 1
A2: BLOCK GRANT ALLOCATION
A3: =+'Original ABG Allocation'!A3 -> FY 2022-23 | C3: =+'Original ABG Allocation'!C3 -> (1) | D3: =+'Original ABG Allocation'!D3 -> (2) | E3: =+'Original ABG Allocation'!E3 -> (3) | F3: =+'Original ABG Allocation'!F3 -> (4) | G3: =+'Original ABG Allocation'!G3 -> (5) | H3: =+'Original ABG Allocation'!H3 -> (6) | I3: =+'Original ABG Allocation'!I3 -> (7) | J3: =+'Original ABG Allocation'!J3 -> (8)
C4: =+'Original ABG Allocation'!C4 -> REGULAR | D4: =+'Original ABG Allocation'!D4 -> CAREGIVER | E4: =+'Original ABG Allocation'!E4 -> FED. CAREGIVER | F4: =+'Original ABG Allocation'!F4 -> 0 | G4: =+'Original ABG Allocation'!G4 -> PA MEDI | H4: =+'Original ABG Allocation'!H4 -> HEALTH | J4: =+'Original ABG Allocation'!J4 -> TOTAL ALL
C5: =+'Original ABG Allocation'!C5 -> BLOCK GRANT | D5: =+'Original ABG Allocation'!D5 -> SUPPORT | E5: =+'Original ABG Allocation'!E5 -> SUPPORT | F5: =+'Original ABG Allocation'!F5 -> NSIP | G5: =+'Original ABG Allocation'!G5 -> APPRISE | H5: =+'Original ABG Allocation'!H5 -> PROMOTION | I5: =+'Original ABG Allocation'!I5 -> OTHER | J5: =+'Original ABG Allocation'!J5 -> FUNDS
A6: 01 | B6: =+'Original ABG Allocation'!B6 -> ERIE | C6: =+'Regular BG'!M7 -> 0 | D6: =+'Caregiver Support'!E7 -> 0 | E6: =+'Federal Caregiver Support'!I7 -> 0 | F6: =NSIP!G7 -> 0 | G6: =+'PA MEDI'!E7 -> 0 | H6: =+'Health Promotion'!J7 -> 0 | I6: =+'Other Funds-Revision No. 1'!AM6 -> 50754 | J6: =SUM(C6:I6) -> 50754
A7: 02 | B7: =+'Original ABG Allocation'!B7 -> CRAWFORD | C7: =+'Regular BG'!M8 -> 0 | D7: =+'Caregiver Support'!E8 -> 0 | E7: =+'Federal Caregiver Support'!I8 -> 0 | F7: =NSIP!G8 -> 0 | G7: =+'PA MEDI'!E8 -> 0 | H7: =+'Health Promotion'!J8 -> 0 | I7: =+'Other Funds-Revision No. 1'!AM7 -> 27952 | J7: 27952
A8: 03 | B8: =+'Original ABG Allocation'!B8 -> CAM/ELK/MCKEAN | C8: =+'Regular BG'!M9 -> 0 | D8: =+'Caregiver Support'!E9 -> 0 | E8: =+'Federal Caregiver Support'!I9 -> 0 | F8: =NSIP!G9 -> 0 | G8: =+'PA MEDI'!E9 -> 0 | H8: =+'Health Promotion'!J9 -> 0 | I8: =+'Other Funds-Revision No. 1'!AM8 -> 26526 | J8: 26526
A9: 04 | B9: =+'Original ABG Allocation'!B9 -> BEAVER | C9: =+'Regular BG'!M10 -> 0 | D9: =+'Caregiver Support'!E10 -> 0 | E9: =+'Federal Caregiver Support'!I10 -> 0 | F9: =NSIP!G10 -> 0 | G9: =+'PA MEDI'!E10 -> 0 | H9: =+'Health Promotion'!J10 -> 0 | I9: =+'Other Funds-Revision No. 1'!AM9 -> 37277 | J9: 37277
A10: 05 | B10: =+'Original ABG Allocation'!B10 -> INDIANA | C10: =+'Regular BG'!M11 -> 0 | D10: =+'Caregiver Support'!E11 -> 0 | E10: =+'Federal Caregiver Support'!I11 -> 0 | F10: =NSIP!G11 -> 0 | G10: =+'PA MEDI'!E11 -> 0 | H10: =+'Health Promotion'!J11 -> 0 | I10: =+'Other Funds-Revision No. 1'!AM10 -> 26503 | J10: 26503
A11: 06 | B11: =+'Original ABG Allocation'!B11 -> ALLEGHENY | C11: =+'Regular BG'!M12 -> 0 | D11: =+'Caregiver Support'!E12 -> 0 | E11: =+'Federal Caregiver Support'!I12 -> 0 | F11: =NSIP!G12 -> 0 | G11: =+'PA MEDI'!E12 -> 0 | H11: =+'Health Promotion'!J12 -> 0 | I11: =+'Other Funds-Revision No. 1'!AM11 -> 189804 | J11: 189804
A12: 07 | B12: =+'Original ABG Allocation'!B12 -> WESTMORELAND | C12: =+'Regular BG'!M13 -> 0 | D12: =+'Caregiver Support'!E13 -> 0 | E12: =+'Federal Caregiver Support'!I13 -> 0 | F12: =NSIP!G13 -> 0 | G12: =+'PA MEDI'!E13 -> 0 | H12: =+'Health Promotion'!J13 -> 0 | I12: =+'Other Funds-Revision No. 1'!AM12 -> 66831 | J12: 66831
A13: 08 | B13: =+'Original ABG Allocation'!B13 -> WASH/FAY/GREENE | C13: =+'Regular BG'!M14 -> 0 | D13: =+'Caregiver Support'!E14 -> 0 | E13: =+'Federal Caregiver Support'!I14 -> 0 | F13: =NSIP!G14 -> 0 | G13: =+'PA MEDI'!E14 -> 0 | H13: =+'Health Promotion'!J14 -> 0 | I13: =+'Other Funds-Revision No. 1'!AM13 -> 80930 | J13: 80930
A14: 09 | B14: =+'Original ABG Allocation'!B14 -> SOMERSET | C14: =+'Regular BG'!M15 -> 0 | D14: =+'Caregiver Support'!E15 -> 0 | E14: =+'Federal Caregiver Support'!I15 -> 0 | F14: =NSIP!G15 -> 0 | G14: =+'PA MEDI'!E15 -> 0 | H14: =+'Health Promotion'!J15 -> 0 | I14: =+'Other Funds-Revision No. 1'!AM14 -> 27562 | J14: 27562
A15: 10 | B15: =+'Original ABG Allocation'!B15 -> CAMBRIA | C15: =+'Regular BG'!M16 -> 0 | D15: =+'Caregiver Support'!E16 -> 0 | E15: =+'Federal Caregiver Support'!I16 -> 0 | F15: =NSIP!G16 -> 0 | G15: =+'PA MEDI'!E16 -> 0 | H15: =+'Health Promotion'!J16 -> 0 | I15: =+'Other Funds-Revision No. 1'!AM15 -> 37762 | J15: 37762
A16: 11 | B16: =+'Original ABG Allocation'!B16 -> BLAIR | C16: =+'Regular BG'!M17 -> 0 | D16: =+'Caregiver Support'!E17 -> 0 | E16: =+'Federal Caregiver Support'!I17 -> 0 | F16: =NSIP!G17 -> 0 | G16: =+'PA MEDI'!E17 -> 0 | H16: =+'Health Promotion'!J17 -> 0 | I16: =+'Other Funds-Revision No. 1'!AM16 -> 30296 | J16: 30296
A17: 12 | B17: =+'Original ABG Allocation'!B17 -> BED/FULT/HUNT | C17: =+'Regular BG'!M18 -> 0 | D17: =+'Caregiver Support'!E18 -> 0 | E17: =+'Federal Caregiver Support'!I18 -> 0 | F17: =NSIP!G18 -> 0 | G17: =+'PA MEDI'!E18 -> 0 | H17: =+'Health Promotion'!J18 -> 0 | I17: =+'Other Funds-Revision No. 1'!AM17 -> 37342 | J17: 37342
A18: 13 | B18: =+'Original ABG Allocation'!B18 -> CENTRE | C18: =+'Regular BG'!M19 -> 0 | D18: =+'Caregiver Support'!E19 -> 0 | E18: =+'Federal Caregiver Support'!I19 -> 0 | F18: =NSIP!G19 -> 0 | G18: =+'PA MEDI'!E19 -> 0 | H18: =+'Health Promotion'!J19 -> 0 | I18: =+'Other Funds-Revision No. 1'!AM18 -> 27428 | J18: 27428
A19: 14 | B19: =+'Original ABG Allocation'!B19 -> LYCOM/CLINTON | C19: =+'Regular BG'!M20 -> 0 | D19: =+'Caregiver Support'!E20 -> 0 | E19: =+'Federal Caregiver Support'!I20 -> 0 | F19: =NSIP!G20 -> 0 | G19: =+'PA MEDI'!E20 -> 0 | H19: =+'Health Promotion'!J20 -> 0 | I19: =+'Other Funds-Revision No. 1'!AM19 -> 38012 | J19: 38012
A20: 15 | B20: =+'Original ABG Allocation'!B20 -> COLUM/MONT | C20: =+'Regular BG'!M21 -> 0 | D20: =+'Caregiver Support'!E21 -> 0 | E20: =+'Federal Caregiver Support'!I21 -> 0 | F20: =NSIP!G21 -> 0 | G20: =+'PA MEDI'!E21 -> 0 | H20: =+'Health Promotion'!J21 -> 0 | I20: =+'Other Funds-Revision No. 1'!AM20 -> 25338 | J20: 25338
A21: 16 | B21: =+'Original ABG Allocation'!B21 -> NORTHUMBERLND | C21: =+'Regular BG'!M22 -> 0 | D21: =+'Caregiver Support'!E22 -> 0 | E21: =+'Federal Caregiver Support'!I22 -> 0 | F21: =NSIP!G22 -> 0 | G21: =+'PA MEDI'!E22 -> 0 | H21: =+'Health Promotion'!J22 -> 0 | I21: =+'Other Funds-Revision No. 1'!AM21 -> 27835 | J21: 27835
A22: 17 | B22: =+'Original ABG Allocation'!B22 -> UNION/SNYDER | C22: =+'Regular BG'!M23 -> 0 | D22: =+'Caregiver Support'!E23 -> 0 | E22: =+'Federal Caregiver Support'!I23 -> 0 | F22: =NSIP!G23 -> 0 | G22: =+'PA MEDI'!E23 -> 0 | H22: =+'Health Promotion'!J23 -> 0 | I22: =+'Other Funds-Revision No. 1'!AM22 -> 25178 | J22: 25178
A23: 18 | B23: =+'Original ABG Allocation'!B23 -> MIFF/JUNIATA | C23: =+'Regular BG'!M24 -> 0 | D23: =+'Caregiver Support'!E24 -> 0 | E23: =+'Federal Caregiver Support'!I24 -> 0 | F23: =NSIP!G24 -> 0 | G23: =+'PA MEDI'!E24 -> 0 | H23: =+'Health Promotion'!J24 -> 0 | I23: =+'Other Funds-Revision No. 1'!AM23 -> 25974 | J23: 25974
A24: 19 | B24: =+'Original ABG Allocation'!B24 -> FRANKLIN | C24: =+'Regular BG'!M25 -> 0 | D24: =+'Caregiver Support'!E25 -> 0 | E24: =+'Federal Caregiver Support'!I25 -> 0 | F24: =NSIP!G25 -> 0 | G24: =+'PA MEDI'!E25 -> 0 | H24: =+'Health Promotion'!J25 -> 0 | I24: =+'Other Funds-Revision No. 1'!AM24 -> 31873 | J24: 31873
A25: 20 | B25: =+'Original ABG Allocation'!B25 -> ADAMS | C25: =+'Regular BG'!M26 -> 0 | D25: =+'Caregiver Support'!E26 -> 0 | E25: =+'Federal Caregiver Support'!I26 -> 0 | F25: =NSIP!G26 -> 0 | G25: =+'PA MEDI'!E26 -> 0 | H25: =+'Health Promotion'!J26 -> 0 | I25: =+'Other Funds-Revision No. 1'!AM25 -> 29100 | J25: 29100
A26: 21 | B26: =+'Original ABG Allocation'!B26 -> CUMBERLAND | C26: =+'Regular BG'!M27 -> 0 | D26: =+'Caregiver Support'!E27 -> 0 | E26: =+'Federal Caregiver Support'!I27 -> 0 | F26: =NSIP!G27 -> 0 | G26: =+'PA MEDI'!E27 -> 0 | H26: =+'Health Promotion'!J27 -> 0 | I26: =+'Other Funds-Revision No. 1'!AM26 -> 38546 | J26: 38546
A27: 22 | B27: =+'Original ABG Allocation'!B27 -> PERRY | C27: =+'Regular BG'!M28 -> 0 | D27: =+'Caregiver Support'!E28 -> 0 | E27: =+'Federal Caregiver Support'!I28 -> 0 | F27: =NSIP!G28 -> 0 | G27: =+'PA MEDI'!E28 -> 0 | H27: =+'Health Promotion'!J28 -> 0 | I27: =+'Other Funds-Revision No. 1'!AM27 -> 19102 | J27: 19102
A28: 23 | B28: =+'Original ABG Allocation'!B28 -> DAUPHIN | C28: =+'Regular BG'!M29 -> 0 | D28: =+'Caregiver Support'!E29 -> 0 | E28: =+'Federal Caregiver Support'!I29 -> 0 | F28: =NSIP!G29 -> 0 | G28: =+'PA MEDI'!E29 -> 0 | H28: =+'Health Promotion'!J29 -> 0 | I28: =+'Other Funds-Revision No. 1'!AM28 -> 49986 | J28: 49986
A29: 24 | B29: =+'Original ABG Allocation'!B29 -> LEBANON | C29: =+'Regular BG'!M30 -> 0 | D29: =+'Caregiver Support'!E30 -> 0 | E29: =+'Federal Caregiver Support'!I30 -> 0 | F29: =NSIP!G30 -> 0 | G29: =+'PA MEDI'!E30 -> 0 | H29: =+'Health Promotion'!J30 -> 0 | I29: =+'Other Funds-Revision No. 1'!AM29 -> 28558 | J29: 28558
A30: 25 | B30: =+'Original ABG Allocation'!B30 -> YORK | C30: =+'Regular BG'!M31 -> 0 | D30: =+'Caregiver Support'!E31 -> 0 | E30: =+'Federal Caregiver Support'!I31 -> 0 | F30: =NSIP!G31 -> 0 | G30: =+'PA MEDI'!E31 -> 0 | H30: =+'Health Promotion'!J31 -> 0 | I30: =+'Other Funds-Revision No. 1'!AM30 -> 69151 | J30: 69151
A31: 26 | B31: =+'Original ABG Allocation'!B31 -> LANCASTER | C31: =+'Regular BG'!M32 -> 0 | D31: =+'Caregiver Support'!E32 -> 0 | E31: =+'Federal Caregiver Support'!I32 -> 0 | F31: =NSIP!G32 -> 0 | G31: =+'PA MEDI'!E32 -> 0 | H31: =+'Health Promotion'!J32 -> 0 | I31: =+'Other Funds-Revision No. 1'!AM31 -> 77387 | J31: 77387
A32: 27 | B32: =+'Original ABG Allocation'!B32 -> CHESTER | C32: =+'Regular BG'!M33 -> 0 | D32: =+'Caregiver Support'!E33 -> 0 | E32: =+'Federal Caregiver Support'!I33 -> 0 | F32: =NSIP!G33 -> 0 | G32: =+'PA MEDI'!E33 -> 0 | H32: =+'Health Promotion'!J33 -> 0 | I32: =+'Other Funds-Revision No. 1'!AM32 -> 59974 | J32: 59974
A33: 28 | B33: =+'Original ABG Allocation'!B33 -> MONTGOMERY | C33: =+'Regular BG'!M34 -> 0 | D33: =+'Caregiver Support'!E34 -> 0 | E33: =+'Federal Caregiver Support'!I34 -> 0 | F33: =NSIP!G34 -> 0 | G33: =+'PA MEDI'!E34 -> 0 | H33: =+'Health Promotion'!J34 -> 0 | I33: =+'Other Funds-Revision No. 1'!AM33 -> 101434 | J33: 101434
A34: 29 | B34: =+'Original ABG Allocation'!B34 -> BUCKS | C34: =+'Regular BG'!M35 -> 0 | D34: =+'Caregiver Support'!E35 -> 0 | E34: =+'Federal Caregiver Support'!I35 -> 0 | F34: =NSIP!G35 -> 0 | G34: =+'PA MEDI'!E35 -> 0 | H34: =+'Health Promotion'!J35 -> 0 | I34: =+'Other Funds-Revision No. 1'!AM34 -> 76281 | J34: 76281
A35: 30 | B35: =+'Original ABG Allocation'!B35 -> DELAWARE | C35: =+'Regular BG'!M36 -> 0 | D35: =+'Caregiver Support'!E36 -> 0 | E35: =+'Federal Caregiver Support'!I36 -> 0 | F35: =NSIP!G36 -> 0 | G35: =+'PA MEDI'!E36 -> 0 | H35: =+'Health Promotion'!J36 -> 0 | I35: =+'Other Funds-Revision No. 1'!AM35 -> 82487 | J35: 82487
A36: 31 | B36: =+'Original ABG Allocation'!B36 -> PHILADELPHIA | C36: =+'Regular BG'!M37 -> 0 | D36: =+'Caregiver Support'!E37 -> 0 | E36: =+'Federal Caregiver Support'!I37 -> 0 | F36: =NSIP!G37 -> 0 | G36: =+'PA MEDI'!E37 -> 0 | H36: =+'Health Promotion'!J37 -> 0 | I36: =+'Other Funds-Revision No. 1'!AM36 -> 375238 | J36: 375238
A37: 32 | B37: =+'Original ABG Allocation'!B37 -> BERKS | C37: =+'Regular BG'!M38 -> 0 | D37: =+'Caregiver Support'!E38 -> 0 | E37: =+'Federal Caregiver Support'!I38 -> 0 | F37: =NSIP!G38 -> 0 | G37: =+'PA MEDI'!E38 -> 0 | H37: =+'Health Promotion'!J38 -> 0 | I37: =+'Other Funds-Revision No. 1'!AM37 -> 70382 | J37: 70382
A38: 33 | B38: =+'Original ABG Allocation'!B38 -> LEHIGH | C38: =+'Regular BG'!M39 -> 0 | D38: =+'Caregiver Support'!E39 -> 0 | E38: =+'Federal Caregiver Support'!I39 -> 0 | F38: =NSIP!G39 -> 0 | G38: =+'PA MEDI'!E39 -> 0 | H38: =+'Health Promotion'!J39 -> 0 | I38: =+'Other Funds-Revision No. 1'!AM38 -> 57889 | J38: =SUM(C38:I38) -> 57889
A39: 34 | B39: =+'Original ABG Allocation'!B39 -> NORTHAMPTON | C39: =+'Regular BG'!M40 -> 0 | D39: =+'Caregiver Support'!E40 -> 0 | E39: =+'Federal Caregiver Support'!I40 -> 0 | F39: =NSIP!G40 -> 0 | G39: =+'PA MEDI'!E40 -> 0 | H39: =+'Health Promotion'!J40 -> 0 | I39: =+'Other Funds-Revision No. 1'!AM39 -> 46413 | J39: 46413
A40: 35 | B40: =+'Original ABG Allocation'!B40 -> PIKE | C40: =+'Regular BG'!M41 -> 0 | D40: =+'Caregiver Support'!E41 -> 0 | E40: =+'Federal Caregiver Support'!I41 -> 0 | F40: =NSIP!G41 -> 0 | G40: =+'PA MEDI'!E41 -> 0 | H40: =+'Health Promotion'!J41 -> 0 | I40: =+'Other Funds-Revision No. 1'!AM40 -> 24546 | J40: 24546
A41: 36 | B41: =+'Original ABG Allocation'!B41 -> B/S/S/T | C41: =+'Regular BG'!M42 -> 0 | D41: =+'Caregiver Support'!E42 -> 0 | E41: =+'Federal Caregiver Support'!I42 -> 0 | F41: =NSIP!G42 -> 0 | G41: =+'PA MEDI'!E42 -> 0 | H41: =+'Health Promotion'!J42 -> 0 | I41: =+'Other Funds-Revision No. 1'!AM41 -> 48433 | J41: 48433
A42: 37 | B42: =+'Original ABG Allocation'!B42 -> LUZERNE/WYOMING | C42: =+'Regular BG'!M43 -> 0 | D42: =+'Caregiver Support'!E43 -> 0 | E42: =+'Federal Caregiver Support'!I43 -> 0 | F42: =NSIP!G43 -> 0 | G42: =+'PA MEDI'!E43 -> 0 | H42: =+'Health Promotion'!J43 -> 0 | I42: =+'Other Funds-Revision No. 1'!AM42 -> 62651 | J42: 62651
A43: 38 | B43: =+'Original ABG Allocation'!B43 -> LACKAWANNA | C43: =+'Regular BG'!M44 -> 0 | D43: =+'Caregiver Support'!E44 -> 0 | E43: =+'Federal Caregiver Support'!I44 -> 0 | F43: =NSIP!G44 -> 0 | G43: =+'PA MEDI'!E44 -> 0 | H43: =+'Health Promotion'!J44 -> 0 | I43: =+'Other Funds-Revision No. 1'!AM43 -> 42257 | J43: 42257
A44: 39 | B44: =+'Original ABG Allocation'!B44 -> CARBON | C44: =+'Regular BG'!M45 -> 0 | D44: =+'Caregiver Support'!E45 -> 0 | E44: =+'Federal Caregiver Support'!I45 -> 0 | F44: =NSIP!G45 -> 0 | G44: =+'PA MEDI'!E45 -> 0 | H44: =+'Health Promotion'!J45 -> 0 | I44: =+'Other Funds-Revision No. 1'!AM44 -> 23256 | J44: 23256
A45: 40 | B45: =+'Original ABG Allocation'!B45 -> SCHUYLKILL | C45: =+'Regular BG'!M46 -> 0 | D45: =+'Caregiver Support'!E46 -> 0 | E45: =+'Federal Caregiver Support'!I46 -> 0 | F45: =NSIP!G46 -> 0 | G45: =+'PA MEDI'!E46 -> 0 | H45: =+'Health Promotion'!J46 -> 0 | I45: =+'Other Funds-Revision No. 1'!AM45 -> 42433 | J45: 42433
A46: 41 | B46: =+'Original ABG Allocation'!B46 -> CLEARFIELD | C46: =+'Regular BG'!M47 -> 0 | D46: =+'Caregiver Support'!E47 -> 0 | E46: =+'Federal Caregiver Support'!I47 -> 0 | F46: =NSIP!G47 -> 0 | G46: =+'PA MEDI'!E47 -> 0 | H46: =+'Health Promotion'!J47 -> 0 | I46: =+'Other Funds-Revision No. 1'!AM46 -> 28506 | J46: 28506
A47: 42 | B47: =+'Original ABG Allocation'!B47 -> JEFFERSON | C47: =+'Regular BG'!M48 -> 0 | D47: =+'Caregiver Support'!E48 -> 0 | E47: =+'Federal Caregiver Support'!I48 -> 0 | F47: =NSIP!G48 -> 0 | G47: =+'PA MEDI'!E48 -> 0 | H47: =+'Health Promotion'!J48 -> 0 | I47: =+'Other Funds-Revision No. 1'!AM47 -> 19041 | J47: 19041
A48: 43 | B48: =+'Original ABG Allocation'!B48 -> FOREST/WARREN | C48: =+'Regular BG'!M49 -> 0 | D48: =+'Caregiver Support'!E49 -> 0 | E48: =+'Federal Caregiver Support'!I49 -> 0 | F48: =NSIP!G49 -> 0 | G48: =+'PA MEDI'!E49 -> 0 | H48: =+'Health Promotion'!J49 -> 0 | I48: =+'Other Funds-Revision No. 1'!AM48 -> 21068 | J48: 21068
A49: 44 | B49: =+'Original ABG Allocation'!B49 -> VENANGO | C49: =+'Regular BG'!M50 -> 0 | D49: =+'Caregiver Support'!E50 -> 0 | E49: =+'Federal Caregiver Support'!I50 -> 0 | F49: =NSIP!G50 -> 0 | G49: =+'PA MEDI'!E50 -> 0 | H49: =+'Health Promotion'!J50 -> 0 | I49: =+'Other Funds-Revision No. 1'!AM49 -> 21935 | J49: 21935
A50: 45 | B50: =+'Original ABG Allocation'!B50 -> ARMSTRONG | C50: =+'Regular BG'!M51 -> 0 | D50: =+'Caregiver Support'!E51 -> 0 | E50: =+'Federal Caregiver Support'!I51 -> 0 | F50: =NSIP!G51 -> 0 | G50: =+'PA MEDI'!E51 -> 0 | H50: =+'Health Promotion'!J51 -> 0 | I50: =+'Other Funds-Revision No. 1'!AM50 -> 26308 | J50: 26308
A51: 46 | B51: =+'Original ABG Allocation'!B51 -> LAWRENCE | C51: =+'Regular BG'!M52 -> 0 | D51: =+'Caregiver Support'!E52 -> 0 | E51: =+'Federal Caregiver Support'!I52 -> 0 | F51: =NSIP!G52 -> 0 | G51: =+'PA MEDI'!E52 -> 0 | H51: =+'Health Promotion'!J52 -> 0 | I51: =+'Other Funds-Revision No. 1'!AM51 -> 26446 | J51: 26446
A52: 47 | B52: =+'Original ABG Allocation'!B52 -> MERCER | C52: =+'Regular BG'!M53 -> 0 | D52: =+'Caregiver Support'!E53 -> 0 | E52: =+'Federal Caregiver Support'!I53 -> 0 | F52: =NSIP!G53 -> 0 | G52: =+'PA MEDI'!E53 -> 0 | H52: =+'Health Promotion'!J53 -> 0 | I52: =+'Other Funds-Revision No. 1'!AM52 -> 31299 | J52: 31299
A53: 48 | B53: =+'Original ABG Allocation'!B53 -> MONROE | C53: =+'Regular BG'!M54 -> 0 | D53: =+'Caregiver Support'!E54 -> 0 | E53: =+'Federal Caregiver Support'!I54 -> 0 | F53: =NSIP!G54 -> 0 | G53: =+'PA MEDI'!E54 -> 0 | H53: =+'Health Promotion'!J54 -> 0 | I53: =+'Other Funds-Revision No. 1'!AM53 -> 42174 | J53: 42174
A54: 49 | B54: =+'Original ABG Allocation'!B54 -> CLARION | C54: =+'Regular BG'!M55 -> 0 | D54: =+'Caregiver Support'!E55 -> 0 | E54: =+'Federal Caregiver Support'!I55 -> 0 | F54: =NSIP!G55 -> 0 | G54: =+'PA MEDI'!E55 -> 0 | H54: =+'Health Promotion'!J55 -> 0 | I54: =+'Other Funds-Revision No. 1'!AM54 -> 18749 | J54: 18749
A55: 50 | B55: =+'Original ABG Allocation'!B55 -> BUTLER | C55: =+'Regular BG'!M56 -> 0 | D55: =+'Caregiver Support'!E56 -> 0 | E55: =+'Federal Caregiver Support'!I56 -> 0 | F55: =NSIP!G56 -> 0 | G55: =+'PA MEDI'!E56 -> 0 | H55: =+'Health Promotion'!J56 -> 0 | I55: =+'Other Funds-Revision No. 1'!AM55 -> 38611 | J55: 38611
A56: 51 | B56: =+'Original ABG Allocation'!B56 -> POTTER | C56: =+'Regular BG'!M57 -> 0 | D56: =+'Caregiver Support'!E57 -> 0 | E56: =+'Federal Caregiver Support'!I57 -> 0 | F56: =NSIP!G57 -> 0 | G56: =+'PA MEDI'!E57 -> 0 | H56: =+'Health Promotion'!J57 -> 0 | I56: =+'Other Funds-Revision No. 1'!AM56 -> 13351 | J56: 13351
A57: 52 | B57: =+'Original ABG Allocation'!B57 -> WAYNE | C57: =+'Regular BG'!M58 -> 0 | D57: =+'Caregiver Support'!E58 -> 0 | E57: =+'Federal Caregiver Support'!I58 -> 0 | F57: =NSIP!G58 -> 0 | G57: =+'PA MEDI'!E58 -> 0 | H57: =+'Health Promotion'!J58 -> 0 | I57: =+'Other Funds-Revision No. 1'!AM57 -> 22788 | J57: 22788
B58: TOTALS | C58: =SUM(C6:C57) -> 0 | D58: 0 | E58: 0 | F58: 0 | G58: 0 | H58: 0 | I58: 2576957 | J58: 2576957

Sheet Amended ABG Allocation No. 1
A1: AMENDMENT #1
A2: BLOCK GRANT ALLOCATION
A3: =+'Original ABG Allocation'!A3 -> FY 2022-23 | C3: =+'Original ABG Allocation'!C3 -> (1) | D3: =+'Original ABG Allocation'!D3 -> (2) | E3: =+'Original ABG Allocation'!E3 -> (3) | F3: =+'Original ABG Allocation'!F3 -> (4) | G3: =+'Original ABG Allocation'!G3 -> (5) | H3: =+'Original ABG Allocation'!H3 -> (6) | I3: =+'Original ABG Allocation'!I3 -> (7) | J3: =+'Original ABG Allocation'!J3 -> (8)
C4: =+'Original ABG Allocation'!C4 -> REGULAR | D4: =+'Original ABG Allocation'!D4 -> CAREGIVER | E4: =+'Original ABG Allocation'!E4 -> FED. CAREGIVER | G4: =+'Original ABG Allocation'!G4 -> PA MEDI | H4: =+'Original ABG Allocation'!H4 -> HEALTH | J4: =+'Original ABG Allocation'!J4 -> TOTAL ALL
C5: =+'Original ABG Allocation'!C5 -> BLOCK GRANT | D5: =+'Original ABG Allocation'!D5 -> SUPPORT | E5: =+'Original ABG Allocation'!E5 -> SUPPORT | F5: =+'Original ABG Allocation'!F5 -> NSIP | G5: =+'Original ABG Allocation'!G5 -> APPRISE | H5: =+'Original ABG Allocation'!H5 -> PROMOTION | I5: =+'Original ABG Allocation'!I5 -> OTHER | J5: =+'Original ABG Allocation'!J5 -> FUNDS
A6: 01 | B6: =+'Original ABG Allocation'!B6 -> ERIE | C6: ='Original ABG Allocation'!C6+'Revision No. 1'!C6 -> 4411598 | D6: ='Original ABG Allocation'!D6+'Revision No. 1'!D6 -> 156011 | E6: ='Original ABG Allocation'!E6+'Revision No. 1'!E6 -> 134766 | F6: =NSIP!C7 -> 66325 | G6: ='Original ABG Allocation'!G6+'Revision No. 1'!G6 -> 20097 | H6: ='Original ABG Allocation'!H6+'Revision No. 1'!H6 -> 25670 | I6: ='Original ABG Allocation'!I6+'Revision No. 1'!I6 -> 50754 | J6: =SUM(C6:I6) -> 4865221
A7: 02 | B7: =+'Original ABG Allocation'!B7 -> CRAWFORD | C7: ='Original ABG Allocation'!C7+'Revision No. 1'!C7 -> 2137845 | D7: ='Original ABG Allocation'!D7+'Revision No. 1'!D7 -> 94962 | E7: ='Original ABG Allocation'!E7+'Revision No. 1'!E7 -> 55648 | F7: =NSIP!C8 -> 47328 | G7: ='Original ABG Allocation'!G7+'Revision No. 1'!G7 -> 10676 | H7: ='Original ABG Allocation'!H7+'Revision No. 1'!H7 -> 12253 | I7: ='Original ABG Allocation'!I7+'Revision No. 1'!I7 -> 27952 | J7: 2386664
A8: 03 | B8: =+'Original ABG Allocation'!B8 -> CAM/ELK/MCKEAN | C8: ='Original ABG Allocation'!C8+'Revision No. 1'!C8 -> 2104494 | D8: ='Original ABG Allocation'!D8+'Revision No. 1'!D8 -> 104392 | E8: ='Original ABG Allocation'!E8+'Revision No. 1'!E8 -> 69557 | F8: =NSIP!C9 -> 35588 | G8: ='Original ABG Allocation'!G8+'Revision No. 1'!G8 -> 11237 | H8: ='Original ABG Allocation'!H8+'Revision No. 1'!H8 -> 13477 | I8: ='Original ABG Allocation'!I8+'Revision No. 1'!I8 -> 26526 | J8: 2365271
A9: 04 | B9: =+'Original ABG Allocation'!B9 -> BEAVER | C9: ='Original ABG Allocation'!C9+'Revision No. 1'!C9 -> 3472650 | D9: ='Original ABG Allocation'!D9+'Revision No. 1'!D9 -> 120693 | E9: ='Original ABG Allocation'!E9+'Revision No. 1'!E9 -> 115200 | F9: =NSIP!C10 -> 23968 | G9: ='Original ABG Allocation'!G9+'Revision No. 1'!G9 -> 15815 | H9: ='Original ABG Allocation'!H9+'Revision No. 1'!H9 -> 22039 | I9: ='Original ABG Allocation'!I9+'Revision No. 1'!I9 -> 37277 | J9: 3807642
A10: 05 | B10: =+'Original ABG Allocation'!B10 -> INDIANA | C10: ='Original ABG Allocation'!C10+'Revision No. 1'!C10 -> 1949787 | D10: ='Original ABG Allocation'!D10+'Revision No. 1'!D10 -> 72332 | E10: ='Original ABG Allocation'!E10+'Revision No. 1'!E10 -> 65877 | F10: =NSIP!C11 -> 51905 | G10: ='Original ABG Allocation'!G10+'Revision No. 1'!G10 -> 10185 | H10: ='Original ABG Allocation'!H10+'Revision No. 1'!H10 -> 12618 | I10: ='Original ABG Allocation'!I10+'Revision No. 1'!I10 -> 26503 | J10: 2189207
A11: 06 | B11: =+'Original ABG Allocation'!B11 -> ALLEGHENY | C11: ='Original ABG Allocation'!C11+'Revision No. 1'!C11 -> 29841874 | D11: ='Original ABG Allocation'!D11+'Revision No. 1'!D11 -> 1024598 | E11: ='Original ABG Allocation'!E11+'Revision No. 1'!E11 -> 1027359 | F11: =NSIP!C12 -> 419219 | G11: ='Original ABG Allocation'!G11+'Revision No. 1'!G11 -> 107007 | H11: ='Original ABG Allocation'!H11+'Revision No. 1'!H11 -> 158619 | I11: ='Original ABG Allocation'!I11+'Revision No. 1'!I11 -> 189804 | J11: 32768480
A12: 07 | B12: =+'Original ABG Allocation'!B12 -> WESTMORELAND | C12: ='Original ABG Allocation'!C12+'Revision No. 1'!C12 -> 7750368 | D12: ='Original ABG Allocation'!D12+'Revision No. 1'!D12 -> 279704 | E12: ='Original ABG Allocation'!E12+'Revision No. 1'!E12 -> 249205 | F12: =NSIP!C13 -> 123773 | G12: ='Original ABG Allocation'!G12+'Revision No. 1'!G12 -> 33328 | H12: ='Original ABG Allocation'!H12+'Revision No. 1'!H12 -> 47027 | I12: ='Original ABG Allocation'!I12+'Revision No. 1'!I12 -> 66831 | J12: 8550236
A13: 08 | B13: =+'Original ABG Allocation'!B13 -> WASH/FAY/GREENE | C13: ='Original ABG Allocation'!C13+'Revision No. 1'!C13 -> 10511355 | D13: ='Original ABG Allocation'!D13+'Revision No. 1'!D13 -> 393598 | E13: ='Original ABG Allocation'!E13+'Revision No. 1'!E13 -> 534972 | F13: =NSIP!C14 -> 354500 | G13: ='Original ABG Allocation'!G13+'Revision No. 1'!G13 -> 39938 | H13: ='Original ABG Allocation'!H13+'Revision No. 1'!H13 -> 68098 | I13: ='Original ABG Allocation'!I13+'Revision No. 1'!I13 -> 80930 | J13: 11983391
A14: 09 | B14: =+'Original ABG Allocation'!B14 -> SOMERSET | C14: ='Original ABG Allocation'!C14+'Revision No. 1'!C14 -> 2326690 | D14: ='Original ABG Allocation'!D14+'Revision No. 1'!D14 -> 81631 | E14: ='Original ABG Allocation'!E14+'Revision No. 1'!E14 -> 93246 | F14: =NSIP!C15 -> 72579 | G14: ='Original ABG Allocation'!G14+'Revision No. 1'!G14 -> 11799 | H14: ='Original ABG Allocation'!H14+'Revision No. 1'!H14 -> 14877 | I14: ='Original ABG Allocation'!I14+'Revision No. 1'!I14 -> 27562 | J14: 2628384
A15: 10 | B15: =+'Original ABG Allocation'!B15 -> CAMBRIA | C15: ='Original ABG Allocation'!C15+'Revision No. 1'!C15 -> 4034624 | D15: ='Original ABG Allocation'!D15+'Revision No. 1'!D15 -> 140343 | E15: ='Original ABG Allocation'!E15+'Revision No. 1'!E15 -> 133780 | F15: =NSIP!C16 -> 178185 | G15: ='Original ABG Allocation'!G15+'Revision No. 1'!G15 -> 17087 | H15: ='Original ABG Allocation'!H15+'Revision No. 1'!H15 -> 25081 | I15: ='Original ABG Allocation'!I15+'Revision No. 1'!I15 -> 37762 | J15: 4566862
A16: 11 | B16: =+'Original ABG Allocation'!B16 -> BLAIR | C16: ='Original ABG Allocation'!C16+'Revision No. 1'!C16 -> 2763377 | D16: ='Original ABG Allocation'!D16+'Revision No. 1'!D16 -> 114081 | E16: ='Original ABG Allocation'!E16+'Revision No. 1'!E16 -> 109683 | F16: =NSIP!C17 -> 118873 | G16: ='Original ABG Allocation'!G16+'Revision No. 1'!G16 -> 11735 | H16: ='Original ABG Allocation'!H16+'Revision No. 1'!H16 -> 17034 | I16: ='Original ABG Allocation'!I16+'Revision No. 1'!I16 -> 30296 | J16: 3165079
A17: 12 | B17: =+'Original ABG Allocation'!B17 -> BED/FULT/HUNT | C17: ='Original ABG Allocation'!C17+'Revision No. 1'!C17 -> 3121983 | D17: ='Original ABG Allocation'!D17+'Revision No. 1'!D17 -> 120022 | E17: ='Original ABG Allocation'!E17+'Revision No. 1'!E17 -> 106084 | F17: =NSIP!C18 -> 66409 | G17: ='Original ABG Allocation'!G17+'Revision No. 1'!G17 -> 14807 | H17: ='Original ABG Allocation'!H17+'Revision No. 1'!H17 -> 19221 | I17: ='Original ABG Allocation'!I17+'Revision No. 1'!I17 -> 37342 | J17: 3485868
A18: 13 | B18: =+'Original ABG Allocation'!B18 -> CENTRE | C18: ='Original ABG Allocation'!C18+'Revision No. 1'!C18 -> 1381274 | D18: ='Original ABG Allocation'!D18+'Revision No. 1'!D18 -> 45132 | E18: ='Original ABG Allocation'!E18+'Revision No. 1'!E18 -> 36131 | F18: =NSIP!C19 -> 42135 | G18: ='Original ABG Allocation'!G18+'Revision No. 1'!G18 -> 10000 | H18: ='Original ABG Allocation'!H18+'Revision No. 1'!H18 -> 8909 | I18: ='Original ABG Allocation'!I18+'Revision No. 1'!I18 -> 27428 | J18: 1551009
A19: 14 | B19: =+'Original ABG Allocation'!B19 -> LYCOM/CLINTON | C19: ='Original ABG Allocation'!C19+'Revision No. 1'!C19 -> 3159609 | D19: ='Original ABG Allocation'!D19+'Revision No. 1'!D19 -> 117392 | E19: ='Original ABG Allocation'!E19+'Revision No. 1'!E19 -> 98452 | F19: =NSIP!C20 -> 80903 | G19: ='Original ABG Allocation'!G19+'Revision No. 1'!G19 -> 16355 | H19: ='Original ABG Allocation'!H19+'Revision No. 1'!H19 -> 18458 | I19: ='Original ABG Allocation'!I19+'Revision No. 1'!I19 -> 38012 | J19: 3529181
A20: 15 | B20: =+'Original ABG Allocation'!B20 -> COLUM/MONT | C20: ='Original ABG Allocation'!C20+'Revision No. 1'!C20 -> 1789613 | D20: ='Original ABG Allocation'!D20+'Revision No. 1'!D20 -> 66474 | E20: ='Original ABG Allocation'!E20+'Revision No. 1'!E20 -> 53326 | F20: =NSIP!C21 -> 26259 | G20: ='Original ABG Allocation'!G20+'Revision No. 1'!G20 -> 10000 | H20: ='Original ABG Allocation'!H20+'Revision No. 1'!H20 -> 10126 | I20: ='Original ABG Allocation'!I20+'Revision No. 1'!I20 -> 25338 | J20: 1981136
A21: 16 | B21: =+'Original ABG Allocation'!B21 -> NORTHUMBERLND | C21: ='Original ABG Allocation'!C21+'Revision No. 1'!C21 -> 2955045 | D21: ='Original ABG Allocation'!D21+'Revision No. 1'!D21 -> 122953 | E21: ='Original ABG Allocation'!E21+'Revision No. 1'!E21 -> 109123 | F21: =NSIP!C22 -> 38517 | G21: ='Original ABG Allocation'!G21+'Revision No. 1'!G21 -> 11327 | H21: ='Original ABG Allocation'!H21+'Revision No. 1'!H21 -> 17718 | I21: ='Original ABG Allocation'!I21+'Revision No. 1'!I21 -> 27835 | J21: 3282518
A22: 17 | B22: =+'Original ABG Allocation'!B22 -> UNION/SNYDER | C22: ='Original ABG Allocation'!C22+'Revision No. 1'!C22 -> 1295880 | D22: ='Original ABG Allocation'!D22+'Revision No. 1'!D22 -> 41818 | E22: ='Original ABG Allocation'!E22+'Revision No. 1'!E22 -> 38788 | F22: =NSIP!C23 -> 16745 | G22: ='Original ABG Allocation'!G22+'Revision No. 1'!G22 -> 10000 | H22: ='Original ABG Allocation'!H22+'Revision No. 1'!H22 -> 8635 | I22: ='Original ABG Allocation'!I22+'Revision No. 1'!I22 -> 25178 | J22: 1437044
A23: 18 | B23: =+'Original ABG Allocation'!B23 -> MIFF/JUNIATA | C23: ='Original ABG Allocation'!C23+'Revision No. 1'!C23 -> 1827966 | D23: ='Original ABG Allocation'!D23+'Revision No. 1'!D23 -> 64859 | E23: ='Original ABG Allocation'!E23+'Revision No. 1'!E23 -> 74111 | F23: =NSIP!C24 -> 44916 | G23: ='Original ABG Allocation'!G23+'Revision No. 1'!G23 -> 10222 | H23: ='Original ABG Allocation'!H23+'Revision No. 1'!H23 -> 11964 | I23: ='Original ABG Allocation'!I23+'Revision No. 1'!I23 -> 25974 | J23: 2060012
A24: 19 | B24: =+'Original ABG Allocation'!B24 -> FRANKLIN | C24: ='Original ABG Allocation'!C24+'Revision No. 1'!C24 -> 2436382 | D24: ='Original ABG Allocation'!D24+'Revision No. 1'!D24 -> 83393 | E24: ='Original ABG Allocation'!E24+'Revision No. 1'!E24 -> 78131 | F24: =NSIP!C25 -> 66539 | G24: ='Original ABG Allocation'!G24+'Revision No. 1'!G24 -> 15528 | H24: ='Original ABG Allocation'!H24+'Revision No. 1'!H24 -> 14543 | I24: ='Original ABG Allocation'!I24+'Revision No. 1'!I24 -> 31873 | J24: 2726389
A25: 20 | B25: =+'Original ABG Allocation'!B25 -> ADAMS | C25: ='Original ABG Allocation'!C25+'Revision No. 1'!C25 -> 1263446 | D25: ='Original ABG Allocation'!D25+'Revision No. 1'!D25 -> 39383 | E25: ='Original ABG Allocation'!E25+'Revision No. 1'!E25 -> 32448 | F25: =NSIP!C26 -> 29737 | G25: ='Original ABG Allocation'!G25+'Revision No. 1'!G25 -> 10175 | H25: ='Original ABG Allocation'!H25+'Revision No. 1'!H25 -> 7955 | I25: ='Original ABG Allocation'!I25+'Revision No. 1'!I25 -> 29100 | J25: 1412244
A26: 21 | B26: =+'Original ABG Allocation'!B26 -> CUMBERLAND | C26: ='Original ABG Allocation'!C26+'Revision No. 1'!C26 -> 2273659 | D26: ='Original ABG Allocation'!D26+'Revision No. 1'!D26 -> 80733 | E26: ='Original ABG Allocation'!E26+'Revision No. 1'!E26 -> 57284 | F26: =NSIP!C27 -> 21248 | G26: ='Original ABG Allocation'!G26+'Revision No. 1'!G26 -> 17010 | H26: ='Original ABG Allocation'!H26+'Revision No. 1'!H26 -> 9223 | I26: ='Original ABG Allocation'!I26+'Revision No. 1'!I26 -> 38546 | J26: 2497703
A27: 22 | B27: =+'Original ABG Allocation'!B27 -> PERRY | C27: ='Original ABG Allocation'!C27+'Revision No. 1'!C27 -> 767004 | D27: ='Original ABG Allocation'!D27+'Revision No. 1'!D27 -> 25396 | E27: ='Original ABG Allocation'!E27+'Revision No. 1'!E27 -> 23988 | F27: =NSIP!C28 -> 28967 | G27: ='Original ABG Allocation'!G27+'Revision No. 1'!G27 -> 10000 | H27: ='Original ABG Allocation'!H27+'Revision No. 1'!H27 -> 7923 | I27: ='Original ABG Allocation'!I27+'Revision No. 1'!I27 -> 19102 | J27: 882380
A28: 23 | B28: =+'Original ABG Allocation'!B28 -> DAUPHIN | C28: ='Original ABG Allocation'!C28+'Revision No. 1'!C28 -> 4488392 | D28: ='Original ABG Allocation'!D28+'Revision No. 1'!D28 -> 171730 | E28: ='Original ABG Allocation'!E28+'Revision No. 1'!E28 -> 127675 | F28: =NSIP!C29 -> 76056 | G28: ='Original ABG Allocation'!G28+'Revision No. 1'!G28 -> 18822 | H28: ='Original ABG Allocation'!H28+'Revision No. 1'!H28 -> 23922 | I28: ='Original ABG Allocation'!I28+'Revision No. 1'!I28 -> 49986 | J28: 4956583
A29: 24 | B29: =+'Original ABG Allocation'!B29 -> LEBANON | C29: ='Original ABG Allocation'!C29+'Revision No. 1'!C29 -> 1934714 | D29: ='Original ABG Allocation'!D29+'Revision No. 1'!D29 -> 68543 | E29: ='Original ABG Allocation'!E29+'Revision No. 1'!E29 -> 56539 | F29: =NSIP!C30 -> 40188 | G29: ='Original ABG Allocation'!G29+'Revision No. 1'!G29 -> 11419 | H29: ='Original ABG Allocation'!H29+'Revision No. 1'!H29 -> 9146 | I29: ='Original ABG Allocation'!I29+'Revision No. 1'!I29 -> 28558 | J29: 2149107
A30: 25 | B30: =+'Original ABG Allocation'!B30 -> YORK | C30: ='Original ABG Allocation'!C30+'Revision No. 1'!C30 -> 5364017 | D30: ='Original ABG Allocation'!D30+'Revision No. 1'!D30 -> 199228 | E30: ='Original ABG Allocation'!E30+'Revision No. 1'!E30 -> 133054 | F30: =NSIP!C31 -> 204767 | G30: ='Original ABG Allocation'!G30+'Revision No. 1'!G30 -> 27448 | H30: ='Original ABG Allocation'!H30+'Revision No. 1'!H30 -> 25017 | I30: ='Original ABG Allocation'!I30+'Revision No. 1'!I30 -> 69151 | J30: 6022682
A31: 26 | B31: =+'Original ABG Allocation'!B31 -> LANCASTER | C31: ='Original ABG Allocation'!C31+'Revision No. 1'!C31 -> 5609386 | D31: ='Original ABG Allocation'!D31+'Revision No. 1'!D31 -> 198436 | E31: ='Original ABG Allocation'!E31+'Revision No. 1'!E31 -> 164965 | F31: =NSIP!C32 -> 60963 | G31: ='Original ABG Allocation'!G31+'Revision No. 1'!G31 -> 33008 | H31: ='Original ABG Allocation'!H31+'Revision No. 1'!H31 -> 30859 | I31: ='Original ABG Allocation'!I31+'Revision No. 1'!I31 -> 77387 | J31: 6175004
A32: 27 | B32: =+'Original ABG Allocation'!B32 -> CHESTER | C32: ='Original ABG Allocation'!C32+'Revision No. 1'!C32 -> 3766491 | D32: ='Original ABG Allocation'!D32+'Revision No. 1'!D32 -> 114753 | E32: ='Original ABG Allocation'!E32+'Revision No. 1'!E32 -> 74312 | F32: =NSIP!C33 -> 65735 | G32: ='Original ABG Allocation'!G32+'Revision No. 1'!G32 -> 25091 | H32: ='Original ABG Allocation'!H32+'Revision No. 1'!H32 -> 14330 | I32: ='Original ABG Allocation'!I32+'Revision No. 1'!I32 -> 59974 | J32: 4120686
A33: 28 | B33: =+'Original ABG Allocation'!B33 -> MONTGOMERY | C33: ='Original ABG Allocation'!C33+'Revision No. 1'!C33 -> 8212898 | D33: ='Original ABG Allocation'!D33+'Revision No. 1'!D33 -> 236029 | E33: ='Original ABG Allocation'!E33+'Revision No. 1'!E33 -> 238996 | F33: =NSIP!C34 -> 222009 | G33: ='Original ABG Allocation'!G33+'Revision No. 1'!G33 -> 47311 | H33: ='Original ABG Allocation'!H33+'Revision No. 1'!H33 -> 27365 | I33: ='Original ABG Allocation'!I33+'Revision No. 1'!I33 -> 101434 | J33: 9086042
A34: 29 | B34: =+'Original ABG Allocation'!B34 -> BUCKS | C34: ='Original ABG Allocation'!C34+'Revision No. 1'!C34 -> 5247058 | D34: ='Original ABG Allocation'!D34+'Revision No. 1'!D34 -> 206856 | E34: ='Original ABG Allocation'!E34+'Revision No. 1'!E34 -> 197793 | F34: =NSIP!C35 -> 80421 | G34: ='Original ABG Allocation'!G34+'Revision No. 1'!G34 -> 33291 | H34: ='Original ABG Allocation'!H34+'Revision No. 1'!H34 -> 24480 | I34: ='Original ABG Allocation'!I34+'Revision No. 1'!I34 -> 76281 | J34: 5866180
A35: 30 | B35: =+'Original ABG Allocation'!B35 -> DELAWARE | C35: ='Original ABG Allocation'!C35+'Revision No. 1'!C35 -> 8091925 | D35: ='Original ABG Allocation'!D35+'Revision No. 1'!D35 -> 278240 | E35: ='Original ABG Allocation'!E35+'Revision No. 1'!E35 -> 230814 | F35: =NSIP!C36 -> 92075 | G35: ='Original ABG Allocation'!G35+'Revision No. 1'!G35 -> 35954 | H35: ='Original ABG Allocation'!H35+'Revision No. 1'!H35 -> 44239 | I35: ='Original ABG Allocation'!I35+'Revision No. 1'!I35 -> 82487 | J35: 8855734
A36: 31 | B36: =+'Original ABG Allocation'!B36 -> PHILADELPHIA | C36: ='Original ABG Allocation'!C36+'Revision No. 1'!C36 -> 56025883 | D36: ='Original ABG Allocation'!D36+'Revision No. 1'!D36 -> 1702584 | E36: ='Original ABG Allocation'!E36+'Revision No. 1'!E36 -> 2431642 | F36: =NSIP!C37 -> 803599 | G36: ='Original ABG Allocation'!G36+'Revision No. 1'!G36 -> 107007 | H36: ='Original ABG Allocation'!H36+'Revision No. 1'!H36 -> 307815 | I36: ='Original ABG Allocation'!I36+'Revision No. 1'!I36 -> 375238 | J36: 61753768
A37: 32 | B37: =+'Original ABG Allocation'!B37 -> BERKS | C37: ='Original ABG Allocation'!C37+'Revision No. 1'!C37 -> 6004484 | D37: ='Original ABG Allocation'!D37+'Revision No. 1'!D37 -> 235166 | E37: ='Original ABG Allocation'!E37+'Revision No. 1'!E37 -> 262043 | F37: =NSIP!C38 -> 158821 | G37: ='Original ABG Allocation'!G37+'Revision No. 1'!G37 -> 29191 | H37: ='Original ABG Allocation'!H37+'Revision No. 1'!H37 -> 32781 | I37: ='Original ABG Allocation'!I37+'Revision No. 1'!I37 -> 70382 | J37: 6792868
A38: 33 | B38: =+'Original ABG Allocation'!B38 -> LEHIGH | C38: ='Original ABG Allocation'!C38+'Revision No. 1'!C38 -> 4654532 | D38: ='Original ABG Allocation'!D38+'Revision No. 1'!D38 -> 172458 | E38: ='Original ABG Allocation'!E38+'Revision No. 1'!E38 -> 119971 | F38: =NSIP!C39 -> 42793 | G38: ='Original ABG Allocation'!G38+'Revision No. 1'!G38 -> 21310 | H38: ='Original ABG Allocation'!H38+'Revision No. 1'!H38 -> 17348 | I38: ='Original ABG Allocation'!I38+'Revision No. 1'!I38 -> 57889 | J38: =SUM(C38:I38) -> 5086301
A39: 34 | B39: =+'Original ABG Allocation'!B39 -> NORTHAMPTON | C39: ='Original ABG Allocation'!C39+'Revision No. 1'!C39 -> 4087354 | D39: ='Original ABG Allocation'!D39+'Revision No. 1'!D39 -> 153486 | E39: ='Original ABG Allocation'!E39+'Revision No. 1'!E39 -> 102099 | F39: =NSIP!C40 -> 73789 | G39: ='Original ABG Allocation'!G39+'Revision No. 1'!G39 -> 19506 | H39: ='Original ABG Allocation'!H39+'Revision No. 1'!H39 -> 19316 | I39: ='Original ABG Allocation'!I39+'Revision No. 1'!I39 -> 46413 | J39: 4501963
A40: 35 | B40: =+'Original ABG Allocation'!B40 -> PIKE | C40: ='Original ABG Allocation'!C40+'Revision No. 1'!C40 -> 714453 | D40: ='Original ABG Allocation'!D40+'Revision No. 1'!D40 -> 25399 | E40: ='Original ABG Allocation'!E40+'Revision No. 1'!E40 -> 20229 | F40: =NSIP!C41 -> 20687 | G40: ='Original ABG Allocation'!G40+'Revision No. 1'!G40 -> 10000 | H40: ='Original ABG Allocation'!H40+'Revision No. 1'!H40 -> 7908 | I40: ='Original ABG Allocation'!I40+'Revision No. 1'!I40 -> 24546 | J40: 823222
A41: 36 | B41: =+'Original ABG Allocation'!B41 -> B/S/S/T | C41: ='Original ABG Allocation'!C41+'Revision No. 1'!C41 -> 3993199 | D41: ='Original ABG Allocation'!D41+'Revision No. 1'!D41 -> 141181 | E41: ='Original ABG Allocation'!E41+'Revision No. 1'!E41 -> 136248 | F41: =NSIP!C42 -> 98527 | G41: ='Original ABG Allocation'!G41+'Revision No. 1'!G41 -> 20201 | H41: ='Original ABG Allocation'!H41+'Revision No. 1'!H41 -> 24698 | I41: ='Original ABG Allocation'!I41+'Revision No. 1'!I41 -> 48433 | J41: 4462487
A42: 37 | B42: =+'Original ABG Allocation'!B42 -> LUZERNE/WYOMING | C42: ='Original ABG Allocation'!C42+'Revision No. 1'!C42 -> 9360224 | D42: ='Original ABG Allocation'!D42+'Revision No. 1'!D42 -> 343992 | E42: ='Original ABG Allocation'!E42+'Revision No. 1'!E42 -> 282547 | F42: =NSIP!C43 -> 219979 | G42: ='Original ABG Allocation'!G42+'Revision No. 1'!G42 -> 31720 | H42: ='Original ABG Allocation'!H42+'Revision No. 1'!H42 -> 54157 | I42: ='Original ABG Allocation'!I42+'Revision No. 1'!I42 -> 62651 | J42: 10355270
A43: 38 | B43: =+'Original ABG Allocation'!B43 -> LACKAWANNA | C43: ='Original ABG Allocation'!C43+'Revision No. 1'!C43 -> 5223495 | D43: ='Original ABG Allocation'!D43+'Revision No. 1'!D43 -> 202907 | E43: ='Original ABG Allocation'!E43+'Revision No. 1'!E43 -> 231866 | F43: =NSIP!C44 -> 124839 | G43: ='Original ABG Allocation'!G43+'Revision No. 1'!G43 -> 18501 | H43: ='Original ABG Allocation'!H43+'Revision No. 1'!H43 -> 33436 | I43: ='Original ABG Allocation'!I43+'Revision No. 1'!I43 -> 42257 | J43: 5877301
A44: 39 | B44: =+'Original ABG Allocation'!B44 -> CARBON | C44: ='Original ABG Allocation'!C44+'Revision No. 1'!C44 -> 1185509 | D44: ='Original ABG Allocation'!D44+'Revision No. 1'!D44 -> 44213 | E44: ='Original ABG Allocation'!E44+'Revision No. 1'!E44 -> 39403 | F44: =NSIP!C45 -> 30903 | G44: ='Original ABG Allocation'!G44+'Revision No. 1'!G44 -> 10000 | H44: ='Original ABG Allocation'!H44+'Revision No. 1'!H44 -> 7982 | I44: ='Original ABG Allocation'!I44+'Revision No. 1'!I44 -> 23256 | J44: 1341266
A45: 40 | B45: =+'Original ABG Allocation'!B45 -> SCHUYLKILL | C45: ='Original ABG Allocation'!C45+'Revision No. 1'!C45 -> 4568989 | D45: ='Original ABG Allocation'!D45+'Revision No. 1'!D45 -> 181495 | E45: ='Original ABG Allocation'!E45+'Revision No. 1'!E45 -> 156510 | F45: =NSIP!C46 -> 56511 | G45: ='Original ABG Allocation'!G45+'Revision No. 1'!G45 -> 18478 | H45: ='Original ABG Allocation'!H45+'Revision No. 1'!H45 -> 29322 | I45: ='Original ABG Allocation'!I45+'Revision No. 1'!I45 -> 42433 | J45: 5053738
A46: 41 | B46: =+'Original ABG Allocation'!B46 -> CLEARFIELD | C46: ='Original ABG Allocation'!C46+'Revision No. 1'!C46 -> 2229583 | D46: ='Original ABG Allocation'!D46+'Revision No. 1'!D46 -> 79676 | E46: ='Original ABG Allocation'!E46+'Revision No. 1'!E46 -> 76522 | F46: =NSIP!C47 -> 110249 | G46: ='Original ABG Allocation'!G46+'Revision No. 1'!G46 -> 11341 | H46: ='Original ABG Allocation'!H46+'Revision No. 1'!H46 -> 14212 | I46: ='Original ABG Allocation'!I46+'Revision No. 1'!I46 -> 28506 | J46: 2550089
A47: 42 | B47: =+'Original ABG Allocation'!B47 -> JEFFERSON | C47: ='Original ABG Allocation'!C47+'Revision No. 1'!C47 -> 1281851 | D47: ='Original ABG Allocation'!D47+'Revision No. 1'!D47 -> 51609 | E47: ='Original ABG Allocation'!E47+'Revision No. 1'!E47 -> 59466 | F47: =NSIP!C48 -> 28079 | G47: ='Original ABG Allocation'!G47+'Revision No. 1'!G47 -> 10000 | H47: ='Original ABG Allocation'!H47+'Revision No. 1'!H47 -> 8874 | I47: ='Original ABG Allocation'!I47+'Revision No. 1'!I47 -> 19041 | J47: 1458920
A48: 43 | B48: =+'Original ABG Allocation'!B48 -> FOREST/WARREN | C48: ='Original ABG Allocation'!C48+'Revision No. 1'!C48 -> 1026619 | D48: ='Original ABG Allocation'!D48+'Revision No. 1'!D48 -> 34269 | E48: ='Original ABG Allocation'!E48+'Revision No. 1'!E48 -> 30176 | F48: =NSIP!C49 -> 27753 | G48: ='Original ABG Allocation'!G48+'Revision No. 1'!G48 -> 10000 | H48: ='Original ABG Allocation'!H48+'Revision No. 1'!H48 -> 7946 | I48: ='Original ABG Allocation'!I48+'Revision No. 1'!I48 -> 21068 | J48: 1157831
A49: 44 | B49: =+'Original ABG Allocation'!B49 -> VENANGO | C49: ='Original ABG Allocation'!C49+'Revision No. 1'!C49 -> 1267563 | D49: ='Original ABG Allocation'!D49+'Revision No. 1'!D49 -> 48574 | E49: ='Original ABG Allocation'!E49+'Revision No. 1'!E49 -> 55242 | F49: =NSIP!C50 -> 36107 | G49: ='Original ABG Allocation'!G49+'Revision No. 1'!G49 -> 10000 | H49: ='Original ABG Allocation'!H49+'Revision No. 1'!H49 -> 8569 | I49: ='Original ABG Allocation'!I49+'Revision No. 1'!I49 -> 21935 | J49: 1447990
A50: 45 | B50: =+'Original ABG Allocation'!B50 -> ARMSTRONG | C50: ='Original ABG Allocation'!C50+'Revision No. 1'!C50 -> 1994604 | D50: ='Original ABG Allocation'!D50+'Revision No. 1'!D50 -> 75493 | E50: ='Original ABG Allocation'!E50+'Revision No. 1'!E50 -> 62026 | F50: =NSIP!C51 -> 71631 | G50: ='Original ABG Allocation'!G50+'Revision No. 1'!G50 -> 10719 | H50: ='Original ABG Allocation'!H50+'Revision No. 1'!H50 -> 12115 | I50: ='Original ABG Allocation'!I50+'Revision No. 1'!I50 -> 26308 | J50: 2252896
A51: 46 | B51: =+'Original ABG Allocation'!B51 -> LAWRENCE | C51: ='Original ABG Allocation'!C51+'Revision No. 1'!C51 -> 2116483 | D51: ='Original ABG Allocation'!D51+'Revision No. 1'!D51 -> 79407 | E51: ='Original ABG Allocation'!E51+'Revision No. 1'!E51 -> 65793 | F51: =NSIP!C52 -> 43055 | G51: ='Original ABG Allocation'!G51+'Revision No. 1'!G51 -> 10341 | H51: ='Original ABG Allocation'!H51+'Revision No. 1'!H51 -> 12981 | I51: ='Original ABG Allocation'!I51+'Revision No. 1'!I51 -> 26446 | J51: 2354506
A52: 47 | B52: =+'Original ABG Allocation'!B52 -> MERCER | C52: ='Original ABG Allocation'!C52+'Revision No. 1'!C52 -> 2322893 | D52: ='Original ABG Allocation'!D52+'Revision No. 1'!D52 -> 80316 | E52: ='Original ABG Allocation'!E52+'Revision No. 1'!E52 -> 77331 | F52: =NSIP!C53 -> 41143 | G52: ='Original ABG Allocation'!G52+'Revision No. 1'!G52 -> 13302 | H52: ='Original ABG Allocation'!H52+'Revision No. 1'!H52 -> 14661 | I52: ='Original ABG Allocation'!I52+'Revision No. 1'!I52 -> 31299 | J52: 2580945
A53: 48 | B53: =+'Original ABG Allocation'!B53 -> MONROE | C53: ='Original ABG Allocation'!C53+'Revision No. 1'!C53 -> 1655963 | D53: ='Original ABG Allocation'!D53+'Revision No. 1'!D53 -> 46961 | E53: ='Original ABG Allocation'!E53+'Revision No. 1'!E53 -> 65227 | F53: =NSIP!C54 -> 37809 | G53: ='Original ABG Allocation'!G53+'Revision No. 1'!G53 -> 13317 | H53: ='Original ABG Allocation'!H53+'Revision No. 1'!H53 -> 8435 | I53: ='Original ABG Allocation'!I53+'Revision No. 1'!I53 -> 42174 | J53: 1869886
A54: 49 | B54: =+'Original ABG Allocation'!B54 -> CLARION | C54: ='Original ABG Allocation'!C54+'Revision No. 1'!C54 -> 954686 | D54: ='Original ABG Allocation'!D54+'Revision No. 1'!D54 -> 32868 | E54: ='Original ABG Allocation'!E54+'Revision No. 1'!E54 -> 43252 | F54: =NSIP!C55 -> 29696 | G54: ='Original ABG Allocation'!G54+'Revision No. 1'!G54 -> 10000 | H54: ='Original ABG Allocation'!H54+'Revision No. 1'!H54 -> 7961 | I54: ='Original ABG Allocation'!I54+'Revision No. 1'!I54 -> 18749 | J54: 1097212
A55: 50 | B55: =+'Original ABG Allocation'!B55 -> BUTLER | C55: ='Original ABG Allocation'!C55+'Revision No. 1'!C55 -> 2546870 | D55: ='Original ABG Allocation'!D55+'Revision No. 1'!D55 -> 104331 | E55: ='Original ABG Allocation'!E55+'Revision No. 1'!E55 -> 112372 | F55: =NSIP!C56 -> 40783 | G55: ='Original ABG Allocation'!G55+'Revision No. 1'!G55 -> 16742 | H55: ='Original ABG Allocation'!H55+'Revision No. 1'!H55 -> 14150 | I55: ='Original ABG Allocation'!I55+'Revision No. 1'!I55 -> 38611 | J55: 2873859
A56: 51 | B56: =+'Original ABG Allocation'!B56 -> POTTER | C56: ='Original ABG Allocation'!C56+'Revision No. 1'!C56 -> 589962 | D56: ='Original ABG Allocation'!D56+'Revision No. 1'!D56 -> 25400 | E56: ='Original ABG Allocation'!E56+'Revision No. 1'!E56 -> 20017 | F56: =NSIP!C57 -> 14811 | G56: ='Original ABG Allocation'!G56+'Revision No. 1'!G56 -> 10000 | H56: ='Original ABG Allocation'!H56+'Revision No. 1'!H56 -> 7905 | I56: ='Original ABG Allocation'!I56+'Revision No. 1'!I56 -> 13351 | J56: 681446
A57: 52 | B57: =+'Original ABG Allocation'!B57 -> WAYNE | C57: ='Original ABG Allocation'!C57+'Revision No. 1'!C57 -> 1178872 | D57: ='Original ABG Allocation'!D57+'Revision No. 1'!D57 -> 35500 | E57: ='Original ABG Allocation'!E57+'Revision No. 1'!E57 -> 38682 | F57: =NSIP!C58 -> 55047 | G57: ='Original ABG Allocation'!G57+'Revision No. 1'!G57 -> 10000 | H57: ='Original ABG Allocation'!H57+'Revision No. 1'!H57 -> 8635 | I57: ='Original ABG Allocation'!I57+'Revision No. 1'!I57 -> 22788 | J57: 1349524
B58: TOTALS | C58: =SUM(C6:C57) -> 251275475 | D58: 8761000 | E58: 9009971 | F58: 4963443 | G58: 1078348 | H58: 1412033 | I58: 2576957 | J58: 279077227

Sheet Revision No. 2 (hidden)
A1: CHANGE 2
A2: BLOCK GRANT ALLOCATION
A3: =+'Original ABG Allocation'!A3 -> FY 2022-23 | C3: =+'Original ABG Allocation'!C3 -> (1) | D3: =+'Original ABG Allocation'!D3 -> (2) | E3: =+'Original ABG Allocation'!E3 -> (3) | F3: =+'Original ABG Allocation'!F3 -> (4) | G3: =+'Original ABG Allocation'!G3 -> (5) | H3: =+'Original ABG Allocation'!H3 -> (6) | I3: =+'Original ABG Allocation'!I3 -> (7) | J3: =+'Original ABG Allocation'!J3 -> (8)
C4: =+'Original ABG Allocation'!C4 -> REGULAR | D4: =+'Original ABG Allocation'!D4 -> CAREGIVER | E4: =+'Original ABG Allocation'!E4 -> FED. CAREGIVER | H4: =+'Original ABG Allocation'!H4 -> HEALTH | J4: =+'Original ABG Allocation'!J4 -> TOTAL ALL
C5: =+'Original ABG Allocation'!C5 -> BLOCK GRANT | D5: =+'Original ABG Allocation'!D5 -> SUPPORT | E5: =+'Original ABG Allocation'!E5 -> SUPPORT | F5: =+'Original ABG Allocation'!F5 -> NSIP | G5: =+'Original ABG Allocation'!G5 -> APPRISE | H5: =+'Original ABG Allocation'!H5 -> PROMOTION | I5: OTHER | J5: =+'Original ABG Allocation'!J5 -> FUNDS
A6: 01 | B6: =+'Original ABG Allocation'!B6 -> ERIE | C6: =+'Regular BG'!T7 -> 0 | D6: =+'Caregiver Support'!H7 -> 0 | E6: =+'Federal Caregiver Support'!Q7 -> 0 | F6: =+NSIP!J7 -> 0 | G6: =+'PA MEDI'!H7 -> 0 | H6: ='Health Promotion'!O7 -> 0 | I6: ='Other Funds-Revision No. 2'!AM6 -> 0 | J6: =SUM(C6:I6) -> 0
A7: 02 | B7: =+'Original ABG Allocation'!B7 -> CRAWFORD | C7: =+'Regular BG'!T8 -> 0 | D7: =+'Caregiver Support'!H8 -> 0 | E7: =+'Federal Caregiver Support'!Q8 -> 0 | F7: =+NSIP!J8 -> 0 | G7: =+'PA MEDI'!H8 -> 0 | H7: ='Health Promotion'!O8 -> 0 | I7: ='Other Funds-Revision No. 2'!AM7 -> 0 | J7: =SUM(C7:I7) -> 0
A8: 03 | B8: =+'Original ABG Allocation'!B8 -> CAM/ELK/MCKEAN | C8: =+'Regular BG'!T9 -> 0 | D8: =+'Caregiver Support'!H9 -> 0 | E8: =+'Federal Caregiver Support'!Q9 -> 0 | F8: =+NSIP!J9 -> 0 | G8: =+'PA MEDI'!H9 -> 0 | H8: ='Health Promotion'!O9 -> 0 | I8: ='Other Funds-Revision No. 2'!AM8 -> 0 | J8: 0
A9: 04 | B9: =+'Original ABG Allocation'!B9 -> BEAVER | C9: =+'Regular BG'!T10 -> 0 | D9: =+'Caregiver Support'!H10 -> 0 | E9: =+'Federal Caregiver Support'!Q10 -> 0 | F9: =+NSIP!J10 -> 0 | G9: =+'PA MEDI'!H10 -> 0 | H9: ='Health Promotion'!O10 -> 0 | I9: ='Other Funds-Revision No. 2'!AM9 -> 0 | J9: 0
A10: 05 | B10: =+'Original ABG Allocation'!B10 -> INDIANA | C10: =+'Regular BG'!T11 -> 0 | D10: =+'Caregiver Support'!H11 -> 0 | E10: =+'Federal Caregiver Support'!Q11 -> 0 | F10: =+NSIP!J11 -> 0 | G10: =+'PA MEDI'!H11 -> 0 | H10: ='Health Promotion'!O11 -> 0 | I10: ='Other Funds-Revision No. 2'!AM10 -> 0 | J10: 0
A11: 06 | B11: =+'Original ABG Allocation'!B11 -> ALLEGHENY | C11: =+'Regular BG'!T12 -> 0 | D11: =+'Caregiver Support'!H12 -> 0 | E11: =+'Federal Caregiver Support'!Q12 -> 0 | F11: =+NSIP!J12 -> 0 | G11: =+'PA MEDI'!H12 -> 0 | H11: ='Health Promotion'!O12 -> 0 | I11: ='Other Funds-Revision No. 2'!AM11 -> 0 | J11: 0
A12: 07 | B12: =+'Original ABG Allocation'!B12 -> WESTMORELAND | C12: =+'Regular BG'!T13 -> 0 | D12: =+'Caregiver Support'!H13 -> 0 | E12: =+'Federal Caregiver Support'!Q13 -> 0 | F12: =+NSIP!J13 -> 0 | G12: =+'PA MEDI'!H13 -> 0 | H12: ='Health Promotion'!O13 -> 0 | I12: ='Other Funds-Revision No. 2'!AM12 -> 0 | J12: 0
A13: 08 | B13: =+'Original ABG Allocation'!B13 -> WASH/FAY/GREENE | C13: =+'Regular BG'!T14 -> 0 | D13: =+'Caregiver Support'!H14 -> 0 | E13: =+'Federal Caregiver Support'!Q14 -> 0 | F13: =+NSIP!J14 -> 0 | G13: =+'PA MEDI'!H14 -> 0 | H13: ='Health Promotion'!O14 -> 0 | I13: ='Other Funds-Revision No. 2'!AM13 -> 0 | J13: 0
A14: 09 | B14: =+'Original ABG Allocation'!B14 -> SOMERSET | C14: =+'Regular BG'!T15 -> 0 | D14: =+'Caregiver Support'!H15 -> 0 | E14: =+'Federal Caregiver Support'!Q15 -> 0 | F14: =+NSIP!J15 -> 0 | G14: =+'PA MEDI'!H15 -> 0 | H14: ='Health Promotion'!O15 -> 0 | I14: ='Other Funds-Revision No. 2'!AM14 -> 0 | J14: 0
A15: 10 | B15: =+'Original ABG Allocation'!B15 -> CAMBRIA | C15: =+'Regular BG'!T16 -> 0 | D15: =+'Caregiver Support'!H16 -> 0 | E15: =+'Federal Caregiver Support'!Q16 -> 0 | F15: =+NSIP!J16 -> 0 | G15: =+'PA MEDI'!H16 -> 0 | H15: ='Health Promotion'!O16 -> 0 | I15: ='Other Funds-Revision No. 2'!AM15 -> 0 | J15: 0
A16: 11 | B16: =+'Original ABG Allocation'!B16 -> BLAIR | C16: =+'Regular BG'!T17 -> 0 | D16: =+'Caregiver Support'!H17 -> 0 | E16: =+'Federal Caregiver Support'!Q17 -> 0 | F16: =+NSIP!J17 -> 0 | G16: =+'PA MEDI'!H17 -> 0 | H16: ='Health Promotion'!O17 -> 0 | I16: ='Other Funds-Revision No. 2'!AM16 -> 0 | J16: 0
A17: 12 | B17: =+'Original ABG Allocation'!B17 -> BED/FULT/HUNT | C17: =+'Regular BG'!T18 -> 0 | D17: =+'Caregiver Support'!H18 -> 0 | E17: =+'Federal Caregiver Support'!Q18 -> 0 | F17: =+NSIP!J18 -> 0 | G17: =+'PA MEDI'!H18 -> 0 | H17: ='Health Promotion'!O18 -> 0 | I17: ='Other Funds-Revision No. 2'!AM17 -> 0 | J17: 0
A18: 13 | B18: =+'Original ABG Allocation'!B18 -> CENTRE | C18: =+'Regular BG'!T19 -> 0 | D18: =+'Caregiver Support'!H19 -> 0 | E18: =+'Federal Caregiver Support'!Q19 -> 0 | F18: =+NSIP!J19 -> 0 | G18: =+'PA MEDI'!H19 -> 0 | H18: ='Health Promotion'!O19 -> 0 | I18: ='Other Funds-Revision No. 2'!AM18 -> 0 | J18: 0
A19: 14 | B19: =+'Original ABG Allocation'!B19 -> LYCOM/CLINTON | C19: =+'Regular BG'!T20 -> 0 | D19: =+'Caregiver Support'!H20 -> 0 | E19: =+'Federal Caregiver Support'!Q20 -> 0 | F19: =+NSIP!J20 -> 0 | G19: =+'PA MEDI'!H20 -> 0 | H19: ='Health Promotion'!O20 -> 0 | I19: ='Other Funds-Revision No. 2'!AM19 -> 0 | J19: 0
A20: 15 | B20: =+'Original ABG Allocation'!B20 -> COLUM/MONT | C20: =+'Regular BG'!T21 -> 0 | D20: =+'Caregiver Support'!H21 -> 0 | E20: =+'Federal Caregiver Support'!Q21 -> 0 | F20: =+NSIP!J21 -> 0 | G20: =+'PA MEDI'!H21 -> 0 | H20: ='Health Promotion'!O21 -> 0 | I20: ='Other Funds-Revision No. 2'!AM20 -> 0 | J20: 0
A21: 16 | B21: =+'Original ABG Allocation'!B21 -> NORTHUMBERLND | C21: =+'Regular BG'!T22 -> 0 | D21: =+'Caregiver Support'!H22 -> 0 | E21: =+'Federal Caregiver Support'!Q22 -> 0 | F21: =+NSIP!J22 -> 0 | G21: =+'PA MEDI'!H22 -> 0 | H21: ='Health Promotion'!O22 -> 0 | I21: ='Other Funds-Revision No. 2'!AM21 -> 0 | J21: 0
A22: 17 | B22: =+'Original ABG Allocation'!B22 -> UNION/SNYDER | C22: =+'Regular BG'!T23 -> 0 | D22: =+'Caregiver Support'!H23 -> 0 | E22: =+'Federal Caregiver Support'!Q23 -> 0 | F22: =+NSIP!J23 -> 0 | G22: =+'PA MEDI'!H23 -> 0 | H22: ='Health Promotion'!O23 -> 0 | I22: ='Other Funds-Revision No. 2'!AM22 -> 0 | J22: 0
A23: 18 | B23: =+'Original ABG Allocation'!B23 -> MIFF/JUNIATA | C23: =+'Regular BG'!T24 -> 0 | D23: =+'Caregiver Support'!H24 -> 0 | E23: =+'Federal Caregiver Support'!Q24 -> 0 | F23: =+NSIP!J24 -> 0 | G23: =+'PA MEDI'!H24 -> 0 | H23: ='Health Promotion'!O24 -> 0 | I23: ='Other Funds-Revision No. 2'!AM23 -> 0 | J23: 0
A24: 19 | B24: =+'Original ABG Allocation'!B24 -> FRANKLIN | C24: =+'Regular BG'!T25 -> 0 | D24: =+'Caregiver Support'!H25 -> 0 | E24: =+'Federal Caregiver Support'!Q25 -> 0 | F24: =+NSIP!J25 -> 0 | G24: =+'PA MEDI'!H25 -> 0 | H24: ='Health Promotion'!O25 -> 0 | I24: ='Other Funds-Revision No. 2'!AM24 -> 0 | J24: 0
A25: 20 | B25: =+'Original ABG Allocation'!B25 -> ADAMS | C25: =+'Regular BG'!T26 -> 0 | D25: =+'Caregiver Support'!H26 -> 0 | E25: =+'Federal Caregiver Support'!Q26 -> 0 | F25: =+NSIP!J26 -> 0 | G25: =+'PA MEDI'!H26 -> 0 | H25: ='Health Promotion'!O26 -> 0 | I25: ='Other Funds-Revision No. 2'!AM25 -> 0 | J25: 0
A26: 21 | B26: =+'Original ABG Allocation'!B26 -> CUMBERLAND | C26: =+'Regular BG'!T27 -> 0 | D26: =+'Caregiver Support'!H27 -> 0 | E26: =+'Federal Caregiver Support'!Q27 -> 0 | F26: =+NSIP!J27 -> 0 | G26: =+'PA MEDI'!H27 -> 0 | H26: ='Health Promotion'!O27 -> 0 | I26: ='Other Funds-Revision No. 2'!AM26 -> 0 | J26: 0
A27: 22 | B27: =+'Original ABG Allocation'!B27 -> PERRY | C27: =+'Regular BG'!T28 -> 0 | D27: =+'Caregiver Support'!H28 -> 0 | E27: =+'Federal Caregiver Support'!Q28 -> 0 | F27: =+NSIP!J28 -> 0 | G27: =+'PA MEDI'!H28 -> 0 | H27: ='Health Promotion'!O28 -> 0 | I27: ='Other Funds-Revision No. 2'!AM27 -> 0 | J27: 0
A28: 23 | B28: =+'Original ABG Allocation'!B28 -> DAUPHIN | C28: =+'Regular BG'!T29 -> 0 | D28: =+'Caregiver Support'!H29 -> 0 | E28: =+'Federal Caregiver Support'!Q29 -> 0 | F28: =+NSIP!J29 -> 0 | G28: =+'PA MEDI'!H29 -> 0 | H28: ='Health Promotion'!O29 -> 0 | I28: ='Other Funds-Revision No. 2'!AM28 -> 0 | J28: 0
A29: 24 | B29: =+'Original ABG Allocation'!B29 -> LEBANON | C29: =+'Regular BG'!T30 -> 0 | D29: =+'Caregiver Support'!H30 -> 0 | E29: =+'Federal Caregiver Support'!Q30 -> 0 | F29: =+NSIP!J30 -> 0 | G29: =+'PA MEDI'!H30 -> 0 | H29: ='Health Promotion'!O30 -> 0 | I29: ='Other Funds-Revision No. 2'!AM29 -> 0 | J29: 0
A30: 25 | B30: =+'Original ABG Allocation'!B30 -> YORK | C30: =+'Regular BG'!T31 -> 0 | D30: =+'Caregiver Support'!H31 -> 0 | E30: =+'Federal Caregiver Support'!Q31 -> 0 | F30: =+NSIP!J31 -> 0 | G30: =+'PA MEDI'!H31 -> 0 | H30: ='Health Promotion'!O31 -> 0 | I30: ='Other Funds-Revision No. 2'!AM30 -> 0 | J30: 0
A31: 26 | B31: =+'Original ABG Allocation'!B31 -> LANCASTER | C31: =+'Regular BG'!T32 -> 0 | D31: =+'Caregiver Support'!H32 -> 0 | E31: =+'Federal Caregiver Support'!Q32 -> 0 | F31: =+NSIP!J32 -> 0 | G31: =+'PA MEDI'!H32 -> 0 | H31: ='Health Promotion'!O32 -> 0 | I31: ='Other Funds-Revision No. 2'!AM31 -> 0 | J31: 0
A32: 27 | B32: =+'Original ABG Allocation'!B32 -> CHESTER | C32: =+'Regular BG'!T33 -> 0 | D32: =+'Caregiver Support'!H33 -> 0 | E32: =+'Federal Caregiver Support'!Q33 -> 0 | F32: =+NSIP!J33 -> 0 | G32: =+'PA MEDI'!H33 -> 0 | H32: ='Health Promotion'!O33 -> 0 | I32: ='Other Funds-Revision No. 2'!AM32 -> 0 | J32: 0
A33: 28 | B33: =+'Original ABG Allocation'!B33 -> MONTGOMERY | C33: =+'Regular BG'!T34 -> 0 | D33: =+'Caregiver Support'!H34 -> 0 | E33: =+'Federal Caregiver Support'!Q34 -> 0 | F33: =+NSIP!J34 -> 0 | G33: =+'PA MEDI'!H34 -> 0 | H33: ='Health Promotion'!O34 -> 0 | I33: ='Other Funds-Revision No. 2'!AM33 -> 0 | J33: 0
A34: 29 | B34: =+'Original ABG Allocation'!B34 -> BUCKS | C34: =+'Regular BG'!T35 -> 0 | D34: =+'Caregiver Support'!H35 -> 0 | E34: =+'Federal Caregiver Support'!Q35 -> 0 | F34: =+NSIP!J35 -> 0 | G34: =+'PA MEDI'!H35 -> 0 | H34: ='Health Promotion'!O35 -> 0 | I34: ='Other Funds-Revision No. 2'!AM34 -> 0 | J34: 0
A35: 30 | B35: =+'Original ABG Allocation'!B35 -> DELAWARE | C35: =+'Regular BG'!T36 -> 0 | D35: =+'Caregiver Support'!H36 -> 0 | E35: =+'Federal Caregiver Support'!Q36 -> 0 | F35: =+NSIP!J36 -> 0 | G35: =+'PA MEDI'!H36 -> 0 | H35: ='Health Promotion'!O36 -> 0 | I35: ='Other Funds-Revision No. 2'!AM35 -> 0 | J35: 0
A36: 31 | B36: =+'Original ABG Allocation'!B36 -> PHILADELPHIA | C36: =+'Regular BG'!T37 -> 0 | D36: =+'Caregiver Support'!H37 -> 0 | E36: =+'Federal Caregiver Support'!Q37 -> 0 | F36: =+NSIP!J37 -> 0 | G36: =+'PA MEDI'!H37 -> 0 | H36: ='Health Promotion'!O37 -> 0 | I36: ='Other Funds-Revision No. 2'!AM36 -> 0 | J36: 0
A37: 32 | B37: =+'Original ABG Allocation'!B37 -> BERKS | C37: =+'Regular BG'!T38 -> 0 | D37: =+'Caregiver Support'!H38 -> 0 | E37: =+'Federal Caregiver Support'!Q38 -> 0 | F37: =+NSIP!J38 -> 0 | G37: =+'PA MEDI'!H38 -> 0 | H37: ='Health Promotion'!O38 -> 0 | I37: ='Other Funds-Revision No. 2'!AM37 -> 0 | J37: 0
A38: 33 | B38: =+'Original ABG Allocation'!B38 -> LEHIGH | C38: =+'Regular BG'!T39 -> 0 | D38: =+'Caregiver Support'!H39 -> 0 | E38: =+'Federal Caregiver Support'!Q39 -> 0 | F38: =+NSIP!J39 -> 0 | G38: =+'PA MEDI'!H39 -> 0 | H38: ='Health Promotion'!O39 -> 0 | I38: ='Other Funds-Revision No. 2'!AM38 -> 0 | J38: =SUM(C38:I38) -> 0
A39: 34 | B39: =+'Original ABG Allocation'!B39 -> NORTHAMPTON | C39: =+'Regular BG'!T40 -> 0 | D39: =+'Caregiver Support'!H40 -> 0 | E39: =+'Federal Caregiver Support'!Q40 -> 0 | F39: =+NSIP!J40 -> 0 | G39: =+'PA MEDI'!H40 -> 0 | H39: ='Health Promotion'!O40 -> 0 | I39: ='Other Funds-Revision No. 2'!AM39 -> 0 | J39: 0
A40: 35 | B40: =+'Original ABG Allocation'!B40 -> PIKE | C40: =+'Regular BG'!T41 -> 0 | D40: =+'Caregiver Support'!H41 -> 0 | E40: =+'Federal Caregiver Support'!Q41 -> 0 | F40: =+NSIP!J41 -> 0 | G40: =+'PA MEDI'!H41 -> 0 | H40: ='Health Promotion'!O41 -> 0 | I40: ='Other Funds-Revision No. 2'!AM40 -> 0 | J40: 0
A41: 36 | B41: =+'Original ABG Allocation'!B41 -> B/S/S/T | C41: =+'Regular BG'!T42 -> 0 | D41: =+'Caregiver Support'!H42 -> 0 | E41: =+'Federal Caregiver Support'!Q42 -> 0 | F41: =+NSIP!J42 -> 0 | G41: =+'PA MEDI'!H42 -> 0 | H41: ='Health Promotion'!O42 -> 0 | I41: ='Other Funds-Revision No. 2'!AM41 -> 0 | J41: 0
A42: 37 | B42: =+'Original ABG Allocation'!B42 -> LUZERNE/WYOMING | C42: =+'Regular BG'!T43 -> 0 | D42: =+'Caregiver Support'!H43 -> 0 | E42: =+'Federal Caregiver Support'!Q43 -> 0 | F42: =+NSIP!J43 -> 0 | G42: =+'PA MEDI'!H43 -> 0 | H42: ='Health Promotion'!O43 -> 0 | I42: ='Other Funds-Revision No. 2'!AM42 -> 0 | J42: 0
A43: 38 | B43: =+'Original ABG Allocation'!B43 -> LACKAWANNA | C43: =+'Regular BG'!T44 -> 0 | D43: =+'Caregiver Support'!H44 -> 0 | E43: =+'Federal Caregiver Support'!Q44 -> 0 | F43: =+NSIP!J44 -> 0 | G43: =+'PA MEDI'!H44 -> 0 | H43: ='Health Promotion'!O44 -> 0 | I43: ='Other Funds-Revision No. 2'!AM43 -> 0 | J43: 0
A44: 39 | B44: =+'Original ABG Allocation'!B44 -> CARBON | C44: =+'Regular BG'!T45 -> 0 | D44: =+'Caregiver Support'!H45 -> 0 | E44: =+'Federal Caregiver Support'!Q45 -> 0 | F44: =+NSIP!J45 -> 0 | G44: =+'PA MEDI'!H45 -> 0 | H44: ='Health Promotion'!O45 -> 0 | I44: ='Other Funds-Revision No. 2'!AM44 -> 0 | J44: 0
A45: 40 | B45: =+'Original ABG Allocation'!B45 -> SCHUYLKILL | C45: =+'Regular BG'!T46 -> 0 | D45: =+'Caregiver Support'!H46 -> 0 | E45: =+'Federal Caregiver Support'!Q46 -> 0 | F45: =+NSIP!J46 -> 0 | G45: =+'PA MEDI'!H46 -> 0 | H45: ='Health Promotion'!O46 -> 0 | I45: ='Other Funds-Revision No. 2'!AM45 -> 0 | J45: 0
A46: 41 | B46: =+'Original ABG Allocation'!B46 -> CLEARFIELD | C46: =+'Regular BG'!T47 -> 0 | D46: =+'Caregiver Support'!H47 -> 0 | E46: =+'Federal Caregiver Support'!Q47 -> 0 | F46: =+NSIP!J47 -> 0 | G46: =+'PA MEDI'!H47 -> 0 | H46: ='Health Promotion'!O47 -> 0 | I46: ='Other Funds-Revision No. 2'!AM46 -> 0 | J46: 0
A47: 42 | B47: =+'Original ABG Allocation'!B47 -> JEFFERSON | C47: =+'Regular BG'!T48 -> 0 | D47: =+'Caregiver Support'!H48 -> 0 | E47: =+'Federal Caregiver Support'!Q48 -> 0 | F47: =+NSIP!J48 -> 0 | G47: =+'PA MEDI'!H48 -> 0 | H47: ='Health Promotion'!O48 -> 0 | I47: ='Other Funds-Revision No. 2'!AM47 -> 0 | J47: 0
A48: 43 | B48: =+'Original ABG Allocation'!B48 -> FOREST/WARREN | C48: =+'Regular BG'!T49 -> 0 | D48: =+'Caregiver Support'!H49 -> 0 | E48: =+'Federal Caregiver Support'!Q49 -> 0 | F48: =+NSIP!J49 -> 0 | G48: =+'PA MEDI'!H49 -> 0 | H48: ='Health Promotion'!O49 -> 0 | I48: ='Other Funds-Revision No. 2'!AM48 -> 0 | J48: 0
A49: 44 | B49: =+'Original ABG Allocation'!B49 -> VENANGO | C49: =+'Regular BG'!T50 -> 0 | D49: =+'Caregiver Support'!H50 -> 0 | E49: =+'Federal Caregiver Support'!Q50 -> 0 | F49: =+NSIP!J50 -> 0 | G49: =+'PA MEDI'!H50 -> 0 | H49: ='Health Promotion'!O50 -> 0 | I49: ='Other Funds-Revision No. 2'!AM49 -> 0 | J49: 0
A50: 45 | B50: =+'Original ABG Allocation'!B50 -> ARMSTRONG | C50: =+'Regular BG'!T51 -> 0 | D50: =+'Caregiver Support'!H51 -> 0 | E50: =+'Federal Caregiver Support'!Q51 -> 0 | F50: =+NSIP!J51 -> 0 | G50: =+'PA MEDI'!H51 -> 0 | H50: ='Health Promotion'!O51 -> 0 | I50: ='Other Funds-Revision No. 2'!AM50 -> 0 | J50: 0
A51: 46 | B51: =+'Original ABG Allocation'!B51 -> LAWRENCE | C51: =+'Regular BG'!T52 -> 0 | D51: =+'Caregiver Support'!H52 -> 0 | E51: =+'Federal Caregiver Support'!Q52 -> 0 | F51: =+NSIP!J52 -> 0 | G51: =+'PA MEDI'!H52 -> 0 | H51: ='Health Promotion'!O52 -> 0 | I51: ='Other Funds-Revision No. 2'!AM51 -> 0 | J51: 0
A52: 47 | B52: =+'Original ABG Allocation'!B52 -> MERCER | C52: =+'Regular BG'!T53 -> 0 | D52: =+'Caregiver Support'!H53 -> 0 | E52: =+'Federal Caregiver Support'!Q53 -> 0 | F52: =+NSIP!J53 -> 0 | G52: =+'PA MEDI'!H53 -> 0 | H52: ='Health Promotion'!O53 -> 0 | I52: ='Other Funds-Revision No. 2'!AM52 -> 0 | J52: 0
A53: 48 | B53: =+'Original ABG Allocation'!B53 -> MONROE | C53: =+'Regular BG'!T54 -> 0 | D53: =+'Caregiver Support'!H54 -> 0 | E53: =+'Federal Caregiver Support'!Q54 -> 0 | F53: =+NSIP!J54 -> 0 | G53: =+'PA MEDI'!H54 -> 0 | H53: ='Health Promotion'!O54 -> 0 | I53: ='Other Funds-Revision No. 2'!AM53 -> 0 | J53: 0
A54: 49 | B54: =+'Original ABG Allocation'!B54 -> CLARION | C54: =+'Regular BG'!T55 -> 0 | D54: =+'Caregiver Support'!H55 -> 0 | E54: =+'Federal Caregiver Support'!Q55 -> 0 | F54: =+NSIP!J55 -> 0 | G54: =+'PA MEDI'!H55 -> 0 | H54: ='Health Promotion'!O55 -> 0 | I54: ='Other Funds-Revision No. 2'!AM54 -> 0 | J54: 0
A55: 50 | B55: =+'Original ABG Allocation'!B55 -> BUTLER | C55: =+'Regular BG'!T56 -> 0 | D55: =+'Caregiver Support'!H56 -> 0 | E55: =+'Federal Caregiver Support'!Q56 -> 0 | F55: =+NSIP!J56 -> 0 | G55: =+'PA MEDI'!H56 -> 0 | H55: ='Health Promotion'!O56 -> 0 | I55: ='Other Funds-Revision No. 2'!AM55 -> 0 | J55: 0
A56: 51 | B56: =+'Original ABG Allocation'!B56 -> POTTER | C56: =+'Regular BG'!T57 -> 0 | D56: =+'Caregiver Support'!H57 -> 0 | E56: =+'Federal Caregiver Support'!Q57 -> 0 | F56: =+NSIP!J57 -> 0 | G56: =+'PA MEDI'!H57 -> 0 | H56: ='Health Promotion'!O57 -> 0 | I56: ='Other Funds-Revision No. 2'!AM56 -> 0 | J56: 0
A57: 52 | B57: =+'Original ABG Allocation'!B57 -> WAYNE | C57: =+'Regular BG'!T58 -> 0 | D57: =+'Caregiver Support'!H58 -> 0 | E57: =+'Federal Caregiver Support'!Q58 -> 0 | F57: =+NSIP!J58 -> 0 | G57: =+'PA MEDI'!H58 -> 0 | H57: ='Health Promotion'!O58 -> 0 | I57: ='Other Funds-Revision No. 2'!AM57 -> 0 | J57: 0
B58: TOTALS | C58: =SUM(C6:C57) -> 0 | D58: 0 | E58: 0 | F58: 0 | G58: 0 | H58: 0 | I58: =SUM(I6:I57) -> 0 | J58: =SUM(J6:J57) -> 0

Sheet Amended ABG Allocation No. 2 (hidden)
A1: AMENDMENT #2
A2: BLOCK GRANT ALLOCATION
A3: =+'Original ABG Allocation'!A3 -> FY 2022-23 | C3: =+'Original ABG Allocation'!C3 -> (1) | D3: =+'Original ABG Allocation'!D3 -> (2) | E3: =+'Original ABG Allocation'!E3 -> (3) | F3: =+'Original ABG Allocation'!F3 -> (4) | G3: =+'Original ABG Allocation'!G3 -> (5) | H3: =+'Original ABG Allocation'!H3 -> (6) | I3: =+'Original ABG Allocation'!I3 -> (7) | J3: =+'Original ABG Allocation'!J3 -> (8)
C4: =+'Original ABG Allocation'!C4 -> REGULAR | D4: =+'Original ABG Allocation'!D4 -> CAREGIVER | E4: =+'Original ABG Allocation'!E4 -> FED. CAREGIVER | H4: =+'Original ABG Allocation'!H4 -> HEALTH | J4: =+'Original ABG Allocation'!J4 -> TOTAL ALL
C5: =+'Original ABG Allocation'!C5 -> BLOCK GRANT | D5: =+'Original ABG Allocation'!D5 -> SUPPORT | E5: =+'Original ABG Allocation'!E5 -> SUPPORT | F5: =+'Original ABG Allocation'!F5 -> NSIP | G5: =+'Original ABG Allocation'!G5 -> APPRISE | H5: =+'Original ABG Allocation'!H5 -> PROMOTION | I5: =+'Original ABG Allocation'!I5 -> OTHER | J5: =+'Original ABG Allocation'!J5 -> FUNDS
A6: 01 | B6: =+'Original ABG Allocation'!B6 -> ERIE | C6: ='Amended ABG Allocation No. 1 '!C6+'Revision No. 2'!C6 -> 4411598 | D6: ='Amended ABG Allocation No. 1 '!D6+'Revision No. 2'!D6 -> 156011 | E6: ='Amended ABG Allocation No. 1 '!E6+'Revision No. 2'!E6 -> 134766 | F6: ='Amended ABG Allocation No. 1 '!F6+'Revision No. 2'!F6 -> 66325 | G6: ='Amended ABG Allocation No. 1 '!G6+'Revision No. 2'!G6 -> 20097 | H6: ='Amended ABG Allocation No. 1 '!H6+'Revision No. 2'!H6 -> 25670 | I6: ='Amended ABG Allocation No. 1 '!I6+'Revision No. 2'!I6 -> 50754 | J6: =SUM(C6:I6) -> 4865221
A7: 02 | B7: =+'Original ABG Allocation'!B7 -> CRAWFORD | C7: ='Amended ABG Allocation No. 1 '!C7+'Revision No. 2'!C7 -> 2137845 | D7: ='Amended ABG Allocation No. 1 '!D7+'Revision No. 2'!D7 -> 94962 | E7: ='Amended ABG Allocation No. 1 '!E7+'Revision No. 2'!E7 -> 55648 | F7: ='Amended ABG Allocation No. 1 '!F7+'Revision No. 2'!F7 -> 47328 | G7: ='Amended ABG Allocation No. 1 '!G7+'Revision No. 2'!G7 -> 10676 | H7: ='Amended ABG Allocation No. 1 '!H7+'Revision No. 2'!H7 -> 12253 | I7: ='Amended ABG Allocation No. 1 '!I7+'Revision No. 2'!I7 -> 27952 | J7: 2386664
A8: 03 | B8: =+'Original ABG Allocation'!B8 -> CAM/ELK/MCKEAN | C8: ='Amended ABG Allocation No. 1 '!C8+'Revision No. 2'!C8 -> 2104494 | D8: ='Amended ABG Allocation No. 1 '!D8+'Revision No. 2'!D8 -> 104392 | E8: ='Amended ABG Allocation No. 1 '!E8+'Revision No. 2'!E8 -> 69557 | F8: ='Amended ABG Allocation No. 1 '!F8+'Revision No. 2'!F8 -> 35588 | G8: ='Amended ABG Allocation No. 1 '!G8+'Revision No. 2'!G8 -> 11237 | H8: ='Amended ABG Allocation No. 1 '!H8+'Revision No. 2'!H8 -> 13477 | I8: ='Amended ABG Allocation No. 1 '!I8+'Revision No. 2'!I8 -> 26526 | J8: 2365271
A9: 04 | B9: =+'Original ABG Allocation'!B9 -> BEAVER | C9: ='Amended ABG Allocation No. 1 '!C9+'Revision No. 2'!C9 -> 3472650 | D9: ='Amended ABG Allocation No. 1 '!D9+'Revision No. 2'!D9 -> 120693 | E9: ='Amended ABG Allocation No. 1 '!E9+'Revision No. 2'!E9 -> 115200 | F9: ='Amended ABG Allocation No. 1 '!F9+'Revision No. 2'!F9 -> 23968 | G9: ='Amended ABG Allocation No. 1 '!G9+'Revision No. 2'!G9 -> 15815 | H9: ='Amended ABG Allocation No. 1 '!H9+'Revision No. 2'!H9 -> 22039 | I9: ='Amended ABG Allocation No. 1 '!I9+'Revision No. 2'!I9 -> 37277 | J9: 3807642
A10: 05 | B10: =+'Original ABG Allocation'!B10 -> INDIANA | C10: ='Amended ABG Allocation No. 1 '!C10+'Revision No. 2'!C10 -> 1949787 | D10: ='Amended ABG Allocation No. 1 '!D10+'Revision No. 2'!D10 -> 72332 | E10: ='Amended ABG Allocation No. 1 '!E10+'Revision No. 2'!E10 -> 65877 | F10: ='Amended ABG Allocation No. 1 '!F10+'Revision No. 2'!F10 -> 51905 | G10: ='Amended ABG Allocation No. 1 '!G10+'Revision No. 2'!G10 -> 10185 | H10: ='Amended ABG Allocation No. 1 '!H10+'Revision No. 2'!H10 -> 12618 | I10: ='Amended ABG Allocation No. 1 '!I10+'Revision No. 2'!I10 -> 26503 | J10: 2189207
A11: 06 | B11: =+'Original ABG Allocation'!B11 -> ALLEGHENY | C11: ='Amended ABG Allocation No. 1 '!C11+'Revision No. 2'!C11 -> 29841874 | D11: ='Amended ABG Allocation No. 1 '!D11+'Revision No. 2'!D11 -> 1024598 | E11: ='Amended ABG Allocation No. 1 '!E11+'Revision No. 2'!E11 -> 1027359 | F11: ='Amended ABG Allocation No. 1 '!F11+'Revision No. 2'!F11 -> 419219 | G11: ='Amended ABG Allocation No. 1 '!G11+'Revision No. 2'!G11 -> 107007 | H11: ='Amended ABG Allocation No. 1 '!H11+'Revision No. 2'!H11 -> 158619 | I11: ='Amended ABG Allocation No. 1 '!I11+'Revision No. 2'!I11 -> 189804 | J11: 32768480
A12: 07 | B12: =+'Original ABG Allocation'!B12 -> WESTMORELAND | C12: ='Amended ABG Allocation No. 1 '!C12+'Revision No. 2'!C12 -> 7750368 | D12: ='Amended ABG Allocation No. 1 '!D12+'Revision No. 2'!D12 -> 279704 | E12: ='Amended ABG Allocation No. 1 '!E12+'Revision No. 2'!E12 -> 249205 | F12: ='Amended ABG Allocation No. 1 '!F12+'Revision No. 2'!F12 -> 123773 | G12: ='Amended ABG Allocation No. 1 '!G12+'Revision No. 2'!G12 -> 33328 | H12: ='Amended ABG Allocation No. 1 '!H12+'Revision No. 2'!H12 -> 47027 | I12: ='Amended ABG Allocation No. 1 '!I12+'Revision No. 2'!I12 -> 66831 | J12: 8550236
A13: 08 | B13: =+'Original ABG Allocation'!B13 -> WASH/FAY/GREENE | C13: ='Amended ABG Allocation No. 1 '!C13+'Revision No. 2'!C13 -> 10511355 | D13: ='Amended ABG Allocation No. 1 '!D13+'Revision No. 2'!D13 -> 393598 | E13: ='Amended ABG Allocation No. 1 '!E13+'Revision No. 2'!E13 -> 534972 | F13: ='Amended ABG Allocation No. 1 '!F13+'Revision No. 2'!F13 -> 354500 | G13: ='Amended ABG Allocation No. 1 '!G13+'Revision No. 2'!G13 -> 39938 | H13: ='Amended ABG Allocation No. 1 '!H13+'Revision No. 2'!H13 -> 68098 | I13: ='Amended ABG Allocation No. 1 '!I13+'Revision No. 2'!I13 -> 80930 | J13: 11983391
A14: 09 | B14: =+'Original ABG Allocation'!B14 -> SOMERSET | C14: ='Amended ABG Allocation No. 1 '!C14+'Revision No. 2'!C14 -> 2326690 | D14: ='Amended ABG Allocation No. 1 '!D14+'Revision No. 2'!D14 -> 81631 | E14: ='Amended ABG Allocation No. 1 '!E14+'Revision No. 2'!E14 -> 93246 | F14: ='Amended ABG Allocation No. 1 '!F14+'Revision No. 2'!F14 -> 72579 | G14: ='Amended ABG Allocation No. 1 '!G14+'Revision No. 2'!G14 -> 11799 | H14: ='Amended ABG Allocation No. 1 '!H14+'Revision No. 2'!H14 -> 14877 | I14: ='Amended ABG Allocation No. 1 '!I14+'Revision No. 2'!I14 -> 27562 | J14: 2628384
A15: 10 | B15: =+'Original ABG Allocation'!B15 -> CAMBRIA | C15: ='Amended ABG Allocation No. 1 '!C15+'Revision No. 2'!C15 -> 4034624 | D15: ='Amended ABG Allocation No. 1 '!D15+'Revision No. 2'!D15 -> 140343 | E15: ='Amended ABG Allocation No. 1 '!E15+'Revision No. 2'!E15 -> 133780 | F15: ='Amended ABG Allocation No. 1 '!F15+'Revision No. 2'!F15 -> 178185 | G15: ='Amended ABG Allocation No. 1 '!G15+'Revision No. 2'!G15 -> 17087 | H15: ='Amended ABG Allocation No. 1 '!H15+'Revision No. 2'!H15 -> 25081 | I15: ='Amended ABG Allocation No. 1 '!I15+'Revision No. 2'!I15 -> 37762 | J15: 4566862
A16: 11 | B16: =+'Original ABG Allocation'!B16 -> BLAIR | C16: ='Amended ABG Allocation No. 1 '!C16+'Revision No. 2'!C16 -> 2763377 | D16: ='Amended ABG Allocation No. 1 '!D16+'Revision No. 2'!D16 -> 114081 | E16: ='Amended ABG Allocation No. 1 '!E16+'Revision No. 2'!E16 -> 109683 | F16: ='Amended ABG Allocation No. 1 '!F16+'Revision No. 2'!F16 -> 118873 | G16: ='Amended ABG Allocation No. 1 '!G16+'Revision No. 2'!G16 -> 11735 | H16: ='Amended ABG Allocation No. 1 '!H16+'Revision No. 2'!H16 -> 17034 | I16: ='Amended ABG Allocation No. 1 '!I16+'Revision No. 2'!I16 -> 30296 | J16: 3165079
A17: 12 | B17: =+'Original ABG Allocation'!B17 -> BED/FULT/HUNT | C17: ='Amended ABG Allocation No. 1 '!C17+'Revision No. 2'!C17 -> 3121983 | D17: ='Amended ABG Allocation No. 1 '!D17+'Revision No. 2'!D17 -> 120022 | E17: ='Amended ABG Allocation No. 1 '!E17+'Revision No. 2'!E17 -> 106084 | F17: ='Amended ABG Allocation No. 1 '!F17+'Revision No. 2'!F17 -> 66409 | G17: ='Amended ABG Allocation No. 1 '!G17+'Revision No. 2'!G17 -> 14807 | H17: ='Amended ABG Allocation No. 1 '!H17+'Revision No. 2'!H17 -> 19221 | I17: ='Amended ABG Allocation No. 1 '!I17+'Revision No. 2'!I17 -> 37342 | J17: 3485868
A18: 13 | B18: =+'Original ABG Allocation'!B18 -> CENTRE | C18: ='Amended ABG Allocation No. 1 '!C18+'Revision No. 2'!C18 -> 1381274 | D18: ='Amended ABG Allocation No. 1 '!D18+'Revision No. 2'!D18 -> 45132 | E18: ='Amended ABG Allocation No. 1 '!E18+'Revision No. 2'!E18 -> 36131 | F18: ='Amended ABG Allocation No. 1 '!F18+'Revision No. 2'!F18 -> 42135 | G18: ='Amended ABG Allocation No. 1 '!G18+'Revision No. 2'!G18 -> 10000 | H18: ='Amended ABG Allocation No. 1 '!H18+'Revision No. 2'!H18 -> 8909 | I18: ='Amended ABG Allocation No. 1 '!I18+'Revision No. 2'!I18 -> 27428 | J18: 1551009
A19: 14 | B19: =+'Original ABG Allocation'!B19 -> LYCOM/CLINTON | C19: ='Amended ABG Allocation No. 1 '!C19+'Revision No. 2'!C19 -> 3159609 | D19: ='Amended ABG Allocation No. 1 '!D19+'Revision No. 2'!D19 -> 117392 | E19: ='Amended ABG Allocation No. 1 '!E19+'Revision No. 2'!E19 -> 98452 | F19: ='Amended ABG Allocation No. 1 '!F19+'Revision No. 2'!F19 -> 80903 | G19: ='Amended ABG Allocation No. 1 '!G19+'Revision No. 2'!G19 -> 16355 | H19: ='Amended ABG Allocation No. 1 '!H19+'Revision No. 2'!H19 -> 18458 | I19: ='Amended ABG Allocation No. 1 '!I19+'Revision No. 2'!I19 -> 38012 | J19: 3529181
A20: 15 | B20: =+'Original ABG Allocation'!B20 -> COLUM/MONT | C20: ='Amended ABG Allocation No. 1 '!C20+'Revision No. 2'!C20 -> 1789613 | D20: ='Amended ABG Allocation No. 1 '!D20+'Revision No. 2'!D20 -> 66474 | E20: ='Amended ABG Allocation No. 1 '!E20+'Revision No. 2'!E20 -> 53326 | F20: ='Amended ABG Allocation No. 1 '!F20+'Revision No. 2'!F20 -> 26259 | G20: ='Amended ABG Allocation No. 1 '!G20+'Revision No. 2'!G20 -> 10000 | H20: ='Amended ABG Allocation No. 1 '!H20+'Revision No. 2'!H20 -> 10126 | I20: ='Amended ABG Allocation No. 1 '!I20+'Revision No. 2'!I20 -> 25338 | J20: 1981136
A21: 16 | B21: =+'Original ABG Allocation'!B21 -> NORTHUMBERLND | C21: ='Amended ABG Allocation No. 1 '!C21+'Revision No. 2'!C21 -> 2955045 | D21: ='Amended ABG Allocation No. 1 '!D21+'Revision No. 2'!D21 -> 122953 | E21: ='Amended ABG Allocation No. 1 '!E21+'Revision No. 2'!E21 -> 109123 | F21: ='Amended ABG Allocation No. 1 '!F21+'Revision No. 2'!F21 -> 38517 | G21: ='Amended ABG Allocation No. 1 '!G21+'Revision No. 2'!G21 -> 11327 | H21: ='Amended ABG Allocation No. 1 '!H21+'Revision No. 2'!H21 -> 17718 | I21: ='Amended ABG Allocation No. 1 '!I21+'Revision No. 2'!I21 -> 27835 | J21: 3282518
A22: 17 | B22: =+'Original ABG Allocation'!B22 -> UNION/SNYDER | C22: ='Amended ABG Allocation No. 1 '!C22+'Revision No. 2'!C22 -> 1295880 | D22: ='Amended ABG Allocation No. 1 '!D22+'Revision No. 2'!D22 -> 41818 | E22: ='Amended ABG Allocation No. 1 '!E22+'Revision No. 2'!E22 -> 38788 | F22: ='Amended ABG Allocation No. 1 '!F22+'Revision No. 2'!F22 -> 16745 | G22: ='Amended ABG Allocation No. 1 '!G22+'Revision No. 2'!G22 -> 10000 | H22: ='Amended ABG Allocation No. 1 '!H22+'Revision No. 2'!H22 -> 8635 | I22: ='Amended ABG Allocation No. 1 '!I22+'Revision No. 2'!I22 -> 25178 | J22: 1437044
A23: 18 | B23: =+'Original ABG Allocation'!B23 -> MIFF/JUNIATA | C23: ='Amended ABG Allocation No. 1 '!C23+'Revision No. 2'!C23 -> 1827966 | D23: ='Amended ABG Allocation No. 1 '!D23+'Revision No. 2'!D23 -> 64859 | E23: ='Amended ABG Allocation No. 1 '!E23+'Revision No. 2'!E23 -> 74111 | F23: ='Amended ABG Allocation No. 1 '!F23+'Revision No. 2'!F23 -> 44916 | G23: ='Amended ABG Allocation No. 1 '!G23+'Revision No. 2'!G23 -> 10222 | H23: ='Amended ABG Allocation No. 1 '!H23+'Revision No. 2'!H23 -> 11964 | I23: ='Amended ABG Allocation No. 1 '!I23+'Revision No. 2'!I23 -> 25974 | J23: 2060012
A24: 19 | B24: =+'Original ABG Allocation'!B24 -> FRANKLIN | C24: ='Amended ABG Allocation No. 1 '!C24+'Revision No. 2'!C24 -> 2436382 | D24: ='Amended ABG Allocation No. 1 '!D24+'Revision No. 2'!D24 -> 83393 | E24: ='Amended ABG Allocation No. 1 '!E24+'Revision No. 2'!E24 -> 78131 | F24: ='Amended ABG Allocation No. 1 '!F24+'Revision No. 2'!F24 -> 66539 | G24: ='Amended ABG Allocation No. 1 '!G24+'Revision No. 2'!G24 -> 15528 | H24: ='Amended ABG Allocation No. 1 '!H24+'Revision No. 2'!H24 -> 14543 | I24: ='Amended ABG Allocation No. 1 '!I24+'Revision No. 2'!I24 -> 31873 | J24: 2726389
A25: 20 | B25: =+'Original ABG Allocation'!B25 -> ADAMS | C25: ='Amended ABG Allocation No. 1 '!C25+'Revision No. 2'!C25 -> 1263446 | D25: ='Amended ABG Allocation No. 1 '!D25+'Revision No. 2'!D25 -> 39383 | E25: ='Amended ABG Allocation No. 1 '!E25+'Revision No. 2'!E25 -> 32448 | F25: ='Amended ABG Allocation No. 1 '!F25+'Revision No. 2'!F25 -> 29737 | G25: ='Amended ABG Allocation No. 1 '!G25+'Revision No. 2'!G25 -> 10175 | H25: ='Amended ABG Allocation No. 1 '!H25+'Revision No. 2'!H25 -> 7955 | I25: ='Amended ABG Allocation No. 1 '!I25+'Revision No. 2'!I25 -> 29100 | J25: 1412244
A26: 21 | B26: =+'Original ABG Allocation'!B26 -> CUMBERLAND | C26: ='Amended ABG Allocation No. 1 '!C26+'Revision No. 2'!C26 -> 2273659 | D26: ='Amended ABG Allocation No. 1 '!D26+'Revision No. 2'!D26 -> 80733 | E26: ='Amended ABG Allocation No. 1 '!E26+'Revision No. 2'!E26 -> 57284 | F26: ='Amended ABG Allocation No. 1 '!F26+'Revision No. 2'!F26 -> 21248 | G26: ='Amended ABG Allocation No. 1 '!G26+'Revision No. 2'!G26 -> 17010 | H26: ='Amended ABG Allocation No. 1 '!H26+'Revision No. 2'!H26 -> 9223 | I26: ='Amended ABG Allocation No. 1 '!I26+'Revision No. 2'!I26 -> 38546 | J26: 2497703
A27: 22 | B27: =+'Original ABG Allocation'!B27 -> PERRY | C27: ='Amended ABG Allocation No. 1 '!C27+'Revision No. 2'!C27 -> 767004 | D27: ='Amended ABG Allocation No. 1 '!D27+'Revision No. 2'!D27 -> 25396 | E27: ='Amended ABG Allocation No. 1 '!E27+'Revision No. 2'!E27 -> 23988 | F27: ='Amended ABG Allocation No. 1 '!F27+'Revision No. 2'!F27 -> 28967 | G27: ='Amended ABG Allocation No. 1 '!G27+'Revision No. 2'!G27 -> 10000 | H27: ='Amended ABG Allocation No. 1 '!H27+'Revision No. 2'!H27 -> 7923 | I27: ='Amended ABG Allocation No. 1 '!I27+'Revision No. 2'!I27 -> 19102 | J27: 882380
A28: 23 | B28: =+'Original ABG Allocation'!B28 -> DAUPHIN | C28: ='Amended ABG Allocation No. 1 '!C28+'Revision No. 2'!C28 -> 4488392 | D28: ='Amended ABG Allocation No. 1 '!D28+'Revision No. 2'!D28 -> 171730 | E28: ='Amended ABG Allocation No. 1 '!E28+'Revision No. 2'!E28 -> 127675 | F28: ='Amended ABG Allocation No. 1 '!F28+'Revision No. 2'!F28 -> 76056 | G28: ='Amended ABG Allocation No. 1 '!G28+'Revision No. 2'!G28 -> 18822 | H28: ='Amended ABG Allocation No. 1 '!H28+'Revision No. 2'!H28 -> 23922 | I28: ='Amended ABG Allocation No. 1 '!I28+'Revision No. 2'!I28 -> 49986 | J28: 4956583
A29: 24 | B29: =+'Original ABG Allocation'!B29 -> LEBANON | C29: ='Amended ABG Allocation No. 1 '!C29+'Revision No. 2'!C29 -> 1934714 | D29: ='Amended ABG Allocation No. 1 '!D29+'Revision No. 2'!D29 -> 68543 | E29: ='Amended ABG Allocation No. 1 '!E29+'Revision No. 2'!E29 -> 56539 | F29: ='Amended ABG Allocation No. 1 '!F29+'Revision No. 2'!F29 -> 40188 | G29: ='Amended ABG Allocation No. 1 '!G29+'Revision No. 2'!G29 -> 11419 | H29: ='Amended ABG Allocation No. 1 '!H29+'Revision No. 2'!H29 -> 9146 | I29: ='Amended ABG Allocation No. 1 '!I29+'Revision No. 2'!I29 -> 28558 | J29: 2149107
A30: 25 | B30: =+'Original ABG Allocation'!B30 -> YORK | C30: ='Amended ABG Allocation No. 1 '!C30+'Revision No. 2'!C30 -> 5364017 | D30: ='Amended ABG Allocation No. 1 '!D30+'Revision No. 2'!D30 -> 199228 | E30: ='Amended ABG Allocation No. 1 '!E30+'Revision No. 2'!E30 -> 133054 | F30: ='Amended ABG Allocation No. 1 '!F30+'Revision No. 2'!F30 -> 204767 | G30: ='Amended ABG Allocation No. 1 '!G30+'Revision No. 2'!G30 -> 27448 | H30: ='Amended ABG Allocation No. 1 '!H30+'Revision No. 2'!H30 -> 25017 | I30: ='Amended ABG Allocation No. 1 '!I30+'Revision No. 2'!I30 -> 69151 | J30: 6022682
A31: 26 | B31: =+'Original ABG Allocation'!B31 -> LANCASTER | C31: ='Amended ABG Allocation No. 1 '!C31+'Revision No. 2'!C31 -> 5609386 | D31: ='Amended ABG Allocation No. 1 '!D31+'Revision No. 2'!D31 -> 198436 | E31: ='Amended ABG Allocation No. 1 '!E31+'Revision No. 2'!E31 -> 164965 | F31: ='Amended ABG Allocation No. 1 '!F31+'Revision No. 2'!F31 -> 60963 | G31: ='Amended ABG Allocation No. 1 '!G31+'Revision No. 2'!G31 -> 33008 | H31: ='Amended ABG Allocation No. 1 '!H31+'Revision No. 2'!H31 -> 30859 | I31: ='Amended ABG Allocation No. 1 '!I31+'Revision No. 2'!I31 -> 77387 | J31: 6175004
A32: 27 | B32: =+'Original ABG Allocation'!B32 -> CHESTER | C32: ='Amended ABG Allocation No. 1 '!C32+'Revision No. 2'!C32 -> 3766491 | D32: ='Amended ABG Allocation No. 1 '!D32+'Revision No. 2'!D32 -> 114753 | E32: ='Amended ABG Allocation No. 1 '!E32+'Revision No. 2'!E32 -> 74312 | F32: ='Amended ABG Allocation No. 1 '!F32+'Revision No. 2'!F32 -> 65735 | G32: ='Amended ABG Allocation No. 1 '!G32+'Revision No. 2'!G32 -> 25091 | H32: ='Amended ABG Allocation No. 1 '!H32+'Revision No. 2'!H32 -> 14330 | I32: ='Amended ABG Allocation No. 1 '!I32+'Revision No. 2'!I32 -> 59974 | J32: 4120686
A33: 28 | B33: =+'Original ABG Allocation'!B33 -> MONTGOMERY | C33: ='Amended ABG Allocation No. 1 '!C33+'Revision No. 2'!C33 -> 8212898 | D33: ='Amended ABG Allocation No. 1 '!D33+'Revision No. 2'!D33 -> 236029 | E33: ='Amended ABG Allocation No. 1 '!E33+'Revision No. 2'!E33 -> 238996 | F33: ='Amended ABG Allocation No. 1 '!F33+'Revision No. 2'!F33 -> 222009 | G33: ='Amended ABG Allocation No. 1 '!G33+'Revision No. 2'!G33 -> 47311 | H33: ='Amended ABG Allocation No. 1 '!H33+'Revision No. 2'!H33 -> 27365 | I33: ='Amended ABG Allocation No. 1 '!I33+'Revision No. 2'!I33 -> 101434 | J33: 9086042
A34: 29 | B34: =+'Original ABG Allocation'!B34 -> BUCKS | C34: ='Amended ABG Allocation No. 1 '!C34+'Revision No. 2'!C34 -> 5247058 | D34: ='Amended ABG Allocation No. 1 '!D34+'Revision No. 2'!D34 -> 206856 | E34: ='Amended ABG Allocation No. 1 '!E34+'Revision No. 2'!E34 -> 197793 | F34: ='Amended ABG Allocation No. 1 '!F34+'Revision No. 2'!F34 -> 80421 | G34: ='Amended ABG Allocation No. 1 '!G34+'Revision No. 2'!G34 -> 33291 | H34: ='Amended ABG Allocation No. 1 '!H34+'Revision No. 2'!H34 -> 24480 | I34: ='Amended ABG Allocation No. 1 '!I34+'Revision No. 2'!I34 -> 76281 | J34: 5866180
A35: 30 | B35: =+'Original ABG Allocation'!B35 -> DELAWARE | C35: ='Amended ABG Allocation No. 1 '!C35+'Revision No. 2'!C35 -> 8091925 | D35: ='Amended ABG Allocation No. 1 '!D35+'Revision No. 2'!D35 -> 278240 | E35: ='Amended ABG Allocation No. 1 '!E35+'Revision No. 2'!E35 -> 230814 | F35: ='Amended ABG Allocation No. 1 '!F35+'Revision No. 2'!F35 -> 92075 | G35: ='Amended ABG Allocation No. 1 '!G35+'Revision No. 2'!G35 -> 35954 | H35: ='Amended ABG Allocation No. 1 '!H35+'Revision No. 2'!H35 -> 44239 | I35: ='Amended ABG Allocation No. 1 '!I35+'Revision No. 2'!I35 -> 82487 | J35: 8855734
A36: 31 | B36: =+'Original ABG Allocation'!B36 -> PHILADELPHIA | C36: ='Amended ABG Allocation No. 1 '!C36+'Revision No. 2'!C36 -> 56025883 | D36: ='Amended ABG Allocation No. 1 '!D36+'Revision No. 2'!D36 -> 1702584 | E36: ='Amended ABG Allocation No. 1 '!E36+'Revision No. 2'!E36 -> 2431642 | F36: ='Amended ABG Allocation No. 1 '!F36+'Revision No. 2'!F36 -> 803599 | G36: ='Amended ABG Allocation No. 1 '!G36+'Revision No. 2'!G36 -> 107007 | H36: ='Amended ABG Allocation No. 1 '!H36+'Revision No. 2'!H36 -> 307815 | I36: ='Amended ABG Allocation No. 1 '!I36+'Revision No. 2'!I36 -> 375238 | J36: 61753768
A37: 32 | B37: =+'Original ABG Allocation'!B37 -> BERKS | C37: ='Amended ABG Allocation No. 1 '!C37+'Revision No. 2'!C37 -> 6004484 | D37: ='Amended ABG Allocation No. 1 '!D37+'Revision No. 2'!D37 -> 235166 | E37: ='Amended ABG Allocation No. 1 '!E37+'Revision No. 2'!E37 -> 262043 | F37: ='Amended ABG Allocation No. 1 '!F37+'Revision No. 2'!F37 -> 158821 | G37: ='Amended ABG Allocation No. 1 '!G37+'Revision No. 2'!G37 -> 29191 | H37: ='Amended ABG Allocation No. 1 '!H37+'Revision No. 2'!H37 -> 32781 | I37: ='Amended ABG Allocation No. 1 '!I37+'Revision No. 2'!I37 -> 70382 | J37: 6792868
A38: 33 | B38: =+'Original ABG Allocation'!B38 -> LEHIGH | C38: ='Amended ABG Allocation No. 1 '!C38+'Revision No. 2'!C38 -> 4654532 | D38: ='Amended ABG Allocation No. 1 '!D38+'Revision No. 2'!D38 -> 172458 | E38: ='Amended ABG Allocation No. 1 '!E38+'Revision No. 2'!E38 -> 119971 | F38: ='Amended ABG Allocation No. 1 '!F38+'Revision No. 2'!F38 -> 42793 | G38: ='Amended ABG Allocation No. 1 '!G38+'Revision No. 2'!G38 -> 21310 | H38: ='Amended ABG Allocation No. 1 '!H38+'Revision No. 2'!H38 -> 17348 | I38: ='Amended ABG Allocation No. 1 '!I38+'Revision No. 2'!I38 -> 57889 | J38: =SUM(C38:I38) -> 5086301
A39: 34 | B39: =+'Original ABG Allocation'!B39 -> NORTHAMPTON | C39: ='Amended ABG Allocation No. 1 '!C39+'Revision No. 2'!C39 -> 4087354 | D39: ='Amended ABG Allocation No. 1 '!D39+'Revision No. 2'!D39 -> 153486 | E39: ='Amended ABG Allocation No. 1 '!E39+'Revision No. 2'!E39 -> 102099 | F39: ='Amended ABG Allocation No. 1 '!F39+'Revision No. 2'!F39 -> 73789 | G39: ='Amended ABG Allocation No. 1 '!G39+'Revision No. 2'!G39 -> 19506 | H39: ='Amended ABG Allocation No. 1 '!H39+'Revision No. 2'!H39 -> 19316 | I39: ='Amended ABG Allocation No. 1 '!I39+'Revision No. 2'!I39 -> 46413 | J39: 4501963
A40: 35 | B40: =+'Original ABG Allocation'!B40 -> PIKE | C40: ='Amended ABG Allocation No. 1 '!C40+'Revision No. 2'!C40 -> 714453 | D40: ='Amended ABG Allocation No. 1 '!D40+'Revision No. 2'!D40 -> 25399 | E40: ='Amended ABG Allocation No. 1 '!E40+'Revision No. 2'!E40 -> 20229 | F40: ='Amended ABG Allocation No. 1 '!F40+'Revision No. 2'!F40 -> 20687 | G40: ='Amended ABG Allocation No. 1 '!G40+'Revision No. 2'!G40 -> 10000 | H40: ='Amended ABG Allocation No. 1 '!H40+'Revision No. 2'!H40 -> 7908 | I40: ='Amended ABG Allocation No. 1 '!I40+'Revision No. 2'!I40 -> 24546 | J40: 823222
A41: 36 | B41: =+'Original ABG Allocation'!B41 -> B/S/S/T | C41: ='Amended ABG Allocation No. 1 '!C41+'Revision No. 2'!C41 -> 3993199 | D41: ='Amended ABG Allocation No. 1 '!D41+'Revision No. 2'!D41 -> 141181 | E41: ='Amended ABG Allocation No. 1 '!E41+'Revision No. 2'!E41 -> 136248 | F41: ='Amended ABG Allocation No. 1 '!F41+'Revision No. 2'!F41 -> 98527 | G41: ='Amended ABG Allocation No. 1 '!G41+'Revision No. 2'!G41 -> 20201 | H41: ='Amended ABG Allocation No. 1 '!H41+'Revision No. 2'!H41 -> 24698 | I41: ='Amended ABG Allocation No. 1 '!I41+'Revision No. 2'!I41 -> 48433 | J41: 4462487
A42: 37 | B42: =+'Original ABG Allocation'!B42 -> LUZERNE/WYOMING | C42: ='Amended ABG Allocation No. 1 '!C42+'Revision No. 2'!C42 -> 9360224 | D42: ='Amended ABG Allocation No. 1 '!D42+'Revision No. 2'!D42 -> 343992 | E42: ='Amended ABG Allocation No. 1 '!E42+'Revision No. 2'!E42 -> 282547 | F42: ='Amended ABG Allocation No. 1 '!F42+'Revision No. 2'!F42 -> 219979 | G42: ='Amended ABG Allocation No. 1 '!G42+'Revision No. 2'!G42 -> 31720 | H42: ='Amended ABG Allocation No. 1 '!H42+'Revision No. 2'!H42 -> 54157 | I42: ='Amended ABG Allocation No. 1 '!I42+'Revision No. 2'!I42 -> 62651 | J42: 10355270
A43: 38 | B43: =+'Original ABG Allocation'!B43 -> LACKAWANNA | C43: ='Amended ABG Allocation No. 1 '!C43+'Revision No. 2'!C43 -> 5223495 | D43: ='Amended ABG Allocation No. 1 '!D43+'Revision No. 2'!D43 -> 202907 | E43: ='Amended ABG Allocation No. 1 '!E43+'Revision No. 2'!E43 -> 231866 | F43: ='Amended ABG Allocation No. 1 '!F43+'Revision No. 2'!F43 -> 124839 | G43: ='Amended ABG Allocation No. 1 '!G43+'Revision No. 2'!G43 -> 18501 | H43: ='Amended ABG Allocation No. 1 '!H43+'Revision No. 2'!H43 -> 33436 | I43: ='Amended ABG Allocation No. 1 '!I43+'Revision No. 2'!I43 -> 42257 | J43: 5877301
A44: 39 | B44: =+'Original ABG Allocation'!B44 -> CARBON | C44: ='Amended ABG Allocation No. 1 '!C44+'Revision No. 2'!C44 -> 1185509 | D44: ='Amended ABG Allocation No. 1 '!D44+'Revision No. 2'!D44 -> 44213 | E44: ='Amended ABG Allocation No. 1 '!E44+'Revision No. 2'!E44 -> 39403 | F44: ='Amended ABG Allocation No. 1 '!F44+'Revision No. 2'!F44 -> 30903 | G44: ='Amended ABG Allocation No. 1 '!G44+'Revision No. 2'!G44 -> 10000 | H44: ='Amended ABG Allocation No. 1 '!H44+'Revision No. 2'!H44 -> 7982 | I44: ='Amended ABG Allocation No. 1 '!I44+'Revision No. 2'!I44 -> 23256 | J44: 1341266
A45: 40 | B45: =+'Original ABG Allocation'!B45 -> SCHUYLKILL | C45: ='Amended ABG Allocation No. 1 '!C45+'Revision No. 2'!C45 -> 4568989 | D45: ='Amended ABG Allocation No. 1 '!D45+'Revision No. 2'!D45 -> 181495 | E45: ='Amended ABG Allocation No. 1 '!E45+'Revision No. 2'!E45 -> 156510 | F45: ='Amended ABG Allocation No. 1 '!F45+'Revision No. 2'!F45 -> 56511 | G45: ='Amended ABG Allocation No. 1 '!G45+'Revision No. 2'!G45 -> 18478 | H45: ='Amended ABG Allocation No. 1 '!H45+'Revision No. 2'!H45 -> 29322 | I45: ='Amended ABG Allocation No. 1 '!I45+'Revision No. 2'!I45 -> 42433 | J45: 5053738
A46: 41 | B46: =+'Original ABG Allocation'!B46 -> CLEARFIELD | C46: ='Amended ABG Allocation No. 1 '!C46+'Revision No. 2'!C46 -> 2229583 | D46: ='Amended ABG Allocation No. 1 '!D46+'Revision No. 2'!D46 -> 79676 | E46: ='Amended ABG Allocation No. 1 '!E46+'Revision No. 2'!E46 -> 76522 | F46: ='Amended ABG Allocation No. 1 '!F46+'Revision No. 2'!F46 -> 110249 | G46: ='Amended ABG Allocation No. 1 '!G46+'Revision No. 2'!G46 -> 11341 | H46: ='Amended ABG Allocation No. 1 '!H46+'Revision No. 2'!H46 -> 14212 | I46: ='Amended ABG Allocation No. 1 '!I46+'Revision No. 2'!I46 -> 28506 | J46: 2550089
A47: 42 | B47: =+'Original ABG Allocation'!B47 -> JEFFERSON | C47: ='Amended ABG Allocation No. 1 '!C47+'Revision No. 2'!C47 -> 1281851 | D47: ='Amended ABG Allocation No. 1 '!D47+'Revision No. 2'!D47 -> 51609 | E47: ='Amended ABG Allocation No. 1 '!E47+'Revision No. 2'!E47 -> 59466 | F47: ='Amended ABG Allocation No. 1 '!F47+'Revision No. 2'!F47 -> 28079 | G47: ='Amended ABG Allocation No. 1 '!G47+'Revision No. 2'!G47 -> 10000 | H47: ='Amended ABG Allocation No. 1 '!H47+'Revision No. 2'!H47 -> 8874 | I47: ='Amended ABG Allocation No. 1 '!I47+'Revision No. 2'!I47 -> 19041 | J47: =SUM(C47:I47) -> 1458920
A48: 43 | B48: =+'Original ABG Allocation'!B48 -> FOREST/WARREN | C48: ='Amended ABG Allocation No. 1 '!C48+'Revision No. 2'!C48 -> 1026619 | D48: ='Amended ABG Allocation No. 1 '!D48+'Revision No. 2'!D48 -> 34269 | E48: ='Amended ABG Allocation No. 1 '!E48+'Revision No. 2'!E48 -> 30176 | F48: ='Amended ABG Allocation No. 1 '!F48+'Revision No. 2'!F48 -> 27753 | G48: ='Amended ABG Allocation No. 1 '!G48+'Revision No. 2'!G48 -> 10000 | H48: ='Amended ABG Allocation No. 1 '!H48+'Revision No. 2'!H48 -> 7946 | I48: ='Amended ABG Allocation No. 1 '!I48+'Revision No. 2'!I48 -> 21068 | J48: 1157831
A49: 44 | B49: =+'Original ABG Allocation'!B49 -> VENANGO | C49: ='Amended ABG Allocation No. 1 '!C49+'Revision No. 2'!C49 -> 1267563 | D49: ='Amended ABG Allocation No. 1 '!D49+'Revision No. 2'!D49 -> 48574 | E49: ='Amended ABG Allocation No. 1 '!E49+'Revision No. 2'!E49 -> 55242 | F49: ='Amended ABG Allocation No. 1 '!F49+'Revision No. 2'!F49 -> 36107 | G49: ='Amended ABG Allocation No. 1 '!G49+'Revision No. 2'!G49 -> 10000 | H49: ='Amended ABG Allocation No. 1 '!H49+'Revision No. 2'!H49 -> 8569 | I49: ='Amended ABG Allocation No. 1 '!I49+'Revision No. 2'!I49 -> 21935 | J49: 1447990
A50: 45 | B50: =+'Original ABG Allocation'!B50 -> ARMSTRONG | C50: ='Amended ABG Allocation No. 1 '!C50+'Revision No. 2'!C50 -> 1994604 | D50: ='Amended ABG Allocation No. 1 '!D50+'Revision No. 2'!D50 -> 75493 | E50: ='Amended ABG Allocation No. 1 '!E50+'Revision No. 2'!E50 -> 62026 | F50: ='Amended ABG Allocation No. 1 '!F50+'Revision No. 2'!F50 -> 71631 | G50: ='Amended ABG Allocation No. 1 '!G50+'Revision No. 2'!G50 -> 10719 | H50: ='Amended ABG Allocation No. 1 '!H50+'Revision No. 2'!H50 -> 12115 | I50: ='Amended ABG Allocation No. 1 '!I50+'Revision No. 2'!I50 -> 26308 | J50: 2252896
A51: 46 | B51: =+'Original ABG Allocation'!B51 -> LAWRENCE | C51: ='Amended ABG Allocation No. 1 '!C51+'Revision No. 2'!C51 -> 2116483 | D51: ='Amended ABG Allocation No. 1 '!D51+'Revision No. 2'!D51 -> 79407 | E51: ='Amended ABG Allocation No. 1 '!E51+'Revision No. 2'!E51 -> 65793 | F51: ='Amended ABG Allocation No. 1 '!F51+'Revision No. 2'!F51 -> 43055 | G51: ='Amended ABG Allocation No. 1 '!G51+'Revision No. 2'!G51 -> 10341 | H51: ='Amended ABG Allocation No. 1 '!H51+'Revision No. 2'!H51 -> 12981 | I51: ='Amended ABG Allocation No. 1 '!I51+'Revision No. 2'!I51 -> 26446 | J51: 2354506
A52: 47 | B52: =+'Original ABG Allocation'!B52 -> MERCER | C52: ='Amended ABG Allocation No. 1 '!C52+'Revision No. 2'!C52 -> 2322893 | D52: ='Amended ABG Allocation No. 1 '!D52+'Revision No. 2'!D52 -> 80316 | E52: ='Amended ABG Allocation No. 1 '!E52+'Revision No. 2'!E52 -> 77331 | F52: ='Amended ABG Allocation No. 1 '!F52+'Revision No. 2'!F52 -> 41143 | G52: ='Amended ABG Allocation No. 1 '!G52+'Revision No. 2'!G52 -> 13302 | H52: ='Amended ABG Allocation No. 1 '!H52+'Revision No. 2'!H52 -> 14661 | I52: ='Amended ABG Allocation No. 1 '!I52+'Revision No. 2'!I52 -> 31299 | J52: 2580945
A53: 48 | B53: =+'Original ABG Allocation'!B53 -> MONROE | C53: ='Amended ABG Allocation No. 1 '!C53+'Revision No. 2'!C53 -> 1655963 | D53: ='Amended ABG Allocation No. 1 '!D53+'Revision No. 2'!D53 -> 46961 | E53: ='Amended ABG Allocation No. 1 '!E53+'Revision No. 2'!E53 -> 65227 | F53: ='Amended ABG Allocation No. 1 '!F53+'Revision No. 2'!F53 -> 37809 | G53: ='Amended ABG Allocation No. 1 '!G53+'Revision No. 2'!G53 -> 13317 | H53: ='Amended ABG Allocation No. 1 '!H53+'Revision No. 2'!H53 -> 8435 | I53: ='Amended ABG Allocation No. 1 '!I53+'Revision No. 2'!I53 -> 42174 | J53: 1869886
A54: 49 | B54: =+'Original ABG Allocation'!B54 -> CLARION | C54: ='Amended ABG Allocation No. 1 '!C54+'Revision No. 2'!C54 -> 954686 | D54: ='Amended ABG Allocation No. 1 '!D54+'Revision No. 2'!D54 -> 32868 | E54: ='Amended ABG Allocation No. 1 '!E54+'Revision No. 2'!E54 -> 43252 | F54: ='Amended ABG Allocation No. 1 '!F54+'Revision No. 2'!F54 -> 29696 | G54: ='Amended ABG Allocation No. 1 '!G54+'Revision No. 2'!G54 -> 10000 | H54: ='Amended ABG Allocation No. 1 '!H54+'Revision No. 2'!H54 -> 7961 | I54: ='Amended ABG Allocation No. 1 '!I54+'Revision No. 2'!I54 -> 18749 | J54: 1097212
A55: 50 | B55: =+'Original ABG Allocation'!B55 -> BUTLER | C55: ='Amended ABG Allocation No. 1 '!C55+'Revision No. 2'!C55 -> 2546870 | D55: ='Amended ABG Allocation No. 1 '!D55+'Revision No. 2'!D55 -> 104331 | E55: ='Amended ABG Allocation No. 1 '!E55+'Revision No. 2'!E55 -> 112372 | F55: ='Amended ABG Allocation No. 1 '!F55+'Revision No. 2'!F55 -> 40783 | G55: ='Amended ABG Allocation No. 1 '!G55+'Revision No. 2'!G55 -> 16742 | H55: ='Amended ABG Allocation No. 1 '!H55+'Revision No. 2'!H55 -> 14150 | I55: ='Amended ABG Allocation No. 1 '!I55+'Revision No. 2'!I55 -> 38611 | J55: 2873859
A56: 51 | B56: =+'Original ABG Allocation'!B56 -> POTTER | C56: ='Amended ABG Allocation No. 1 '!C56+'Revision No. 2'!C56 -> 589962 | D56: ='Amended ABG Allocation No. 1 '!D56+'Revision No. 2'!D56 -> 25400 | E56: ='Amended ABG Allocation No. 1 '!E56+'Revision No. 2'!E56 -> 20017 | F56: ='Amended ABG Allocation No. 1 '!F56+'Revision No. 2'!F56 -> 14811 | G56: ='Amended ABG Allocation No. 1 '!G56+'Revision No. 2'!G56 -> 10000 | H56: ='Amended ABG Allocation No. 1 '!H56+'Revision No. 2'!H56 -> 7905 | I56: ='Amended ABG Allocation No. 1 '!I56+'Revision No. 2'!I56 -> 13351 | J56: 681446
A57: 52 | B57: =+'Original ABG Allocation'!B57 -> WAYNE | C57: ='Amended ABG Allocation No. 1 '!C57+'Revision No. 2'!C57 -> 1178872 | D57: ='Amended ABG Allocation No. 1 '!D57+'Revision No. 2'!D57 -> 35500 | E57: ='Amended ABG Allocation No. 1 '!E57+'Revision No. 2'!E57 -> 38682 | F57: ='Amended ABG Allocation No. 1 '!F57+'Revision No. 2'!F57 -> 55047 | G57: ='Amended ABG Allocation No. 1 '!G57+'Revision No. 2'!G57 -> 10000 | H57: ='Amended ABG Allocation No. 1 '!H57+'Revision No. 2'!H57 -> 8635 | I57: ='Amended ABG Allocation No. 1 '!I57+'Revision No. 2'!I57 -> 22788 | J57: 1349524
B58: TOTALS | C58: =SUM(C6:C57) -> 251275475 | D58: 8761000 | E58: 9009971 | F58: 4963443 | G58: 1078348 | H58: 1412033 | I58: 2576957 | J58: 279077227

Sheet Revision No. 3 (hidden)
A1: CHANGE 3
A2: BLOCK GRANT ALLOCATION
A3: =+'Original ABG Allocation'!A3 -> FY 2022-23 | C3: =+'Original ABG Allocation'!C3 -> (1) | D3: =+'Original ABG Allocation'!D3 -> (2) | E3: =+'Original ABG Allocation'!E3 -> (3) | F3: =+'Original ABG Allocation'!F3 -> (4) | G3: =+'Original ABG Allocation'!G3 -> (5) | H3: =+'Original ABG Allocation'!H3 -> (6) | I3: =+'Original ABG Allocation'!I3 -> (7) | J3: =+'Original ABG Allocation'!J3 -> (8)
C4: =+'Original ABG Allocation'!C4 -> REGULAR | D4: =+'Original ABG Allocation'!D4 -> CAREGIVER | E4: =+'Original ABG Allocation'!E4 -> FED. CAREGIVER | H4: =+'Original ABG Allocation'!H4 -> HEALTH | J4: =+'Original ABG Allocation'!J4 -> TOTAL ALL
C5: =+'Original ABG Allocation'!C5 -> BLOCK GRANT | D5: =+'Original ABG Allocation'!D5 -> SUPPORT | E5: =+'Original ABG Allocation'!E5 -> SUPPORT | F5: =+'Original ABG Allocation'!F5 -> NSIP | G5: =+'Original ABG Allocation'!G5 -> APPRISE | H5: =+'Original ABG Allocation'!H5 -> PROMOTION | I5: =+'Original ABG Allocation'!I5 -> OTHER | J5: =+'Original ABG Allocation'!J5 -> FUNDS
A6: 01 | B6: =+'Original ABG Allocation'!B6 -> ERIE | C6: =+'Regular BG'!AA7 -> 0 | D6: =+'Caregiver Support'!K7 -> 0 | E6: =+'Federal Caregiver Support'!X7 -> 0 | F6: =+NSIP!M7 -> 0 | G6: =+'PA MEDI'!K7 -> 0 | H6: ='Health Promotion'!T7 -> 0 | I6: ='Other Funds-Revision No. 3'!AM6 -> 0 | J6: =SUM(C6:I6) -> 0
A7: 02 | B7: =+'Original ABG Allocation'!B7 -> CRAWFORD | C7: =+'Regular BG'!AA8 -> 0 | D7: =+'Caregiver Support'!K8 -> 0 | E7: =+'Federal Caregiver Support'!X8 -> 0 | F7: =+NSIP!M8 -> 0 | G7: =+'PA MEDI'!K8 -> 0 | H7: ='Health Promotion'!T8 -> 0 | I7: ='Other Funds-Revision No. 3'!AM7 -> 0 | J7: 0
A8: 03 | B8: =+'Original ABG Allocation'!B8 -> CAM/ELK/MCKEAN | C8: =+'Regular BG'!AA9 -> 0 | D8: =+'Caregiver Support'!K9 -> 0 | E8: =+'Federal Caregiver Support'!X9 -> 0 | F8: =+NSIP!M9 -> 0 | G8: =+'PA MEDI'!K9 -> 0 | H8: ='Health Promotion'!T9 -> 0 | I8: ='Other Funds-Revision No. 3'!AM8 -> 0 | J8: 0
A9: 04 | B9: =+'Original ABG Allocation'!B9 -> BEAVER | C9: =+'Regular BG'!AA10 -> 0 | D9: =+'Caregiver Support'!K10 -> 0 | E9: =+'Federal Caregiver Support'!X10 -> 0 | F9: =+NSIP!M10 -> 0 | G9: =+'PA MEDI'!K10 -> 0 | H9: ='Health Promotion'!T10 -> 0 | I9: ='Other Funds-Revision No. 3'!AM9 -> 0 | J9: 0
A10: 05 | B10: =+'Original ABG Allocation'!B10 -> INDIANA | C10: =+'Regular BG'!AA11 -> 0 | D10: =+'Caregiver Support'!K11 -> 0 | E10: =+'Federal Caregiver Support'!X11 -> 0 | F10: =+NSIP!M11 -> 0 | G10: =+'PA MEDI'!K11 -> 0 | H10: ='Health Promotion'!T11 -> 0 | I10: ='Other Funds-Revision No. 3'!AM10 -> 0 | J10: 0
A11: 06 | B11: =+'Original ABG Allocation'!B11 -> ALLEGHENY | C11: =+'Regular BG'!AA12 -> 0 | D11: =+'Caregiver Support'!K12 -> 0 | E11: =+'Federal Caregiver Support'!X12 -> 0 | F11: =+NSIP!M12 -> 0 | G11: =+'PA MEDI'!K12 -> 0 | H11: ='Health Promotion'!T12 -> 0 | I11: ='Other Funds-Revision No. 3'!AM11 -> 0 | J11: 0
A12: 07 | B12: =+'Original ABG Allocation'!B12 -> WESTMORELAND | C12: =+'Regular BG'!AA13 -> 0 | D12: =+'Caregiver Support'!K13 -> 0 | E12: =+'Federal Caregiver Support'!X13 -> 0 | F12: =+NSIP!M13 -> 0 | G12: =+'PA MEDI'!K13 -> 0 | H12: ='Health Promotion'!T13 -> 0 | I12: ='Other Funds-Revision No. 3'!AM12 -> 0 | J12: 0
A13: 08 | B13: =+'Original ABG Allocation'!B13 -> WASH/FAY/GREENE | C13: =+'Regular BG'!AA14 -> 0 | D13: =+'Caregiver Support'!K14 -> 0 | E13: =+'Federal Caregiver Support'!X14 -> 0 | F13: =+NSIP!M14 -> 0 | G13: =+'PA MEDI'!K14 -> 0 | H13: ='Health Promotion'!T14 -> 0 | I13: ='Other Funds-Revision No. 3'!AM13 -> 0 | J13: 0
A14: 09 | B14: =+'Original ABG Allocation'!B14 -> SOMERSET | C14: =+'Regular BG'!AA15 -> 0 | D14: =+'Caregiver Support'!K15 -> 0 | E14: =+'Federal Caregiver Support'!X15 -> 0 | F14: =+NSIP!M15 -> 0 | G14: =+'PA MEDI'!K15 -> 0 | H14: ='Health Promotion'!T15 -> 0 | I14: ='Other Funds-Revision No. 3'!AM14 -> 0 | J14: 0
A15: 10 | B15: =+'Original ABG Allocation'!B15 -> CAMBRIA | C15: =+'Regular BG'!AA16 -> 0 | D15: =+'Caregiver Support'!K16 -> 0 | E15: =+'Federal Caregiver Support'!X16 -> 0 | F15: =+NSIP!M16 -> 0 | G15: =+'PA MEDI'!K16 -> 0 | H15: ='Health Promotion'!T16 -> 0 | I15: ='Other Funds-Revision No. 3'!AM15 -> 0 | J15: 0
A16: 11 | B16: =+'Original ABG Allocation'!B16 -> BLAIR | C16: =+'Regular BG'!AA17 -> 0 | D16: =+'Caregiver Support'!K17 -> 0 | E16: =+'Federal Caregiver Support'!X17 -> 0 | F16: =+NSIP!M17 -> 0 | G16: =+'PA MEDI'!K17 -> 0 | H16: ='Health Promotion'!T17 -> 0 | I16: ='Other Funds-Revision No. 3'!AM16 -> 0 | J16: 0
A17: 12 | B17: =+'Original ABG Allocation'!B17 -> BED/FULT/HUNT | C17: =+'Regular BG'!AA18 -> 0 | D17: 0 | E17: =+'Federal Caregiver Support'!X18 -> 0 | F17: =+NSIP!M18 -> 0 | G17: =+'PA MEDI'!K18 -> 0 | H17: ='Health Promotion'!T18 -> 0 | I17: ='Other Funds-Revision No. 3'!AM17 -> 0 | J17: 0
A18: 13 | B18: =+'Original ABG Allocation'!B18 -> CENTRE | C18: =+'Regular BG'!AA19 -> 0 | D18: 0 | E18: =+'Federal Caregiver Support'!X19 -> 0 | F18: =+NSIP!M19 -> 0 | G18: =+'PA MEDI'!K19 -> 0 | H18: ='Health Promotion'!T19 -> 0 | I18: ='Other Funds-Revision No. 3'!AM18 -> 0 | J18: 0
A19: 14 | B19: =+'Original ABG Allocation'!B19 -> LYCOM/CLINTON | C19: =+'Regular BG'!AA20 -> 0 | D19: =+'Caregiver Support'!K20 -> 0 | E19: =+'Federal Caregiver Support'!X20 -> 0 | F19: =+NSIP!M20 -> 0 | G19: =+'PA MEDI'!K20 -> 0 | H19: ='Health Promotion'!T20 -> 0 | I19: ='Other Funds-Revision No. 3'!AM19 -> 0 | J19: 0
A20: 15 | B20: =+'Original ABG Allocation'!B20 -> COLUM/MONT | C20: =+'Regular BG'!AA21 -> 0 | D20: =+'Caregiver Support'!K21 -> 0 | E20: =+'Federal Caregiver Support'!X21 -> 0 | F20: =+NSIP!M21 -> 0 | G20: =+'PA MEDI'!K21 -> 0 | H20: ='Health Promotion'!T21 -> 0 | I20: ='Other Funds-Revision No. 3'!AM20 -> 0 | J20: 0
A21: 16 | B21: =+'Original ABG Allocation'!B21 -> NORTHUMBERLND | C21: =+'Regular BG'!AA22 -> 0 | D21: =+'Caregiver Support'!K22 -> 0 | E21: =+'Federal Caregiver Support'!X22 -> 0 | F21: =+NSIP!M22 -> 0 | G21: =+'PA MEDI'!K22 -> 0 | H21: ='Health Promotion'!T22 -> 0 | I21: ='Other Funds-Revision No. 3'!AM21 -> 0 | J21: 0
A22: 17 | B22: =+'Original ABG Allocation'!B22 -> UNION/SNYDER | C22: =+'Regular BG'!AA23 -> 0 | D22: =+'Caregiver Support'!K23 -> 0 | E22: =+'Federal Caregiver Support'!X23 -> 0 | F22: =+NSIP!M23 -> 0 | G22: =+'PA MEDI'!K23 -> 0 | H22: ='Health Promotion'!T23 -> 0 | I22: ='Other Funds-Revision No. 3'!AM22 -> 0 | J22: 0
A23: 18 | B23: =+'Original ABG Allocation'!B23 -> MIFF/JUNIATA | C23: =+'Regular BG'!AA24 -> 0 | D23: =+'Caregiver Support'!K24 -> 0 | E23: =+'Federal Caregiver Support'!X24 -> 0 | F23: =+NSIP!M24 -> 0 | G23: =+'PA MEDI'!K24 -> 0 | H23: ='Health Promotion'!T24 -> 0 | I23: ='Other Funds-Revision No. 3'!AM23 -> 0 | J23: 0
A24: 19 | B24: =+'Original ABG Allocation'!B24 -> FRANKLIN | C24: =+'Regular BG'!AA25 -> 0 | D24: =+'Caregiver Support'!K25 -> 0 | E24: =+'Federal Caregiver Support'!X25 -> 0 | F24: =+NSIP!M25 -> 0 | G24: =+'PA MEDI'!K25 -> 0 | H24: ='Health Promotion'!T25 -> 0 | I24: ='Other Funds-Revision No. 3'!AM24 -> 0 | J24: 0
A25: 20 | B25: =+'Original ABG Allocation'!B25 -> ADAMS | C25: =+'Regular BG'!AA26 -> 0 | D25: =+'Caregiver Support'!K26 -> 0 | E25: =+'Federal Caregiver Support'!X26 -> 0 | F25: =+NSIP!M26 -> 0 | G25: =+'PA MEDI'!K26 -> 0 | H25: ='Health Promotion'!T26 -> 0 | I25: ='Other Funds-Revision No. 3'!AM25 -> 0 | J25: 0
A26: 21 | B26: =+'Original ABG Allocation'!B26 -> CUMBERLAND | C26: =+'Regular BG'!AA27 -> 0 | D26: =+'Caregiver Support'!K27 -> 0 | E26: 0 | F26: =+NSIP!M27 -> 0 | G26: =+'PA MEDI'!K27 -> 0 | H26: ='Health Promotion'!T27 -> 0 | I26: ='Other Funds-Revision No. 3'!AM26 -> 0 | J26: 0
A27: 22 | B27: =+'Original ABG Allocation'!B27 -> PERRY | C27: =+'Regular BG'!AA28 -> 0 | D27: =+'Caregiver Support'!K28 -> 0 | E27: 0 | F27: =+NSIP!M28 -> 0 | G27: =+'PA MEDI'!K28 -> 0 | H27: 0 | I27: ='Other Funds-Revision No. 3'!AM27 -> 0 | J27: 0
A28: 23 | B28: =+'Original ABG Allocation'!B28 -> DAUPHIN | C28: =+'Regular BG'!AA29 -> 0 | D28: =+'Caregiver Support'!K29 -> 0 | E28: =+'Federal Caregiver Support'!X29 -> 0 | F28: =+NSIP!M29 -> 0 | G28: =+'PA MEDI'!K29 -> 0 | H28: 0 | I28: ='Other Funds-Revision No. 3'!AM28 -> 0 | J28: 0
A29: 24 | B29: =+'Original ABG Allocation'!B29 -> LEBANON | C29: =+'Regular BG'!AA30 -> 0 | D29: =+'Caregiver Support'!K30 -> 0 | E29: =+'Federal Caregiver Support'!X30 -> 0 | F29: =+NSIP!M30 -> 0 | G29: =+'PA MEDI'!K30 -> 0 | H29: ='Health Promotion'!T30 -> 0 | I29: ='Other Funds-Revision No. 3'!AM29 -> 0 | J29: 0
A30: 25 | B30: =+'Original ABG Allocation'!B30 -> YORK | C30: =+'Regular BG'!AA31 -> 0 | D30: =+'Caregiver Support'!K31 -> 0 | E30: =+'Federal Caregiver Support'!X31 -> 0 | F30: =+NSIP!M31 -> 0 | G30: =+'PA MEDI'!K31 -> 0 | H30: ='Health Promotion'!T31 -> 0 | I30: ='Other Funds-Revision No. 3'!AM30 -> 0 | J30: 0
A31: 26 | B31: =+'Original ABG Allocation'!B31 -> LANCASTER | C31: =+'Regular BG'!AA32 -> 0 | D31: =+'Caregiver Support'!K32 -> 0 | E31: =+'Federal Caregiver Support'!X32 -> 0 | F31: =+NSIP!M32 -> 0 | G31: =+'PA MEDI'!K32 -> 0 | H31: ='Health Promotion'!T32 -> 0 | I31: ='Other Funds-Revision No. 3'!AM31 -> 0 | J31: 0
A32: 27 | B32: =+'Original ABG Allocation'!B32 -> CHESTER | C32: =+'Regular BG'!AA33 -> 0 | D32: =+'Caregiver Support'!K33 -> 0 | E32: =+'Federal Caregiver Support'!X33 -> 0 | F32: =+NSIP!M33 -> 0 | G32: =+'PA MEDI'!K33 -> 0 | H32: ='Health Promotion'!T33 -> 0 | I32: ='Other Funds-Revision No. 3'!AM32 -> 0 | J32: 0
A33: 28 | B33: =+'Original ABG Allocation'!B33 -> MONTGOMERY | C33: =+'Regular BG'!AA34 -> 0 | D33: =+'Caregiver Support'!K34 -> 0 | E33: =+'Federal Caregiver Support'!X34 -> 0 | F33: =+NSIP!M34 -> 0 | G33: =+'PA MEDI'!K34 -> 0 | H33: ='Health Promotion'!T34 -> 0 | I33: ='Other Funds-Revision No. 3'!AM33 -> 0 | J33: 0
A34: 29 | B34: =+'Original ABG Allocation'!B34 -> BUCKS | C34: =+'Regular BG'!AA35 -> 0 | D34: =+'Caregiver Support'!K35 -> 0 | E34: =+'Federal Caregiver Support'!X35 -> 0 | F34: =+NSIP!M35 -> 0 | G34: =+'PA MEDI'!K35 -> 0 | H34: ='Health Promotion'!T35 -> 0 | I34: ='Other Funds-Revision No. 3'!AM34 -> 0 | J34: 0
A35: 30 | B35: =+'Original ABG Allocation'!B35 -> DELAWARE | C35: =+'Regular BG'!AA36 -> 0 | D35: =+'Caregiver Support'!K36 -> 0 | E35: =+'Federal Caregiver Support'!X36 -> 0 | F35: =+NSIP!M36 -> 0 | G35: =+'PA MEDI'!K36 -> 0 | H35: ='Health Promotion'!T36 -> 0 | I35: ='Other Funds-Revision No. 3'!AM35 -> 0 | J35: 0
A36: 31 | B36: =+'Original ABG Allocation'!B36 -> PHILADELPHIA | C36: =+'Regular BG'!AA37 -> 0 | D36: =+'Caregiver Support'!K37 -> 0 | E36: =+'Federal Caregiver Support'!X37 -> 0 | F36: =+NSIP!M37 -> 0 | G36: =+'PA MEDI'!K37 -> 0 | H36: ='Health Promotion'!T37 -> 0 | I36: ='Other Funds-Revision No. 3'!AM36 -> 0 | J36: 0
A37: 32 | B37: =+'Original ABG Allocation'!B37 -> BERKS | C37: =+'Regular BG'!AA38 -> 0 | D37: =+'Caregiver Support'!K38 -> 0 | E37: =+'Federal Caregiver Support'!X38 -> 0 | F37: =+NSIP!M38 -> 0 | G37: =+'PA MEDI'!K38 -> 0 | H37: ='Health Promotion'!T38 -> 0 | I37: ='Other Funds-Revision No. 3'!AM37 -> 0 | J37: 0
A38: 33 | B38: =+'Original ABG Allocation'!B38 -> LEHIGH | C38: =+'Regular BG'!AA39 -> 0 | D38: =+'Caregiver Support'!K39 -> 0 | E38: =+'Federal Caregiver Support'!X39 -> 0 | F38: =+NSIP!M39 -> 0 | G38: =+'PA MEDI'!K39 -> 0 | H38: ='Health Promotion'!T39 -> 0 | I38: ='Other Funds-Revision No. 3'!AM38 -> 0 | J38: =SUM(C38:I38) -> 0
A39: 34 | B39: =+'Original ABG Allocation'!B39 -> NORTHAMPTON | C39: =+'Regular BG'!AA40 -> 0 | D39: =+'Caregiver Support'!K40 -> 0 | E39: =+'Federal Caregiver Support'!X40 -> 0 | F39: =+NSIP!M40 -> 0 | G39: =+'PA MEDI'!K40 -> 0 | H39: ='Health Promotion'!T40 -> 0 | I39: ='Other Funds-Revision No. 3'!AM39 -> 0 | J39: 0
A40: 35 | B40: =+'Original ABG Allocation'!B40 -> PIKE | C40: =+'Regular BG'!AA41 -> 0 | D40: =+'Caregiver Support'!K41 -> 0 | E40: =+'Federal Caregiver Support'!X41 -> 0 | F40: =+NSIP!M41 -> 0 | G40: =+'PA MEDI'!K41 -> 0 | H40: ='Health Promotion'!T41 -> 0 | I40: ='Other Funds-Revision No. 3'!AM40 -> 0 | J40: 0
A41: 36 | B41: =+'Original ABG Allocation'!B41 -> B/S/S/T | C41: =+'Regular BG'!AA42 -> 0 | D41: =+'Caregiver Support'!K42 -> 0 | E41: =+'Federal Caregiver Support'!X42 -> 0 | F41: =+NSIP!M42 -> 0 | G41: =+'PA MEDI'!K42 -> 0 | H41: ='Health Promotion'!T42 -> 0 | I41: ='Other Funds-Revision No. 3'!AM41 -> 0 | J41: 0
A42: 37 | B42: =+'Original ABG Allocation'!B42 -> LUZERNE/WYOMING | C42: =+'Regular BG'!AA43 -> 0 | D42: =+'Caregiver Support'!K43 -> 0 | E42: =+'Federal Caregiver Support'!X43 -> 0 | F42: =+NSIP!M43 -> 0 | G42: =+'PA MEDI'!K43 -> 0 | H42: ='Health Promotion'!T43 -> 0 | I42: ='Other Funds-Revision No. 3'!AM42 -> 0 | J42: 0
A43: 38 | B43: =+'Original ABG Allocation'!B43 -> LACKAWANNA | C43: =+'Regular BG'!AA44 -> 0 | D43: =+'Caregiver Support'!K44 -> 0 | E43: =+'Federal Caregiver Support'!X44 -> 0 | F43: =+NSIP!M44 -> 0 | G43: =+'PA MEDI'!K44 -> 0 | H43: ='Health Promotion'!T44 -> 0 | I43: ='Other Funds-Revision No. 3'!AM43 -> 0 | J43: 0
A44: 39 | B44: =+'Original ABG Allocation'!B44 -> CARBON | C44: =+'Regular BG'!AA45 -> 0 | D44: =+'Caregiver Support'!K45 -> 0 | E44: =+'Federal Caregiver Support'!X45 -> 0 | F44: =+NSIP!M45 -> 0 | G44: =+'PA MEDI'!K45 -> 0 | H44: ='Health Promotion'!T45 -> 0 | I44: ='Other Funds-Revision No. 3'!AM44 -> 0 | J44: 0
A45: 40 | B45: =+'Original ABG Allocation'!B45 -> SCHUYLKILL | C45: =+'Regular BG'!AA46 -> 0 | D45: =+'Caregiver Support'!K46 -> 0 | E45: =+'Federal Caregiver Support'!X46 -> 0 | F45: =+NSIP!M46 -> 0 | G45: =+'PA MEDI'!K46 -> 0 | H45: ='Health Promotion'!T46 -> 0 | I45: ='Other Funds-Revision No. 3'!AM45 -> 0 | J45: 0
A46: 41 | B46: =+'Original ABG Allocation'!B46 -> CLEARFIELD | C46: =+'Regular BG'!AA47 -> 0 | D46: =+'Caregiver Support'!K47 -> 0 | E46: =+'Federal Caregiver Support'!X47 -> 0 | F46: =+NSIP!M47 -> 0 | G46: =+'PA MEDI'!K47 -> 0 | H46: ='Health Promotion'!T47 -> 0 | I46: ='Other Funds-Revision No. 3'!AM46 -> 0 | J46: 0
A47: 42 | B47: =+'Original ABG Allocation'!B47 -> JEFFERSON | C47: =+'Regular BG'!AA48 -> 0 | D47: =+'Caregiver Support'!K48 -> 0 | E47: =+'Federal Caregiver Support'!X48 -> 0 | F47: =+NSIP!M48 -> 0 | G47: =+'PA MEDI'!K48 -> 0 | H47: ='Health Promotion'!T48 -> 0 | I47: ='Other Funds-Revision No. 3'!AM47 -> 0 | J47: 0
A48: 43 | B48: =+'Original ABG Allocation'!B48 -> FOREST/WARREN | C48: =+'Regular BG'!AA49 -> 0 | D48: =+'Caregiver Support'!K49 -> 0 | E48: =+'Federal Caregiver Support'!X49 -> 0 | F48: =+NSIP!M49 -> 0 | G48: =+'PA MEDI'!K49 -> 0 | H48: ='Health Promotion'!T49 -> 0 | I48: ='Other Funds-Revision No. 3'!AM48 -> 0 | J48: 0
A49: 44 | B49: =+'Original ABG Allocation'!B49 -> VENANGO | C49: =+'Regular BG'!AA50 -> 0 | D49: =+'Caregiver Support'!K50 -> 0 | E49: =+'Federal Caregiver Support'!X50 -> 0 | F49: =+NSIP!M50 -> 0 | G49: =+'PA MEDI'!K50 -> 0 | H49: ='Health Promotion'!T50 -> 0 | I49: ='Other Funds-Revision No. 3'!AM49 -> 0 | J49: 0
A50: 45 | B50: =+'Original ABG Allocation'!B50 -> ARMSTRONG | C50: =+'Regular BG'!AA51 -> 0 | D50: =+'Caregiver Support'!K51 -> 0 | E50: =+'Federal Caregiver Support'!X51 -> 0 | F50: =+NSIP!M51 -> 0 | G50: =+'PA MEDI'!K51 -> 0 | H50: ='Health Promotion'!T51 -> 0 | I50: ='Other Funds-Revision No. 3'!AM50 -> 0 | J50: 0
A51: 46 | B51: =+'Original ABG Allocation'!B51 -> LAWRENCE | C51: =+'Regular BG'!AA52 -> 0 | D51: =+'Caregiver Support'!K52 -> 0 | E51: =+'Federal Caregiver Support'!X52 -> 0 | F51: =+NSIP!M52 -> 0 | G51: =+'PA MEDI'!K52 -> 0 | H51: ='Health Promotion'!T52 -> 0 | I51: ='Other Funds-Revision No. 3'!AM51 -> 0 | J51: 0
A52: 47 | B52: =+'Original ABG Allocation'!B52 -> MERCER | C52: =+'Regular BG'!AA53 -> 0 | D52: =+'Caregiver Support'!K53 -> 0 | E52: =+'Federal Caregiver Support'!X53 -> 0 | F52: =+NSIP!M53 -> 0 | G52: =+'PA MEDI'!K53 -> 0 | H52: ='Health Promotion'!T53 -> 0 | I52: ='Other Funds-Revision No. 3'!AM52 -> 0 | J52: 0
A53: 48 | B53: =+'Original ABG Allocation'!B53 -> MONROE | C53: =+'Regular BG'!AA54 -> 0 | D53: =+'Caregiver Support'!K54 -> 0 | E53: =+'Federal Caregiver Support'!X54 -> 0 | F53: =+NSIP!M54 -> 0 | G53: =+'PA MEDI'!K54 -> 0 | H53: ='Health Promotion'!T54 -> 0 | I53: ='Other Funds-Revision No. 3'!AM53 -> 0 | J53: 0
A54: 49 | B54: =+'Original ABG Allocation'!B54 -> CLARION | C54: =+'Regular BG'!AA55 -> 0 | D54: =+'Caregiver Support'!K55 -> 0 | E54: =+'Federal Caregiver Support'!X55 -> 0 | F54: =+NSIP!M55 -> 0 | G54: =+'PA MEDI'!K55 -> 0 | H54: ='Health Promotion'!T55 -> 0 | I54: ='Other Funds-Revision No. 3'!AM54 -> 0 | J54: 0
A55: 50 | B55: =+'Original ABG Allocation'!B55 -> BUTLER | C55: =+'Regular BG'!AA56 -> 0 | D55: =+'Caregiver Support'!K56 -> 0 | E55: =+'Federal Caregiver Support'!X56 -> 0 | F55: =+NSIP!M56 -> 0 | G55: =+'PA MEDI'!K56 -> 0 | H55: ='Health Promotion'!T56 -> 0 | I55: ='Other Funds-Revision No. 3'!AM55 -> 0 | J55: 0
A56: 51 | B56: =+'Original ABG Allocation'!B56 -> POTTER | C56: =+'Regular BG'!AA57 -> 0 | D56: =+'Caregiver Support'!K57 -> 0 | E56: =+'Federal Caregiver Support'!X57 -> 0 | F56: =+NSIP!M57 -> 0 | G56: =+'PA MEDI'!K57 -> 0 | H56: ='Health Promotion'!T57 -> 0 | I56: ='Other Funds-Revision No. 3'!AM56 -> 0 | J56: 0
A57: 52 | B57: =+'Original ABG Allocation'!B57 -> WAYNE | C57: =+'Regular BG'!AA58 -> 0 | D57: =+'Caregiver Support'!K58 -> 0 | E57: =+'Federal Caregiver Support'!X58 -> 0 | F57: =+NSIP!M58 -> 0 | G57: =+'PA MEDI'!K58 -> 0 | H57: ='Health Promotion'!T58 -> 0 | I57: ='Other Funds-Revision No. 3'!AM57 -> 0 | J57: 0
B58: TOTALS | C58: =SUM(C6:C57) -> 0 | D58: 0 | E58: 0 | F58: 0 | G58: 0 | H58: 0 | I58: 0 | J58: 0

Sheet Amended ABG Allocation No. 3 (hidden)
A1: AMENDMENT #3
A2: BLOCK GRANT ALLOCATION
A3: =+'Original ABG Allocation'!A3 -> FY 2022-23 | C3: =+'Original ABG Allocation'!C3 -> (1) | D3: =+'Original ABG Allocation'!D3 -> (2) | E3: =+'Original ABG Allocation'!E3 -> (3) | F3: =+'Original ABG Allocation'!F3 -> (4) | G3: =+'Original ABG Allocation'!G3 -> (5) | H3: =+'Original ABG Allocation'!H3 -> (6) | I3: =+'Original ABG Allocation'!I3 -> (7) | J3: =+'Original ABG Allocation'!J3 -> (8)
C4: =+'Original ABG Allocation'!C4 -> REGULAR | D4: =+'Original ABG Allocation'!D4 -> CAREGIVER | E4: =+'Original ABG Allocation'!E4 -> FED. CAREGIVER | G4: PA MEDI | H4: =+'Original ABG Allocation'!H4 -> HEALTH | J4: =+'Original ABG Allocation'!J4 -> TOTAL ALL
C5: =+'Original ABG Allocation'!C5 -> BLOCK GRANT | D5: =+'Original ABG Allocation'!D5 -> SUPPORT | E5: =+'Original ABG Allocation'!E5 -> SUPPORT | F5: =+'Original ABG Allocation'!F5 -> NSIP | G5: APPRISE | H5: =+'Original ABG Allocation'!H5 -> PROMOTION | I5: =+'Original ABG Allocation'!I5 -> OTHER | J5: =+'Original ABG Allocation'!J5 -> FUNDS
A6: 01 | B6: =+'Original ABG Allocation'!B6 -> ERIE | C6: ='Amended ABG Allocation No. 1 '!C6+'Revision No. 2'!C6+'Revision No. 3'!C6 -> 4411598 | D6: ='Amended ABG Allocation No. 1 '!D6+'Revision No. 2'!D6+'Revision No. 3'!D6 -> 156011 | E6: ='Original ABG Allocation'!E6+'Revision No. 1'!E6+'Revision No. 2'!E6+'Revision No. 3'!E6 -> 134766 | F6: ='Amended ABG Allocation No. 1 '!F6+'Revision No. 2'!F6+'Revision No. 3'!F6 -> 66325 | G6: ='Amended ABG Allocation No. 1 '!G6+'Revision No. 2'!G6+'Revision No. 3'!G6 -> 20097 | H6: ='Amended ABG Allocation No. 1 '!H6+'Revision No. 2'!H6+'Revision No. 3'!H6 -> 25670 | I6: ='Amended ABG Allocation No. 1 '!I6+'Revision No. 2'!I6+'Revision No. 3'!I6 -> 50754 | J6: =SUM(C6:I6) -> 4865221
A7: 02 | B7: =+'Original ABG Allocation'!B7 -> CRAWFORD | C7: ='Amended ABG Allocation No. 1 '!C7+'Revision No. 2'!C7+'Revision No. 3'!C7 -> 2137845 | D7: ='Amended ABG Allocation No. 1 '!D7+'Revision No. 2'!D7+'Revision No. 3'!D7 -> 94962 | E7: ='Original ABG Allocation'!E7+'Revision No. 1'!E7+'Revision No. 2'!E7+'Revision No. 3'!E7 -> 55648 | F7: ='Amended ABG Allocation No. 1 '!F7+'Revision No. 2'!F7+'Revision No. 3'!F7 -> 47328 | G7: ='Amended ABG Allocation No. 1 '!G7+'Revision No. 2'!G7+'Revision No. 3'!G7 -> 10676 | H7: ='Amended ABG Allocation No. 1 '!H7+'Revision No. 2'!H7+'Revision No. 3'!H7 -> 12253 | I7: ='Amended ABG Allocation No. 1 '!I7+'Revision No. 2'!I7+'Revision No. 3'!I7 -> 27952 | J7: 2386664
A8: 03 | B8: =+'Original ABG Allocation'!B8 -> CAM/ELK/MCKEAN | C8: ='Amended ABG Allocation No. 1 '!C8+'Revision No. 2'!C8+'Revision No. 3'!C8 -> 2104494 | D8: ='Amended ABG Allocation No. 1 '!D8+'Revision No. 2'!D8+'Revision No. 3'!D8 -> 104392 | E8: ='Original ABG Allocation'!E8+'Revision No. 1'!E8+'Revision No. 2'!E8+'Revision No. 3'!E8 -> 69557 | F8: ='Amended ABG Allocation No. 1 '!F8+'Revision No. 2'!F8+'Revision No. 3'!F8 -> 35588 | G8: ='Amended ABG Allocation No. 1 '!G8+'Revision No. 2'!G8+'Revision No. 3'!G8 -> 11237 | H8: ='Amended ABG Allocation No. 1 '!H8+'Revision No. 2'!H8+'Revision No. 3'!H8 -> 13477 | I8: ='Amended ABG Allocation No. 1 '!I8+'Revision No. 2'!I8+'Revision No. 3'!I8 -> 26526 | J8: 2365271
A9: 04 | B9: =+'Original ABG Allocation'!B9 -> BEAVER | C9: ='Amended ABG Allocation No. 1 '!C9+'Revision No. 2'!C9+'Revision No. 3'!C9 -> 3472650 | D9: ='Amended ABG Allocation No. 1 '!D9+'Revision No. 2'!D9+'Revision No. 3'!D9 -> 120693 | E9: ='Original ABG Allocation'!E9+'Revision No. 1'!E9+'Revision No. 2'!E9+'Revision No. 3'!E9 -> 115200 | F9: ='Amended ABG Allocation No. 1 '!F9+'Revision No. 2'!F9+'Revision No. 3'!F9 -> 23968 | G9: ='Amended ABG Allocation No. 1 '!G9+'Revision No. 2'!G9+'Revision No. 3'!G9 -> 15815 | H9: ='Amended ABG Allocation No. 1 '!H9+'Revision No. 2'!H9+'Revision No. 3'!H9 -> 22039 | I9: ='Amended ABG Allocation No. 1 '!I9+'Revision No. 2'!I9+'Revision No. 3'!I9 -> 37277 | J9: 3807642
A10: 05 | B10: =+'Original ABG Allocation'!B10 -> INDIANA | C10: ='Amended ABG Allocation No. 1 '!C10+'Revision No. 2'!C10+'Revision No. 3'!C10 -> 1949787 | D10: ='Amended ABG Allocation No. 1 '!D10+'Revision No. 2'!D10+'Revision No. 3'!D10 -> 72332 | E10: ='Original ABG Allocation'!E10+'Revision No. 1'!E10+'Revision No. 2'!E10+'Revision No. 3'!E10 -> 65877 | F10: ='Amended ABG Allocation No. 1 '!F10+'Revision No. 2'!F10+'Revision No. 3'!F10 -> 51905 | G10: ='Amended ABG Allocation No. 1 '!G10+'Revision No. 2'!G10+'Revision No. 3'!G10 -> 10185 | H10: ='Amended ABG Allocation No. 1 '!H10+'Revision No. 2'!H10+'Revision No. 3'!H10 -> 12618 | I10: ='Amended ABG Allocation No. 1 '!I10+'Revision No. 2'!I10+'Revision No. 3'!I10 -> 26503 | J10: 2189207
A11: 06 | B11: =+'Original ABG Allocation'!B11 -> ALLEGHENY | C11: ='Amended ABG Allocation No. 1 '!C11+'Revision No. 2'!C11+'Revision No. 3'!C11 -> 29841874 | D11: ='Amended ABG Allocation No. 1 '!D11+'Revision No. 2'!D11+'Revision No. 3'!D11 -> 1024598 | E11: ='Original ABG Allocation'!E11+'Revision No. 1'!E11+'Revision No. 2'!E11+'Revision No. 3'!E11 -> 1027359 | F11: ='Amended ABG Allocation No. 1 '!F11+'Revision No. 2'!F11+'Revision No. 3'!F11 -> 419219 | G11: ='Amended ABG Allocation No. 1 '!G11+'Revision No. 2'!G11+'Revision No. 3'!G11 -> 107007 | H11: ='Amended ABG Allocation No. 1 '!H11+'Revision No. 2'!H11+'Revision No. 3'!H11 -> 158619 | I11: ='Amended ABG Allocation No. 1 '!I11+'Revision No. 2'!I11+'Revision No. 3'!I11 -> 189804 | J11: 32768480
A12: 07 | B12: =+'Original ABG Allocation'!B12 -> WESTMORELAND | C12: ='Amended ABG Allocation No. 1 '!C12+'Revision No. 2'!C12+'Revision No. 3'!C12 -> 7750368 | D12: ='Amended ABG Allocation No. 1 '!D12+'Revision No. 2'!D12+'Revision No. 3'!D12 -> 279704 | E12: ='Original ABG Allocation'!E12+'Revision No. 1'!E12+'Revision No. 2'!E12+'Revision No. 3'!E12 -> 249205 | F12: ='Amended ABG Allocation No. 1 '!F12+'Revision No. 2'!F12+'Revision No. 3'!F12 -> 123773 | G12: ='Amended ABG Allocation No. 1 '!G12+'Revision No. 2'!G12+'Revision No. 3'!G12 -> 33328 | H12: ='Amended ABG Allocation No. 1 '!H12+'Revision No. 2'!H12+'Revision No. 3'!H12 -> 47027 | I12: ='Amended ABG Allocation No. 1 '!I12+'Revision No. 2'!I12+'Revision No. 3'!I12 -> 66831 | J12: 8550236
A13: 08 | B13: =+'Original ABG Allocation'!B13 -> WASH/FAY/GREENE | C13: ='Amended ABG Allocation No. 1 '!C13+'Revision No. 2'!C13+'Revision No. 3'!C13 -> 10511355 | D13: ='Amended ABG Allocation No. 1 '!D13+'Revision No. 2'!D13+'Revision No. 3'!D13 -> 393598 | E13: ='Original ABG Allocation'!E13+'Revision No. 1'!E13+'Revision No. 2'!E13+'Revision No. 3'!E13 -> 534972 | F13: ='Amended ABG Allocation No. 1 '!F13+'Revision No. 2'!F13+'Revision No. 3'!F13 -> 354500 | G13: ='Amended ABG Allocation No. 1 '!G13+'Revision No. 2'!G13+'Revision No. 3'!G13 -> 39938 | H13: ='Amended ABG Allocation No. 1 '!H13+'Revision No. 2'!H13+'Revision No. 3'!H13 -> 68098 | I13: ='Amended ABG Allocation No. 1 '!I13+'Revision No. 2'!I13+'Revision No. 3'!I13 -> 80930 | J13: 11983391
A14: 09 | B14: =+'Original ABG Allocation'!B14 -> SOMERSET | C14: ='Amended ABG Allocation No. 1 '!C14+'Revision No. 2'!C14+'Revision No. 3'!C14 -> 2326690 | D14: ='Amended ABG Allocation No. 1 '!D14+'Revision No. 2'!D14+'Revision No. 3'!D14 -> 81631 | E14: ='Original ABG Allocation'!E14+'Revision No. 1'!E14+'Revision No. 2'!E14+'Revision No. 3'!E14 -> 93246 | F14: ='Amended ABG Allocation No. 1 '!F14+'Revision No. 2'!F14+'Revision No. 3'!F14 -> 72579 | G14: ='Amended ABG Allocation No. 1 '!G14+'Revision No. 2'!G14+'Revision No. 3'!G14 -> 11799 | H14: ='Amended ABG Allocation No. 1 '!H14+'Revision No. 2'!H14+'Revision No. 3'!H14 -> 14877 | I14: ='Amended ABG Allocation No. 1 '!I14+'Revision No. 2'!I14+'Revision No. 3'!I14 -> 27562 | J14: 2628384
A15: 10 | B15: =+'Original ABG Allocation'!B15 -> CAMBRIA | C15: ='Amended ABG Allocation No. 1 '!C15+'Revision No. 2'!C15+'Revision No. 3'!C15 -> 4034624 | D15: ='Amended ABG Allocation No. 1 '!D15+'Revision No. 2'!D15+'Revision No. 3'!D15 -> 140343 | E15: ='Original ABG Allocation'!E15+'Revision No. 1'!E15+'Revision No. 2'!E15+'Revision No. 3'!E15 -> 133780 | F15: ='Amended ABG Allocation No. 1 '!F15+'Revision No. 2'!F15+'Revision No. 3'!F15 -> 178185 | G15: ='Amended ABG Allocation No. 1 '!G15+'Revision No. 2'!G15+'Revision No. 3'!G15 -> 17087 | H15: ='Amended ABG Allocation No. 1 '!H15+'Revision No. 2'!H15+'Revision No. 3'!H15 -> 25081 | I15: ='Amended ABG Allocation No. 1 '!I15+'Revision No. 2'!I15+'Revision No. 3'!I15 -> 37762 | J15: 4566862
A16: 11 | B16: =+'Original ABG Allocation'!B16 -> BLAIR | C16: ='Amended ABG Allocation No. 1 '!C16+'Revision No. 2'!C16+'Revision No. 3'!C16 -> 2763377 | D16: ='Amended ABG Allocation No. 1 '!D16+'Revision No. 2'!D16+'Revision No. 3'!D16 -> 114081 | E16: ='Original ABG Allocation'!E16+'Revision No. 1'!E16+'Revision No. 2'!E16+'Revision No. 3'!E16 -> 109683 | F16: ='Amended ABG Allocation No. 1 '!F16+'Revision No. 2'!F16+'Revision No. 3'!F16 -> 118873 | G16: ='Amended ABG Allocation No. 1 '!G16+'Revision No. 2'!G16+'Revision No. 3'!G16 -> 11735 | H16: ='Amended ABG Allocation No. 1 '!H16+'Revision No. 2'!H16+'Revision No. 3'!H16 -> 17034 | I16: ='Amended ABG Allocation No. 1 '!I16+'Revision No. 2'!I16+'Revision No. 3'!I16 -> 30296 | J16: 3165079
A17: 12 | B17: =+'Original ABG Allocation'!B17 -> BED/FULT/HUNT | C17: ='Amended ABG Allocation No. 1 '!C17+'Revision No. 2'!C17+'Revision No. 3'!C17 -> 3121983 | D17: ='Amended ABG Allocation No. 1 '!D17+'Revision No. 2'!D17+'Revision No. 3'!D17 -> 120022 | E17: ='Original ABG Allocation'!E17+'Revision No. 1'!E17+'Revision No. 2'!E17+'Revision No. 3'!E17 -> 106084 | F17: ='Amended ABG Allocation No. 1 '!F17+'Revision No. 2'!F17+'Revision No. 3'!F17 -> 66409 | G17: ='Amended ABG Allocation No. 1 '!G17+'Revision No. 2'!G17+'Revision No. 3'!G17 -> 14807 | H17: ='Amended ABG Allocation No. 1 '!H17+'Revision No. 2'!H17+'Revision No. 3'!H17 -> 19221 | I17: ='Amended ABG Allocation No. 1 '!I17+'Revision No. 2'!I17+'Revision No. 3'!I17 -> 37342 | J17: 3485868
A18: 13 | B18: =+'Original ABG Allocation'!B18 -> CENTRE | C18: ='Amended ABG Allocation No. 1 '!C18+'Revision No. 2'!C18+'Revision No. 3'!C18 -> 1381274 | D18: ='Amended ABG Allocation No. 1 '!D18+'Revision No. 2'!D18+'Revision No. 3'!D18 -> 45132 | E18: ='Original ABG Allocation'!E18+'Revision No. 1'!E18+'Revision No. 2'!E18+'Revision No. 3'!E18 -> 36131 | F18: ='Amended ABG Allocation No. 1 '!F18+'Revision No. 2'!F18+'Revision No. 3'!F18 -> 42135 | G18: ='Amended ABG Allocation No. 1 '!G18+'Revision No. 2'!G18+'Revision No. 3'!G18 -> 10000 | H18: ='Amended ABG Allocation No. 1 '!H18+'Revision No. 2'!H18+'Revision No. 3'!H18 -> 8909 | I18: ='Amended ABG Allocation No. 1 '!I18+'Revision No. 2'!I18+'Revision No. 3'!I18 -> 27428 | J18: 1551009
A19: 14 | B19: =+'Original ABG Allocation'!B19 -> LYCOM/CLINTON | C19: ='Amended ABG Allocation No. 1 '!C19+'Revision No. 2'!C19+'Revision No. 3'!C19 -> 3159609 | D19: ='Amended ABG Allocation No. 1 '!D19+'Revision No. 2'!D19+'Revision No. 3'!D19 -> 117392 | E19: ='Original ABG Allocation'!E19+'Revision No. 1'!E19+'Revision No. 2'!E19+'Revision No. 3'!E19 -> 98452 | F19: ='Amended ABG Allocation No. 1 '!F19+'Revision No. 2'!F19+'Revision No. 3'!F19 -> 80903 | G19: ='Amended ABG Allocation No. 1 '!G19+'Revision No. 2'!G19+'Revision No. 3'!G19 -> 16355 | H19: ='Amended ABG Allocation No. 1 '!H19+'Revision No. 2'!H19+'Revision No. 3'!H19 -> 18458 | I19: ='Amended ABG Allocation No. 1 '!I19+'Revision No. 2'!I19+'Revision No. 3'!I19 -> 38012 | J19: 3529181
A20: 15 | B20: =+'Original ABG Allocation'!B20 -> COLUM/MONT | C20: ='Amended ABG Allocation No. 1 '!C20+'Revision No. 2'!C20+'Revision No. 3'!C20 -> 1789613 | D20: ='Amended ABG Allocation No. 1 '!D20+'Revision No. 2'!D20+'Revision No. 3'!D20 -> 66474 | E20: ='Original ABG Allocation'!E20+'Revision No. 1'!E20+'Revision No. 2'!E20+'Revision No. 3'!E20 -> 53326 | F20: ='Amended ABG Allocation No. 1 '!F20+'Revision No. 2'!F20+'Revision No. 3'!F20 -> 26259 | G20: ='Amended ABG Allocation No. 1 '!G20+'Revision No. 2'!G20+'Revision No. 3'!G20 -> 10000 | H20: ='Amended ABG Allocation No. 1 '!H20+'Revision No. 2'!H20+'Revision No. 3'!H20 -> 10126 | I20: ='Amended ABG Allocation No. 1 '!I20+'Revision No. 2'!I20+'Revision No. 3'!I20 -> 25338 | J20: 1981136
A21: 16 | B21: =+'Original ABG Allocation'!B21 -> NORTHUMBERLND | C21: ='Amended ABG Allocation No. 1 '!C21+'Revision No. 2'!C21+'Revision No. 3'!C21 -> 2955045 | D21: ='Amended ABG Allocation No. 1 '!D21+'Revision No. 2'!D21+'Revision No. 3'!D21 -> 122953 | E21: ='Original ABG Allocation'!E21+'Revision No. 1'!E21+'Revision No. 2'!E21+'Revision No. 3'!E21 -> 109123 | F21: ='Amended ABG Allocation No. 1 '!F21+'Revision No. 2'!F21+'Revision No. 3'!F21 -> 38517 | G21: ='Amended ABG Allocation No. 1 '!G21+'Revision No. 2'!G21+'Revision No. 3'!G21 -> 11327 | H21: ='Amended ABG Allocation No. 1 '!H21+'Revision No. 2'!H21+'Revision No. 3'!H21 -> 17718 | I21: ='Amended ABG Allocation No. 1 '!I21+'Revision No. 2'!I21+'Revision No. 3'!I21 -> 27835 | J21: 3282518
A22: 17 | B22: =+'Original ABG Allocation'!B22 -> UNION/SNYDER | C22: ='Amended ABG Allocation No. 1 '!C22+'Revision No. 2'!C22+'Revision No. 3'!C22 -> 1295880 | D22: ='Amended ABG Allocation No. 1 '!D22+'Revision No. 2'!D22+'Revision No. 3'!D22 -> 41818 | E22: ='Original ABG Allocation'!E22+'Revision No. 1'!E22+'Revision No. 2'!E22+'Revision No. 3'!E22 -> 38788 | F22: ='Amended ABG Allocation No. 1 '!F22+'Revision No. 2'!F22+'Revision No. 3'!F22 -> 16745 | G22: ='Amended ABG Allocation No. 1 '!G22+'Revision No. 2'!G22+'Revision No. 3'!G22 -> 10000 | H22: ='Amended ABG Allocation No. 1 '!H22+'Revision No. 2'!H22+'Revision No. 3'!H22 -> 8635 | I22: ='Amended ABG Allocation No. 1 '!I22+'Revision No. 2'!I22+'Revision No. 3'!I22 -> 25178 | J22: 1437044
A23: 18 | B23: =+'Original ABG Allocation'!B23 -> MIFF/JUNIATA | C23: ='Amended ABG Allocation No. 1 '!C23+'Revision No. 2'!C23+'Revision No. 3'!C23 -> 1827966 | D23: ='Amended ABG Allocation No. 1 '!D23+'Revision No. 2'!D23+'Revision No. 3'!D23 -> 64859 | E23: ='Original ABG Allocation'!E23+'Revision No. 1'!E23+'Revision No. 2'!E23+'Revision No. 3'!E23 -> 74111 | F23: ='Amended ABG Allocation No. 1 '!F23+'Revision No. 2'!F23+'Revision No. 3'!F23 -> 44916 | G23: ='Amended ABG Allocation No. 1 '!G23+'Revision No. 2'!G23+'Revision No. 3'!G23 -> 10222 | H23: ='Amended ABG Allocation No. 1 '!H23+'Revision No. 2'!H23+'Revision No. 3'!H23 -> 11964 | I23: ='Amended ABG Allocation No. 1 '!I23+'Revision No. 2'!I23+'Revision No. 3'!I23 -> 25974 | J23: 2060012
A24: 19 | B24: =+'Original ABG Allocation'!B24 -> FRANKLIN | C24: ='Amended ABG Allocation No. 1 '!C24+'Revision No. 2'!C24+'Revision No. 3'!C24 -> 2436382 | D24: ='Amended ABG Allocation No. 1 '!D24+'Revision No. 2'!D24+'Revision No. 3'!D24 -> 83393 | E24: ='Original ABG Allocation'!E24+'Revision No. 1'!E24+'Revision No. 2'!E24+'Revision No. 3'!E24 -> 78131 | F24: ='Amended ABG Allocation No. 1 '!F24+'Revision No. 2'!F24+'Revision No. 3'!F24 -> 66539 | G24: ='Amended ABG Allocation No. 1 '!G24+'Revision No. 2'!G24+'Revision No. 3'!G24 -> 15528 | H24: ='Amended ABG Allocation No. 1 '!H24+'Revision No. 2'!H24+'Revision No. 3'!H24 -> 14543 | I24: ='Amended ABG Allocation No. 1 '!I24+'Revision No. 2'!I24+'Revision No. 3'!I24 -> 31873 | J24: 2726389
A25: 20 | B25: =+'Original ABG Allocation'!B25 -> ADAMS | C25: ='Amended ABG Allocation No. 1 '!C25+'Revision No. 2'!C25+'Revision No. 3'!C25 -> 1263446 | D25: ='Amended ABG Allocation No. 1 '!D25+'Revision No. 2'!D25+'Revision No. 3'!D25 -> 39383 | E25: ='Original ABG Allocation'!E25+'Revision No. 1'!E25+'Revision No. 2'!E25+'Revision No. 3'!E25 -> 32448 | F25: ='Amended ABG Allocation No. 1 '!F25+'Revision No. 2'!F25+'Revision No. 3'!F25 -> 29737 | G25: ='Amended ABG Allocation No. 1 '!G25+'Revision No. 2'!G25+'Revision No. 3'!G25 -> 10175 | H25: ='Amended ABG Allocation No. 1 '!H25+'Revision No. 2'!H25+'Revision No. 3'!H25 -> 7955 | I25: ='Amended ABG Allocation No. 1 '!I25+'Revision No. 2'!I25+'Revision No. 3'!I25 -> 29100 | J25: 1412244
A26: 21 | B26: =+'Original ABG Allocation'!B26 -> CUMBERLAND | C26: ='Amended ABG Allocation No. 1 '!C26+'Revision No. 2'!C26+'Revision No. 3'!C26 -> 2273659 | D26: ='Amended ABG Allocation No. 1 '!D26+'Revision No. 2'!D26+'Revision No. 3'!D26 -> 80733 | E26: ='Original ABG Allocation'!E26+'Revision No. 1'!E26+'Revision No. 2'!E26+'Revision No. 3'!E26 -> 57284 | F26: ='Amended ABG Allocation No. 1 '!F26+'Revision No. 2'!F26+'Revision No. 3'!F26 -> 21248 | G26: ='Amended ABG Allocation No. 1 '!G26+'Revision No. 2'!G26+'Revision No. 3'!G26 -> 17010 | H26: ='Amended ABG Allocation No. 1 '!H26+'Revision No. 2'!H26+'Revision No. 3'!H26 -> 9223 | I26: ='Amended ABG Allocation No. 1 '!I26+'Revision No. 2'!I26+'Revision No. 3'!I26 -> 38546 | J26: 2497703
A27: 22 | B27: =+'Original ABG Allocation'!B27 -> PERRY | C27: ='Amended ABG Allocation No. 1 '!C27+'Revision No. 2'!C27+'Revision No. 3'!C27 -> 767004 | D27: ='Amended ABG Allocation No. 1 '!D27+'Revision No. 2'!D27+'Revision No. 3'!D27 -> 25396 | E27: ='Original ABG Allocation'!E27+'Revision No. 1'!E27+'Revision No. 2'!E27+'Revision No. 3'!E27 -> 23988 | F27: ='Amended ABG Allocation No. 1 '!F27+'Revision No. 2'!F27+'Revision No. 3'!F27 -> 28967 | G27: ='Amended ABG Allocation No. 1 '!G27+'Revision No. 2'!G27+'Revision No. 3'!G27 -> 10000 | H27: ='Amended ABG Allocation No. 1 '!H27+'Revision No. 2'!H27+'Revision No. 3'!H27 -> 7923 | I27: ='Amended ABG Allocation No. 1 '!I27+'Revision No. 2'!I27+'Revision No. 3'!I27 -> 19102 | J27: 882380
A28: 23 | B28: =+'Original ABG Allocation'!B28 -> DAUPHIN | C28: ='Amended ABG Allocation No. 1 '!C28+'Revision No. 2'!C28+'Revision No. 3'!C28 -> 4488392 | D28: ='Amended ABG Allocation No. 1 '!D28+'Revision No. 2'!D28+'Revision No. 3'!D28 -> 171730 | E28: ='Original ABG Allocation'!E28+'Revision No. 1'!E28+'Revision No. 2'!E28+'Revision No. 3'!E28 -> 127675 | F28: ='Amended ABG Allocation No. 1 '!F28+'Revision No. 2'!F28+'Revision No. 3'!F28 -> 76056 | G28: ='Amended ABG Allocation No. 1 '!G28+'Revision No. 2'!G28+'Revision No. 3'!G28 -> 18822 | H28: ='Amended ABG Allocation No. 1 '!H28+'Revision No. 2'!H28+'Revision No. 3'!H28 -> 23922 | I28: ='Amended ABG Allocation No. 1 '!I28+'Revision No. 2'!I28+'Revision No. 3'!I28 -> 49986 | J28: 4956583
A29: 24 | B29: =+'Original ABG Allocation'!B29 -> LEBANON | C29: ='Amended ABG Allocation No. 1 '!C29+'Revision No. 2'!C29+'Revision No. 3'!C29 -> 1934714 | D29: ='Amended ABG Allocation No. 1 '!D29+'Revision No. 2'!D29+'Revision No. 3'!D29 -> 68543 | E29: ='Original ABG Allocation'!E29+'Revision No. 1'!E29+'Revision No. 2'!E29+'Revision No. 3'!E29 -> 56539 | F29: ='Amended ABG Allocation No. 1 '!F29+'Revision No. 2'!F29+'Revision No. 3'!F29 -> 40188 | G29: ='Amended ABG Allocation No. 1 '!G29+'Revision No. 2'!G29+'Revision No. 3'!G29 -> 11419 | H29: ='Amended ABG Allocation No. 1 '!H29+'Revision No. 2'!H29+'Revision No. 3'!H29 -> 9146 | I29: ='Amended ABG Allocation No. 1 '!I29+'Revision No. 2'!I29+'Revision No. 3'!I29 -> 28558 | J29: 2149107
A30: 25 | B30: =+'Original ABG Allocation'!B30 -> YORK | C30: ='Amended ABG Allocation No. 1 '!C30+'Revision No. 2'!C30+'Revision No. 3'!C30 -> 5364017 | D30: ='Amended ABG Allocation No. 1 '!D30+'Revision No. 2'!D30+'Revision No. 3'!D30 -> 199228 | E30: ='Original ABG Allocation'!E30+'Revision No. 1'!E30+'Revision No. 2'!E30+'Revision No. 3'!E30 -> 133054 | F30: ='Amended ABG Allocation No. 1 '!F30+'Revision No. 2'!F30+'Revision No. 3'!F30 -> 204767 | G30: ='Amended ABG Allocation No. 1 '!G30+'Revision No. 2'!G30+'Revision No. 3'!G30 -> 27448 | H30: ='Amended ABG Allocation No. 1 '!H30+'Revision No. 2'!H30+'Revision No. 3'!H30 -> 25017 | I30: ='Amended ABG Allocation No. 1 '!I30+'Revision No. 2'!I30+'Revision No. 3'!I30 -> 69151 | J30: 6022682
A31: 26 | B31: =+'Original ABG Allocation'!B31 -> LANCASTER | C31: ='Amended ABG Allocation No. 1 '!C31+'Revision No. 2'!C31+'Revision No. 3'!C31 -> 5609386 | D31: ='Amended ABG Allocation No. 1 '!D31+'Revision No. 2'!D31+'Revision No. 3'!D31 -> 198436 | E31: ='Original ABG Allocation'!E31+'Revision No. 1'!E31+'Revision No. 2'!E31+'Revision No. 3'!E31 -> 164965 | F31: ='Amended ABG Allocation No. 1 '!F31+'Revision No. 2'!F31+'Revision No. 3'!F31 -> 60963 | G31: ='Amended ABG Allocation No. 1 '!G31+'Revision No. 2'!G31+'Revision No. 3'!G31 -> 33008 | H31: ='Amended ABG Allocation No. 1 '!H31+'Revision No. 2'!H31+'Revision No. 3'!H31 -> 30859 | I31: ='Amended ABG Allocation No. 1 '!I31+'Revision No. 2'!I31+'Revision No. 3'!I31 -> 77387 | J31: 6175004
A32: 27 | B32: =+'Original ABG Allocation'!B32 -> CHESTER | C32: ='Amended ABG Allocation No. 1 '!C32+'Revision No. 2'!C32+'Revision No. 3'!C32 -> 3766491 | D32: ='Amended ABG Allocation No. 1 '!D32+'Revision No. 2'!D32+'Revision No. 3'!D32 -> 114753 | E32: ='Original ABG Allocation'!E32+'Revision No. 1'!E32+'Revision No. 2'!E32+'Revision No. 3'!E32 -> 74312 | F32: ='Amended ABG Allocation No. 1 '!F32+'Revision No. 2'!F32+'Revision No. 3'!F32 -> 65735 | G32: ='Amended ABG Allocation No. 1 '!G32+'Revision No. 2'!G32+'Revision No. 3'!G32 -> 25091 | H32: ='Amended ABG Allocation No. 1 '!H32+'Revision No. 2'!H32+'Revision No. 3'!H32 -> 14330 | I32: ='Amended ABG Allocation No. 1 '!I32+'Revision No. 2'!I32+'Revision No. 3'!I32 -> 59974 | J32: 4120686
A33: 28 | B33: =+'Original ABG Allocation'!B33 -> MONTGOMERY | C33: ='Amended ABG Allocation No. 1 '!C33+'Revision No. 2'!C33+'Revision No. 3'!C33 -> 8212898 | D33: ='Amended ABG Allocation No. 1 '!D33+'Revision No. 2'!D33+'Revision No. 3'!D33 -> 236029 | E33: ='Original ABG Allocation'!E33+'Revision No. 1'!E33+'Revision No. 2'!E33+'Revision No. 3'!E33 -> 238996 | F33: ='Amended ABG Allocation No. 1 '!F33+'Revision No. 2'!F33+'Revision No. 3'!F33 -> 222009 | G33: ='Amended ABG Allocation No. 1 '!G33+'Revision No. 2'!G33+'Revision No. 3'!G33 -> 47311 | H33: ='Amended ABG Allocation No. 1 '!H33+'Revision No. 2'!H33+'Revision No. 3'!H33 -> 27365 | I33: ='Amended ABG Allocation No. 1 '!I33+'Revision No. 2'!I33+'Revision No. 3'!I33 -> 101434 | J33: 9086042
A34: 29 | B34: =+'Original ABG Allocation'!B34 -> BUCKS | C34: ='Amended ABG Allocation No. 1 '!C34+'Revision No. 2'!C34+'Revision No. 3'!C34 -> 5247058 | D34: ='Amended ABG Allocation No. 1 '!D34+'Revision No. 2'!D34+'Revision No. 3'!D34 -> 206856 | E34: ='Original ABG Allocation'!E34+'Revision No. 1'!E34+'Revision No. 2'!E34+'Revision No. 3'!E34 -> 197793 | F34: ='Amended ABG Allocation No. 1 '!F34+'Revision No. 2'!F34+'Revision No. 3'!F34 -> 80421 | G34: ='Amended ABG Allocation No. 1 '!G34+'Revision No. 2'!G34+'Revision No. 3'!G34 -> 33291 | H34: ='Amended ABG Allocation No. 1 '!H34+'Revision No. 2'!H34+'Revision No. 3'!H34 -> 24480 | I34: ='Amended ABG Allocation No. 1 '!I34+'Revision No. 2'!I34+'Revision No. 3'!I34 -> 76281 | J34: 5866180
A35: 30 | B35: =+'Original ABG Allocation'!B35 -> DELAWARE | C35: ='Amended ABG Allocation No. 1 '!C35+'Revision No. 2'!C35+'Revision No. 3'!C35 -> 8091925 | D35: ='Amended ABG Allocation No. 1 '!D35+'Revision No. 2'!D35+'Revision No. 3'!D35 -> 278240 | E35: ='Original ABG Allocation'!E35+'Revision No. 1'!E35+'Revision No. 2'!E35+'Revision No. 3'!E35 -> 230814 | F35: ='Amended ABG Allocation No. 1 '!F35+'Revision No. 2'!F35+'Revision No. 3'!F35 -> 92075 | G35: ='Amended ABG Allocation No. 1 '!G35+'Revision No. 2'!G35+'Revision No. 3'!G35 -> 35954 | H35: ='Amended ABG Allocation No. 1 '!H35+'Revision No. 2'!H35+'Revision No. 3'!H35 -> 44239 | I35: ='Amended ABG Allocation No. 1 '!I35+'Revision No. 2'!I35+'Revision No. 3'!I35 -> 82487 | J35: 8855734
A36: 31 | B36: =+'Original ABG Allocation'!B36 -> PHILADELPHIA | C36: ='Amended ABG Allocation No. 1 '!C36+'Revision No. 2'!C36+'Revision No. 3'!C36 -> 56025883 | D36: ='Amended ABG Allocation No. 1 '!D36+'Revision No. 2'!D36+'Revision No. 3'!D36 -> 1702584 | E36: ='Original ABG Allocation'!E36+'Revision No. 1'!E36+'Revision No. 2'!E36+'Revision No. 3'!E36 -> 2431642 | F36: ='Amended ABG Allocation No. 1 '!F36+'Revision No. 2'!F36+'Revision No. 3'!F36 -> 803599 | G36: ='Amended ABG Allocation No. 1 '!G36+'Revision No. 2'!G36+'Revision No. 3'!G36 -> 107007 | H36: ='Amended ABG Allocation No. 1 '!H36+'Revision No. 2'!H36+'Revision No. 3'!H36 -> 307815 | I36: ='Amended ABG Allocation No. 1 '!I36+'Revision No. 2'!I36+'Revision No. 3'!I36 -> 375238 | J36: 61753768
A37: 32 | B37: =+'Original ABG Allocation'!B37 -> BERKS | C37: ='Amended ABG Allocation No. 1 '!C37+'Revision No. 2'!C37+'Revision No. 3'!C37 -> 6004484 | D37: ='Amended ABG Allocation No. 1 '!D37+'Revision No. 2'!D37+'Revision No. 3'!D37 -> 235166 | E37: ='Original ABG Allocation'!E37+'Revision No. 1'!E37+'Revision No. 2'!E37+'Revision No. 3'!E37 -> 262043 | F37: ='Amended ABG Allocation No. 1 '!F37+'Revision No. 2'!F37+'Revision No. 3'!F37 -> 158821 | G37: ='Amended ABG Allocation No. 1 '!G37+'Revision No. 2'!G37+'Revision No. 3'!G37 -> 29191 | H37: ='Amended ABG Allocation No. 1 '!H37+'Revision No. 2'!H37+'Revision No. 3'!H37 -> 32781 | I37: ='Amended ABG Allocation No. 1 '!I37+'Revision No. 2'!I37+'Revision No. 3'!I37 -> 70382 | J37: 6792868
A38: 33 | B38: =+'Original ABG Allocation'!B38 -> LEHIGH | C38: ='Amended ABG Allocation No. 1 '!C38+'Revision No. 2'!C38+'Revision No. 3'!C38 -> 4654532 | D38: ='Amended ABG Allocation No. 1 '!D38+'Revision No. 2'!D38+'Revision No. 3'!D38 -> 172458 | E38: ='Original ABG Allocation'!E38+'Revision No. 1'!E38+'Revision No. 2'!E38+'Revision No. 3'!E38 -> 119971 | F38: ='Amended ABG Allocation No. 1 '!F38+'Revision No. 2'!F38+'Revision No. 3'!F38 -> 42793 | G38: ='Amended ABG Allocation No. 1 '!G38+'Revision No. 2'!G38+'Revision No. 3'!G38 -> 21310 | H38: ='Amended ABG Allocation No. 1 '!H38+'Revision No. 2'!H38+'Revision No. 3'!H38 -> 17348 | I38: ='Amended ABG Allocation No. 1 '!I38+'Revision No. 2'!I38+'Revision No. 3'!I38 -> 57889 | J38: =SUM(C38:I38) -> 5086301
A39: 34 | B39: =+'Original ABG Allocation'!B39 -> NORTHAMPTON | C39: ='Amended ABG Allocation No. 1 '!C39+'Revision No. 2'!C39+'Revision No. 3'!C39 -> 4087354 | D39: ='Amended ABG Allocation No. 1 '!D39+'Revision No. 2'!D39+'Revision No. 3'!D39 -> 153486 | E39: ='Original ABG Allocation'!E39+'Revision No. 1'!E39+'Revision No. 2'!E39+'Revision No. 3'!E39 -> 102099 | F39: ='Amended ABG Allocation No. 1 '!F39+'Revision No. 2'!F39+'Revision No. 3'!F39 -> 73789 | G39: ='Amended ABG Allocation No. 1 '!G39+'Revision No. 2'!G39+'Revision No. 3'!G39 -> 19506 | H39: ='Amended ABG Allocation No. 1 '!H39+'Revision No. 2'!H39+'Revision No. 3'!H39 -> 19316 | I39: ='Amended ABG Allocation No. 1 '!I39+'Revision No. 2'!I39+'Revision No. 3'!I39 -> 46413 | J39: 4501963
A40: 35 | B40: =+'Original ABG Allocation'!B40 -> PIKE | C40: ='Amended ABG Allocation No. 1 '!C40+'Revision No. 2'!C40+'Revision No. 3'!C40 -> 714453 | D40: ='Amended ABG Allocation No. 1 '!D40+'Revision No. 2'!D40+'Revision No. 3'!D40 -> 25399 | E40: ='Original ABG Allocation'!E40+'Revision No. 1'!E40+'Revision No. 2'!E40+'Revision No. 3'!E40 -> 20229 | F40: ='Amended ABG Allocation No. 1 '!F40+'Revision No. 2'!F40+'Revision No. 3'!F40 -> 20687 | G40: ='Amended ABG Allocation No. 1 '!G40+'Revision No. 2'!G40+'Revision No. 3'!G40 -> 10000 | H40: ='Amended ABG Allocation No. 1 '!H40+'Revision No. 2'!H40+'Revision No. 3'!H40 -> 7908 | I40: ='Amended ABG Allocation No. 1 '!I40+'Revision No. 2'!I40+'Revision No. 3'!I40 -> 24546 | J40: 823222
A41: 36 | B41: =+'Original ABG Allocation'!B41 -> B/S/S/T | C41: ='Amended ABG Allocation No. 1 '!C41+'Revision No. 2'!C41+'Revision No. 3'!C41 -> 3993199 | D41: ='Amended ABG Allocation No. 1 '!D41+'Revision No. 2'!D41+'Revision No. 3'!D41 -> 141181 | E41: ='Original ABG Allocation'!E41+'Revision No. 1'!E41+'Revision No. 2'!E41+'Revision No. 3'!E41 -> 136248 | F41: ='Amended ABG Allocation No. 1 '!F41+'Revision No. 2'!F41+'Revision No. 3'!F41 -> 98527 | G41: ='Amended ABG Allocation No. 1 '!G41+'Revision No. 2'!G41+'Revision No. 3'!G41 -> 20201 | H41: ='Amended ABG Allocation No. 1 '!H41+'Revision No. 2'!H41+'Revision No. 3'!H41 -> 24698 | I41: ='Amended ABG Allocation No. 1 '!I41+'Revision No. 2'!I41+'Revision No. 3'!I41 -> 48433 | J41: 4462487
A42: 37 | B42: =+'Original ABG Allocation'!B42 -> LUZERNE/WYOMING | C42: ='Amended ABG Allocation No. 1 '!C42+'Revision No. 2'!C42+'Revision No. 3'!C42 -> 9360224 | D42: ='Amended ABG Allocation No. 1 '!D42+'Revision No. 2'!D42+'Revision No. 3'!D42 -> 343992 | E42: ='Original ABG Allocation'!E42+'Revision No. 1'!E42+'Revision No. 2'!E42+'Revision No. 3'!E42 -> 282547 | F42: ='Amended ABG Allocation No. 1 '!F42+'Revision No. 2'!F42+'Revision No. 3'!F42 -> 219979 | G42: ='Amended ABG Allocation No. 1 '!G42+'Revision No. 2'!G42+'Revision No. 3'!G42 -> 31720 | H42: ='Amended ABG Allocation No. 1 '!H42+'Revision No. 2'!H42+'Revision No. 3'!H42 -> 54157 | I42: ='Amended ABG Allocation No. 1 '!I42+'Revision No. 2'!I42+'Revision No. 3'!I42 -> 62651 | J42: 10355270
A43: 38 | B43: =+'Original ABG Allocation'!B43 -> LACKAWANNA | C43: ='Amended ABG Allocation No. 1 '!C43+'Revision No. 2'!C43+'Revision No. 3'!C43 -> 5223495 | D43: ='Amended ABG Allocation No. 1 '!D43+'Revision No. 2'!D43+'Revision No. 3'!D43 -> 202907 | E43: ='Original ABG Allocation'!E43+'Revision No. 1'!E43+'Revision No. 2'!E43+'Revision No. 3'!E43 -> 231866 | F43: ='Amended ABG Allocation No. 1 '!F43+'Revision No. 2'!F43+'Revision No. 3'!F43 -> 124839 | G43: ='Amended ABG Allocation No. 1 '!G43+'Revision No. 2'!G43+'Revision No. 3'!G43 -> 18501 | H43: ='Amended ABG Allocation No. 1 '!H43+'Revision No. 2'!H43+'Revision No. 3'!H43 -> 33436 | I43: ='Amended ABG Allocation No. 1 '!I43+'Revision No. 2'!I43+'Revision No. 3'!I43 -> 42257 | J43: 5877301
A44: 39 | B44: =+'Original ABG Allocation'!B44 -> CARBON | C44: ='Amended ABG Allocation No. 1 '!C44+'Revision No. 2'!C44+'Revision No. 3'!C44 -> 1185509 | D44: ='Amended ABG Allocation No. 1 '!D44+'Revision No. 2'!D44+'Revision No. 3'!D44 -> 44213 | E44: ='Original ABG Allocation'!E44+'Revision No. 1'!E44+'Revision No. 2'!E44+'Revision No. 3'!E44 -> 39403 | F44: ='Amended ABG Allocation No. 1 '!F44+'Revision No. 2'!F44+'Revision No. 3'!F44 -> 30903 | G44: ='Amended ABG Allocation No. 1 '!G44+'Revision No. 2'!G44+'Revision No. 3'!G44 -> 10000 | H44: ='Amended ABG Allocation No. 1 '!H44+'Revision No. 2'!H44+'Revision No. 3'!H44 -> 7982 | I44: ='Amended ABG Allocation No. 1 '!I44+'Revision No. 2'!I44+'Revision No. 3'!I44 -> 23256 | J44: 1341266
A45: 40 | B45: =+'Original ABG Allocation'!B45 -> SCHUYLKILL | C45: ='Amended ABG Allocation No. 1 '!C45+'Revision No. 2'!C45+'Revision No. 3'!C45 -> 4568989 | D45: ='Amended ABG Allocation No. 1 '!D45+'Revision No. 2'!D45+'Revision No. 3'!D45 -> 181495 | E45: ='Original ABG Allocation'!E45+'Revision No. 1'!E45+'Revision No. 2'!E45+'Revision No. 3'!E45 -> 156510 | F45: ='Amended ABG Allocation No. 1 '!F45+'Revision No. 2'!F45+'Revision No. 3'!F45 -> 56511 | G45: ='Amended ABG Allocation No. 1 '!G45+'Revision No. 2'!G45+'Revision No. 3'!G45 -> 18478 | H45: ='Amended ABG Allocation No. 1 '!H45+'Revision No. 2'!H45+'Revision No. 3'!H45 -> 29322 | I45: ='Amended ABG Allocation No. 1 '!I45+'Revision No. 2'!I45+'Revision No. 3'!I45 -> 42433 | J45: 5053738
A46: 41 | B46: =+'Original ABG Allocation'!B46 -> CLEARFIELD | C46: ='Amended ABG Allocation No. 1 '!C46+'Revision No. 2'!C46+'Revision No. 3'!C46 -> 2229583 | D46: ='Amended ABG Allocation No. 1 '!D46+'Revision No. 2'!D46+'Revision No. 3'!D46 -> 79676 | E46: ='Original ABG Allocation'!E46+'Revision No. 1'!E46+'Revision No. 2'!E46+'Revision No. 3'!E46 -> 76522 | F46: ='Amended ABG Allocation No. 1 '!F46+'Revision No. 2'!F46+'Revision No. 3'!F46 -> 110249 | G46: ='Amended ABG Allocation No. 1 '!G46+'Revision No. 2'!G46+'Revision No. 3'!G46 -> 11341 | H46: ='Amended ABG Allocation No. 1 '!H46+'Revision No. 2'!H46+'Revision No. 3'!H46 -> 14212 | I46: ='Amended ABG Allocation No. 1 '!I46+'Revision No. 2'!I46+'Revision No. 3'!I46 -> 28506 | J46: 2550089
A47: 42 | B47: =+'Original ABG Allocation'!B47 -> JEFFERSON | C47: ='Amended ABG Allocation No. 1 '!C47+'Revision No. 2'!C47+'Revision No. 3'!C47 -> 1281851 | D47: ='Amended ABG Allocation No. 1 '!D47+'Revision No. 2'!D47+'Revision No. 3'!D47 -> 51609 | E47: ='Original ABG Allocation'!E47+'Revision No. 1'!E47+'Revision No. 2'!E47+'Revision No. 3'!E47 -> 59466 | F47: ='Amended ABG Allocation No. 1 '!F47+'Revision No. 2'!F47+'Revision No. 3'!F47 -> 28079 | G47: ='Amended ABG Allocation No. 1 '!G47+'Revision No. 2'!G47+'Revision No. 3'!G47 -> 10000 | H47: ='Amended ABG Allocation No. 1 '!H47+'Revision No. 2'!H47+'Revision No. 3'!H47 -> 8874 | I47: ='Amended ABG Allocation No. 1 '!I47+'Revision No. 2'!I47+'Revision No. 3'!I47 -> 19041 | J47: 1458920
A48: 43 | B48: =+'Original ABG Allocation'!B48 -> FOREST/WARREN | C48: ='Amended ABG Allocation No. 1 '!C48+'Revision No. 2'!C48+'Revision No. 3'!C48 -> 1026619 | D48: ='Amended ABG Allocation No. 1 '!D48+'Revision No. 2'!D48+'Revision No. 3'!D48 -> 34269 | E48: ='Original ABG Allocation'!E48+'Revision No. 1'!E48+'Revision No. 2'!E48+'Revision No. 3'!E48 -> 30176 | F48: ='Amended ABG Allocation No. 1 '!F48+'Revision No. 2'!F48+'Revision No. 3'!F48 -> 27753 | G48: ='Amended ABG Allocation No. 1 '!G48+'Revision No. 2'!G48+'Revision No. 3'!G48 -> 10000 | H48: ='Amended ABG Allocation No. 1 '!H48+'Revision No. 2'!H48+'Revision No. 3'!H48 -> 7946 | I48: ='Amended ABG Allocation No. 1 '!I48+'Revision No. 2'!I48+'Revision No. 3'!I48 -> 21068 | J48: 1157831
A49: 44 | B49: =+'Original ABG Allocation'!B49 -> VENANGO | C49: ='Amended ABG Allocation No. 1 '!C49+'Revision No. 2'!C49+'Revision No. 3'!C49 -> 1267563 | D49: ='Amended ABG Allocation No. 1 '!D49+'Revision No. 2'!D49+'Revision No. 3'!D49 -> 48574 | E49: ='Original ABG Allocation'!E49+'Revision No. 1'!E49+'Revision No. 2'!E49+'Revision No. 3'!E49 -> 55242 | F49: ='Amended ABG Allocation No. 1 '!F49+'Revision No. 2'!F49+'Revision No. 3'!F49 -> 36107 | G49: ='Amended ABG Allocation No. 1 '!G49+'Revision No. 2'!G49+'Revision No. 3'!G49 -> 10000 | H49: ='Amended ABG Allocation No. 1 '!H49+'Revision No. 2'!H49+'Revision No. 3'!H49 -> 8569 | I49: ='Amended ABG Allocation No. 1 '!I49+'Revision No. 2'!I49+'Revision No. 3'!I49 -> 21935 | J49: 1447990
A50: 45 | B50: =+'Original ABG Allocation'!B50 -> ARMSTRONG | C50: ='Amended ABG Allocation No. 1 '!C50+'Revision No. 2'!C50+'Revision No. 3'!C50 -> 1994604 | D50: ='Amended ABG Allocation No. 1 '!D50+'Revision No. 2'!D50+'Revision No. 3'!D50 -> 75493 | E50: ='Original ABG Allocation'!E50+'Revision No. 1'!E50+'Revision No. 2'!E50+'Revision No. 3'!E50 -> 62026 | F50: ='Amended ABG Allocation No. 1 '!F50+'Revision No. 2'!F50+'Revision No. 3'!F50 -> 71631 | G50: ='Amended ABG Allocation No. 1 '!G50+'Revision No. 2'!G50+'Revision No. 3'!G50 -> 10719 | H50: ='Amended ABG Allocation No. 1 '!H50+'Revision No. 2'!H50+'Revision No. 3'!H50 -> 12115 | I50: ='Amended ABG Allocation No. 1 '!I50+'Revision No. 2'!I50+'Revision No. 3'!I50 -> 26308 | J50: 2252896
A51: 46 | B51: =+'Original ABG Allocation'!B51 -> LAWRENCE | C51: ='Amended ABG Allocation No. 1 '!C51+'Revision No. 2'!C51+'Revision No. 3'!C51 -> 2116483 | D51: ='Amended ABG Allocation No. 1 '!D51+'Revision No. 2'!D51+'Revision No. 3'!D51 -> 79407 | E51: ='Original ABG Allocation'!E51+'Revision No. 1'!E51+'Revision No. 2'!E51+'Revision No. 3'!E51 -> 65793 | F51: ='Amended ABG Allocation No. 1 '!F51+'Revision No. 2'!F51+'Revision No. 3'!F51 -> 43055 | G51: ='Amended ABG Allocation No. 1 '!G51+'Revision No. 2'!G51+'Revision No. 3'!G51 -> 10341 | H51: ='Amended ABG Allocation No. 1 '!H51+'Revision No. 2'!H51+'Revision No. 3'!H51 -> 12981 | I51: ='Amended ABG Allocation No. 1 '!I51+'Revision No. 2'!I51+'Revision No. 3'!I51 -> 26446 | J51: 2354506
A52: 47 | B52: =+'Original ABG Allocation'!B52 -> MERCER | C52: ='Amended ABG Allocation No. 1 '!C52+'Revision No. 2'!C52+'Revision No. 3'!C52 -> 2322893 | D52: ='Amended ABG Allocation No. 1 '!D52+'Revision No. 2'!D52+'Revision No. 3'!D52 -> 80316 | E52: ='Original ABG Allocation'!E52+'Revision No. 1'!E52+'Revision No. 2'!E52+'Revision No. 3'!E52 -> 77331 | F52: ='Amended ABG Allocation No. 1 '!F52+'Revision No. 2'!F52+'Revision No. 3'!F52 -> 41143 | G52: ='Amended ABG Allocation No. 1 '!G52+'Revision No. 2'!G52+'Revision No. 3'!G52 -> 13302 | H52: ='Amended ABG Allocation No. 1 '!H52+'Revision No. 2'!H52+'Revision No. 3'!H52 -> 14661 | I52: ='Amended ABG Allocation No. 1 '!I52+'Revision No. 2'!I52+'Revision No. 3'!I52 -> 31299 | J52: 2580945
A53: 48 | B53: =+'Original ABG Allocation'!B53 -> MONROE | C53: ='Amended ABG Allocation No. 1 '!C53+'Revision No. 2'!C53+'Revision No. 3'!C53 -> 1655963 | D53: ='Amended ABG Allocation No. 1 '!D53+'Revision No. 2'!D53+'Revision No. 3'!D53 -> 46961 | E53: ='Original ABG Allocation'!E53+'Revision No. 1'!E53+'Revision No. 2'!E53+'Revision No. 3'!E53 -> 65227 | F53: ='Amended ABG Allocation No. 1 '!F53+'Revision No. 2'!F53+'Revision No. 3'!F53 -> 37809 | G53: ='Amended ABG Allocation No. 1 '!G53+'Revision No. 2'!G53+'Revision No. 3'!G53 -> 13317 | H53: ='Amended ABG Allocation No. 1 '!H53+'Revision No. 2'!H53+'Revision No. 3'!H53 -> 8435 | I53: ='Amended ABG Allocation No. 1 '!I53+'Revision No. 2'!I53+'Revision No. 3'!I53 -> 42174 | J53: 1869886
A54: 49 | B54: =+'Original ABG Allocation'!B54 -> CLARION | C54: ='Amended ABG Allocation No. 1 '!C54+'Revision No. 2'!C54+'Revision No. 3'!C54 -> 954686 | D54: ='Amended ABG Allocation No. 1 '!D54+'Revision No. 2'!D54+'Revision No. 3'!D54 -> 32868 | E54: ='Original ABG Allocation'!E54+'Revision No. 1'!E54+'Revision No. 2'!E54+'Revision No. 3'!E54 -> 43252 | F54: ='Amended ABG Allocation No. 1 '!F54+'Revision No. 2'!F54+'Revision No. 3'!F54 -> 29696 | G54: ='Amended ABG Allocation No. 1 '!G54+'Revision No. 2'!G54+'Revision No. 3'!G54 -> 10000 | H54: ='Amended ABG Allocation No. 1 '!H54+'Revision No. 2'!H54+'Revision No. 3'!H54 -> 7961 | I54: ='Amended ABG Allocation No. 1 '!I54+'Revision No. 2'!I54+'Revision No. 3'!I54 -> 18749 | J54: 1097212
A55: 50 | B55: =+'Original ABG Allocation'!B55 -> BUTLER | C55: ='Amended ABG Allocation No. 1 '!C55+'Revision No. 2'!C55+'Revision No. 3'!C55 -> 2546870 | D55: ='Amended ABG Allocation No. 1 '!D55+'Revision No. 2'!D55+'Revision No. 3'!D55 -> 104331 | E55: ='Original ABG Allocation'!E55+'Revision No. 1'!E55+'Revision No. 2'!E55+'Revision No. 3'!E55 -> 112372 | F55: ='Amended ABG Allocation No. 1 '!F55+'Revision No. 2'!F55+'Revision No. 3'!F55 -> 40783 | G55: ='Amended ABG Allocation No. 1 '!G55+'Revision No. 2'!G55+'Revision No. 3'!G55 -> 16742 | H55: ='Amended ABG Allocation No. 1 '!H55+'Revision No. 2'!H55+'Revision No. 3'!H55 -> 14150 | I55: ='Amended ABG Allocation No. 1 '!I55+'Revision No. 2'!I55+'Revision No. 3'!I55 -> 38611 | J55: 2873859
A56: 51 | B56: =+'Original ABG Allocation'!B56 -> POTTER | C56: ='Amended ABG Allocation No. 1 '!C56+'Revision No. 2'!C56+'Revision No. 3'!C56 -> 589962 | D56: ='Amended ABG Allocation No. 1 '!D56+'Revision No. 2'!D56+'Revision No. 3'!D56 -> 25400 | E56: ='Original ABG Allocation'!E56+'Revision No. 1'!E56+'Revision No. 2'!E56+'Revision No. 3'!E56 -> 20017 | F56: ='Amended ABG Allocation No. 1 '!F56+'Revision No. 2'!F56+'Revision No. 3'!F56 -> 14811 | G56: ='Amended ABG Allocation No. 1 '!G56+'Revision No. 2'!G56+'Revision No. 3'!G56 -> 10000 | H56: ='Amended ABG Allocation No. 1 '!H56+'Revision No. 2'!H56+'Revision No. 3'!H56 -> 7905 | I56: ='Amended ABG Allocation No. 1 '!I56+'Revision No. 2'!I56+'Revision No. 3'!I56 -> 13351 | J56: 681446
A57: 52 | B57: =+'Original ABG Allocation'!B57 -> WAYNE | C57: ='Amended ABG Allocation No. 1 '!C57+'Revision No. 2'!C57+'Revision No. 3'!C57 -> 1178872 | D57: ='Amended ABG Allocation No. 1 '!D57+'Revision No. 2'!D57+'Revision No. 3'!D57 -> 35500 | E57: ='Original ABG Allocation'!E57+'Revision No. 1'!E57+'Revision No. 2'!E57+'Revision No. 3'!E57 -> 38682 | F57: ='Amended ABG Allocation No. 1 '!F57+'Revision No. 2'!F57+'Revision No. 3'!F57 -> 55047 | G57: ='Amended ABG Allocation No. 1 '!G57+'Revision No. 2'!G57+'Revision No. 3'!G57 -> 10000 | H57: ='Amended ABG Allocation No. 1 '!H57+'Revision No. 2'!H57+'Revision No. 3'!H57 -> 8635 | I57: ='Amended ABG Allocation No. 1 '!I57+'Revision No. 2'!I57+'Revision No. 3'!I57 -> 22788 | J57: 1349524
B58: TOTALS | C58: =SUM(C6:C57) -> 251275475 | D58: 8761000 | E58: 9009971 | F58: 4963443 | G58: 1078348 | H58: 1412033 | I58: 2576957 | J58: 279077227

Sheet Regular BG
A1: PDA Allocation Model-
A2: =+'Original ABG Allocation'!A3 -> FY 2022-23
C4: COOPERATIVE AGREEMENT | I4: CHANGE NO. 1 | O4: CHANGE NO. 2 | V4: CHANGE NO. 3
F5: Protective | L5: Protective | M5: Increase/ | R5: Protection | T5: increase/ | Y5: PROTECTIVE | AA5: INCREASE/
C6: PENNCARE | D6: Title III | E6: Title VII | F6: Services | G6: TOTAL | I6: PENNCARE | J6: Title III | K6: Title VII | L6: Services | M6: (Decrease) | N6: TOTAL | O6: PENNCARE | P6: TITLE III | Q6: TITLE VII | R6: Services | S6: TOTAL | T6: (Decrease) | V6: PENNCARE | W6: TITLE III | X6: TITLE VII | Y6: SERVICES | Z6: TOTAL | AA6: (DECREASE)
A7: =+'Original ABG Allocation'!A6 -> 01 | B7: =+'Original ABG Allocation'!B6 -> ERIE | C7: 3689745 | D7: 683888 | E7: 12390 | F7: 25575 | G7: =SUM(C7:F7) -> 4411598 | I7: 0 | L7: 0 | M7: =SUM(I7:L7) -> 0 | N7: =G7+I7+J7+K7+L7 -> 4411598 | O7: 0 | P7: 0 | Q7: 0 | R7: 0 | S7: =N7+O7+P7+R7 -> 4411598 | T7: =S7-N7 -> 0 | V7: 0 | W7: 0 | X7: 0 | Y7: 0 | Z7: =S7+V7+W7+Y7 -> 4411598 | AA7: =Z7-S7 -> 0
A8: =+'Original ABG Allocation'!A7 -> 02 | B8: =+'Original ABG Allocation'!B7 -> CRAWFORD | C8: 1612477 | D8: 516039 | E8: 5950 | F8: 3379 | G8: 2137845 | I8: 0 | L8: 0 | M8: =SUM(I8:L8) -> 0 | N8: =G8+I8+J8+K8+L8 -> 2137845 | O8: 0 | P8: 0 | Q8: 0 | R8: 0 | S8: 2137845 | T8: 0 | V8: 0 | W8: 0 | X8: 0 | Y8: 0 | Z8: =S8+V8+W8+Y8 -> 2137845 | AA8: =Z8-S8 -> 0
A9: =+'Original ABG Allocation'!A8 -> 03 | B9: =+'Original ABG Allocation'!B8 -> CAM/ELK/MCKEAN | C9: 1641941 | D9: 446186 | E9: 5880 | F9: 10487 | G9: 2104494 | I9: 0 | L9: 0 | M9: 0 | N9: 2104494 | O9: 0 | P9: 0 | Q9: 0 | R9: 0 | S9: 2104494 | T9: 0 | V9: 0 | W9: 0 | X9: 0 | Y9: 0 | Z9: 2104494 | AA9: 0
A10: =+'Original ABG Allocation'!A9 -> 04 | B10: =+'Original ABG Allocation'!B9 -> BEAVER | C10: 2831877 | D10: 610351 | E10: 9730 | F10: 20692 | G10: 3472650 | I10: 0 | L10: 0 | M10: 0 | N10: 3472650 | O10: 0 | P10: 0 | Q10: 0 | R10: 0 | S10: 3472650 | T10: 0 | V10: 0 | W10: 0 | X10: 0 | Y10: 0 | Z10: 3472650 | AA10: 0
A11: =+'Original ABG Allocation'!A10 -> 05 | B11: =+'Original ABG Allocation'!B10 -> INDIANA | C11: 1563651 | D11: 375848 | E11: 5390 | F11: 4898 | G11: 1949787 | I11: 0 | L11: 0 | M11: 0 | N11: 1949787 | O11: 0 | P11: 0 | Q11: 0 | R11: 0 | S11: 1949787 | T11: 0 | V11: 0 | W11: 0 | X11: 0 | Y11: 0 | Z11: 1949787 | AA11: 0
A12: =+'Original ABG Allocation'!A11 -> 06 | B12: =+'Original ABG Allocation'!B11 -> ALLEGHENY | C12: 23886143 | D12: 5775469 | E12: 82180 | F12: 98082 | G12: 29841874 | I12: 0 | L12: 0 | M12: 0 | N12: 29841874 | O12: 0 | P12: 0 | Q12: 0 | R12: 0 | S12: 29841874 | T12: 0 | V12: 0 | W12: 0 | X12: 0 | Y12: 0 | Z12: 29841874 | AA12: 0
A13: =+'Original ABG Allocation'!A12 -> 07 | B13: =+'Original ABG Allocation'!B12 -> WESTMORELAND | C13: 6524763 | D13: 1176238 | E13: 21630 | F13: 27737 | G13: 7750368 | I13: 0 | L13: 0 | M13: 0 | N13: 7750368 | O13: 0 | P13: 0 | Q13: 0 | R13: 0 | S13: 7750368 | T13: 0 | V13: 0 | W13: 0 | X13: 0 | Y13: 0 | Z13: 7750368 | AA13: 0
A14: =+'Original ABG Allocation'!A13 -> 08 | B14: =+'Original ABG Allocation'!B13 -> WASH/FAY/GREENE | C14: 7606759 | D14: 2859784 | E14: 29120 | F14: 15692 | G14: 10511355 | I14: 0 | L14: 0 | M14: 0 | N14: 10511355 | O14: 0 | P14: 0 | Q14: 0 | R14: 0 | S14: 10511355 | T14: 0 | V14: 0 | W14: 0 | X14: 0 | Y14: 0 | Z14: 10511355 | AA14: 0
A15: =+'Original ABG Allocation'!A14 -> 09 | B15: =+'Original ABG Allocation'!B14 -> SOMERSET | C15: 1959125 | D15: 356088 | E15: 6440 | F15: 5037 | G15: 2326690 | I15: 0 | L15: 0 | M15: 0 | N15: 2326690 | O15: 0 | P15: 0 | Q15: 0 | R15: 0 | S15: 2326690 | T15: 0 | V15: 0 | W15: 0 | X15: 0 | Y15: 0 | Z15: 2326690 | AA15: 0
A16: =+'Original ABG Allocation'!A15 -> 10 | B16: =+'Original ABG Allocation'!B15 -> CAMBRIA | C16: 3341165 | D16: 677422 | E16: 11060 | F16: 4977 | G16: 4034624 | I16: 0 | L16: 0 | M16: 0 | N16: 4034624 | O16: 0 | P16: 0 | Q16: 0 | R16: 0 | S16: 4034624 | T16: 0 | V16: 0 | W16: 0 | X16: 0 | Y16: 0 | Z16: 4034624 | AA16: 0
A17: =+'Original ABG Allocation'!A16 -> 11 | B17: =+'Original ABG Allocation'!B16 -> BLAIR | C17: 2253680 | D17: 490258 | E17: 8120 | F17: 11319 | G17: 2763377 | I17: 0 | L17: 0 | M17: 0 | N17: 2763377 | O17: 0 | P17: 0 | Q17: 0 | R17: 0 | S17: 2763377 | T17: 0 | V17: 0 | W17: 0 | X17: 0 | Y17: 0 | Z17: 2763377 | AA17: 0
A18: =+'Original ABG Allocation'!A17 -> 12 | B18: =+'Original ABG Allocation'!B17 -> BED/FULT/HUNT | C18: 2447032 | D18: 660953 | E18: 8750 | F18: 5248 | G18: 3121983 | I18: 0 | L18: 0 | M18: 0 | N18: 3121983 | O18: 0 | P18: 0 | Q18: 0 | R18: 0 | S18: 3121983 | T18: 0 | V18: 0 | W18: 0 | X18: 0 | Y18: 0 | Z18: 3121983 | AA18: 0
A19: =+'Original ABG Allocation'!A18 -> 13 | B19: =+'Original ABG Allocation'!B18 -> CENTRE | C19: 1139242 | D19: 230313 | E19: 3850 | F19: 7869 | G19: 1381274 | I19: 0 | L19: 0 | M19: 0 | N19: 1381274 | O19: 0 | P19: 0 | Q19: 0 | R19: 0 | S19: 1381274 | T19: 0 | V19: 0 | W19: 0 | X19: 0 | Y19: 0 | Z19: 1381274 | AA19: 0
A20: =+'Original ABG Allocation'!A19 -> 14 | B20: =+'Original ABG Allocation'!B19 -> LYCOM/CLINTON | C20: 2510419 | D20: 630821 | E20: 8890 | F20: 9479 | G20: 3159609 | I20: 0 | L20: 0 | M20: 0 | N20: 3159609 | O20: 0 | P20: 0 | Q20: 0 | R20: 0 | S20: 3159609 | T20: 0 | V20: 0 | W20: 0 | X20: 0 | Y20: 0 | Z20: 3159609 | AA20: 0
A21: =+'Original ABG Allocation'!A20 -> 15 | B21: =+'Original ABG Allocation'!B20 -> COLUM/MONT | C21: 1377171 | D21: 389299 | E21: 4900 | F21: 18243 | G21: 1789613 | I21: 0 | L21: 0 | M21: 0 | N21: 1789613 | O21: 0 | P21: 0 | Q21: 0 | R21: 0 | S21: 1789613 | T21: 0 | V21: 0 | W21: 0 | X21: 0 | Y21: 0 | Z21: 1789613 | AA21: 0
A22: =+'Original ABG Allocation'!A21 -> 16 | B22: =+'Original ABG Allocation'!B21 -> NORTHUMBERLND | C22: 2380291 | D22: 553009 | E22: 8260 | F22: 13485 | G22: 2955045 | I22: 0 | L22: 0 | M22: 0 | N22: 2955045 | O22: 0 | P22: 0 | Q22: 0 | R22: 0 | S22: 2955045 | T22: 0 | V22: 0 | W22: 0 | X22: 0 | Y22: 0 | Z22: 2955045 | AA22: 0
A23: =+'Original ABG Allocation'!A22 -> 17 | B23: =+'Original ABG Allocation'!B22 -> UNION/SNYDER | C23: 1072616 | D23: 210552 | E23: 3570 | F23: 9142 | G23: 1295880 | I23: 0 | L23: 0 | M23: 0 | N23: 1295880 | O23: 0 | P23: 0 | Q23: 0 | R23: 0 | S23: 1295880 | T23: 0 | V23: 0 | W23: 0 | X23: 0 | Y23: 0 | Z23: 1295880 | AA23: 0
A24: =+'Original ABG Allocation'!A23 -> 18 | B24: =+'Original ABG Allocation'!B23 -> MIFF/JUNIATA | C24: 1475983 | D24: 342740 | E24: 5040 | F24: 4203 | G24: 1827966 | I24: 0 | L24: 0 | M24: 0 | N24: 1827966 | O24: 0 | P24: 0 | Q24: 0 | R24: 0 | S24: 1827966 | T24: 0 | V24: 0 | W24: 0 | X24: 0 | Y24: 0 | Z24: 1827966 | AA24: 0
A25: =+'Original ABG Allocation'!A24 -> 19 | B25: =+'Original ABG Allocation'!B24 -> FRANKLIN | C25: 1803481 | D25: 614172 | E25: 6860 | F25: 11869 | G25: 2436382 | I25: 0 | L25: 0 | M25: 0 | N25: 2436382 | O25: 0 | P25: 0 | Q25: 0 | R25: 0 | S25: 2436382 | T25: 0 | V25: 0 | W25: 0 | X25: 0 | Y25: 0 | Z25: 2436382 | AA25: 0
A26: =+'Original ABG Allocation'!A25 -> 20 | B26: =+'Original ABG Allocation'!B25 -> ADAMS | C26: 1114136 | D26: 144146 | E26: 3500 | F26: 1664 | G26: 1263446 | I26: 0 | L26: 0 | M26: 0 | N26: 1263446 | O26: 0 | P26: 0 | Q26: 0 | R26: 0 | S26: 1263446 | T26: 0 | V26: 0 | W26: 0 | X26: 0 | Y26: 0 | Z26: 1263446 | AA26: 0
A27: =+'Original ABG Allocation'!A26 -> 21 | B27: =+'Original ABG Allocation'!B26 -> CUMBERLAND | C27: 1922188 | D27: 335073 | E27: 6720 | F27: 9678 | G27: 2273659 | I27: 0 | L27: 0 | M27: 0 | N27: 2273659 | O27: 0 | P27: 0 | Q27: 0 | R27: 0 | S27: 2273659 | T27: 0 | V27: 0 | W27: 0 | X27: 0 | Y27: 0 | Z27: 2273659 | AA27: 0
A28: =+'Original ABG Allocation'!A27 -> 22 | B28: =+'Original ABG Allocation'!B27 -> PERRY | C28: 618436 | D28: 141620 | E28: 2100 | F28: 4848 | G28: 767004 | I28: 0 | L28: 0 | M28: 0 | N28: 767004 | O28: 0 | P28: 0 | Q28: 0 | R28: 0 | S28: 767004 | T28: 0 | V28: 0 | W28: 0 | X28: 0 | Y28: 0 | Z28: 767004 | AA28: 0
A29: =+'Original ABG Allocation'!A28 -> 23 | B29: =+'Original ABG Allocation'!B28 -> DAUPHIN | C29: 3841158 | D29: 611424 | E29: 12250 | F29: 23560 | G29: 4488392 | I29: 0 | L29: 0 | M29: 0 | N29: 4488392 | O29: 0 | P29: 0 | Q29: 0 | R29: 0 | S29: 4488392 | T29: 0 | V29: 0 | W29: 0 | X29: 0 | Y29: 0 | Z29: 4488392 | AA29: 0
A30: =+'Original ABG Allocation'!A29 -> 24 | B30: =+'Original ABG Allocation'!B29 -> LEBANON | C30: 1583674 | D30: 338272 | E30: 5460 | F30: 7308 | G30: 1934714 | I30: 0 | L30: 0 | M30: 0 | N30: 1934714 | O30: 0 | P30: 0 | Q30: 0 | R30: 0 | S30: 1934714 | T30: 0 | V30: 0 | W30: 0 | X30: 0 | Y30: 0 | Z30: 1934714 | AA30: 0
A31: =+'Original ABG Allocation'!A30 -> 25 | B31: =+'Original ABG Allocation'!B30 -> YORK | C31: 4426279 | D31: 898415 | E31: 14980 | F31: 24343 | G31: 5364017 | I31: 0 | L31: 0 | M31: 0 | N31: 5364017 | O31: 0 | P31: 0 | Q31: 0 | R31: 0 | S31: 5364017 | T31: 0 | V31: 0 | W31: 0 | X31: 0 | Y31: 0 | Z31: 5364017 | AA31: 0
A32: =+'Original ABG Allocation'!A31 -> 26 | B32: =+'Original ABG Allocation'!B31 -> LANCASTER | C32: 4730805 | D32: 803880 | E32: 15750 | F32: 58951 | G32: 5609386 | I32: 0 | L32: 0 | M32: 0 | N32: 5609386 | O32: 0 | P32: 0 | Q32: 0 | R32: 0 | S32: 5609386 | T32: 0 | V32: 0 | W32: 0 | X32: 0 | Y32: 0 | Z32: 5609386 | AA32: 0
A33: =+'Original ABG Allocation'!A32 -> 27 | B33: =+'Original ABG Allocation'!B32 -> CHESTER | C33: 2858046 | D33: 883017 | E33: 10640 | F33: 14788 | G33: 3766491 | I33: 0 | L33: 0 | M33: 0 | N33: 3766491 | O33: 0 | P33: 0 | Q33: 0 | R33: 0 | S33: 3766491 | T33: 0 | V33: 0 | W33: 0 | X33: 0 | Y33: 0 | Z33: 3766491 | AA33: 0
A34: =+'Original ABG Allocation'!A33 -> 28 | B34: =+'Original ABG Allocation'!B33 -> MONTGOMERY | C34: 7002364 | D34: 1173613 | E34: 22400 | F34: 14521 | G34: 8212898 | I34: 0 | L34: 0 | M34: 0 | N34: 8212898 | O34: 0 | P34: 0 | Q34: 0 | R34: 0 | S34: 8212898 | T34: 0 | V34: 0 | W34: 0 | X34: 0 | Y34: 0 | Z34: 8212898 | AA34: 0
A35: =+'Original ABG Allocation'!A34 -> 29 | B35: =+'Original ABG Allocation'!B34 -> BUCKS | C35: 4353749 | D35: 871268 | E35: 14560 | F35: 7481 | G35: 5247058 | I35: 0 | L35: 0 | M35: 0 | N35: 5247058 | O35: 0 | P35: 0 | Q35: 0 | R35: 0 | S35: 5247058 | T35: 0 | V35: 0 | W35: 0 | X35: 0 | Y35: 0 | Z35: 5247058 | AA35: 0
A36: =+'Original ABG Allocation'!A35 -> 30 | B36: =+'Original ABG Allocation'!B35 -> DELAWARE | C36: 7018365 | D36: 1022367 | E36: 22260 | F36: 28933 | G36: 8091925 | I36: 0 | L36: 0 | M36: 0 | N36: 8091925 | O36: 0 | P36: 0 | Q36: 0 | R36: 0 | S36: 8091925 | T36: 0 | V36: 0 | W36: 0 | X36: 0 | Y36: 0 | Z36: 8091925 | AA36: 0
A37: =+'Original ABG Allocation'!A36 -> 31 | B37: =+'Original ABG Allocation'!B36 -> PHILADELPHIA | C37: 45352171 | D37: 10343419 | E37: 155820 | F37: 174473 | G37: =SUM(C37:F37) -> 56025883 | I37: 0 | L37: 0 | M37: 0 | N37: 56025883 | O37: 0 | P37: 0 | Q37: 0 | R37: 0 | S37: 56025883 | T37: 0 | V37: 0 | W37: 0 | X37: 0 | Y37: 0 | Z37: 56025883 | AA37: 0
A38: =+'Original ABG Allocation'!A37 -> 32 | B38: =+'Original ABG Allocation'!B37 -> BERKS | C38: 4995757 | D38: 965143 | E38: 17080 | F38: 26504 | G38: 6004484 | I38: 0 | L38: 0 | M38: 0 | N38: 6004484 | O38: 0 | P38: 0 | Q38: 0 | R38: 0 | S38: 6004484 | T38: 0 | V38: 0 | W38: 0 | X38: 0 | Y38: 0 | Z38: 6004484 | AA38: 0
A39: =+'Original ABG Allocation'!A38 -> 33 | B39: =+'Original ABG Allocation'!B38 -> LEHIGH | C39: 3530748 | D39: 1100277 | E39: 13090 | F39: 10417 | G39: =SUM(C39:F39) -> 4654532 | I39: 0 | L39: 0 | M39: 0 | N39: 4654532 | O39: 0 | P39: 0 | Q39: 0 | R39: 0 | S39: =N39+O39+P39+R39 -> 4654532 | T39: =S39-N39 -> 0 | V39: 0 | W39: 0 | X39: 0 | Y39: 0 | Z39: 4654532 | AA39: 0
A40: =+'Original ABG Allocation'!A39 -> 34 | B40: =+'Original ABG Allocation'!B39 -> NORTHAMPTON | C40: 3301882 | D40: 760926 | E40: 11340 | F40: 13206 | G40: 4087354 | I40: 0 | L40: 0 | M40: 0 | N40: 4087354 | O40: 0 | P40: 0 | Q40: 0 | R40: 0 | S40: 4087354 | T40: 0 | V40: 0 | W40: 0 | X40: 0 | Y40: 0 | Z40: 4087354 | AA40: 0
A41: =+'Original ABG Allocation'!A40 -> 35 | B41: =+'Original ABG Allocation'!B40 -> PIKE | C41: 612432 | D41: 96819 | E41: 2030 | F41: 3172 | G41: 714453 | I41: 0 | L41: 0 | M41: 0 | N41: 714453 | O41: 0 | P41: 0 | Q41: 0 | R41: 0 | S41: 714453 | T41: 0 | V41: 0 | W41: 0 | X41: 0 | Y41: 0 | Z41: 714453 | AA41: 0
A42: =+'Original ABG Allocation'!A41 -> 36 | B42: =+'Original ABG Allocation'!B41 -> B/S/S/T | C42: 3343412 | D42: 623035 | E42: 11130 | F42: 15622 | G42: 3993199 | I42: 0 | L42: 0 | M42: 0 | N42: 3993199 | O42: 0 | P42: 0 | Q42: 0 | R42: 0 | S42: 3993199 | T42: 0 | V42: 0 | W42: 0 | X42: 0 | Y42: 0 | Z42: 3993199 | AA42: 0
A43: =+'Original ABG Allocation'!A42 -> 37 | B43: =+'Original ABG Allocation'!B42 -> LUZERNE/WYOMING | C43: 7460274 | D43: 1838800 | E43: 25970 | F43: 35180 | G43: 9360224 | I43: 0 | L43: 0 | M43: 0 | N43: 9360224 | O43: 0 | P43: 0 | Q43: 0 | R43: 0 | S43: 9360224 | T43: 0 | V43: 0 | W43: 0 | X43: 0 | Y43: 0 | Z43: 9360224 | AA43: 0
A44: =+'Original ABG Allocation'!A43 -> 38 | B44: =+'Original ABG Allocation'!B43 -> LACKAWANNA | C44: 4248720 | D44: 948576 | E44: 14630 | F44: 11569 | G44: 5223495 | I44: 0 | L44: 0 | M44: 0 | N44: 5223495 | O44: 0 | P44: 0 | Q44: 0 | R44: 0 | S44: 5223495 | T44: 0 | V44: 0 | W44: 0 | X44: 0 | Y44: 0 | Z44: 5223495 | AA44: 0
A45: =+'Original ABG Allocation'!A44 -> 39 | B45: =+'Original ABG Allocation'!B44 -> CARBON | C45: 1000905 | D45: 179642 | E45: 3290 | F45: 1672 | G45: 1185509 | I45: 0 | L45: 0 | M45: 0 | N45: 1185509 | O45: 0 | P45: 0 | Q45: 0 | R45: 0 | S45: 1185509 | T45: 0 | V45: 0 | W45: 0 | X45: 0 | Y45: 0 | Z45: 1185509 | AA45: 0
A46: =+'Original ABG Allocation'!A45 -> 40 | B46: =+'Original ABG Allocation'!B45 -> SCHUYLKILL | C46: 4036510 | D46: 512432 | E46: 12950 | F46: 7097 | G46: 4568989 | I46: 0 | L46: 0 | M46: 0 | N46: 4568989 | O46: 0 | P46: 0 | Q46: 0 | R46: 0 | S46: 4568989 | T46: 0 | V46: 0 | W46: 0 | X46: 0 | Y46: 0 | Z46: 4568989 | AA46: 0
A47: =+'Original ABG Allocation'!A46 -> 41 | B47: =+'Original ABG Allocation'!B46 -> CLEARFIELD | C47: 1870070 | D47: 348823 | E47: 6160 | F47: 4530 | G47: 2229583 | I47: 0 | L47: 0 | M47: 0 | N47: 2229583 | O47: 0 | P47: 0 | Q47: 0 | R47: 0 | S47: 2229583 | T47: 0 | V47: 0 | W47: 0 | X47: 0 | Y47: 0 | Z47: 2229583 | AA47: 0
A48: =+'Original ABG Allocation'!A47 -> 42 | B48: =+'Original ABG Allocation'!B47 -> JEFFERSON | C48: 972219 | D48: 301880 | E48: 3710 | F48: 4042 | G48: 1281851 | I48: 0 | L48: 0 | M48: 0 | N48: 1281851 | O48: 0 | P48: 0 | Q48: 0 | R48: 0 | S48: 1281851 | T48: 0 | V48: 0 | W48: 0 | X48: 0 | Y48: 0 | Z48: 1281851 | AA48: 0
A49: =+'Original ABG Allocation'!A48 -> 43 | B49: =+'Original ABG Allocation'!B48 -> FOREST/WARREN | C49: 753191 | D49: 266716 | E49: 2940 | F49: 3772 | G49: 1026619 | I49: 0 | L49: 0 | M49: 0 | N49: 1026619 | O49: 0 | P49: 0 | Q49: 0 | R49: 0 | S49: 1026619 | T49: 0 | V49: 0 | W49: 0 | X49: 0 | Y49: 0 | Z49: 1026619 | AA49: 0
A50: =+'Original ABG Allocation'!A49 -> 44 | B50: =+'Original ABG Allocation'!B49 -> VENANGO | C50: 1079472 | D50: 178955 | E50: 3500 | F50: 5636 | G50: 1267563 | I50: 0 | L50: 0 | M50: 0 | N50: 1267563 | O50: 0 | P50: 0 | Q50: 0 | R50: 0 | S50: 1267563 | T50: 0 | V50: 0 | W50: 0 | X50: 0 | Y50: 0 | Z50: 1267563 | AA50: 0
A51: =+'Original ABG Allocation'!A50 -> 45 | B51: =+'Original ABG Allocation'!B50 -> ARMSTRONG | C51: 1577423 | D51: 402842 | E51: 5670 | F51: 8669 | G51: 1994604 | I51: 0 | L51: 0 | M51: 0 | N51: 1994604 | O51: 0 | P51: 0 | Q51: 0 | R51: 0 | S51: 1994604 | T51: 0 | V51: 0 | W51: 0 | X51: 0 | Y51: 0 | Z51: 1994604 | AA51: 0
A52: =+'Original ABG Allocation'!A51 -> 46 | B52: =+'Original ABG Allocation'!B51 -> LAWRENCE | C52: 1631216 | D52: 475163 | E52: 5950 | F52: 4154 | G52: 2116483 | I52: 0 | L52: 0 | M52: 0 | N52: 2116483 | O52: 0 | P52: 0 | Q52: 0 | R52: 0 | S52: 2116483 | T52: 0 | V52: 0 | W52: 0 | X52: 0 | Y52: 0 | Z52: 2116483 | AA52: 0
A53: =+'Original ABG Allocation'!A52 -> 47 | B53: =+'Original ABG Allocation'!B52 -> MERCER | C53: 1843078 | D53: 468578 | E53: 6510 | F53: 4727 | G53: 2322893 | I53: 0 | L53: 0 | M53: 0 | N53: 2322893 | O53: 0 | P53: 0 | Q53: 0 | R53: 0 | S53: 2322893 | T53: 0 | V53: 0 | W53: 0 | X53: 0 | Y53: 0 | Z53: 2322893 | AA53: 0
A54: =+'Original ABG Allocation'!A53 -> 48 | B54: =+'Original ABG Allocation'!B53 -> MONROE | C54: 1319721 | D54: 327059 | E54: 4760 | F54: 4423 | G54: 1655963 | I54: 0 | L54: 0 | M54: 0 | N54: 1655963 | O54: 0 | P54: 0 | Q54: 0 | R54: 0 | S54: 1655963 | T54: 0 | V54: 0 | W54: 0 | X54: 0 | Y54: 0 | Z54: 1655963 | AA54: 0
A55: =+'Original ABG Allocation'!A54 -> 49 | B55: =+'Original ABG Allocation'!B54 -> CLARION | C55: 734688 | D55: 213617 | E55: 2730 | F55: 3651 | G55: 954686 | I55: 0 | L55: 0 | M55: 0 | N55: 954686 | O55: 0 | P55: 0 | Q55: 0 | R55: 0 | S55: 954686 | T55: 0 | V55: 0 | W55: 0 | X55: 0 | Y55: 0 | Z55: 954686 | AA55: 0
A56: =+'Original ABG Allocation'!A55 -> 50 | B56: =+'Original ABG Allocation'!B55 -> BUTLER | C56: 1940067 | D56: 590967 | E56: 7140 | F56: 8696 | G56: 2546870 | I56: 0 | L56: 0 | M56: 0 | N56: 2546870 | O56: 0 | P56: 0 | Q56: 0 | R56: 0 | S56: 2546870 | T56: 0 | W56: 0 | X56: 0 | Y56: 0 | Z56: 2546870 | AA56: 0
A57: =+'Original ABG Allocation'!A56 -> 51 | B57: =+'Original ABG Allocation'!B56 -> POTTER | C57: 445802 | D57: 133993 | E57: 1680 | F57: 8487 | G57: 589962 | I57: 0 | L57: 0 | M57: 0 | N57: 589962 | O57: 0 | P57: 0 | Q57: 0 | R57: 0 | S57: 589962 | T57: 0 | V57: 0 | W57: 0 | X57: 0 | Y57: 0 | Z57: 589962 | AA57: 0
A58: =+'Original ABG Allocation'!A57 -> 52 | B58: =+'Original ABG Allocation'!B57 -> WAYNE | C58: 996956 | D58: 174813 | E58: 3290 | F58: 3813 | G58: 1178872 | I58: 0 | L58: 0 | M58: 0 | N58: 1178872 | O58: 0 | P58: 0 | Q58: 0 | R58: 0 | S58: 1178872 | T58: 0 | V58: 0 | W58: 0 | X58: 0 | Y58: 0 | Z58: 1178872 | AA58: 0
B59: TOTALS | C59: =SUM(C7:C58) -> 203633475 | D59: =SUM(D7:D58) -> 46075000 | E59: =SUM(E7:E58) -> 700000 | F59: =SUM(F7:F58) -> 867000 | G59: =SUM(G7:G58) -> 251275475 | I59: =SUM(I7:I58) -> 0 | J59: =SUM(J7:J58) -> 0 | K59: =SUM(K7:K58) -> 0 | L59: 0 | M59: =SUM(M7:M58) -> 0 | N59: 251275475 | O59: 0 | P59: =SUM(P7:P58) -> 0 | R59: 0 | S59: 251275475 | T59: 0 | V59: =SUM(V7:V58) -> 0 | W59: 0 | X59: 0 | Y59: 0 | Z59: 251275475 | AA59: 0

Sheet Caregiver Support
A1: PDA Allocation Model- | C1: Caregiver Support
A2: =+'Original ABG Allocation'!A3 -> FY 2022-23
C4: COOPERATIVE | E4: CHANGE NO. 1 | H4: CHANGE NO. 2 | K4: CHANGE NO. 3
C5: AGREEMENT | E5: Increase/
E6: (Decrease | F6: TOTAL | H6: Increase/ | I6: Revised | K6: INCREASE/ | L6: REVISED
A7: =+'Original ABG Allocation'!A6 -> 01 | B7: =+'Original ABG Allocation'!B6 -> ERIE | C7: =+'Original ABG Allocation'!D6 -> 156011 | E7: 0 | F7: 0 | H7: 0 | I7: =F7+H7 -> 0 | K7: 0 | L7: =I7+K7 -> 0
A8: =+'Original ABG Allocation'!A7 -> 02 | B8: =+'Original ABG Allocation'!B7 -> CRAWFORD | C8: =+'Original ABG Allocation'!D7 -> 94962 | E8: 0 | F8: 0 | H8: 0 | I8: =F8+H8 -> 0 | K8: 0 | L8: 0
A9: =+'Original ABG Allocation'!A8 -> 03 | B9: =+'Original ABG Allocation'!B8 -> CAM/ELK/MCKEAN | C9: =+'Original ABG Allocation'!D8 -> 104392 | E9: 0 | F9: 0 | H9: 0 | I9: 0 | K9: 0 | L9: 0
A10: =+'Original ABG Allocation'!A9 -> 04 | B10: =+'Original ABG Allocation'!B9 -> BEAVER | C10: =+'Original ABG Allocation'!D9 -> 120693 | E10: 0 | F10: 0 | H10: 0 | I10: 0 | K10: 0 | L10: 0
A11: =+'Original ABG Allocation'!A10 -> 05 | B11: =+'Original ABG Allocation'!B10 -> INDIANA | C11: =+'Original ABG Allocation'!D10 -> 72332 | E11: 0 | F11: 0 | H11: 0 | I11: 0 | K11: 0 | L11: 0
A12: =+'Original ABG Allocation'!A11 -> 06 | B12: =+'Original ABG Allocation'!B11 -> ALLEGHENY | C12: =+'Original ABG Allocation'!D11 -> 1024598 | E12: 0 | F12: 0 | H12: 0 | I12: 0 | K12: 0 | L12: 0
A13: =+'Original ABG Allocation'!A12 -> 07 | B13: =+'Original ABG Allocation'!B12 -> WESTMORELAND | C13: =+'Original ABG Allocation'!D12 -> 279704 | E13: 0 | F13: 0 | H13: 0 | I13: 0 | K13: 0 | L13: 0
A14: =+'Original ABG Allocation'!A13 -> 08 | B14: =+'Original ABG Allocation'!B13 -> WASH/FAY/GREENE | C14: =+'Original ABG Allocation'!D13 -> 393598 | E14: 0 | F14: 0 | H14: 0 | I14: 0 | K14: 0 | L14: 0
A15: =+'Original ABG Allocation'!A14 -> 09 | B15: =+'Original ABG Allocation'!B14 -> SOMERSET | C15: =+'Original ABG Allocation'!D14 -> 81631 | E15: 0 | F15: 0 | H15: 0 | I15: 0 | K15: 0 | L15: 0
A16: =+'Original ABG Allocation'!A15 -> 10 | B16: =+'Original ABG Allocation'!B15 -> CAMBRIA | C16: =+'Original ABG Allocation'!D15 -> 140343 | E16: 0 | F16: 0 | H16: 0 | I16: 0 | K16: 0 | L16: 0
A17: =+'Original ABG Allocation'!A16 -> 11 | B17: =+'Original ABG Allocation'!B16 -> BLAIR | C17: =+'Original ABG Allocation'!D16 -> 114081 | E17: 0 | F17: 0 | H17: 0 | I17: 0 | K17: 0 | L17: 0
A18: =+'Original ABG Allocation'!A17 -> 12 | B18: =+'Original ABG Allocation'!B17 -> BED/FULT/HUNT | C18: =+'Original ABG Allocation'!D17 -> 120022 | E18: 0 | F18: 0 | H18: 0 | I18: 0 | K18: 0 | L18: 0
A19: =+'Original ABG Allocation'!A18 -> 13 | B19: =+'Original ABG Allocation'!B18 -> CENTRE | C19: =+'Original ABG Allocation'!D18 -> 45132 | E19: 0 | F19: 0 | H19: 0 | I19: 0 | K19: 0 | L19: 0
A20: =+'Original ABG Allocation'!A19 -> 14 | B20: =+'Original ABG Allocation'!B19 -> LYCOM/CLINTON | C20: =+'Original ABG Allocation'!D19 -> 117392 | E20: 0 | F20: 0 | H20: 0 | I20: 0 | K20: 0 | L20: 0
A21: =+'Original ABG Allocation'!A20 -> 15 | B21: =+'Original ABG Allocation'!B20 -> COLUM/MONT | C21: =+'Original ABG Allocation'!D20 -> 66474 | E21: 0 | F21: 0 | H21: 0 | I21: 0 | K21: 0 | L21: 0
A22: =+'Original ABG Allocation'!A21 -> 16 | B22: =+'Original ABG Allocation'!B21 -> NORTHUMBERLND | C22: =+'Original ABG Allocation'!D21 -> 122953 | E22: 0 | F22: 0 | H22: 0 | I22: 0 | K22: 0 | L22: 0
A23: =+'Original ABG Allocation'!A22 -> 17 | B23: =+'Original ABG Allocation'!B22 -> UNION/SNYDER | C23: =+'Original ABG Allocation'!D22 -> 41818 | E23: 0 | F23: 0 | H23: 0 | I23: 0 | K23: 0 | L23: 0
A24: =+'Original ABG Allocation'!A23 -> 18 | B24: =+'Original ABG Allocation'!B23 -> MIFF/JUNIATA | C24: =+'Original ABG Allocation'!D23 -> 64859 | E24: 0 | F24: 0 | H24: 0 | I24: 0 | K24: 0 | L24: 0
A25: =+'Original ABG Allocation'!A24 -> 19 | B25: =+'Original ABG Allocation'!B24 -> FRANKLIN | C25: =+'Original ABG Allocation'!D24 -> 83393 | E25: 0 | F25: 0 | H25: 0 | I25: 0 | K25: 0 | L25: 0
A26: =+'Original ABG Allocation'!A25 -> 20 | B26: =+'Original ABG Allocation'!B25 -> ADAMS | C26: =+'Original ABG Allocation'!D25 -> 39383 | E26: 0 | F26: 0 | H26: 0 | I26: 0 | K26: 0 | L26: 0
A27: =+'Original ABG Allocation'!A26 -> 21 | B27: =+'Original ABG Allocation'!B26 -> CUMBERLAND | C27: =+'Original ABG Allocation'!D26 -> 80733 | E27: 0 | F27: 0 | H27: 0 | I27: 0 | K27: 0 | L27: 0
A28: =+'Original ABG Allocation'!A27 -> 22 | B28: =+'Original ABG Allocation'!B27 -> PERRY | C28: =+'Original ABG Allocation'!D27 -> 25396 | E28: 0 | F28: 0 | H28: 0 | I28: 0 | K28: 0 | L28: 0
A29: =+'Original ABG Allocation'!A28 -> 23 | B29: =+'Original ABG Allocation'!B28 -> DAUPHIN | C29: =+'Original ABG Allocation'!D28 -> 171730 | E29: 0 | F29: 0 | H29: 0 | I29: 0 | K29: 0 | L29: 0
A30: =+'Original ABG Allocation'!A29 -> 24 | B30: =+'Original ABG Allocation'!B29 -> LEBANON | C30: =+'Original ABG Allocation'!D29 -> 68543 | E30: 0 | F30: 0 | H30: 0 | I30: 0 | K30: 0 | L30: 0
A31: =+'Original ABG Allocation'!A30 -> 25 | B31: =+'Original ABG Allocation'!B30 -> YORK | C31: =+'Original ABG Allocation'!D30 -> 199228 | E31: 0 | F31: 0 | H31: 0 | I31: 0 | K31: 0 | L31: 0
A32: =+'Original ABG Allocation'!A31 -> 26 | B32: =+'Original ABG Allocation'!B31 -> LANCASTER | C32: =+'Original ABG Allocation'!D31 -> 198436 | E32: 0 | F32: 0 | H32: 0 | I32: 0 | K32: 0 | L32: 0
A33: =+'Original ABG Allocation'!A32 -> 27 | B33: =+'Original ABG Allocation'!B32 -> CHESTER | C33: =+'Original ABG Allocation'!D32 -> 114753 | E33: 0 | F33: 0 | H33: 0 | I33: 0 | K33: 0 | L33: 0
A34: =+'Original ABG Allocation'!A33 -> 28 | B34: =+'Original ABG Allocation'!B33 -> MONTGOMERY | C34: =+'Original ABG Allocation'!D33 -> 236029 | E34: 0 | F34: 0 | H34: 0 | I34: 0 | K34: 0 | L34: 0
A35: =+'Original ABG Allocation'!A34 -> 29 | B35: =+'Original ABG Allocation'!B34 -> BUCKS | C35: =+'Original ABG Allocation'!D34 -> 206856 | E35: 0 | F35: 0 | H35: 0 | I35: 0 | K35: 0 | L35: 0
A36: =+'Original ABG Allocation'!A35 -> 30 | B36: =+'Original ABG Allocation'!B35 -> DELAWARE | C36: =+'Original ABG Allocation'!D35 -> 278240 | E36: 0 | F36: 0 | H36: 0 | I36: 0 | K36: 0 | L36: 0
A37: =+'Original ABG Allocation'!A36 -> 31 | B37: =+'Original ABG Allocation'!B36 -> PHILADELPHIA | C37: =+'Original ABG Allocation'!D36 -> 1702584 | E37: 0 | F37: 0 | H37: 0 | I37: 0 | K37: 0 | L37: 0
A38: =+'Original ABG Allocation'!A37 -> 32 | B38: =+'Original ABG Allocation'!B37 -> BERKS | C38: =+'Original ABG Allocation'!D37 -> 235166 | E38: 0 | F38: 0 | H38: 0 | I38: 0 | K38: 0 | L38: 0
A39: =+'Original ABG Allocation'!A38 -> 33 | B39: =+'Original ABG Allocation'!B38 -> LEHIGH | C39: =+'Original ABG Allocation'!D38 -> 172458 | E39: 0 | F39: 0 | H39: 0 | I39: 0 | K39: 0 | L39: 0
A40: =+'Original ABG Allocation'!A39 -> 34 | B40: =+'Original ABG Allocation'!B39 -> NORTHAMPTON | C40: =+'Original ABG Allocation'!D39 -> 153486 | E40: 0 | F40: 0 | H40: 0 | I40: 0 | K40: 0 | L40: 0
A41: =+'Original ABG Allocation'!A40 -> 35 | B41: =+'Original ABG Allocation'!B40 -> PIKE | C41: =+'Original ABG Allocation'!D40 -> 25399 | E41: 0 | F41: 0 | H41: 0 | I41: 0 | K41: 0 | L41: 0
A42: =+'Original ABG Allocation'!A41 -> 36 | B42: =+'Original ABG Allocation'!B41 -> B/S/S/T | C42: =+'Original ABG Allocation'!D41 -> 141181 | E42: 0 | F42: 0 | H42: 0 | I42: 0 | K42: 0 | L42: 0
A43: =+'Original ABG Allocation'!A42 -> 37 | B43: =+'Original ABG Allocation'!B42 -> LUZERNE/WYOMING | C43: =+'Original ABG Allocation'!D42 -> 343992 | E43: 0 | F43: 0 | H43: 0 | I43: 0 | K43: 0 | L43: 0
A44: =+'Original ABG Allocation'!A43 -> 38 | B44: =+'Original ABG Allocation'!B43 -> LACKAWANNA | C44: =+'Original ABG Allocation'!D43 -> 202907 | E44: 0 | F44: 0 | H44: 0 | I44: 0 | K44: 0 | L44: 0
A45: =+'Original ABG Allocation'!A44 -> 39 | B45: =+'Original ABG Allocation'!B44 -> CARBON | C45: =+'Original ABG Allocation'!D44 -> 44213 | E45: 0 | F45: 0 | H45: 0 | I45: 0 | K45: 0 | L45: 0
A46: =+'Original ABG Allocation'!A45 -> 40 | B46: =+'Original ABG Allocation'!B45 -> SCHUYLKILL | C46: =+'Original ABG Allocation'!D45 -> 181495 | E46: 0 | F46: 0 | H46: 0 | I46: 0 | K46: 0 | L46: 0
A47: =+'Original ABG Allocation'!A46 -> 41 | B47: =+'Original ABG Allocation'!B46 -> CLEARFIELD | C47: =+'Original ABG Allocation'!D46 -> 79676 | E47: 0 | F47: 0 | H47: 0 | I47: 0 | K47: 0 | L47: 0
A48: =+'Original ABG Allocation'!A47 -> 42 | B48: =+'Original ABG Allocation'!B47 -> JEFFERSON | C48: =+'Original ABG Allocation'!D47 -> 51609 | E48: 0 | F48: 0 | H48: 0 | I48: 0 | K48: 0 | L48: 0
A49: =+'Original ABG Allocation'!A48 -> 43 | B49: =+'Original ABG Allocation'!B48 -> FOREST/WARREN | C49: =+'Original ABG Allocation'!D48 -> 34269 | E49: 0 | F49: 0 | H49: 0 | I49: 0 | K49: 0 | L49: 0
A50: =+'Original ABG Allocation'!A49 -> 44 | B50: =+'Original ABG Allocation'!B49 -> VENANGO | C50: =+'Original ABG Allocation'!D49 -> 48574 | E50: 0 | F50: 0 | H50: 0 | I50: 0 | K50: 0 | L50: 0
A51: =+'Original ABG Allocation'!A50 -> 45 | B51: =+'Original ABG Allocation'!B50 -> ARMSTRONG | C51: =+'Original ABG Allocation'!D50 -> 75493 | E51: 0 | F51: 0 | H51: 0 | I51: 0 | K51: 0 | L51: 0
A52: =+'Original ABG Allocation'!A51 -> 46 | B52: =+'Original ABG Allocation'!B51 -> LAWRENCE | C52: =+'Original ABG Allocation'!D51 -> 79407 | E52: 0 | F52: 0 | H52: 0 | I52: 0 | K52: 0 | L52: 0
A53: =+'Original ABG Allocation'!A52 -> 47 | B53: =+'Original ABG Allocation'!B52 -> MERCER | C53: =+'Original ABG Allocation'!D52 -> 80316 | E53: 0 | F53: 0 | H53: 0 | I53: 0 | K53: 0 | L53: 0
A54: =+'Original ABG Allocation'!A53 -> 48 | B54: =+'Original ABG Allocation'!B53 -> MONROE | C54: =+'Original ABG Allocation'!D53 -> 46961 | E54: 0 | F54: 0 | H54: 0 | I54: 0 | K54: 0 | L54: 0
A55: =+'Original ABG Allocation'!A54 -> 49 | B55: =+'Original ABG Allocation'!B54 -> CLARION | C55: =+'Original ABG Allocation'!D54 -> 32868 | E55: 0 | F55: 0 | H55: 0 | I55: 0 | K55: 0 | L55: 0
A56: =+'Original ABG Allocation'!A55 -> 50 | B56: =+'Original ABG Allocation'!B55 -> BUTLER | C56: =+'Original ABG Allocation'!D55 -> 104331 | E56: 0 | F56: 0 | H56: 0 | I56: 0 | K56: 0 | L56: 0
A57: =+'Original ABG Allocation'!A56 -> 51 | B57: =+'Original ABG Allocation'!B56 -> POTTER | C57: =+'Original ABG Allocation'!D56 -> 25400 | E57: 0 | F57: 0 | H57: 0 | I57: 0 | K57: 0 | L57: 0
A58: =+'Original ABG Allocation'!A57 -> 52 | B58: =+'Original ABG Allocation'!B57 -> WAYNE | C58: =+'Original ABG Allocation'!D57 -> 35500 | E58: 0 | F58: 0 | H58: 0 | I58: 0 | K58: 0 | L58: 0
B59: TOTALS | C59: =SUM(C7:C58) -> 8761000 | E59: =SUM(E7:E58) -> 0 | F59: =SUM(F7:F58) -> 0 | H59: =SUM(H7:H58) -> 0 | I59: =SUM(I7:I58) -> 0 | K59: =SUM(K7:K58) -> 0 | L59: =SUM(L7:L58) -> 0

Sheet Federal Caregiver Support
A1: PDA Allocation Model- | C1: Federal Caregiver Support
A2: =+'Original ABG Allocation'!A3 -> FY 2022-23
C3: Cooperative Agreement | G3: CHANGE NO. 1 | O3: CHANGE NO. 2 | V3: CHANGE NO. 3
C4: Federal | D4: State | G4: Federal | H4: State Match | I4: Total | J4: Federal | K4: State | O4: FEDERAL | P4: MATCH | Q4: TOTAL | R4: FEDERAL | S4: FAMILY | V4: FEDERAL | W4: MATCH | X4: TOTAL | Y4: FEDERAL | Z4: FAMILY
C5: Caregiver | D5: Caregiver | G5: Increase/ | H5: Increase/ | I5: Increase/ | J5: Caregiver | K5: Caregiver | O5: INCREASE/ | P5: INCREASE/ | Q5: INCREASE/ | R5: FAMILY | S5: CAREGIVER | V5: INCREASE/ | W5: INCREASE/ | X5: INCREASE/ | Y5: FAMILY | Z5: CAREGIVER
C6: Support | D6: Match | E6: TOTAL | G6: Decrease | H6: Decrease | I6: Decrease | J6: Support | K6: Match | L6: TOTAL | O6: (DECREASE) | P6: (DECREASE) | Q6: (DECREASE) | R6: CAREGIVER | S6: MATCH | T6: TOTAL | V6: (DECREASE) | W6: (DECREASE) | X6: (DECREASE) | Y6: CAREGIVER | Z6: MATCH | AA6: TOTAL
A7: =+'Original ABG Allocation'!A6 -> 01 | B7: =+'Original ABG Allocation'!B6 -> ERIE | C7: =E7-D7 -> 101075 | D7: =ROUND((E7*0.25),0)-1 -> 33691 | E7: =+'Original ABG Allocation'!E6 -> 134766 | G7: 0 | H7: 0 | I7: =SUM(G7:H7) -> 0 | J7: =C7+G7 -> 101075 | K7: =D7+H7 -> 33691 | L7: =E7+I7 -> 134766 | O7: 0 | P7: 0 | Q7: =SUM(O7:P7) -> 0 | R7: 0 | S7: 0 | T7: =+L7+O7+P7+Q7+R7+S7 -> 134766 | V7: 0 | W7: 0 | X7: =SUM(V7:W7) -> 0 | Y7: =R7+V7 -> 0 | Z7: =S7+W7 -> 0 | AA7: =Y7+Z7 -> 0
A8: =+'Original ABG Allocation'!A7 -> 02 | B8: =+'Original ABG Allocation'!B7 -> CRAWFORD | C8: =E8-D8 -> 41736 | D8: =ROUND((E8*0.25),0) -> 13912 | E8: =+'Original ABG Allocation'!E7 -> 55648 | G8: 0 | H8: 0 | I8: 0 | J8: =C8+G8 -> 41736 | K8: =D8+H8 -> 13912 | L8: =E8+I8 -> 55648 | O8: 0 | P8: 0 | Q8: 0 | R8: 0 | S8: 0 | T8: =+L8+O8+P8+Q8+R8+S8 -> 55648 | V8: 0 | W8: 0 | X8: 0 | Y8: =R8+V8 -> 0 | Z8: =S8+W8 -> 0 | AA8: =Y8+Z8 -> 0
A9: =+'Original ABG Allocation'!A8 -> 03 | B9: =+'Original ABG Allocation'!B8 -> CAM/ELK/MCKEAN | C9: =E9-D9 -> 52168 | D9: 17389 | E9: =+'Original ABG Allocation'!E8 -> 69557 | G9: 0 | H9: 0 | I9: 0 | J9: 52168 | K9: =D9+H9 -> 17389 | L9: 69557 | O9: 0 | P9: 0 | Q9: 0 | R9: 0 | S9: 0 | T9: 69557 | V9: 0 | W9: 0 | X9: 0 | Y9: =R9+V9 -> 0 | Z9: =S9+W9 -> 0 | AA9: 0
A10: =+'Original ABG Allocation'!A9 -> 04 | B10: =+'Original ABG Allocation'!B9 -> BEAVER | C10: 86400 | D10: 28800 | E10: =+'Original ABG Allocation'!E9 -> 115200 | G10: 0 | H10: 0 | I10: 0 | J10: 86400 | K10: =D10+H10 -> 28800 | L10: 115200 | O10: 0 | P10: 0 | Q10: 0 | R10: 0 | S10: 0 | T10: 115200 | V10: 0 | W10: 0 | X10: 0 | Y10: 0 | Z10: 0 | AA10: 0
A11: =+'Original ABG Allocation'!A10 -> 05 | B11: =+'Original ABG Allocation'!B10 -> INDIANA | C11: 49408 | D11: 16469 | E11: =+'Original ABG Allocation'!E10 -> 65877 | G11: 0 | H11: 0 | I11: 0 | J11: 49408 | K11: =D11+H11 -> 16469 | L11: 65877 | O11: 0 | P11: 0 | Q11: 0 | R11: 0 | S11: 0 | T11: 65877 | V11: 0 | W11: 0 | X11: 0 | Y11: 0 | Z11: 0 | AA11: 0
A12: =+'Original ABG Allocation'!A11 -> 06 | B12: =+'Original ABG Allocation'!B11 -> ALLEGHENY | C12: 770519 | D12: 256840 | E12: =+'Original ABG Allocation'!E11 -> 1027359 | G12: 0 | H12: 0 | I12: 0 | J12: 770519 | K12: =D12+H12 -> 256840 | L12: 1027359 | O12: 0 | P12: 0 | Q12: 0 | R12: 0 | S12: 0 | T12: 1027359 | V12: 0 | W12: 0 | X12: 0 | Y12: 0 | Z12: 0 | AA12: 0
A13: =+'Original ABG Allocation'!A12 -> 07 | B13: =+'Original ABG Allocation'!B12 -> WESTMORELAND | C13: 186904 | D13: 62301 | E13: =+'Original ABG Allocation'!E12 -> 249205 | G13: 0 | H13: 0 | I13: 0 | J13: =C13+G13 -> 186904 | K13: =D13+H13 -> 62301 | L13: 249205 | O13: 0 | P13: 0 | Q13: 0 | R13: 0 | S13: 0 | T13: 249205 | V13: 0 | W13: 0 | X13: 0 | Y13: 0 | Z13: 0 | AA13: 0
A14: =+'Original ABG Allocation'!A13 -> 08 | B14: =+'Original ABG Allocation'!B13 -> WASH/FAY/GREENE | C14: 401229 | D14: 133743 | E14: =+'Original ABG Allocation'!E13 -> 534972 | G14: 0 | H14: 0 | I14: 0 | J14: 401229 | K14: 133743 | L14: 534972 | O14: 0 | P14: 0 | Q14: 0 | R14: 0 | S14: 0 | T14: 534972 | V14: 0 | W14: 0 | X14: 0 | Y14: 0 | Z14: 0 | AA14: 0
A15: =+'Original ABG Allocation'!A14 -> 09 | B15: =+'Original ABG Allocation'!B14 -> SOMERSET | C15: 69935 | D15: =ROUND((E15*0.25),0)-1 -> 23311 | E15: =+'Original ABG Allocation'!E14 -> 93246 | G15: 0 | H15: 0 | I15: 0 | J15: 69935 | K15: 23311 | L15: 93246 | O15: 0 | P15: 0 | Q15: 0 | R15: 0 | S15: 0 | T15: 93246 | V15: 0 | W15: 0 | X15: 0 | Y15: 0 | Z15: 0 | AA15: 0
A16: =+'Original ABG Allocation'!A15 -> 10 | B16: =+'Original ABG Allocation'!B15 -> CAMBRIA | C16: 100335 | D16: 33445 | E16: =+'Original ABG Allocation'!E15 -> 133780 | G16: 0 | H16: 0 | I16: 0 | J16: 100335 | K16: 33445 | L16: 133780 | O16: 0 | P16: 0 | Q16: 0 | R16: 0 | S16: 0 | T16: 133780 | V16: 0 | W16: 0 | X16: 0 | Y16: 0 | Z16: 0 | AA16: 0
A17: =+'Original ABG Allocation'!A16 -> 11 | B17: =+'Original ABG Allocation'!B16 -> BLAIR | C17: 82263 | D17: =ROUND((E17*0.25),0)-1 -> 27420 | E17: =+'Original ABG Allocation'!E16 -> 109683 | G17: 0 | H17: 0 | I17: 0 | J17: 82263 | K17: 27420 | L17: 109683 | O17: 0 | P17: 0 | Q17: 0 | R17: 0 | S17: 0 | T17: 109683 | V17: 0 | W17: 0 | X17: 0 | Y17: 0 | Z17: 0 | AA17: 0
A18: =+'Original ABG Allocation'!A17 -> 12 | B18: =+'Original ABG Allocation'!B17 -> BED/FULT/HUNT | C18: 79563 | D18: 26521 | E18: =+'Original ABG Allocation'!E17 -> 106084 | G18: 0 | H18: 0 | I18: 0 | J18: 79563 | K18: 26521 | L18: 106084 | O18: 0 | P18: 0 | Q18: 0 | R18: 0 | S18: 0 | T18: 106084 | V18: 0 | W18: 0 | X18: 0 | Y18: 0 | Z18: 0 | AA18: 0
A19: =+'Original ABG Allocation'!A18 -> 13 | B19: =+'Original ABG Allocation'!B18 -> CENTRE | C19: 27099 | D19: =ROUND((E19*0.25),0)-1 -> 9032 | E19: =+'Original ABG Allocation'!E18 -> 36131 | G19: 0 | H19: 0 | I19: 0 | J19: 27099 | K19: 9032 | L19: 36131 | O19: 0 | P19: 0 | Q19: 0 | R19: 0 | S19: 0 | T19: 36131 | V19: 0 | W19: 0 | X19: 0 | Y19: 0 | Z19: 0 | AA19: 0
A20: =+'Original ABG Allocation'!A19 -> 14 | B20: =+'Original ABG Allocation'!B19 -> LYCOM/CLINTON | C20: 73839 | D20: 24613 | E20: =+'Original ABG Allocation'!E19 -> 98452 | G20: 0 | H20: 0 | I20: 0 | J20: 73839 | K20: 24613 | L20: 98452 | O20: 0 | P20: 0 | Q20: =SUM(O20:P20) -> 0 | R20: 0 | S20: 0 | T20: 98452 | V20: 0 | W20: 0 | X20: =SUM(V20:W20) -> 0 | Y20: 0 | Z20: 0 | AA20: 0
A21: =+'Original ABG Allocation'!A20 -> 15 | B21: =+'Original ABG Allocation'!B20 -> COLUM/MONT | C21: 39995 | D21: =ROUND((E21*0.25),0)-1 -> 13331 | E21: =+'Original ABG Allocation'!E20 -> 53326 | G21: 0 | H21: 0 | I21: 0 | J21: 39995 | K21: 13331 | L21: 53326 | O21: 0 | P21: 0 | Q21: =SUM(O21:P21) -> 0 | R21: 0 | S21: 0 | T21: 53326 | V21: 0 | W21: 0 | X21: =SUM(V21:W21) -> 0 | Y21: 0 | Z21: 0 | AA21: 0
A22: =+'Original ABG Allocation'!A21 -> 16 | B22: =+'Original ABG Allocation'!B21 -> NORTHUMBERLND | C22: 81843 | D22: =ROUND((E22*0.25),0)-1 -> 27280 | E22: =+'Original ABG Allocation'!E21 -> 109123 | G22: 0 | H22: 0 | I22: 0 | J22: 81843 | K22: 27280 | L22: 109123 | O22: 0 | P22: 0 | Q22: 0 | R22: 0 | S22: 0 | T22: 109123 | V22: 0 | W22: 0 | X22: 0 | Y22: 0 | Z22: 0 | AA22: 0
A23: =+'Original ABG Allocation'!A22 -> 17 | B23: =+'Original ABG Allocation'!B22 -> UNION/SNYDER | C23: 29091 | D23: 9697 | E23: =+'Original ABG Allocation'!E22 -> 38788 | G23: 0 | H23: 0 | I23: 0 | J23: 29091 | K23: 9697 | L23: 38788 | O23: 0 | P23: 0 | Q23: 0 | R23: 0 | S23: 0 | T23: 38788 | V23: 0 | W23: 0 | X23: 0 | Y23: 0 | Z23: 0 | AA23: 0
A24: =+'Original ABG Allocation'!A23 -> 18 | B24: =+'Original ABG Allocation'!B23 -> MIFF/JUNIATA | C24: 55583 | D24: 18528 | E24: =+'Original ABG Allocation'!E23 -> 74111 | G24: 0 | H24: 0 | I24: 0 | J24: 55583 | K24: 18528 | L24: 74111 | O24: 0 | P24: 0 | Q24: 0 | R24: 0 | S24: 0 | T24: 74111 | V24: 0 | W24: 0 | X24: 0 | Y24: 0 | Z24: 0 | AA24: 0
A25: =+'Original ABG Allocation'!A24 -> 19 | B25: =+'Original ABG Allocation'!B24 -> FRANKLIN | C25: 58599 | D25: =ROUND((E25*0.25),0)-1 -> 19532 | E25: =+'Original ABG Allocation'!E24 -> 78131 | G25: 0 | H25: 0 | I25: 0 | J25: 58599 | K25: 19532 | L25: 78131 | O25: 0 | P25: 0 | Q25: 0 | R25: 0 | S25: 0 | T25: 78131 | V25: 0 | W25: 0 | X25: 0 | Y25: 0 | Z25: 0 | AA25: 0
A26: =+'Original ABG Allocation'!A25 -> 20 | B26: =+'Original ABG Allocation'!B25 -> ADAMS | C26: 24336 | D26: 8112 | E26: =+'Original ABG Allocation'!E25 -> 32448 | G26: 0 | H26: 0 | I26: 0 | J26: 24336 | K26: 8112 | L26: 32448 | O26: 0 | P26: 0 | Q26: 0 | R26: 0 | S26: 0 | T26: 32448 | V26: 0 | W26: 0 | X26: 0 | Y26: 0 | Z26: 0 | AA26: 0
A27: =+'Original ABG Allocation'!A26 -> 21 | B27: =+'Original ABG Allocation'!B26 -> CUMBERLAND | C27: 42963 | D27: 14321 | E27: =+'Original ABG Allocation'!E26 -> 57284 | G27: 0 | H27: 0 | I27: 0 | J27: 42963 | K27: 14321 | L27: 57284 | O27: 0 | P27: 0 | Q27: 0 | R27: 0 | S27: 0 | T27: 57284 | V27: 0 | W27: 0 | X27: 0 | Y27: 0 | Z27: 0 | AA27: 0
A28: =+'Original ABG Allocation'!A27 -> 22 | B28: =+'Original ABG Allocation'!B27 -> PERRY | C28: 17991 | D28: 5997 | E28: =+'Original ABG Allocation'!E27 -> 23988 | G28: 0 | H28: 0 | I28: 0 | J28: 17991 | K28: 5997 | L28: 23988 | O28: 0 | P28: 0 | Q28: 0 | R28: 0 | S28: 0 | T28: 23988 | V28: 0 | W28: 0 | X28: 0 | Y28: 0 | Z28: 0 | AA28: 0
A29: =+'Original ABG Allocation'!A28 -> 23 | B29: =+'Original ABG Allocation'!B28 -> DAUPHIN | C29: 95756 | D29: 31919 | E29: =+'Original ABG Allocation'!E28 -> 127675 | G29: 0 | H29: 0 | I29: 0 | J29: 95756 | K29: 31919 | L29: 127675 | O29: 0 | P29: 0 | Q29: 0 | R29: 0 | S29: 0 | T29: 127675 | V29: 0 | W29: 0 | X29: 0 | Y29: 0 | Z29: 0 | AA29: 0
A30: =+'Original ABG Allocation'!A29 -> 24 | B30: =+'Original ABG Allocation'!B29 -> LEBANON | C30: 42405 | D30: =ROUND((E30*0.25),0)-1 -> 14134 | E30: =+'Original ABG Allocation'!E29 -> 56539 | G30: 0 | H30: 0 | I30: 0 | J30: 42405 | K30: 14134 | L30: 56539 | O30: 0 | P30: 0 | Q30: 0 | R30: 0 | S30: 0 | T30: 56539 | V30: 0 | W30: 0 | X30: 0 | Y30: 0 | Z30: 0 | AA30: 0
A31: =+'Original ABG Allocation'!A30 -> 25 | B31: =+'Original ABG Allocation'!B30 -> YORK | C31: 99791 | D31: =ROUND((E31*0.25),0)-1 -> 33263 | E31: =+'Original ABG Allocation'!E30 -> 133054 | G31: 0 | H31: 0 | I31: 0 | J31: 99791 | K31: 33263 | L31: 133054 | O31: 0 | P31: 0 | Q31: 0 | R31: 0 | S31: 0 | T31: 133054 | V31: 0 | W31: 0 | X31: 0 | Y31: 0 | Z31: 0 | AA31: 0
A32: =+'Original ABG Allocation'!A31 -> 26 | B32: =+'Original ABG Allocation'!B31 -> LANCASTER | C32: 123724 | D32: 41241 | E32: =+'Original ABG Allocation'!E31 -> 164965 | G32: 0 | H32: 0 | I32: 0 | J32: 123724 | K32: 41241 | L32: 164965 | O32: 0 | P32: 0 | Q32: 0 | R32: 0 | S32: 0 | T32: 164965 | V32: 0 | W32: 0 | X32: 0 | Y32: 0 | Z32: 0 | AA32: 0
A33: =+'Original ABG Allocation'!A32 -> 27 | B33: =+'Original ABG Allocation'!B32 -> CHESTER | C33: 55734 | D33: 18578 | E33: =+'Original ABG Allocation'!E32 -> 74312 | G33: 0 | H33: 0 | I33: 0 | J33: 55734 | K33: 18578 | L33: 74312 | O33: 0 | P33: 0 | Q33: 0 | R33: 0 | S33: 0 | T33: 74312 | V33: 0 | W33: 0 | X33: 0 | Y33: 0 | Z33: 0 | AA33: 0
A34: =+'Original ABG Allocation'!A33 -> 28 | B34: =+'Original ABG Allocation'!B33 -> MONTGOMERY | C34: 179247 | D34: 59749 | E34: =+'Original ABG Allocation'!E33 -> 238996 | G34: 0 | H34: 0 | I34: 0 | J34: 179247 | K34: 59749 | L34: 238996 | O34: 0 | P34: 0 | Q34: 0 | R34: 0 | S34: 0 | T34: 238996 | V34: 0 | W34: 0 | X34: 0 | Y34: 0 | Z34: 0 | AA34: 0
A35: =+'Original ABG Allocation'!A34 -> 29 | B35: =+'Original ABG Allocation'!B34 -> BUCKS | C35: 148345 | D35: 49448 | E35: =+'Original ABG Allocation'!E34 -> 197793 | G35: 0 | H35: 0 | I35: 0 | J35: 148345 | K35: 49448 | L35: 197793 | O35: 0 | P35: 0 | Q35: 0 | R35: 0 | S35: 0 | T35: 197793 | V35: 0 | W35: 0 | X35: 0 | Y35: 0 | Z35: 0 | AA35: 0
A36: =+'Original ABG Allocation'!A35 -> 30 | B36: =+'Original ABG Allocation'!B35 -> DELAWARE | C36: 173110 | D36: 57704 | E36: =+'Original ABG Allocation'!E35 -> 230814 | G36: 0 | H36: 0 | I36: 0 | J36: 173110 | K36: 57704 | L36: 230814 | O36: 0 | P36: 0 | Q36: 0 | R36: 0 | S36: 0 | T36: 230814 | V36: 0 | W36: 0 | X36: 0 | Y36: 0 | Z36: 0 | AA36: 0
A37: =+'Original ABG Allocation'!A36 -> 31 | B37: =+'Original ABG Allocation'!B36 -> PHILADELPHIA | C37: 1823731 | D37: 607911 | E37: =+'Original ABG Allocation'!E36 -> 2431642 | G37: 0 | H37: 0 | I37: 0 | J37: 1823731 | K37: 607911 | L37: 2431642 | O37: 0 | P37: 0 | Q37: 0 | R37: 0 | S37: 0 | T37: 2431642 | V37: 0 | W37: 0 | X37: 0 | Y37: 0 | Z37: 0 | AA37: 0
A38: =+'Original ABG Allocation'!A37 -> 32 | B38: =+'Original ABG Allocation'!B37 -> BERKS | C38: 196533 | D38: =ROUND((E38*0.25),0)-1 -> 65510 | E38: =+'Original ABG Allocation'!E37 -> 262043 | G38: 0 | H38: 0 | I38: 0 | J38: 196533 | K38: 65510 | L38: 262043 | O38: 0 | P38: 0 | Q38: 0 | R38: 0 | S38: 0 | T38: 262043 | V38: 0 | W38: 0 | X38: 0 | Y38: 0 | Z38: 0 | AA38: 0
A39: =+'Original ABG Allocation'!A38 -> 33 | B39: =+'Original ABG Allocation'!B38 -> LEHIGH | C39: 89979 | D39: =ROUND((E39*0.25),0)-1 -> 29992 | E39: =+'Original ABG Allocation'!E38 -> 119971 | G39: 0 | H39: 0 | I39: 0 | J39: 89979 | K39: 29992 | L39: 119971 | O39: 0 | P39: 0 | Q39: 0 | R39: 0 | S39: 0 | T39: 119971 | V39: 0 | W39: 0 | X39: 0 | Y39: 0 | Z39: 0 | AA39: 0
A40: =+'Original ABG Allocation'!A39 -> 34 | B40: =+'Original ABG Allocation'!B39 -> NORTHAMPTON | C40: 76575 | D40: =ROUND((E40*0.25),0)-1 -> 25524 | E40: =+'Original ABG Allocation'!E39 -> 102099 | G40: 0 | H40: 0 | I40: 0 | J40: 76575 | K40: 25524 | L40: 102099 | O40: 0 | P40: 0 | Q40: 0 | R40: 0 | S40: 0 | T40: 102099 | V40: 0 | W40: 0 | X40: 0 | Y40: 0 | Z40: 0 | AA40: 0
A41: =+'Original ABG Allocation'!A40 -> 35 | B41: =+'Original ABG Allocation'!B40 -> PIKE | C41: 15172 | D41: 5057 | E41: =+'Original ABG Allocation'!E40 -> 20229 | G41: 0 | H41: 0 | I41: 0 | J41: 15172 | K41: 5057 | L41: 20229 | O41: 0 | P41: 0 | Q41: 0 | R41: 0 | S41: 0 | T41: 20229 | V41: 0 | W41: 0 | X41: 0 | Y41: 0 | Z41: 0 | AA41: 0
A42: =+'Original ABG Allocation'!A41 -> 36 | B42: =+'Original ABG Allocation'!B41 -> B/S/S/T | C42: 102186 | D42: 34062 | E42: =+'Original ABG Allocation'!E41 -> 136248 | G42: 0 | H42: 0 | I42: 0 | J42: 102186 | K42: 34062 | L42: 136248 | O42: 0 | P42: 0 | Q42: 0 | R42: 0 | S42: 0 | T42: 136248 | V42: 0 | W42: 0 | X42: 0 | Y42: 0 | Z42: 0 | AA42: 0
A43: =+'Original ABG Allocation'!A42 -> 37 | B43: =+'Original ABG Allocation'!B42 -> LUZERNE/WYOMING | C43: 211911 | D43: =ROUND((E43*0.25),0)-1 -> 70636 | E43: =+'Original ABG Allocation'!E42 -> 282547 | G43: 0 | H43: 0 | I43: 0 | J43: 211911 | K43: 70636 | L43: 282547 | O43: 0 | P43: 0 | Q43: 0 | R43: 0 | S43: 0 | T43: 282547 | V43: 0 | W43: 0 | X43: 0 | Y43: 0 | Z43: 0 | AA43: 0
A44: =+'Original ABG Allocation'!A43 -> 38 | B44: =+'Original ABG Allocation'!B43 -> LACKAWANNA | C44: 173899 | D44: 57967 | E44: =+'Original ABG Allocation'!E43 -> 231866 | G44: 0 | H44: 0 | I44: 0 | J44: 173899 | K44: 57967 | L44: 231866 | O44: 0 | P44: 0 | Q44: 0 | R44: 0 | S44: 0 | T44: 231866 | V44: 0 | W44: 0 | X44: 0 | Y44: 0 | Z44: 0 | AA44: 0
A45: =+'Original ABG Allocation'!A44 -> 39 | B45: =+'Original ABG Allocation'!B44 -> CARBON | C45: 29553 | D45: =ROUND((E45*0.25),0)-1 -> 9850 | E45: =+'Original ABG Allocation'!E44 -> 39403 | G45: 0 | H45: 0 | I45: 0 | J45: 29553 | K45: 9850 | L45: 39403 | O45: 0 | P45: 0 | Q45: 0 | R45: 0 | S45: 0 | T45: 39403 | V45: 0 | W45: 0 | X45: 0 | Y45: 0 | Z45: 0 | AA45: 0
A46: =+'Original ABG Allocation'!A45 -> 40 | B46: =+'Original ABG Allocation'!B45 -> SCHUYLKILL | C46: 117383 | D46: =ROUND((E46*0.25),0)-1 -> 39127 | E46: =+'Original ABG Allocation'!E45 -> 156510 | G46: 0 | H46: 0 | I46: 0 | J46: 117383 | K46: 39127 | L46: 156510 | O46: 0 | P46: 0 | Q46: 0 | R46: 0 | S46: 0 | T46: 156510 | V46: 0 | W46: 0 | X46: 0 | Y46: 0 | Z46: 0 | AA46: 0
A47: =+'Original ABG Allocation'!A46 -> 41 | B47: =+'Original ABG Allocation'!B46 -> CLEARFIELD | C47: 57391 | D47: 19131 | E47: =+'Original ABG Allocation'!E46 -> 76522 | G47: 0 | H47: 0 | I47: 0 | J47: 57391 | K47: 19131 | L47: 76522 | O47: 0 | P47: 0 | Q47: 0 | R47: 0 | S47: 0 | T47: 76522 | V47: 0 | W47: 0 | X47: 0 | Y47: 0 | Z47: 0 | AA47: 0
A48: =+'Original ABG Allocation'!A47 -> 42 | B48: =+'Original ABG Allocation'!B47 -> JEFFERSON | C48: 44599 | D48: 14867 | E48: =+'Original ABG Allocation'!E47 -> 59466 | G48: 0 | H48: 0 | I48: 0 | J48: 44599 | K48: 14867 | L48: 59466 | O48: 0 | P48: 0 | Q48: 0 | R48: 0 | S48: 0 | T48: 59466 | V48: 0 | W48: 0 | X48: 0 | Y48: 0 | Z48: 0 | AA48: 0
A49: =+'Original ABG Allocation'!A48 -> 43 | B49: =+'Original ABG Allocation'!B48 -> FOREST/WARREN | C49: 22632 | D49: 7544 | E49: =+'Original ABG Allocation'!E48 -> 30176 | G49: 0 | H49: 0 | I49: 0 | J49: 22632 | K49: 7544 | L49: 30176 | O49: 0 | P49: 0 | Q49: 0 | R49: 0 | S49: 0 | T49: 30176 | V49: 0 | W49: 0 | X49: 0 | Y49: 0 | Z49: 0 | AA49: 0
A50: =+'Original ABG Allocation'!A49 -> 44 | B50: =+'Original ABG Allocation'!B49 -> VENANGO | C50: 41431 | D50: 13811 | E50: =+'Original ABG Allocation'!E49 -> 55242 | G50: 0 | H50: 0 | I50: 0 | J50: 41431 | K50: 13811 | L50: 55242 | O50: 0 | P50: 0 | Q50: 0 | R50: 0 | S50: 0 | T50: 55242 | V50: 0 | W50: 0 | X50: 0 | Y50: 0 | Z50: 0 | AA50: 0
A51: =+'Original ABG Allocation'!A50 -> 45 | B51: =+'Original ABG Allocation'!B50 -> ARMSTRONG | C51: 46519 | D51: 15507 | E51: =+'Original ABG Allocation'!E50 -> 62026 | G51: 0 | H51: 0 | I51: 0 | J51: 46519 | K51: 15507 | L51: 62026 | O51: 0 | P51: 0 | Q51: 0 | R51: 0 | S51: 0 | T51: 62026 | V51: 0 | W51: 0 | X51: 0 | Y51: 0 | Z51: 0 | AA51: 0
A52: =+'Original ABG Allocation'!A51 -> 46 | B52: =+'Original ABG Allocation'!B51 -> LAWRENCE | C52: 49345 | D52: 16448 | E52: =+'Original ABG Allocation'!E51 -> 65793 | G52: 0 | H52: 0 | I52: 0 | J52: 49345 | K52: 16448 | L52: 65793 | O52: 0 | P52: 0 | Q52: 0 | R52: 0 | S52: 0 | T52: 65793 | V52: 0 | W52: 0 | X52: 0 | Y52: 0 | Z52: 0 | AA52: 0
A53: =+'Original ABG Allocation'!A52 -> 47 | B53: =+'Original ABG Allocation'!B52 -> MERCER | C53: 57999 | D53: =ROUND((E53*0.25),0)-1 -> 19332 | E53: =+'Original ABG Allocation'!E52 -> 77331 | G53: 0 | H53: 0 | I53: 0 | J53: 57999 | K53: 19332 | L53: 77331 | O53: 0 | P53: 0 | Q53: 0 | R53: 0 | S53: 0 | T53: 77331 | V53: 0 | W53: 0 | X53: 0 | Y53: 0 | Z53: 0 | AA53: 0
A54: =+'Original ABG Allocation'!A53 -> 48 | B54: =+'Original ABG Allocation'!B53 -> MONROE | C54: 48920 | D54: 16307 | E54: =+'Original ABG Allocation'!E53 -> 65227 | G54: 0 | H54: 0 | I54: 0 | J54: 48920 | K54: 16307 | L54: 65227 | O54: 0 | P54: 0 | Q54: 0 | R54: 0 | S54: 0 | T54: 65227 | V54: 0 | W54: 0 | X54: 0 | Y54: 0 | Z54: 0 | AA54: 0
A55: =+'Original ABG Allocation'!A54 -> 49 | B55: =+'Original ABG Allocation'!B54 -> CLARION | C55: 32439 | D55: 10813 | E55: =+'Original ABG Allocation'!E54 -> 43252 | G55: 0 | H55: 0 | I55: 0 | J55: 32439 | K55: 10813 | L55: 43252 | O55: 0 | P55: 0 | Q55: 0 | R55: 0 | S55: 0 | T55: 43252 | V55: 0 | W55: 0 | X55: 0 | Y55: 0 | Z55: 0 | AA55: 0
A56: =+'Original ABG Allocation'!A55 -> 50 | B56: =+'Original ABG Allocation'!B55 -> BUTLER | C56: 84279 | D56: 28093 | E56: =+'Original ABG Allocation'!E55 -> 112372 | G56: 0 | H56: 0 | I56: 0 | J56: 84279 | K56: 28093 | L56: 112372 | O56: 0 | P56: 0 | Q56: 0 | R56: 0 | S56: 0 | T56: 112372 | V56: 0 | W56: 0 | X56: 0 | Y56: 0 | Z56: 0 | AA56: 0
A57: =+'Original ABG Allocation'!A56 -> 51 | B57: =+'Original ABG Allocation'!B56 -> POTTER | C57: 15013 | D57: 5004 | E57: =+'Original ABG Allocation'!E56 -> 20017 | G57: 0 | H57: 0 | I57: 0 | J57: 15013 | K57: 5004 | L57: 20017 | O57: 0 | P57: 0 | Q57: 0 | R57: 0 | S57: 0 | T57: 20017 | V57: 0 | W57: 0 | X57: 0 | Y57: 0 | Z57: 0 | AA57: 0
A58: =+'Original ABG Allocation'!A57 -> 52 | B58: =+'Original ABG Allocation'!B57 -> WAYNE | C58: 29011 | D58: 9671 | E58: =+'Original ABG Allocation'!E57 -> 38682 | G58: 0 | H58: 0 | I58: 0 | J58: 29011 | K58: 9671 | L58: 38682 | O58: 0 | P58: 0 | Q58: 0 | R58: 0 | S58: 0 | T58: 38682 | V58: 0 | W58: 0 | X58: 0 | Y58: 0 | Z58: 0 | AA58: 0
B59: TOTALS | C59: =SUM(C7:C58) -> 6757486 | D59: =SUM(D7:D58) -> 2252485 | E59: =SUM(E7:E58) -> 9009971 | G59: =SUM(G7:G58) -> 0 | H59: 0 | I59: 0 | J59: 6757486 | K59: 2252485 | L59: 9009971 | O59: =SUM(O7:O58) -> 0 | P59: 0 | Q59: 0 | R59: 0 | S59: 0 | T59: 9009971 | V59: =SUM(V7:V58) -> 0 | W59: 0 | X59: 0 | Y59: 0 | Z59: 0 | AA59: 0
C61: =C59/0.75 -> 9009981.333

Sheet NSIP
A1: PDA Allocation Model- | C1: NSIP
A2: =+'Original ABG Allocation'!A3 -> FY 2022-23 | E2: FY 2019-20
C3: COOPERATIVE | E3: NSIP MEAL | M3: CHANGE NO. 3
C4: AGREEMENT | E4: COUNT | G4: CHANGE NO. 1 | J4: CHANGE NO. 2 | M4: INCREASE/
G5: Increase/ | J5: Increase/ | M5: (DECREASE) | N5: TOTAL
G6: (Decrease) | H6: TOTAL | J6: (Decrease) | K6: TOTAL
A7: =+'Original ABG Allocation'!A6 -> 01 | B7: =+'Original ABG Allocation'!B6 -> ERIE | C7: =+'Original ABG Allocation'!F6 -> 66325 | E7: 113784.01 | G7: 0 | H7: =+ROUND(((E7/$E$59)*$E$61),0) -> 73422 | J7: 0 | K7: =H7+J7 -> 73422 | M7: 0 | N7: =K7+M7 -> 73422
A8: =+'Original ABG Allocation'!A7 -> 02 | B8: =+'Original ABG Allocation'!B7 -> CRAWFORD | C8: =+'Original ABG Allocation'!F7 -> 47328 | E8: 123632 | G8: 0 | H8: =ROUND(((E8/$E$59)*$E$61),0) -> 79777 | J8: 0 | K8: 79777 | M8: 0 | N8: 79777
A9: =+'Original ABG Allocation'!A8 -> 03 | B9: =+'Original ABG Allocation'!B8 -> CAM/ELK/MCKEAN | C9: =+'Original ABG Allocation'!F8 -> 35588 | E9: 48781 | G9: 0 | H9: =ROUND(((E9/$E$59)*$E$61),0) -> 31477 | J9: 0 | K9: 31477 | M9: 0 | N9: 31477
A10: =+'Original ABG Allocation'!A9 -> 04 | B10: =+'Original ABG Allocation'!B9 -> BEAVER | C10: =+'Original ABG Allocation'!F9 -> 23968 | E10: 21079 | G10: 0 | H10: 13602 | J10: 0 | K10: 13602 | M10: 0 | N10: 13602
A11: =+'Original ABG Allocation'!A10 -> 05 | B11: =+'Original ABG Allocation'!B10 -> INDIANA | C11: =+'Original ABG Allocation'!F10 -> 51905 | E11: 75462 | G11: 0 | H11: 48694 | J11: 0 | K11: 48694 | M11: 0 | N11: 48694
A12: =+'Original ABG Allocation'!A11 -> 06 | B12: =+'Original ABG Allocation'!B11 -> ALLEGHENY | C12: =+'Original ABG Allocation'!F11 -> 419219 | E12: 750042 | G12: 0 | H12: 483986 | J12: 0 | K12: 483986 | M12: 0 | N12: 483986
A13: =+'Original ABG Allocation'!A12 -> 07 | B13: =+'Original ABG Allocation'!B12 -> WESTMORELAND | C13: =+'Original ABG Allocation'!F12 -> 123773 | E13: 158973 | G13: 0 | H13: 102582 | J13: 0 | K13: 102582 | M13: 0 | N13: 102582
A14: =+'Original ABG Allocation'!A13 -> 08 | B14: =+'Original ABG Allocation'!B13 -> WASH/FAY/GREENE | C14: =+'Original ABG Allocation'!F13 -> 354500 | E14: 698879.5 | G14: 0 | H14: 450972 | J14: 0 | K14: 450972 | M14: 0 | N14: 450972
A15: =+'Original ABG Allocation'!A14 -> 09 | B15: =+'Original ABG Allocation'!B14 -> SOMERSET | C15: =+'Original ABG Allocation'!F14 -> 72579 | E15: 271768 | G15: 0 | H15: 175366 | J15: 0 | K15: 175366 | M15: 0 | N15: 175366
A16: =+'Original ABG Allocation'!A15 -> 10 | B16: =+'Original ABG Allocation'!B15 -> CAMBRIA | C16: =+'Original ABG Allocation'!F15 -> 178185 | E16: 297415 | G16: 0 | H16: 191915 | J16: 0 | K16: 191915 | M16: 0 | N16: 191915
A17: =+'Original ABG Allocation'!A16 -> 11 | B17: =+'Original ABG Allocation'!B16 -> BLAIR | C17: =+'Original ABG Allocation'!F16 -> 118873 | E17: 153817 | G17: 0 | H17: 99255 | J17: 0 | K17: 99255 | M17: 0 | N17: 99255
A18: =+'Original ABG Allocation'!A17 -> 12 | B18: =+'Original ABG Allocation'!B17 -> BED/FULT/HUNT | C18: =+'Original ABG Allocation'!F17 -> 66409 | E18: 77543 | G18: 0 | H18: 50037 | J18: 0 | K18: 50037 | M18: 0 | N18: 50037
A19: =+'Original ABG Allocation'!A18 -> 13 | B19: =+'Original ABG Allocation'!B18 -> CENTRE | C19: =+'Original ABG Allocation'!F18 -> 42135 | E19: 77657 | G19: 0 | H19: 50110 | J19: 0 | K19: 50110 | M19: 0 | N19: 50110
A20: =+'Original ABG Allocation'!A19 -> 14 | B20: =+'Original ABG Allocation'!B19 -> LYCOM/CLINTON | C20: =+'Original ABG Allocation'!F19 -> 80903 | E20: 131073 | G20: 0 | H20: 84579 | J20: 0 | K20: 84579 | M20: 0 | N20: 84579
A21: =+'Original ABG Allocation'!A20 -> 15 | B21: =+'Original ABG Allocation'!B20 -> COLUM/MONT | C21: =+'Original ABG Allocation'!F20 -> 26259 | E21: 47875 | G21: 0 | H21: 30893 | J21: 0 | K21: 30893 | M21: 0 | N21: 30893
A22: =+'Original ABG Allocation'!A21 -> 16 | B22: =+'Original ABG Allocation'!B21 -> NORTHUMBERLND | C22: =+'Original ABG Allocation'!F21 -> 38517 | E22: 111061 | G22: 0 | H22: 71665 | J22: 0 | K22: 71665 | M22: 0 | N22: 71665
A23: =+'Original ABG Allocation'!A22 -> 17 | B23: =+'Original ABG Allocation'!B22 -> UNION/SNYDER | C23: =+'Original ABG Allocation'!F22 -> 16745 | E23: 53354 | G23: 0 | H23: 34428 | J23: 0 | K23: 34428 | M23: 0 | N23: 34428
A24: =+'Original ABG Allocation'!A23 -> 18 | B24: =+'Original ABG Allocation'!B23 -> MIFF/JUNIATA | C24: =+'Original ABG Allocation'!F23 -> 44916 | E24: 86389.2 | G24: 0 | H24: 55745 | J24: 0 | K24: 55745 | M24: 0 | N24: 55745
A25: =+'Original ABG Allocation'!A24 -> 19 | B25: =+'Original ABG Allocation'!B24 -> FRANKLIN | C25: =+'Original ABG Allocation'!F24 -> 66539 | E25: 79456.75 | G25: 0 | H25: 51272 | J25: 0 | K25: 51272 | M25: 0 | N25: 51272
A26: =+'Original ABG Allocation'!A25 -> 20 | B26: =+'Original ABG Allocation'!B25 -> ADAMS | C26: =+'Original ABG Allocation'!F25 -> 29737 | E26: 51662 | G26: 0 | H26: 33336 | J26: 0 | K26: 33336 | M26: 0 | N26: 33336
A27: =+'Original ABG Allocation'!A26 -> 21 | B27: =+'Original ABG Allocation'!B26 -> CUMBERLAND | C27: =+'Original ABG Allocation'!F26 -> 21248 | E27: 48061 | G27: 0 | H27: 31013 | J27: 0 | K27: 31013 | M27: 0 | N27: 31013
A28: =+'Original ABG Allocation'!A27 -> 22 | B28: =+'Original ABG Allocation'!B27 -> PERRY | C28: =+'Original ABG Allocation'!F27 -> 28967 | E28: 31084 | G28: 0 | H28: 20058 | J28: 0 | K28: 20058 | M28: 0 | N28: 20058
A29: =+'Original ABG Allocation'!A28 -> 23 | B29: =+'Original ABG Allocation'!B28 -> DAUPHIN | C29: =+'Original ABG Allocation'!F28 -> 76056 | E29: 211983 | G29: 0 | H29: 136788 | J29: 0 | K29: 136788 | M29: 0 | N29: 136788
A30: =+'Original ABG Allocation'!A29 -> 24 | B30: =+'Original ABG Allocation'!B29 -> LEBANON | C30: =+'Original ABG Allocation'!F29 -> 40188 | E30: 91190.25 | G30: 0 | H30: 58843 | J30: 0 | K30: 58843 | M30: 0 | N30: 58843
A31: =+'Original ABG Allocation'!A30 -> 25 | B31: =+'Original ABG Allocation'!B30 -> YORK | C31: =+'Original ABG Allocation'!F30 -> 204767 | E31: 434881 | G31: 0 | H31: 280619 | J31: 0 | K31: 280619 | M31: 0 | N31: 280619
A32: =+'Original ABG Allocation'!A31 -> 26 | B32: =+'Original ABG Allocation'!B31 -> LANCASTER | C32: =+'Original ABG Allocation'!F31 -> 60963 | E32: 142732 | G32: 0 | H32: 92102 | J32: 0 | K32: 92102 | M32: 0 | N32: 92102
A33: =+'Original ABG Allocation'!A32 -> 27 | B33: =+'Original ABG Allocation'!B32 -> CHESTER | C33: =+'Original ABG Allocation'!F32 -> 65735 | E33: 75744.5 | G33: 0 | H33: 48876 | J33: 0 | K33: 48876 | M33: 0 | N33: 48876
A34: =+'Original ABG Allocation'!A33 -> 28 | B34: =+'Original ABG Allocation'!B33 -> MONTGOMERY | C34: =+'Original ABG Allocation'!F33 -> 222009 | E34: 416961 | G34: 0 | H34: 269056 | J34: 0 | K34: 269056 | M34: 0 | N34: 269056
A35: =+'Original ABG Allocation'!A34 -> 29 | B35: =+'Original ABG Allocation'!B34 -> BUCKS | C35: =+'Original ABG Allocation'!F34 -> 80421 | E35: 179328 | G35: 0 | H35: 115716 | J35: 0 | K35: 115716 | M35: 0 | N35: 115716
A36: =+'Original ABG Allocation'!A35 -> 30 | B36: =+'Original ABG Allocation'!B35 -> DELAWARE | C36: =+'Original ABG Allocation'!F35 -> 92075 | E36: 187523 | G36: 0 | H36: 121005 | J36: 0 | K36: 121005 | M36: 0 | N36: 121005
A37: =+'Original ABG Allocation'!A36 -> 31 | B37: =+'Original ABG Allocation'!B36 -> PHILADELPHIA | C37: =+'Original ABG Allocation'!F36 -> 803599 | E37: 1533329 | G37: 0 | H37: =ROUND(((E37/$E$59)*$E$61),0) -> 989424 | J37: 0 | K37: 989424 | M37: 0 | N37: 989424
A38: =+'Original ABG Allocation'!A37 -> 32 | B38: =+'Original ABG Allocation'!B37 -> BERKS | C38: =+'Original ABG Allocation'!F37 -> 158821 | E38: 279511 | G38: 0 | H38: 180362 | J38: 0 | K38: 180362 | M38: 0 | N38: 180362
A39: =+'Original ABG Allocation'!A38 -> 33 | B39: =+'Original ABG Allocation'!B38 -> LEHIGH | C39: =+'Original ABG Allocation'!F38 -> 42793 | E39: 84805.51 | G39: 0 | H39: 54723 | J39: 0 | K39: =H39+J39 -> 54723 | M39: 0 | N39: 54723
A40: =+'Original ABG Allocation'!A39 -> 34 | B40: =+'Original ABG Allocation'!B39 -> NORTHAMPTON | C40: =+'Original ABG Allocation'!F39 -> 73789 | E40: 157748 | G40: 0 | H40: 101791 | J40: 0 | K40: 101791 | M40: 0 | N40: 101791
A41: =+'Original ABG Allocation'!A40 -> 35 | B41: =+'Original ABG Allocation'!B40 -> PIKE | C41: =+'Original ABG Allocation'!F40 -> 20687 | E41: 32828.01 | G41: 0 | H41: 21183 | J41: 0 | K41: 21183 | M41: 0 | N41: 21183
A42: =+'Original ABG Allocation'!A41 -> 36 | B42: =+'Original ABG Allocation'!B41 -> B/S/S/T | C42: =+'Original ABG Allocation'!F41 -> 98527 | E42: 185113 | G42: 0 | H42: 119449 | J42: 0 | K42: 119449 | M42: 0 | N42: 119449
A43: =+'Original ABG Allocation'!A42 -> 37 | B43: =+'Original ABG Allocation'!B42 -> LUZERNE/WYOMING | C43: =+'Original ABG Allocation'!F42 -> 219979 | E43: 311705 | G43: 0 | H43: 201136 | J43: 0 | K43: 201136 | M43: 0 | N43: 201136
A44: =+'Original ABG Allocation'!A43 -> 38 | B44: =+'Original ABG Allocation'!B43 -> LACKAWANNA | C44: =+'Original ABG Allocation'!F43 -> 124839 | E44: 244348 | G44: 0 | H44: 157672 | J44: 0 | K44: 157672 | M44: 0 | N44: 157672
A45: =+'Original ABG Allocation'!A44 -> 39 | B45: =+'Original ABG Allocation'!B44 -> CARBON | C45: =+'Original ABG Allocation'!F44 -> 30903 | E45: 56092 | G45: 0 | H45: 36195 | J45: 0 | K45: 36195 | M45: 0 | N45: 36195
A46: =+'Original ABG Allocation'!A45 -> 40 | B46: =+'Original ABG Allocation'!B45 -> SCHUYLKILL | C46: =+'Original ABG Allocation'!F45 -> 56511 | E46: 104608 | G46: 0 | H46: 67501 | J46: 0 | K46: 67501 | M46: 0 | N46: 67501
A47: =+'Original ABG Allocation'!A46 -> 41 | B47: =+'Original ABG Allocation'!B46 -> CLEARFIELD | C47: =+'Original ABG Allocation'!F46 -> 110249 | E47: 183800 | G47: 0 | H47: 118602 | J47: 0 | K47: 118602 | M47: 0 | N47: 118602
A48: =+'Original ABG Allocation'!A47 -> 42 | B48: =+'Original ABG Allocation'!B47 -> JEFFERSON | C48: =+'Original ABG Allocation'!F47 -> 28079 | E48: 54040 | G48: 0 | H48: 34871 | J48: 0 | K48: 34871 | M48: 0 | N48: 34871
A49: =+'Original ABG Allocation'!A48 -> 43 | B49: =+'Original ABG Allocation'!B48 -> FOREST/WARREN | C49: =+'Original ABG Allocation'!F48 -> 27753 | E49: 47222 | G49: 0 | H49: 30471 | J49: 0 | K49: 30471 | M49: 0 | N49: 30471
A50: =+'Original ABG Allocation'!A49 -> 44 | B50: =+'Original ABG Allocation'!B49 -> VENANGO | C50: =+'Original ABG Allocation'!F49 -> 36107 | E50: 73393.75 | G50: 0 | H50: 47359 | J50: 0 | K50: 47359 | M50: 0 | N50: 47359
A51: =+'Original ABG Allocation'!A50 -> 45 | B51: =+'Original ABG Allocation'!B50 -> ARMSTRONG | C51: =+'Original ABG Allocation'!F50 -> 71631 | E51: 141946 | G51: 0 | H51: 91595 | J51: 0 | K51: 91595 | M51: 0 | N51: 91595
A52: =+'Original ABG Allocation'!A51 -> 46 | B52: =+'Original ABG Allocation'!B51 -> LAWRENCE | C52: =+'Original ABG Allocation'!F51 -> 43055 | E52: 82121 | G52: 0 | H52: 52991 | J52: 0 | K52: 52991 | M52: 0 | N52: 52991
A53: =+'Original ABG Allocation'!A52 -> 47 | B53: =+'Original ABG Allocation'!B52 -> MERCER | C53: =+'Original ABG Allocation'!F52 -> 41143 | E53: 103936 | G53: 0 | H53: 67068 | J53: 0 | K53: 67068 | M53: 0 | N53: 67068
A54: =+'Original ABG Allocation'!A53 -> 48 | B54: =+'Original ABG Allocation'!B53 -> MONROE | C54: =+'Original ABG Allocation'!F53 -> 37809 | E54: 119306 | G54: 0 | H54: 76986 | J54: 0 | K54: 76986 | M54: 0 | N54: 76986
A55: =+'Original ABG Allocation'!A54 -> 49 | B55: =+'Original ABG Allocation'!B54 -> CLARION | C55: =+'Original ABG Allocation'!F54 -> 29696 | E55: 49983 | G55: 0 | H55: 32253 | J55: 0 | K55: 32253 | M55: 0 | N55: 32253
A56: =+'Original ABG Allocation'!A55 -> 50 | B56: =+'Original ABG Allocation'!B55 -> BUTLER | C56: =+'Original ABG Allocation'!F55 -> 40783 | E56: 81896 | G56: 0 | H56: 52846 | J56: 0 | K56: 52846 | M56: 0 | N56: 52846
A57: =+'Original ABG Allocation'!A56 -> 51 | B57: =+'Original ABG Allocation'!B56 -> POTTER | C57: =+'Original ABG Allocation'!F56 -> 14811 | E57: 22290 | G57: 0 | H57: 14383 | J57: 0 | K57: 14383 | M57: 0 | N57: 14383
A58: =+'Original ABG Allocation'!A57 -> 52 | B58: =+'Original ABG Allocation'!B57 -> WAYNE | C58: =+'Original ABG Allocation'!F57 -> 55047 | E58: 99100.25 | G58: 0 | H58: =ROUND(((E58/$E$59)*$E$61),0)+3 -> 63950 | J58: 0 | K58: 63950 | M58: 0 | N58: 63950
B59: TOTALS | C59: =SUM(C7:C58) -> 4963443 | E59: =SUM(E7:E58) -> 9298312.73 | G59: =SUM(G7:G58) -> 0 | H59: =SUM(H7:H58) -> 6000000 | J59: =SUM(J7:J58) -> 0 | K59: =SUM(K7:K58) -> 6000000 | M59: =SUM(M7:M58) -> 0 | N59: =SUM(N7:N58) -> 6000000
A61: Available Federal Funding | E61: 6000000

Sheet PA MEDI
A1: PDA Allocation Model- | C1: PA MEDI
A2: =+'Original ABG Allocation'!A3 -> FY 2022-23
C3: COOPERATIVE | K3: CHANGE NO.3
C4: AGREEMENT | E4: CHANGE NO. 1 | H4: CHANGE NO.2 | K4: INCREASE/ | L4: REVISED
E5: Increase/ | H5: INCREASE/ | I5: REVISED
E6: (Decrease) | F6: TOTAL | H6: DECREASE | I6: AMOUNT | K6: DECREASE | L6: AMOUNT
A7: =+'Original ABG Allocation'!A6 -> 01 | B7: =+'Original ABG Allocation'!B6 -> ERIE | C7: =+'Original ABG Allocation'!G6 -> 20097 | E7: 0 | F7: =C7+E7 -> 20097 | H7: 0 | I7: =F7+H7 -> 20097 | K7: 0 | L7: =I7+K7 -> 20097
A8: =+'Original ABG Allocation'!A7 -> 02 | B8: =+'Original ABG Allocation'!B7 -> CRAWFORD | C8: =+'Original ABG Allocation'!G7 -> 10676 | E8: 0 | F8: 10676 | H8: 0 | I8: 10676 | K8: 0 | L8: 10676
A9: =+'Original ABG Allocation'!A8 -> 03 | B9: =+'Original ABG Allocation'!B8 -> CAM/ELK/MCKEAN | C9: =+'Original ABG Allocation'!G8 -> 11237 | E9: 0 | F9: 11237 | H9: 0 | I9: 11237 | K9: 0 | L9: 11237
A10: =+'Original ABG Allocation'!A9 -> 04 | B10: =+'Original ABG Allocation'!B9 -> BEAVER | C10: =+'Original ABG Allocation'!G9 -> 15815 | E10: 0 | F10: 15815 | H10: 0 | I10: 15815 | K10: 0 | L10: 15815
A11: =+'Original ABG Allocation'!A10 -> 05 | B11: =+'Original ABG Allocation'!B10 -> INDIANA | C11: =+'Original ABG Allocation'!G10 -> 10185 | E11: 0 | F11: 10185 | H11: 0 | I11: 10185 | K11: 0 | L11: 10185
A12: =+'Original ABG Allocation'!A11 -> 06 | B12: =+'Original ABG Allocation'!B11 -> ALLEGHENY | C12: =+'Original ABG Allocation'!G11 -> 107007 | E12: 0 | F12: 107007 | H12: 0 | I12: 107007 | K12: 0 | L12: 107007
A13: =+'Original ABG Allocation'!A12 -> 07 | B13: =+'Original ABG Allocation'!B12 -> WESTMORELAND | C13: =+'Original ABG Allocation'!G12 -> 33328 | E13: 0 | F13: 33328 | H13: 0 | I13: 33328 | K13: 0 | L13: 33328
A14: =+'Original ABG Allocation'!A13 -> 08 | B14: =+'Original ABG Allocation'!B13 -> WASH/FAY/GREENE | C14: =+'Original ABG Allocation'!G13 -> 39938 | E14: 0 | F14: 39938 | H14: 0 | I14: 39938 | K14: 0 | L14: 39938
A15: =+'Original ABG Allocation'!A14 -> 09 | B15: =+'Original ABG Allocation'!B14 -> SOMERSET | C15: =+'Original ABG Allocation'!G14 -> 11799 | E15: 0 | F15: 11799 | H15: 0 | I15: 11799 | K15: 0 | L15: 11799
A16: =+'Original ABG Allocation'!A15 -> 10 | B16: =+'Original ABG Allocation'!B15 -> CAMBRIA | C16: =+'Original ABG Allocation'!G15 -> 17087 | E16: 0 | F16: 17087 | H16: 0 | I16: 17087 | K16: 0 | L16: 17087
A17: =+'Original ABG Allocation'!A16 -> 11 | B17: =+'Original ABG Allocation'!B16 -> BLAIR | C17: =+'Original ABG Allocation'!G16 -> 11735 | E17: 0 | F17: 11735 | H17: 0 | I17: 11735 | K17: 0 | L17: 11735
A18: =+'Original ABG Allocation'!A17 -> 12 | B18: =+'Original ABG Allocation'!B17 -> BED/FULT/HUNT | C18: =+'Original ABG Allocation'!G17 -> 14807 | E18: 0 | F18: 14807 | H18: 0 | I18: 14807 | K18: 0 | L18: 14807
A19: =+'Original ABG Allocation'!A18 -> 13 | B19: =+'Original ABG Allocation'!B18 -> CENTRE | C19: =+'Original ABG Allocation'!G18 -> 10000 | E19: 0 | F19: 10000 | H19: 0 | I19: 10000 | K19: 0 | L19: 10000
A20: =+'Original ABG Allocation'!A19 -> 14 | B20: =+'Original ABG Allocation'!B19 -> LYCOM/CLINTON | C20: =+'Original ABG Allocation'!G19 -> 16355 | E20: 0 | F20: 16355 | H20: 0 | I20: 16355 | K20: 0 | L20: 16355
A21: =+'Original ABG Allocation'!A20 -> 15 | B21: =+'Original ABG Allocation'!B20 -> COLUM/MONT | C21: =+'Original ABG Allocation'!G20 -> 10000 | E21: 0 | F21: 10000 | H21: 0 | I21: 10000 | K21: 0 | L21: 10000
A22: =+'Original ABG Allocation'!A21 -> 16 | B22: =+'Original ABG Allocation'!B21 -> NORTHUMBERLND | C22: =+'Original ABG Allocation'!G21 -> 11327 | E22: 0 | F22: 11327 | H22: 0 | I22: 11327 | K22: 0 | L22: 11327
A23: =+'Original ABG Allocation'!A22 -> 17 | B23: =+'Original ABG Allocation'!B22 -> UNION/SNYDER | C23: =+'Original ABG Allocation'!G22 -> 10000 | E23: 0 | F23: 10000 | H23: 0 | I23: 10000 | K23: 0 | L23: 10000
A24: =+'Original ABG Allocation'!A23 -> 18 | B24: =+'Original ABG Allocation'!B23 -> MIFF/JUNIATA | C24: =+'Original ABG Allocation'!G23 -> 10222 | E24: 0 | F24: 10222 | H24: 0 | I24: 10222 | K24: 0 | L24: 10222
A25: =+'Original ABG Allocation'!A24 -> 19 | B25: =+'Original ABG Allocation'!B24 -> FRANKLIN | C25: =+'Original ABG Allocation'!G24 -> 15528 | E25: 0 | F25: 15528 | H25: 0 | I25: 15528 | K25: 0 | L25: 15528
A26: =+'Original ABG Allocation'!A25 -> 20 | B26: =+'Original ABG Allocation'!B25 -> ADAMS | C26: =+'Original ABG Allocation'!G25 -> 10175 | E26: 0 | F26: 10175 | H26: 0 | I26: 10175 | K26: 0 | L26: 10175
A27: =+'Original ABG Allocation'!A26 -> 21 | B27: =+'Original ABG Allocation'!B26 -> CUMBERLAND | C27: =+'Original ABG Allocation'!G26 -> 17010 | E27: 0 | F27: 17010 | H27: 0 | I27: 17010 | K27: 0 | L27: 17010
A28: =+'Original ABG Allocation'!A27 -> 22 | B28: =+'Original ABG Allocation'!B27 -> PERRY | C28: =+'Original ABG Allocation'!G27 -> 10000 | E28: 0 | F28: 10000 | H28: 0 | I28: 10000 | K28: 0 | L28: 10000
A29: =+'Original ABG Allocation'!A28 -> 23 | B29: =+'Original ABG Allocation'!B28 -> DAUPHIN | C29: =+'Original ABG Allocation'!G28 -> 18822 | E29: 0 | F29: 18822 | H29: 0 | I29: 18822 | K29: 0 | L29: 18822
A30: =+'Original ABG Allocation'!A29 -> 24 | B30: =+'Original ABG Allocation'!B29 -> LEBANON | C30: =+'Original ABG Allocation'!G29 -> 11419 | E30: 0 | F30: 11419 | H30: 0 | I30: 11419 | K30: 0 | L30: 11419
A31: =+'Original ABG Allocation'!A30 -> 25 | B31: =+'Original ABG Allocation'!B30 -> YORK | C31: =+'Original ABG Allocation'!G30 -> 27448 | E31: 0 | F31: 27448 | H31: 0 | I31: 27448 | K31: 0 | L31: 27448
A32: =+'Original ABG Allocation'!A31 -> 26 | B32: =+'Original ABG Allocation'!B31 -> LANCASTER | C32: =+'Original ABG Allocation'!G31 -> 33008 | E32: 0 | F32: 33008 | H32: 0 | I32: 33008 | K32: 0 | L32: 33008
A33: =+'Original ABG Allocation'!A32 -> 27 | B33: =+'Original ABG Allocation'!B32 -> CHESTER | C33: =+'Original ABG Allocation'!G32 -> 25091 | E33: 0 | F33: 25091 | H33: 0 | I33: 25091 | K33: 0 | L33: 25091
A34: =+'Original ABG Allocation'!A33 -> 28 | B34: =+'Original ABG Allocation'!B33 -> MONTGOMERY | C34: =+'Original ABG Allocation'!G33 -> 47311 | E34: 0 | F34: 47311 | H34: 0 | I34: 47311 | K34: 0 | L34: 47311
A35: =+'Original ABG Allocation'!A34 -> 29 | B35: =+'Original ABG Allocation'!B34 -> BUCKS | C35: =+'Original ABG Allocation'!G34 -> 33291 | E35: 0 | F35: 33291 | H35: 0 | I35: 33291 | K35: 0 | L35: 33291
A36: =+'Original ABG Allocation'!A35 -> 30 | B36: =+'Original ABG Allocation'!B35 -> DELAWARE | C36: =+'Original ABG Allocation'!G35 -> 35954 | E36: 0 | F36: 35954 | H36: 0 | I36: 35954 | K36: 0 | L36: 35954
A37: =+'Original ABG Allocation'!A36 -> 31 | B37: =+'Original ABG Allocation'!B36 -> PHILADELPHIA | C37: =+'Original ABG Allocation'!G36 -> 107007 | E37: 0 | F37: 107007 | H37: 0 | I37: 107007 | K37: 0 | L37: 107007
A38: =+'Original ABG Allocation'!A37 -> 32 | B38: =+'Original ABG Allocation'!B37 -> BERKS | C38: =+'Original ABG Allocation'!G37 -> 29191 | E38: 0 | F38: 29191 | H38: 0 | I38: 29191 | K38: 0 | L38: 29191
A39: =+'Original ABG Allocation'!A38 -> 33 | B39: =+'Original ABG Allocation'!B38 -> LEHIGH | C39: =+'Original ABG Allocation'!G38 -> 21310 | E39: 0 | F39: =C39+E39 -> 21310 | H39: 0 | I39: =F39+H39 -> 21310 | K39: 0 | L39: 21310
A40: =+'Original ABG Allocation'!A39 -> 34 | B40: =+'Original ABG Allocation'!B39 -> NORTHAMPTON | C40: =+'Original ABG Allocation'!G39 -> 19506 | E40: 0 | F40: 19506 | H40: 0 | I40: 19506 | K40: 0 | L40: 19506
A41: =+'Original ABG Allocation'!A40 -> 35 | B41: =+'Original ABG Allocation'!B40 -> PIKE | C41: =+'Original ABG Allocation'!G40 -> 10000 | E41: 0 | F41: 10000 | H41: 0 | I41: 10000 | K41: 0 | L41: 10000
A42: =+'Original ABG Allocation'!A41 -> 36 | B42: =+'Original ABG Allocation'!B41 -> B/S/S/T | C42: =+'Original ABG Allocation'!G41 -> 20201 | E42: 0 | F42: 20201 | H42: 0 | I42: 20201 | K42: 0 | L42: 20201
A43: =+'Original ABG Allocation'!A42 -> 37 | B43: =+'Original ABG Allocation'!B42 -> LUZERNE/WYOMING | C43: =+'Original ABG Allocation'!G42 -> 31720 | E43: 0 | F43: 31720 | H43: 0 | I43: 31720 | K43: 0 | L43: 31720
A44: =+'Original ABG Allocation'!A43 -> 38 | B44: =+'Original ABG Allocation'!B43 -> LACKAWANNA | C44: =+'Original ABG Allocation'!G43 -> 18501 | E44: 0 | F44: 18501 | H44: 0 | I44: 18501 | K44: 0 | L44: 18501
A45: =+'Original ABG Allocation'!A44 -> 39 | B45: =+'Original ABG Allocation'!B44 -> CARBON | C45: =+'Original ABG Allocation'!G44 -> 10000 | E45: 0 | F45: 10000 | H45: 0 | I45: 10000 | K45: 0 | L45: 10000
A46: =+'Original ABG Allocation'!A45 -> 40 | B46: =+'Original ABG Allocation'!B45 -> SCHUYLKILL | C46: =+'Original ABG Allocation'!G45 -> 18478 | E46: 0 | F46: 18478 | H46: 0 | I46: 18478 | K46: 0 | L46: 18478
A47: =+'Original ABG Allocation'!A46 -> 41 | B47: =+'Original ABG Allocation'!B46 -> CLEARFIELD | C47: =+'Original ABG Allocation'!G46 -> 11341 | E47: 0 | F47: 11341 | H47: 0 | I47: 11341 | K47: 0 | L47: 11341
A48: =+'Original ABG Allocation'!A47 -> 42 | B48: =+'Original ABG Allocation'!B47 -> JEFFERSON | C48: =+'Original ABG Allocation'!G47 -> 10000 | E48: 0 | F48: 10000 | H48: 0 | I48: 10000 | K48: 0 | L48: 10000
A49: =+'Original ABG Allocation'!A48 -> 43 | B49: =+'Original ABG Allocation'!B48 -> FOREST/WARREN | C49: =+'Original ABG Allocation'!G48 -> 10000 | E49: 0 | F49: 10000 | H49: 0 | I49: 10000 | K49: 0 | L49: 10000
A50: =+'Original ABG Allocation'!A49 -> 44 | B50: =+'Original ABG Allocation'!B49 -> VENANGO | C50: =+'Original ABG Allocation'!G49 -> 10000 | E50: 0 | F50: 10000 | H50: 0 | I50: 10000 | K50: 0 | L50: 10000
A51: =+'Original ABG Allocation'!A50 -> 45 | B51: =+'Original ABG Allocation'!B50 -> ARMSTRONG | C51: =+'Original ABG Allocation'!G50 -> 10719 | E51: 0 | F51: 10719 | H51: 0 | I51: 10719 | K51: 0 | L51: 10719
A52: =+'Original ABG Allocation'!A51 -> 46 | B52: =+'Original ABG Allocation'!B51 -> LAWRENCE | C52: =+'Original ABG Allocation'!G51 -> 10341 | E52: 0 | F52: 10341 | H52: 0 | I52: 10341 | K52: 0 | L52: 10341
A53: =+'Original ABG Allocation'!A52 -> 47 | B53: =+'Original ABG Allocation'!B52 -> MERCER | C53: =+'Original ABG Allocation'!G52 -> 13302 | E53: 0 | F53: 13302 | H53: 0 | I53: 13302 | K53: 0 | L53: 13302
A54: =+'Original ABG Allocation'!A53 -> 48 | B54: =+'Original ABG Allocation'!B53 -> MONROE | C54: =+'Original ABG Allocation'!G53 -> 13317 | E54: 0 | F54: 13317 | H54: 0 | I54: 13317 | K54: 0 | L54: 13317
A55: =+'Original ABG Allocation'!A54 -> 49 | B55: =+'Original ABG Allocation'!B54 -> CLARION | C55: =+'Original ABG Allocation'!G54 -> 10000 | E55: 0 | F55: 10000 | H55: 0 | I55: 10000 | K55: 0 | L55: 10000
A56: =+'Original ABG Allocation'!A55 -> 50 | B56: =+'Original ABG Allocation'!B55 -> BUTLER | C56: =+'Original ABG Allocation'!G55 -> 16742 | E56: 0 | F56: 16742 | H56: 0 | I56: 16742 | K56: 0 | L56: 16742
A57: =+'Original ABG Allocation'!A56 -> 51 | B57: =+'Original ABG Allocation'!B56 -> POTTER | C57: =+'Original ABG Allocation'!G56 -> 10000 | E57: 0 | F57: 10000 | H57: 0 | I57: 10000 | K57: 0 | L57: 10000
A58: =+'Original ABG Allocation'!A57 -> 52 | B58: =+'Original ABG Allocation'!B57 -> WAYNE | C58: =+'Original ABG Allocation'!G57 -> 10000 | E58: 0 | F58: 10000 | H58: 0 | I58: 10000 | K58: 0 | L58: 10000
B59: TOTALS | C59: =SUM(C7:C58) -> 1078348 | E59: =SUM(E7:E58) -> 0 | F59: =SUM(F7:F58) -> 1078348 | H59: =SUM(H7:H58) -> 0 | I59: =SUM(I7:I58) -> 1078348 | K59: =SUM(K7:K58) -> 0 | L59: =SUM(L7:L58) -> 1078348

Sheet Health Promotion
A1: PDA Allocation Model- | C1: Health Promotion
A2: =+'Original ABG Allocation'!A3 -> FY 2022-23
C3: FY 2020-21 | H3: Change No. 1 | T3: CHANGE NO.3
C4: COOPERATIVE AGREEMENT | H4: Federal | I4: State Match | J4: Total | K4: Federal | L4: State | O4: CHANGE NO.2 | T4: INCREASE/(DECREASE) | V4: REVISED
H5: Increase/ | I5: Increase/ | J5: Increase/ | K5: Caregiver | L5: Caregiver | O5: Increase/(Decrease) | R5: Revised | T5: Federal | U5: State | V5: AMOUNT
C6: Federal | D6: State | E6: Total | F6: Total | H6: Decrease | I6: Decrease | J6: Decrease | K6: Support | L6: Match | M6: TOTAL | O6: Federal | P6: State | Q6: Revised | R6: AMOUNT
A7: =+'Original ABG Allocation'!A6 -> 01 | B7: =+'Original ABG Allocation'!B6 -> ERIE | C7: 17483 | D7: 8187 | E7: =C7+D7 -> 25670 | F7: =+'Original ABG Allocation'!H6 -> 25670 | H7: 0 | I7: 0 | J7: =SUM(H7:I7) -> 0 | K7: =C7+H7 -> 17483 | L7: =D7+I7 -> 8187 | M7: =K7+L7 -> 25670 | O7: 0 | Q7: 0 | R7: =M7+O7+P7+Q7 -> 25670 | T7: 0 | U7: 0 | V7: =+R7+T7+U7 -> 25670
A8: =+'Original ABG Allocation'!A7 -> 02 | B8: =+'Original ABG Allocation'!B7 -> CRAWFORD | C8: 8312 | D8: 3941 | E8: 12253 | F8: =+'Original ABG Allocation'!H7 -> 12253 | H8: 0 | I8: 0 | J8: =SUM(H8:I8) -> 0 | K8: =C8+H8 -> 8312 | L8: =D8+I8 -> 3941 | M8: =K8+L8 -> 12253 | O8: 0 | Q8: 0 | R8: =M8+O8+P8+Q8 -> 12253 | T8: 0 | U8: 0 | V8: =+R8+T8+U8 -> 12253
A9: =+'Original ABG Allocation'!A8 -> 03 | B9: =+'Original ABG Allocation'!B8 -> CAM/ELK/MCKEAN | C9: 8877 | D9: 4600 | E9: 13477 | F9: =+'Original ABG Allocation'!H8 -> 13477 | H9: 0 | I9: 0 | J9: 0 | K9: 8877 | L9: 4600 | M9: 13477 | O9: 0 | Q9: 0 | R9: 13477 | T9: 0 | U9: 0 | V9: 13477
A10: =+'Original ABG Allocation'!A9 -> 04 | B10: =+'Original ABG Allocation'!B9 -> BEAVER | C10: 14489 | D10: 7550 | E10: 22039 | F10: =+'Original ABG Allocation'!H9 -> 22039 | H10: 0 | I10: 0 | J10: 0 | K10: 14489 | L10: 7550 | M10: 22039 | O10: 0 | Q10: 0 | R10: 22039 | T10: 0 | U10: 0 | V10: 22039
A11: =+'Original ABG Allocation'!A10 -> 05 | B11: =+'Original ABG Allocation'!B10 -> INDIANA | C11: 8245 | D11: 4373 | E11: 12618 | F11: =+'Original ABG Allocation'!H10 -> 12618 | H11: 0 | I11: 0 | J11: 0 | K11: 8245 | L11: 4373 | M11: 12618 | O11: 0 | Q11: 0 | R11: 12618 | T11: 0 | U11: 0 | V11: 12618
A12: =+'Original ABG Allocation'!A11 -> 06 | B12: =+'Original ABG Allocation'!B11 -> ALLEGHENY | C12: 105042 | D12: 53577 | E12: 158619 | F12: =+'Original ABG Allocation'!H11 -> 158619 | H12: 0 | I12: 0 | J12: 0 | K12: 105042 | L12: 53577 | M12: 158619 | O12: 0 | Q12: 0 | R12: 158619 | T12: 0 | U12: 0 | V12: 158619
A13: =+'Original ABG Allocation'!A12 -> 07 | B13: =+'Original ABG Allocation'!B12 -> WESTMORELAND | C13: 29806 | D13: 17221 | E13: 47027 | F13: =+'Original ABG Allocation'!H12 -> 47027 | H13: 0 | I13: 0 | J13: 0 | K13: 29806 | L13: 17221 | M13: 47027 | O13: 0 | Q13: 0 | R13: 47027 | T13: 0 | U13: 0 | V13: 47027
A14: =+'Original ABG Allocation'!A13 -> 08 | B14: =+'Original ABG Allocation'!B13 -> WASH/FAY/GREENE | C14: 43251 | D14: 24847 | E14: 68098 | F14: =+'Original ABG Allocation'!H13 -> 68098 | H14: 0 | I14: 0 | J14: 0 | K14: 43251 | L14: 24847 | M14: 68098 | O14: 0 | Q14: 0 | R14: 68098 | T14: 0 | U14: 0 | V14: 68098
A15: =+'Original ABG Allocation'!A14 -> 09 | B15: =+'Original ABG Allocation'!B14 -> SOMERSET | C15: 9571 | D15: 5306 | E15: 14877 | F15: =+'Original ABG Allocation'!H14 -> 14877 | H15: 0 | I15: 0 | J15: 0 | K15: 9571 | L15: 5306 | M15: 14877 | O15: 0 | Q15: 0 | R15: 14877 | T15: 0 | U15: 0 | V15: 14877
A16: =+'Original ABG Allocation'!A15 -> 10 | B16: =+'Original ABG Allocation'!B15 -> CAMBRIA | C16: 16052 | D16: 9029 | E16: 25081 | F16: =+'Original ABG Allocation'!H15 -> 25081 | H16: 0 | I16: 0 | J16: 0 | K16: 16052 | L16: 9029 | M16: 25081 | O16: 0 | Q16: 0 | R16: 25081 | T16: 0 | U16: 0 | V16: 25081
A17: =+'Original ABG Allocation'!A16 -> 11 | B17: =+'Original ABG Allocation'!B16 -> BLAIR | C17: 11153 | D17: 5881 | E17: 17034 | F17: =+'Original ABG Allocation'!H16 -> 17034 | H17: 0 | I17: 0 | J17: 0 | K17: 11153 | L17: 5881 | M17: 17034 | O17: 0 | Q17: 0 | R17: 17034 | T17: 0 | U17: 0 | V17: 17034
A18: =+'Original ABG Allocation'!A17 -> 12 | B18: =+'Original ABG Allocation'!B17 -> BED/FULT/HUNT | C18: 12421 | D18: 6800 | E18: 19221 | F18: =+'Original ABG Allocation'!H17 -> 19221 | H18: 0 | I18: 0 | J18: 0 | K18: 12421 | L18: 6800 | M18: 19221 | O18: 0 | Q18: 0 | R18: 19221 | T18: 0 | U18: 0 | V18: 19221
A19: =+'Original ABG Allocation'!A18 -> 13 | B19: =+'Original ABG Allocation'!B18 -> CENTRE | C19: 3920 | D19: 4989 | E19: 8909 | F19: =+'Original ABG Allocation'!H18 -> 8909 | H19: 0 | I19: 0 | J19: 0 | K19: 3920 | L19: 4989 | M19: 8909 | O19: 0 | Q19: 0 | R19: 8909 | T19: 0 | U19: 0 | V19: 8909
A20: =+'Original ABG Allocation'!A19 -> 14 | B20: =+'Original ABG Allocation'!B19 -> LYCOM/CLINTON | C20: 11862 | D20: 6596 | E20: 18458 | F20: =+'Original ABG Allocation'!H19 -> 18458 | H20: 0 | I20: 0 | J20: 0 | K20: 11862 | L20: 6596 | M20: 18458 | O20: 0 | Q20: 0 | R20: 18458 | T20: 0 | U20: 0 | V20: 18458
A21: =+'Original ABG Allocation'!A20 -> 15 | B21: =+'Original ABG Allocation'!B20 -> COLUM/MONT | C21: 8688 | D21: 1438 | E21: 10126 | F21: =+'Original ABG Allocation'!H20 -> 10126 | H21: 0 | I21: 0 | J21: 0 | K21: 8688 | L21: 1438 | M21: 10126 | O21: 0 | Q21: 0 | R21: 10126 | T21: 0 | U21: 0 | V21: 10126
A22: =+'Original ABG Allocation'!A21 -> 16 | B22: =+'Original ABG Allocation'!B21 -> NORTHUMBERLND | C22: 11653 | D22: 6065 | E22: 17718 | F22: =+'Original ABG Allocation'!H21 -> 17718 | H22: 0 | I22: 0 | J22: 0 | K22: 11653 | L22: 6065 | M22: 17718 | O22: 0 | Q22: 0 | R22: 17718 | T22: 0 | U22: 0 | V22: 17718
A23: =+'Original ABG Allocation'!A22 -> 17 | B23: =+'Original ABG Allocation'!B22 -> UNION/SNYDER | C23: 5657 | D23: 2978 | E23: 8635 | F23: =+'Original ABG Allocation'!H22 -> 8635 | H23: 0 | I23: 0 | J23: 0 | K23: 5657 | L23: 2978 | M23: 8635 | O23: 0 | Q23: 0 | R23: 8635 | T23: 0 | U23: 0 | V23: 8635
A24: =+'Original ABG Allocation'!A23 -> 18 | B24: =+'Original ABG Allocation'!B23 -> MIFF/JUNIATA | C24: 7765 | D24: 4199 | E24: 11964 | F24: =+'Original ABG Allocation'!H23 -> 11964 | H24: 0 | I24: 0 | J24: 0 | K24: 7765 | L24: 4199 | M24: 11964 | O24: 0 | Q24: 0 | R24: 11964 | T24: 0 | U24: 0 | V24: 11964
A25: =+'Original ABG Allocation'!A24 -> 19 | B25: =+'Original ABG Allocation'!B24 -> FRANKLIN | C25: 9659 | D25: 4884 | E25: 14543 | F25: =+'Original ABG Allocation'!H24 -> 14543 | H25: 0 | I25: 0 | J25: 0 | K25: 9659 | L25: 4884 | M25: 14543 | O25: 0 | Q25: 0 | R25: 14543 | T25: 0 | U25: 0 | V25: 14543
A26: =+'Original ABG Allocation'!A25 -> 20 | B26: =+'Original ABG Allocation'!B25 -> ADAMS | C26: 5157 | D26: 2798 | E26: 7955 | F26: =+'Original ABG Allocation'!H25 -> 7955 | H26: 0 | I26: 0 | J26: 0 | K26: 5157 | L26: 2798 | M26: 7955 | O26: 0 | Q26: 0 | R26: 7955 | T26: 0 | U26: 0 | V26: 7955
A27: =+'Original ABG Allocation'!A26 -> 21 | B27: =+'Original ABG Allocation'!B26 -> CUMBERLAND | C27: 6087 | D27: 3136 | E27: 9223 | F27: =+'Original ABG Allocation'!H26 -> 9223 | H27: 0 | I27: 0 | J27: 0 | K27: 6087 | L27: 3136 | M27: 9223 | O27: 0 | Q27: 0 | R27: 9223 | T27: 0 | U27: 0 | V27: 9223
A28: =+'Original ABG Allocation'!A27 -> 22 | B28: =+'Original ABG Allocation'!B27 -> PERRY | C28: 5134 | D28: 2789 | E28: 7923 | F28: =+'Original ABG Allocation'!H27 -> 7923 | H28: 0 | I28: 0 | J28: 0 | K28: 5134 | L28: 2789 | M28: 7923 | O28: 0 | Q28: 0 | R28: 7923 | T28: 0 | U28: 0 | V28: 7923
A29: =+'Original ABG Allocation'!A28 -> 23 | B29: =+'Original ABG Allocation'!B28 -> DAUPHIN | C29: 15202 | D29: 8720 | E29: 23922 | F29: =+'Original ABG Allocation'!H28 -> 23922 | H29: 0 | I29: 0 | J29: 0 | K29: 15202 | L29: 8720 | M29: 23922 | O29: 0 | Q29: 0 | R29: 23922 | T29: 0 | U29: 0 | V29: 23922
A30: =+'Original ABG Allocation'!A29 -> 24 | B30: =+'Original ABG Allocation'!B29 -> LEBANON | C30: 6030 | D30: 3116 | E30: 9146 | F30: =+'Original ABG Allocation'!H29 -> 9146 | H30: 0 | I30: 0 | J30: 0 | K30: 6030 | L30: 3116 | M30: 9146 | O30: 0 | Q30: 0 | R30: 9146 | T30: 0 | U30: 0 | V30: 9146
A31: =+'Original ABG Allocation'!A30 -> 25 | B31: =+'Original ABG Allocation'!B30 -> YORK | C31: 16004 | D31: 9013 | E31: 25017 | F31: =+'Original ABG Allocation'!H30 -> 25017 | H31: 0 | I31: 0 | J31: 0 | K31: 16004 | L31: 9013 | M31: 25017 | O31: 0 | Q31: 0 | R31: 25017 | T31: 0 | U31: 0 | V31: 25017
A32: =+'Original ABG Allocation'!A31 -> 26 | B32: =+'Original ABG Allocation'!B31 -> LANCASTER | C32: 19619 | D32: 11240 | E32: 30859 | F32: =+'Original ABG Allocation'!H31 -> 30859 | H32: 0 | I32: 0 | J32: 0 | K32: 19619 | L32: 11240 | M32: 30859 | O32: 0 | Q32: 0 | R32: 30859 | T32: 0 | U32: 0 | V32: 30859
A33: =+'Original ABG Allocation'!A32 -> 27 | B33: =+'Original ABG Allocation'!B32 -> CHESTER | C33: 9499 | D33: 4831 | E33: 14330 | F33: =+'Original ABG Allocation'!H32 -> 14330 | H33: 0 | I33: 0 | J33: 0 | K33: 9499 | L33: 4831 | M33: 14330 | O33: 0 | Q33: 0 | R33: 14330 | T33: 0 | U33: 0 | V33: 14330
A34: =+'Original ABG Allocation'!A33 -> 28 | B34: =+'Original ABG Allocation'!B33 -> MONTGOMERY | C34: 17383 | D34: 9982 | E34: 27365 | F34: =+'Original ABG Allocation'!H33 -> 27365 | H34: 0 | I34: 0 | J34: 0 | K34: 17383 | L34: 9982 | M34: 27365 | O34: 0 | Q34: 0 | R34: 27365 | T34: 0 | U34: 0 | V34: 27365
A35: =+'Original ABG Allocation'!A34 -> 29 | B35: =+'Original ABG Allocation'!B34 -> BUCKS | C35: 15611 | D35: 8869 | E35: 24480 | F35: =+'Original ABG Allocation'!H34 -> 24480 | H35: 0 | I35: 0 | J35: 0 | K35: 15611 | L35: 8869 | M35: 24480 | O35: 0 | Q35: 0 | R35: 24480 | T35: 0 | U35: 0 | V35: 24480
A36: =+'Original ABG Allocation'!A35 -> 30 | B36: =+'Original ABG Allocation'!B35 -> DELAWARE | C36: 28096 | D36: 16143 | E36: 44239 | F36: =+'Original ABG Allocation'!H35 -> 44239 | H36: 0 | I36: 0 | J36: 0 | K36: 28096 | L36: 16143 | M36: 44239 | O36: 0 | Q36: 0 | R36: 44239 | T36: 0 | U36: 0 | V36: 44239
A37: =+'Original ABG Allocation'!A36 -> 31 | B37: =+'Original ABG Allocation'!B36 -> PHILADELPHIA | C37: 211643 | D37: 96172 | E37: 307815 | F37: =+'Original ABG Allocation'!H36 -> 307815 | H37: 0 | I37: 0 | J37: 0 | K37: 211643 | L37: 96172 | M37: 307815 | O37: 0 | Q37: 0 | R37: 307815 | T37: 0 | U37: 0 | V37: 307815
A38: =+'Original ABG Allocation'!A37 -> 32 | B38: =+'Original ABG Allocation'!B37 -> BERKS | C38: 20696 | D38: 12085 | E38: 32781 | F38: =+'Original ABG Allocation'!H37 -> 32781 | H38: 0 | I38: 0 | J38: 0 | K38: 20696 | L38: 12085 | M38: 32781 | O38: 0 | Q38: 0 | R38: 32781 | T38: 0 | U38: 0 | V38: 32781
A39: =+'Original ABG Allocation'!A38 -> 33 | B39: =+'Original ABG Allocation'!B38 -> LEHIGH | C39: 11376 | D39: 5972 | E39: =C39+D39 -> 17348 | F39: =+'Original ABG Allocation'!H38 -> 17348 | H39: 0 | I39: 0 | J39: 0 | K39: 11376 | L39: 5972 | M39: 17348 | O39: 0 | Q39: 0 | R39: 17348 | T39: 0 | U39: 0 | V39: 17348
A40: =+'Original ABG Allocation'!A39 -> 34 | B40: =+'Original ABG Allocation'!B39 -> NORTHAMPTON | C40: 12389 | D40: 6927 | E40: 19316 | F40: =+'Original ABG Allocation'!H39 -> 19316 | H40: 0 | I40: 0 | J40: 0 | K40: 12389 | L40: 6927 | M40: 19316 | O40: 0 | Q40: 0 | R40: 19316 | T40: 0 | U40: 0 | V40: 19316
A41: =+'Original ABG Allocation'!A40 -> 35 | B41: =+'Original ABG Allocation'!B40 -> PIKE | C41: 5789 | D41: 2119 | E41: 7908 | F41: =+'Original ABG Allocation'!H40 -> 7908 | H41: 0 | I41: 0 | J41: 0 | K41: 5789 | L41: 2119 | M41: 7908 | O41: 0 | Q41: 0 | R41: 7908 | T41: 0 | U41: 0 | V41: 7908
A42: =+'Original ABG Allocation'!A41 -> 36 | B42: =+'Original ABG Allocation'!B41 -> B/S/S/T | C42: 15770 | D42: 8928 | E42: 24698 | F42: =+'Original ABG Allocation'!H41 -> 24698 | H42: 0 | I42: 0 | J42: 0 | K42: 15770 | L42: 8928 | M42: 24698 | O42: 0 | Q42: 0 | R42: 24698 | T42: 0 | U42: 0 | V42: 24698
A43: =+'Original ABG Allocation'!A42 -> 37 | B43: =+'Original ABG Allocation'!B42 -> LUZERNE/WYOMING | C43: 30703 | D43: 23454 | E43: 54157 | F43: =+'Original ABG Allocation'!H42 -> 54157 | H43: 0 | I43: 0 | J43: 0 | K43: 30703 | L43: 23454 | M43: 54157 | O43: 0 | Q43: 0 | R43: 54157 | T43: 0 | U43: 0 | V43: 54157
A44: =+'Original ABG Allocation'!A43 -> 38 | B44: =+'Original ABG Allocation'!B43 -> LACKAWANNA | C44: 21177 | D44: 12259 | E44: 33436 | F44: =+'Original ABG Allocation'!H43 -> 33436 | H44: 0 | I44: 0 | J44: 0 | K44: 21177 | L44: 12259 | M44: 33436 | O44: 0 | Q44: 0 | R44: 33436 | T44: 0 | U44: 0 | V44: 33436
A45: =+'Original ABG Allocation'!A44 -> 39 | B45: =+'Original ABG Allocation'!B44 -> CARBON | C45: 5177 | D45: 2805 | E45: 7982 | F45: =+'Original ABG Allocation'!H44 -> 7982 | H45: 0 | I45: 0 | J45: 0 | K45: 5177 | L45: 2805 | M45: 7982 | O45: 0 | Q45: 0 | R45: 7982 | T45: 0 | U45: 0 | V45: 7982
A46: =+'Original ABG Allocation'!A45 -> 40 | B46: =+'Original ABG Allocation'!B45 -> SCHUYLKILL | C46: 18827 | D46: 10495 | E46: 29322 | F46: =+'Original ABG Allocation'!H45 -> 29322 | H46: 0 | I46: 0 | J46: 0 | K46: 18827 | L46: 10495 | M46: 29322 | O46: 0 | Q46: 0 | R46: 29322 | T46: 0 | U46: 0 | V46: 29322
A47: =+'Original ABG Allocation'!A46 -> 41 | B47: =+'Original ABG Allocation'!B46 -> CLEARFIELD | C47: 9415 | D47: 4797 | E47: 14212 | F47: =+'Original ABG Allocation'!H46 -> 14212 | H47: 0 | I47: 0 | J47: 0 | K47: 9415 | L47: 4797 | M47: 14212 | O47: 0 | Q47: 0 | R47: 14212 | T47: 0 | U47: 0 | V47: 14212
A48: =+'Original ABG Allocation'!A47 -> 42 | B48: =+'Original ABG Allocation'!B47 -> JEFFERSON | C48: 5831 | D48: 3043 | E48: 8874 | F48: =+'Original ABG Allocation'!H47 -> 8874 | H48: 0 | I48: 0 | J48: 0 | K48: 5831 | L48: 3043 | M48: 8874 | O48: 0 | Q48: 0 | R48: 8874 | T48: 0 | U48: 0 | V48: 8874
A49: =+'Original ABG Allocation'!A48 -> 43 | B49: =+'Original ABG Allocation'!B48 -> FOREST/WARREN | C49: 5151 | D49: 2795 | E49: 7946 | F49: =+'Original ABG Allocation'!H48 -> 7946 | H49: 0 | I49: 0 | J49: 0 | K49: 5151 | L49: 2795 | M49: 7946 | O49: 0 | Q49: 0 | R49: 7946 | T49: 0 | U49: 0 | V49: 7946
A50: =+'Original ABG Allocation'!A49 -> 44 | B50: =+'Original ABG Allocation'!B49 -> VENANGO | C50: 5607 | D50: 2962 | E50: 8569 | F50: =+'Original ABG Allocation'!H49 -> 8569 | H50: 0 | I50: 0 | J50: 0 | K50: 5607 | L50: 2962 | M50: 8569 | O50: 0 | Q50: 0 | R50: 8569 | T50: 0 | U50: 0 | V50: 8569
A51: =+'Original ABG Allocation'!A50 -> 45 | B51: =+'Original ABG Allocation'!B50 -> ARMSTRONG | C51: 7877 | D51: 4238 | E51: 12115 | F51: =+'Original ABG Allocation'!H50 -> 12115 | H51: 0 | I51: 0 | J51: 0 | K51: 7877 | L51: 4238 | M51: 12115 | O51: 0 | Q51: 0 | R51: 12115 | T51: 0 | U51: 0 | V51: 12115
A52: =+'Original ABG Allocation'!A51 -> 46 | B52: =+'Original ABG Allocation'!B51 -> LAWRENCE | C52: 8512 | D52: 4469 | E52: 12981 | F52: =+'Original ABG Allocation'!H51 -> 12981 | H52: 0 | I52: 0 | J52: 0 | K52: 8512 | L52: 4469 | M52: 12981 | O52: 0 | Q52: 0 | R52: 12981 | T52: 0 | U52: 0 | V52: 12981
A53: =+'Original ABG Allocation'!A52 -> 47 | B53: =+'Original ABG Allocation'!B52 -> MERCER | C53: 9412 | D53: 5249 | E53: 14661 | F53: =+'Original ABG Allocation'!H52 -> 14661 | H53: 0 | I53: 0 | J53: 0 | K53: 9412 | L53: 5249 | M53: 14661 | O53: 0 | Q53: 0 | R53: 14661 | T53: 0 | U53: 0 | V53: 14661
A54: =+'Original ABG Allocation'!A53 -> 48 | B54: =+'Original ABG Allocation'!B53 -> MONROE | C54: 5510 | D54: 2925 | E54: 8435 | F54: =+'Original ABG Allocation'!H53 -> 8435 | H54: 0 | I54: 0 | J54: 0 | K54: 5510 | L54: 2925 | M54: 8435 | O54: 0 | Q54: 0 | R54: 8435 | T54: 0 | U54: 0 | V54: 8435
A55: =+'Original ABG Allocation'!A54 -> 49 | B55: =+'Original ABG Allocation'!B54 -> CLARION | C55: 5162 | D55: 2799 | E55: 7961 | F55: =+'Original ABG Allocation'!H54 -> 7961 | H55: 0 | I55: 0 | J55: 0 | K55: 5162 | L55: 2799 | M55: 7961 | O55: 0 | Q55: 0 | R55: 7961 | T55: 0 | U55: 0 | V55: 7961
A56: =+'Original ABG Allocation'!A55 -> 50 | B56: =+'Original ABG Allocation'!B55 -> BUTLER | C56: 9369 | D56: 4781 | E56: 14150 | F56: =+'Original ABG Allocation'!H55 -> 14150 | H56: 0 | I56: 0 | J56: 0 | K56: 9369 | L56: 4781 | M56: 14150 | O56: 0 | Q56: 0 | R56: 14150 | T56: 0 | U56: 0 | V56: 14150
A57: =+'Original ABG Allocation'!A56 -> 51 | B57: =+'Original ABG Allocation'!B56 -> POTTER | C57: 5121 | D57: 2784 | E57: 7905 | F57: =+'Original ABG Allocation'!H56 -> 7905 | H57: 0 | I57: 0 | J57: 0 | K57: 5121 | L57: 2784 | M57: 7905 | O57: 0 | Q57: 0 | R57: 7905 | T57: 0 | U57: 0 | V57: 7905
A58: =+'Original ABG Allocation'!A57 -> 52 | B58: =+'Original ABG Allocation'!B57 -> WAYNE | C58: 5657 | D58: 2978 | E58: 8635 | F58: =+'Original ABG Allocation'!H57 -> 8635 | H58: 0 | I58: 0 | J58: 0 | K58: 5657 | L58: 2978 | M58: 8635 | O58: 0 | Q58: 0 | R58: 8635 | T58: 0 | U58: 0 | V58: 8635
B59: TOTALS | C59: =SUM(C7:C58) -> 923899 | D59: 488134 | E59: 1412033 | F59: 1412033 | H59: 0 | I59: 0 | J59: 0 | K59: 923899 | L59: 488134 | M59: 1412033 | O59: =SUM(O7:O58) -> 0 | P59: =SUM(P7:P58) -> 0 | Q59: =SUM(Q7:Q58) -> 0 | R59: =SUM(R7:R58) -> 1412033 | T59: =SUM(T7:T58) -> 0 | U59: =SUM(U7:U58) -> 0 | V59: =SUM(V7:V58) -> 1412033

Sheet Other Funds Summary
A2: OTHER FUNDS
A3: =+'Original ABG Allocation'!A3 -> FY 2022-23 | C3: (1) | D3: (2) | E3: (3) | F3: (3) | G3: (4) | H3: (5) | I3: (6) | J3: (7) | K3: (8) | L3: (9) | M3: (10) | N3: (11) | O3: (12) | P3: (13) | Q3: (14) | R3: (15) | S3: (16) | T3: (17) | U3: (18) | V3: (19) | W3: (20) | X3: (21) | Y3: (22) | Z3: (23) | AA3: (24) | AB3: (25) | AC3: (26) | AD3: (27) | AE3: (28) | AF3: (29) | AG3: (30) | AH3: (31) | AI3: (32) | AJ3: (33) | AK3: (34) | AL3: (35)
C4: Ombudsman | D4: Ombudsman | E4: Ombudsman | F4: Ombudsman | G4: PA MEDI | H4: PA MEDI | I4: PA MEDI | J4: PA MEDI | K4: PA MEDI | L4: OPTIONS | M4: Block Grant | O4: Protective | P4: PS | Q4: OPTIONS | R4: Block Grant | S4: ARPA | T4: ARPA | U4: ARPA | V4: ARPA | W4: ARPA | X4: ADRC | Y4: FFCRA | Z4: FFCRA | AA4: CARES | AB4: CARES | AC4: CARES | AD4: PS Reserve Staff | AE4: Senior Center | AF4: MIPPA-AAA | AG4: MIPPA-ADRC | AH4: MIPPA-SHIP | AI4: MIPPA-SHIP | AJ4: MIPPA-SHIP | AK4: ADRC | AL4: Covid Vaccine | AM4: TOTAL
C5: ROC | D5: Volunteers | E5: Fed Care Act | F5: Fed Addl Care Act | G5: Reg. Staff | H5: Helpline | I5: Telecenter | J5: Base | K5: PHLP | L5: Services | M5: Supplement | N5: SNHT | O5: Services | P5: Personnel | Q5: Services (2) | R5: Supplement (2) | S5: Suppt Svs | T5: HD Meals | U5: Cong Meals | V5: Prev Health | W5: Family Caregiver | X5: Vaccine Suppt | Y5: HDMs | Z5: CMs | AA5: Services | AB5: Meals | AC5: Caregiver | AD5: Grant | AE5: Grant | AF5: Priority 2 | AG5: Priority 3 | AH5: BDT | AI5: PHLP | AJ5: Performance | AK5: Award | AL5: Access | AM5: OTHER
A6: =+'Original ABG Allocation'!A6 -> 01 | B6: =+'Original ABG Allocation'!B6 -> ERIE | C6: 0 | D6: 0 | E6: 0 | F6: 0 | G6: 0 | H6: 0 | I6: 0 | J6: 0 | K6: 0 | L6: 0 | M6: 0 | N6: 0 | O6: 0 | P6: 0 | Q6: 0 | R6: 0 | S6: 0 | T6: 0 | U6: 0 | V6: 0 | W6: 0 | X6: 0 | Y6: 0 | Z6: 0 | AA6: 0 | AB6: 0 | AC6: 0 | AD6: 0 | AE6: 0 | AF6: 0 | AG6: 0 | AH6: 0 | AI6: 0 | AJ6: 0 | AK6: 0 | AM6: =SUM(C6:AL6) -> 0
A7: =+'Original ABG Allocation'!A7 -> 02 | B7: =+'Original ABG Allocation'!B7 -> CRAWFORD | C7: 0 | D7: 0 | E7: 0 | F7: 0 | G7: 0 | H7: 0 | I7: 0 | J7: 0 | K7: 0 | L7: 0 | M7: 0 | N7: 0 | O7: 0 | P7: 0 | Q7: 0 | R7: 0 | S7: 0 | T7: 0 | U7: 0 | V7: 0 | W7: 0 | X7: 0 | Y7: 0 | Z7: 0 | AA7: 0 | AB7: 0 | AC7: 0 | AD7: 0 | AE7: 0 | AF7: 0 | AG7: 0 | AH7: 0 | AI7: 0 | AJ7: 0 | AK7: 0 | AM7: =SUM(C7:AL7) -> 0
A8: =+'Original ABG Allocation'!A8 -> 03 | B8: =+'Original ABG Allocation'!B8 -> CAM/ELK/MCKEAN | C8: 0 | D8: 0 | E8: 0 | F8: 0 | G8: 0 | H8: 0 | I8: 0 | J8: 0 | K8: 0 | L8: 0 | M8: 0 | N8: 0 | O8: 0 | P8: 0 | Q8: 0 | R8: 0 | S8: 0 | T8: 0 | U8: 0 | V8: 0 | W8: 0 | X8: 0 | Y8: 0 | Z8: 0 | AA8: 0 | AB8: 0 | AC8: 0 | AD8: 0 | AE8: 0 | AF8: 0 | AG8: 0 | AH8: 0 | AI8: 0 | AJ8: 0 | AK8: 0 | AM8: =SUM(C8:AL8) -> 0
A9: =+'Original ABG Allocation'!A9 -> 04 | B9: =+'Original ABG Allocation'!B9 -> BEAVER | C9: 0 | D9: 0 | E9: 0 | F9: 0 | G9: 0 | H9: 0 | I9: 0 | J9: 0 | K9: 0 | L9: 0 | M9: 0 | N9: 0 | O9: 0 | P9: 0 | Q9: 0 | R9: 0 | S9: 0 | T9: 0 | U9: 0 | V9: 0 | W9: 0 | X9: 0 | Y9: 0 | Z9: 0 | AA9: 0 | AB9: 0 | AC9: 0 | AD9: 0 | AE9: 0 | AF9: 0 | AG9: 0 | AH9: 0 | AI9: 0 | AJ9: 0 | AK9: 0 | AM9: 0
A10: =+'Original ABG Allocation'!A10 -> 05 | B10: =+'Original ABG Allocation'!B10 -> INDIANA | C10: 0 | D10: 0 | E10: 0 | F10: 0 | G10: 0 | H10: 0 | I10: 0 | J10: 0 | K10: 0 | L10: 0 | M10: 0 | N10: 0 | O10: 0 | P10: 0 | Q10: 0 | R10: 0 | S10: 0 | T10: 0 | U10: 0 | V10: 0 | W10: 0 | X10: 0 | Y10: 0 | Z10: 0 | AA10: 0 | AB10: 0 | AC10: 0 | AD10: 0 | AE10: 0 | AF10: 0 | AG10: 0 | AH10: 0 | AI10: 0 | AJ10: 0 | AK10: 0 | AM10: 0
A11: =+'Original ABG Allocation'!A11 -> 06 | B11: =+'Original ABG Allocation'!B11 -> ALLEGHENY | C11: 0 | D11: 0 | E11: 0 | F11: 0 | G11: 0 | H11: 0 | I11: 0 | J11: 0 | K11: 0 | L11: 0 | M11: 0 | N11: 0 | O11: 0 | P11: 0 | Q11: 0 | R11: 0 | S11: 0 | T11: 0 | U11: 0 | V11: 0 | W11: 0 | X11: 0 | Y11: 0 | Z11: 0 | AA11: 0 | AB11: 0 | AC11: 0 | AD11: 0 | AE11: 0 | AF11: 0 | AG11: 0 | AH11: 0 | AI11: 0 | AJ11: 0 | AK11: 0 | AM11: 0
A12: =+'Original ABG Allocation'!A12 -> 07 | B12: =+'Original ABG Allocation'!B12 -> WESTMORELAND | C12: 0 | D12: 0 | E12: 0 | F12: 0 | G12: 0 | H12: 0 | I12: 0 | J12: 0 | K12: 0 | L12: 0 | M12: 0 | N12: 0 | O12: 0 | P12: 0 | Q12: 0 | R12: 0 | S12: 0 | T12: 0 | U12: 0 | V12: 0 | W12: 0 | X12: 0 | Y12: 0 | Z12: 0 | AA12: 0 | AB12: 0 | AC12: 0 | AD12: 0 | AE12: 0 | AF12: 0 | AG12: 0 | AH12: 0 | AI12: 0 | AJ12: 0 | AK12: 0 | AM12: 0
A13: =+'Original ABG Allocation'!A13 -> 08 | B13: =+'Original ABG Allocation'!B13 -> WASH/FAY/GREENE | C13: 0 | D13: 0 | E13: 0 | F13: 0 | G13: 0 | H13: 0 | I13: 0 | J13: 0 | K13: 0 | L13: 0 | M13: 0 | N13: 0 | O13: 0 | P13: 0 | Q13: 0 | R13: 0 | S13: 0 | T13: 0 | U13: 0 | V13: 0 | W13: 0 | X13: 0 | Y13: 0 | Z13: 0 | AA13: 0 | AB13: 0 | AC13: 0 | AD13: 0 | AE13: 0 | AF13: 0 | AG13: 0 | AH13: 0 | AI13: 0 | AJ13: 0 | AK13: 0 | AM13: 0
A14: =+'Original ABG Allocation'!A14 -> 09 | B14: =+'Original ABG Allocation'!B14 -> SOMERSET | C14: 0 | D14: 0 | E14: 0 | F14: 0 | G14: 0 | H14: 0 | I14: 0 | J14: 0 | K14: 0 | L14: 0 | M14: 0 | N14: 0 | O14: 0 | P14: 0 | Q14: 0 | R14: 0 | S14: 0 | T14: 0 | U14: 0 | V14: 0 | W14: 0 | X14: 0 | Y14: 0 | Z14: 0 | AA14: 0 | AB14: 0 | AC14: 0 | AD14: 0 | AE14: 0 | AF14: 0 | AG14: 0 | AH14: 0 | AI14: 0 | AJ14: 0 | AK14: 0 | AM14: 0
A15: =+'Original ABG Allocation'!A15 -> 10 | B15: =+'Original ABG Allocation'!B15 -> CAMBRIA | C15: 0 | D15: 0 | E15: 0 | F15: 0 | G15: 0 | H15: 0 | I15: 0 | J15: 0 | K15: 0 | L15: 0 | M15: 0 | N15: 0 | O15: 0 | P15: 0 | Q15: 0 | R15: 0 | S15: 0 | T15: 0 | U15: 0 | V15: 0 | W15: 0 | X15: 0 | Y15: 0 | Z15: 0 | AA15: 0 | AB15: 0 | AC15: 0 | AD15: 0 | AE15: 0 | AF15: 0 | AG15: 0 | AH15: 0 | AI15: 0 | AJ15: 0 | AK15: 0 | AM15: 0
A16: =+'Original ABG Allocation'!A16 -> 11 | B16: =+'Original ABG Allocation'!B16 -> BLAIR | C16: 0 | D16: 0 | E16: 0 | F16: 0 | G16: 0 | H16: 0 | I16: 0 | J16: 0 | K16: 0 | L16: 0 | M16: 0 | N16: 0 | O16: 0 | P16: 0 | Q16: 0 | R16: 0 | S16: 0 | T16: 0 | U16: 0 | V16: 0 | W16: 0 | X16: 0 | Y16: 0 | Z16: 0 | AA16: 0 | AB16: 0 | AC16: 0 | AD16: 0 | AE16: 0 | AF16: 0 | AG16: 0 | AH16: 0 | AI16: 0 | AJ16: 0 | AK16: 0 | AM16: 0
A17: =+'Original ABG Allocation'!A17 -> 12 | B17: =+'Original ABG Allocation'!B17 -> BED/FULT/HUNT | C17: 0 | D17: 0 | E17: 0 | F17: 0 | G17: 0 | H17: 0 | I17: 0 | J17: 0 | K17: 0 | L17: 0 | M17: 0 | N17: 0 | O17: 0 | P17: 0 | Q17: 0 | R17: 0 | S17: 0 | T17: 0 | U17: 0 | V17: 0 | W17: 0 | X17: 0 | Y17: 0 | Z17: 0 | AA17: 0 | AB17: 0 | AC17: 0 | AD17: 0 | AE17: 0 | AF17: 0 | AG17: 0 | AH17: 0 | AI17: 0 | AJ17: 0 | AK17: 0 | AM17: 0
A18: =+'Original ABG Allocation'!A18 -> 13 | B18: =+'Original ABG Allocation'!B18 -> CENTRE | C18: 0 | D18: 0 | E18: 0 | F18: 0 | G18: 0 | H18: 0 | I18: 0 | J18: 0 | K18: 0 | L18: 0 | M18: 0 | N18: 0 | O18: 0 | P18: 0 | Q18: 0 | R18: 0 | S18: 0 | T18: 0 | U18: 0 | V18: 0 | W18: 0 | X18: 0 | Y18: 0 | Z18: 0 | AA18: 0 | AB18: 0 | AC18: 0 | AD18: 0 | AE18: 0 | AF18: 0 | AG18: 0 | AH18: 0 | AI18: 0 | AJ18: 0 | AK18: 0 | AM18: 0
A19: =+'Original ABG Allocation'!A19 -> 14 | B19: =+'Original ABG Allocation'!B19 -> LYCOM/CLINTON | C19: 0 | D19: 0 | E19: 0 | F19: 0 | G19: 0 | H19: 0 | I19: 0 | J19: 0 | K19: 0 | L19: 0 | M19: 0 | N19: 0 | O19: 0 | P19: 0 | Q19: 0 | R19: 0 | S19: 0 | T19: 0 | U19: 0 | V19: 0 | W19: 0 | X19: 0 | Y19: 0 | Z19: 0 | AA19: 0 | AB19: 0 | AC19: 0 | AD19: 0 | AE19: 0 | AF19: 0 | AG19: 0 | AH19: 0 | AI19: 0 | AJ19: 0 | AK19: 0 | AM19: 0
A20: =+'Original ABG Allocation'!A20 -> 15 | B20: =+'Original ABG Allocation'!B20 -> COLUM/MONT | C20: 0 | D20: 0 | E20: 0 | F20: 0 | G20: 0 | H20: 0 | I20: 0 | J20: 0 | K20: 0 | L20: 0 | M20: 0 | N20: 0 | O20: 0 | P20: 0 | Q20: 0 | R20: 0 | S20: 0 | T20: 0 | U20: 0 | V20: 0 | W20: 0 | X20: 0 | Y20: 0 | Z20: 0 | AA20: 0 | AB20: 0 | AC20: 0 | AD20: 0 | AE20: 0 | AF20: 0 | AG20: 0 | AH20: 0 | AI20: 0 | AJ20: 0 | AK20: 0 | AM20: 0
A21: =+'Original ABG Allocation'!A21 -> 16 | B21: =+'Original ABG Allocation'!B21 -> NORTHUMBERLND | C21: 0 | D21: 0 | E21: 0 | F21: 0 | G21: 0 | H21: 0 | I21: 0 | J21: 0 | K21: 0 | L21: 0 | M21: 0 | N21: 0 | O21: 0 | P21: 0 | Q21: 0 | R21: 0 | S21: 0 | T21: 0 | U21: 0 | V21: 0 | W21: 0 | X21: 0 | Y21: 0 | Z21: 0 | AA21: 0 | AB21: 0 | AC21: 0 | AD21: 0 | AE21: 0 | AF21: 0 | AG21: 0 | AH21: 0 | AI21: 0 | AJ21: 0 | AK21: 0 | AM21: 0
A22: =+'Original ABG Allocation'!A22 -> 17 | B22: =+'Original ABG Allocation'!B22 -> UNION/SNYDER | C22: 0 | D22: 0 | E22: 0 | F22: 0 | G22: 0 | H22: 0 | I22: 0 | J22: 0 | K22: 0 | L22: 0 | M22: 0 | N22: 0 | O22: 0 | P22: 0 | Q22: 0 | R22: 0 | S22: 0 | T22: 0 | U22: 0 | V22: 0 | W22: 0 | X22: 0 | Y22: 0 | Z22: 0 | AA22: 0 | AB22: 0 | AC22: 0 | AD22: 0 | AE22: 0 | AF22: 0 | AG22: 0 | AH22: 0 | AI22: 0 | AJ22: 0 | AK22: 0 | AM22: 0
A23: =+'Original ABG Allocation'!A23 -> 18 | B23: =+'Original ABG Allocation'!B23 -> MIFF/JUNIATA | C23: 0 | D23: 0 | E23: 0 | F23: 0 | G23: 0 | H23: 0 | I23: 0 | J23: 0 | K23: 0 | L23: 0 | M23: 0 | N23: 0 | O23: 0 | P23: 0 | Q23: 0 | R23: 0 | S23: 0 | T23: 0 | U23: 0 | V23: 0 | W23: 0 | X23: 0 | Y23: 0 | Z23: 0 | AA23: 0 | AB23: 0 | AC23: 0 | AD23: 0 | AE23: 0 | AF23: 0 | AG23: 0 | AH23: 0 | AI23: 0 | AJ23: 0 | AK23: 0 | AM23: 0
A24: =+'Original ABG Allocation'!A24 -> 19 | B24: =+'Original ABG Allocation'!B24 -> FRANKLIN | C24: 0 | D24: 0 | E24: 0 | F24: 0 | G24: 0 | H24: 0 | I24: 0 | J24: 0 | K24: 0 | L24: 0 | M24: 0 | N24: 0 | O24: 0 | P24: 0 | Q24: 0 | R24: 0 | S24: 0 | T24: 0 | U24: 0 | V24: 0 | W24: 0 | X24: 0 | Y24: 0 | Z24: 0 | AA24: 0 | AB24: 0 | AC24: 0 | AD24: 0 | AE24: 0 | AF24: 0 | AG24: 0 | AH24: 0 | AI24: 0 | AJ24: 0 | AK24: 0 | AM24: 0
A25: =+'Original ABG Allocation'!A25 -> 20 | B25: =+'Original ABG Allocation'!B25 -> ADAMS | C25: 0 | D25: 0 | E25: 0 | F25: 0 | G25: 0 | H25: 0 | I25: 0 | J25: 0 | K25: 0 | L25: 0 | M25: 0 | N25: 0 | O25: 0 | P25: 0 | Q25: 0 | R25: 0 | S25: 0 | T25: 0 | U25: 0 | V25: 0 | W25: 0 | X25: 0 | Y25: 0 | Z25: 0 | AA25: 0 | AB25: 0 | AC25: 0 | AD25: 0 | AE25: 0 | AF25: 0 | AG25: 0 | AH25: 0 | AI25: 0 | AJ25: 0 | AK25: 0 | AM25: 0
A26: =+'Original ABG Allocation'!A26 -> 21 | B26: =+'Original ABG Allocation'!B26 -> CUMBERLAND | C26: 0 | D26: 0 | E26: 0 | F26: 0 | G26: 0 | H26: 0 | I26: 0 | J26: 0 | K26: 0 | L26: 0 | M26: 0 | N26: 0 | O26: 0 | P26: 0 | Q26: 0 | R26: 0 | S26: 0 | T26: 0 | U26: 0 | V26: 0 | W26: 0 | X26: 0 | Y26: 0 | Z26: 0 | AA26: 0 | AB26: 0 | AC26: 0 | AD26: 0 | AE26: 0 | AF26: 0 | AG26: 0 | AH26: 0 | AI26: 0 | AJ26: 0 | AK26: 0 | AM26: 0
A27: =+'Original ABG Allocation'!A27 -> 22 | B27: =+'Original ABG Allocation'!B27 -> PERRY | C27: 0 | D27: 0 | E27: 0 | F27: 0 | G27: 0 | H27: 0 | I27: 0 | J27: 0 | K27: 0 | L27: 0 | M27: 0 | N27: 0 | O27: 0 | P27: 0 | Q27: 0 | R27: 0 | S27: 0 | T27: 0 | U27: 0 | V27: 0 | W27: 0 | X27: 0 | Y27: 0 | Z27: 0 | AA27: 0 | AB27: 0 | AC27: 0 | AD27: 0 | AE27: 0 | AF27: 0 | AG27: 0 | AH27: 0 | AI27: 0 | AJ27: 0 | AK27: 0 | AM27: 0
A28: =+'Original ABG Allocation'!A28 -> 23 | B28: =+'Original ABG Allocation'!B28 -> DAUPHIN | C28: 0 | D28: 0 | E28: 0 | F28: 0 | G28: 0 | H28: 0 | I28: 0 | J28: 0 | K28: 0 | L28: 0 | M28: 0 | N28: 0 | O28: 0 | P28: 0 | Q28: 0 | R28: 0 | S28: 0 | T28: 0 | U28: 0 | V28: 0 | W28: 0 | X28: 0 | Y28: 0 | Z28: 0 | AA28: 0 | AB28: 0 | AC28: 0 | AD28: 0 | AE28: 0 | AF28: 0 | AG28: 0 | AH28: 0 | AI28: 0 | AJ28: 0 | AK28: 0 | AM28: 0
A29: =+'Original ABG Allocation'!A29 -> 24 | B29: =+'Original ABG Allocation'!B29 -> LEBANON | C29: 0 | D29: 0 | E29: 0 | F29: 0 | G29: 0 | H29: 0 | I29: 0 | J29: 0 | K29: 0 | L29: 0 | M29: 0 | N29: 0 | O29: 0 | P29: 0 | Q29: 0 | R29: 0 | S29: 0 | T29: 0 | U29: 0 | V29: 0 | W29: 0 | X29: 0 | Y29: 0 | Z29: 0 | AA29: 0 | AB29: 0 | AC29: 0 | AD29: 0 | AE29: 0 | AF29: 0 | AG29: 0 | AH29: 0 | AI29: 0 | AJ29: 0 | AK29: 0 | AM29: 0
A30: =+'Original ABG Allocation'!A30 -> 25 | B30: =+'Original ABG Allocation'!B30 -> YORK | C30: 0 | D30: 0 | E30: 0 | F30: 0 | G30: 0 | H30: 0 | I30: 0 | J30: 0 | K30: 0 | L30: 0 | M30: 0 | N30: 0 | O30: 0 | P30: 0 | Q30: 0 | R30: 0 | S30: 0 | T30: 0 | U30: 0 | V30: 0 | W30: 0 | X30: 0 | Y30: 0 | Z30: 0 | AA30: 0 | AB30: 0 | AC30: 0 | AD30: 0 | AE30: 0 | AF30: 0 | AG30: 0 | AH30: 0 | AI30: 0 | AJ30: 0 | AK30: 0 | AM30: 0
A31: =+'Original ABG Allocation'!A31 -> 26 | B31: =+'Original ABG Allocation'!B31 -> LANCASTER | C31: 0 | D31: 0 | E31: 0 | F31: 0 | G31: 0 | H31: 0 | I31: 0 | J31: 0 | K31: 0 | L31: 0 | M31: 0 | N31: 0 | O31: 0 | P31: 0 | Q31: 0 | R31: 0 | S31: 0 | T31: 0 | U31: 0 | V31: 0 | W31: 0 | X31: 0 | Y31: 0 | Z31: 0 | AA31: 0 | AB31: 0 | AC31: 0 | AD31: 0 | AE31: 0 | AF31: 0 | AG31: 0 | AH31: 0 | AI31: 0 | AJ31: 0 | AK31: 0 | AM31: 0
A32: =+'Original ABG Allocation'!A32 -> 27 | B32: =+'Original ABG Allocation'!B32 -> CHESTER | C32: 0 | D32: 0 | E32: 0 | F32: 0 | G32: 0 | H32: 0 | I32: 0 | J32: 0 | K32: 0 | L32: 0 | M32: 0 | N32: 0 | O32: 0 | P32: 0 | Q32: 0 | R32: 0 | S32: 0 | T32: 0 | U32: 0 | V32: 0 | W32: 0 | X32: 0 | Y32: 0 | Z32: 0 | AA32: 0 | AB32: 0 | AC32: 0 | AD32: 0 | AE32: 0 | AF32: 0 | AG32: 0 | AH32: 0 | AI32: 0 | AJ32: 0 | AK32: 0 | AM32: 0
A33: =+'Original ABG Allocation'!A33 -> 28 | B33: =+'Original ABG Allocation'!B33 -> MONTGOMERY | C33: 0 | D33: 0 | E33: 0 | F33: 0 | G33: 0 | H33: 0 | I33: 0 | J33: 0 | K33: 0 | L33: 0 | M33: 0 | N33: 0 | O33: 0 | P33: 0 | Q33: 0 | R33: 0 | S33: 0 | T33: 0 | U33: 0 | V33: 0 | W33: 0 | X33: 0 | Y33: 0 | Z33: 0 | AA33: 0 | AB33: 0 | AC33: 0 | AD33: 0 | AE33: 0 | AF33: 0 | AG33: 0 | AH33: 0 | AI33: 0 | AJ33: 0 | AK33: 0 | AM33: 0
A34: =+'Original ABG Allocation'!A34 -> 29 | B34: =+'Original ABG Allocation'!B34 -> BUCKS | C34: 0 | D34: 0 | E34: 0 | F34: 0 | G34: 0 | H34: 0 | I34: 0 | J34: 0 | K34: 0 | L34: 0 | M34: 0 | N34: 0 | O34: 0 | P34: 0 | Q34: 0 | R34: 0 | S34: 0 | T34: 0 | U34: 0 | V34: 0 | W34: 0 | X34: 0 | Y34: 0 | Z34: 0 | AA34: 0 | AB34: 0 | AC34: 0 | AD34: 0 | AE34: 0 | AF34: 0 | AG34: 0 | AH34: 0 | AI34: 0 | AJ34: 0 | AK34: 0 | AM34: 0
A35: =+'Original ABG Allocation'!A35 -> 30 | B35: =+'Original ABG Allocation'!B35 -> DELAWARE | C35: 0 | D35: 0 | E35: 0 | F35: 0 | G35: 0 | H35: 0 | I35: 0 | J35: 0 | K35: 0 | L35: 0 | M35: 0 | N35: 0 | O35: 0 | P35: 0 | Q35: 0 | R35: 0 | S35: 0 | T35: 0 | U35: 0 | V35: 0 | W35: 0 | X35: 0 | Y35: 0 | Z35: 0 | AA35: 0 | AB35: 0 | AC35: 0 | AD35: 0 | AE35: 0 | AF35: 0 | AG35: 0 | AH35: 0 | AI35: 0 | AJ35: 0 | AK35: 0 | AM35: 0
A36: =+'Original ABG Allocation'!A36 -> 31 | B36: =+'Original ABG Allocation'!B36 -> PHILADELPHIA | C36: 0 | D36: 0 | E36: 0 | F36: 0 | G36: 0 | H36: 0 | I36: 0 | J36: 0 | K36: 0 | L36: 0 | M36: 0 | N36: 0 | O36: 0 | P36: 0 | Q36: 0 | R36: 0 | S36: 0 | T36: 0 | U36: 0 | V36: 0 | W36: 0 | X36: 0 | Y36: 0 | Z36: 0 | AA36: 0 | AB36: 0 | AC36: 0 | AD36: 0 | AE36: 0 | AF36: 0 | AG36: 0 | AH36: 0 | AI36: 0 | AJ36: 0 | AK36: 0 | AM36: 0
A37: =+'Original ABG Allocation'!A37 -> 32 | B37: =+'Original ABG Allocation'!B37 -> BERKS | C37: 0 | D37: 0 | E37: 0 | F37: 0 | G37: 0 | H37: 0 | I37: 0 | J37: 0 | K37: 0 | L37: 0 | M37: 0 | N37: 0 | O37: 0 | P37: 0 | Q37: 0 | R37: 0 | S37: 0 | T37: 0 | U37: 0 | V37: 0 | W37: 0 | X37: 0 | Y37: 0 | Z37: 0 | AA37: 0 | AB37: 0 | AC37: 0 | AD37: 0 | AE37: 0 | AF37: 0 | AG37: 0 | AH37: 0 | AI37: 0 | AJ37: 0 | AK37: 0 | AM37: 0
A38: =+'Original ABG Allocation'!A38 -> 33 | B38: =+'Original ABG Allocation'!B38 -> LEHIGH | C38: 0 | D38: 0 | E38: 0 | F38: 0 | G38: 0 | H38: 0 | I38: 0 | J38: 0 | K38: 0 | L38: 0 | M38: 0 | N38: 0 | O38: 0 | P38: 0 | Q38: 0 | R38: 0 | S38: 0 | T38: 0 | U38: 0 | V38: 0 | W38: 0 | X38: 0 | Y38: 0 | Z38: 0 | AA38: 0 | AB38: 0 | AC38: 0 | AD38: 0 | AE38: 0 | AF38: 0 | AG38: 0 | AH38: 0 | AI38: 0 | AJ38: 0 | AK38: 0 | AM38: 0
A39: =+'Original ABG Allocation'!A39 -> 34 | B39: =+'Original ABG Allocation'!B39 -> NORTHAMPTON | C39: 0 | D39: 0 | E39: 0 | F39: 0 | G39: 0 | H39: 0 | I39: 0 | J39: 0 | K39: 0 | L39: 0 | M39: 0 | N39: 0 | O39: 0 | P39: 0 | Q39: 0 | R39: 0 | S39: 0 | T39: 0 | U39: 0 | V39: 0 | W39: 0 | X39: 0 | Y39: 0 | Z39: 0 | AA39: 0 | AB39: 0 | AC39: 0 | AD39: 0 | AE39: 0 | AF39: 0 | AG39: 0 | AH39: 0 | AI39: 0 | AJ39: 0 | AK39: 0 | AM39: 0
A40: =+'Original ABG Allocation'!A40 -> 35 | B40: =+'Original ABG Allocation'!B40 -> PIKE | C40: 0 | D40: 0 | E40: 0 | F40: 0 | G40: 0 | H40: 0 | I40: 0 | J40: 0 | K40: 0 | L40: 0 | M40: 0 | N40: 0 | O40: 0 | P40: 0 | Q40: 0 | R40: 0 | S40: 0 | T40: 0 | U40: 0 | V40: 0 | W40: 0 | X40: 0 | Y40: 0 | Z40: 0 | AA40: 0 | AB40: 0 | AC40: 0 | AD40: 0 | AE40: 0 | AF40: 0 | AG40: 0 | AH40: 0 | AI40: 0 | AJ40: 0 | AK40: 0 | AM40: 0
A41: =+'Original ABG Allocation'!A41 -> 36 | B41: =+'Original ABG Allocation'!B41 -> B/S/S/T | C41: 0 | D41: 0 | E41: 0 | F41: 0 | G41: 0 | H41: 0 | I41: 0 | J41: 0 | K41: 0 | L41: 0 | M41: 0 | N41: 0 | O41: 0 | P41: 0 | Q41: 0 | R41: 0 | S41: 0 | T41: 0 | U41: 0 | V41: 0 | W41: 0 | X41: 0 | Y41: 0 | Z41: 0 | AA41: 0 | AB41: 0 | AC41: 0 | AD41: 0 | AE41: 0 | AF41: 0 | AG41: 0 | AH41: 0 | AI41: 0 | AJ41: 0 | AK41: 0 | AM41: 0
A42: =+'Original ABG Allocation'!A42 -> 37 | B42: =+'Original ABG Allocation'!B42 -> LUZERNE/WYOMING | C42: 0 | D42: 0 | E42: 0 | F42: 0 | G42: 0 | H42: 0 | I42: 0 | J42: 0 | K42: 0 | L42: 0 | M42: 0 | N42: 0 | O42: 0 | P42: 0 | Q42: 0 | R42: 0 | S42: 0 | T42: 0 | U42: 0 | V42: 0 | W42: 0 | X42: 0 | Y42: 0 | Z42: 0 | AA42: 0 | AB42: 0 | AC42: 0 | AD42: 0 | AE42: 0 | AF42: 0 | AG42: 0 | AH42: 0 | AI42: 0 | AJ42: 0 | AK42: 0 | AM42: 0
A43: =+'Original ABG Allocation'!A43 -> 38 | B43: =+'Original ABG Allocation'!B43 -> LACKAWANNA | C43: 0 | D43: 0 | E43: 0 | F43: 0 | G43: 0 | H43: 0 | I43: 0 | J43: 0 | K43: 0 | L43: 0 | M43: 0 | N43: 0 | O43: 0 | P43: 0 | Q43: 0 | R43: 0 | S43: 0 | T43: 0 | U43: 0 | V43: 0 | W43: 0 | X43: 0 | Y43: 0 | Z43: 0 | AA43: 0 | AB43: 0 | AC43: 0 | AD43: 0 | AE43: 0 | AF43: 0 | AG43: 0 | AH43: 0 | AI43: 0 | AJ43: 0 | AK43: 0 | AM43: 0
A44: =+'Original ABG Allocation'!A44 -> 39 | B44: =+'Original ABG Allocation'!B44 -> CARBON | C44: 0 | D44: 0 | E44: 0 | F44: 0 | G44: 0 | H44: 0 | I44: 0 | J44: 0 | K44: 0 | L44: 0 | M44: 0 | N44: 0 | O44: 0 | P44: 0 | Q44: 0 | R44: 0 | S44: 0 | T44: 0 | U44: 0 | V44: 0 | W44: 0 | X44: 0 | Y44: 0 | Z44: 0 | AA44: 0 | AB44: 0 | AC44: 0 | AD44: 0 | AE44: 0 | AF44: 0 | AG44: 0 | AH44: 0 | AI44: 0 | AJ44: 0 | AK44: 0 | AM44: 0
A45: =+'Original ABG Allocation'!A45 -> 40 | B45: =+'Original ABG Allocation'!B45 -> SCHUYLKILL | C45: 0 | D45: 0 | E45: 0 | F45: 0 | G45: 0 | H45: 0 | I45: 0 | J45: 0 | K45: 0 | L45: 0 | M45: 0 | N45: 0 | O45: 0 | P45: 0 | Q45: 0 | R45: 0 | S45: 0 | T45: 0 | U45: 0 | V45: 0 | W45: 0 | X45: 0 | Y45: 0 | Z45: 0 | AA45: 0 | AB45: 0 | AC45: 0 | AD45: 0 | AE45: 0 | AF45: 0 | AG45: 0 | AH45: 0 | AI45: 0 | AJ45: 0 | AK45: 0 | AM45: 0
A46: =+'Original ABG Allocation'!A46 -> 41 | B46: =+'Original ABG Allocation'!B46 -> CLEARFIELD | C46: 0 | D46: 0 | E46: 0 | F46: 0 | G46: 0 | H46: 0 | I46: 0 | J46: 0 | K46: 0 | L46: 0 | M46: 0 | N46: 0 | O46: 0 | P46: 0 | Q46: 0 | R46: 0 | S46: 0 | T46: 0 | U46: 0 | V46: 0 | W46: 0 | X46: 0 | Y46: 0 | Z46: 0 | AA46: 0 | AB46: 0 | AC46: 0 | AD46: 0 | AE46: 0 | AF46: 0 | AG46: 0 | AH46: 0 | AI46: 0 | AJ46: 0 | AK46: 0 | AM46: 0
A47: =+'Original ABG Allocation'!A47 -> 42 | B47: =+'Original ABG Allocation'!B47 -> JEFFERSON | C47: 0 | D47: 0 | E47: 0 | F47: 0 | G47: 0 | H47: 0 | I47: 0 | J47: 0 | K47: 0 | L47: 0 | M47: 0 | N47: 0 | O47: 0 | P47: 0 | Q47: 0 | R47: 0 | S47: 0 | T47: 0 | U47: 0 | V47: 0 | W47: 0 | X47: 0 | Y47: 0 | Z47: 0 | AA47: 0 | AB47: 0 | AC47: 0 | AD47: 0 | AE47: 0 | AF47: 0 | AG47: 0 | AH47: 0 | AI47: 0 | AJ47: 0 | AK47: 0 | AM47: 0
A48: =+'Original ABG Allocation'!A48 -> 43 | B48: =+'Original ABG Allocation'!B48 -> FOREST/WARREN | C48: 0 | D48: 0 | E48: 0 | F48: 0 | G48: 0 | H48: 0 | I48: 0 | J48: 0 | K48: 0 | L48: 0 | M48: 0 | N48: 0 | O48: 0 | P48: 0 | Q48: 0 | R48: 0 | S48: 0 | T48: 0 | U48: 0 | V48: 0 | W48: 0 | X48: 0 | Y48: 0 | Z48: 0 | AA48: 0 | AB48: 0 | AC48: 0 | AD48: 0 | AE48: 0 | AF48: 0 | AG48: 0 | AH48: 0 | AI48: 0 | AJ48: 0 | AK48: 0 | AM48: 0
A49: =+'Original ABG Allocation'!A49 -> 44 | B49: =+'Original ABG Allocation'!B49 -> VENANGO | C49: 0 | D49: 0 | E49: 0 | F49: 0 | G49: 0 | H49: 0 | I49: 0 | J49: 0 | K49: 0 | L49: 0 | M49: 0 | N49: 0 | O49: 0 | P49: 0 | Q49: 0 | R49: 0 | S49: 0 | T49: 0 | U49: 0 | V49: 0 | W49: 0 | X49: 0 | Y49: 0 | Z49: 0 | AA49: 0 | AB49: 0 | AC49: 0 | AD49: 0 | AE49: 0 | AF49: 0 | AG49: 0 | AH49: 0 | AI49: 0 | AJ49: 0 | AK49: 0 | AM49: 0
A50: =+'Original ABG Allocation'!A50 -> 45 | B50: =+'Original ABG Allocation'!B50 -> ARMSTRONG | C50: 0 | D50: 0 | E50: 0 | F50: 0 | G50: 0 | H50: 0 | I50: 0 | J50: 0 | K50: 0 | L50: 0 | M50: 0 | N50: 0 | O50: 0 | P50: 0 | Q50: 0 | R50: 0 | S50: 0 | T50: 0 | U50: 0 | V50: 0 | W50: 0 | X50: 0 | Y50: 0 | Z50: 0 | AA50: 0 | AB50: 0 | AC50: 0 | AD50: 0 | AE50: 0 | AF50: 0 | AG50: 0 | AH50: 0 | AI50: 0 | AJ50: 0 | AK50: 0 | AM50: 0
A51: =+'Original ABG Allocation'!A51 -> 46 | B51: =+'Original ABG Allocation'!B51 -> LAWRENCE | C51: 0 | D51: 0 | E51: 0 | F51: 0 | G51: 0 | H51: 0 | I51: 0 | J51: 0 | K51: 0 | L51: 0 | M51: 0 | N51: 0 | O51: 0 | P51: 0 | Q51: 0 | R51: 0 | S51: 0 | T51: 0 | U51: 0 | V51: 0 | W51: 0 | X51: 0 | Y51: 0 | Z51: 0 | AA51: 0 | AB51: 0 | AC51: 0 | AD51: 0 | AE51: 0 | AF51: 0 | AG51: 0 | AH51: 0 | AI51: 0 | AJ51: 0 | AK51: 0 | AM51: 0
A52: =+'Original ABG Allocation'!A52 -> 47 | B52: =+'Original ABG Allocation'!B52 -> MERCER | C52: 0 | D52: 0 | E52: 0 | F52: 0 | G52: 0 | H52: 0 | I52: 0 | J52: 0 | K52: 0 | L52: 0 | M52: 0 | N52: 0 | O52: 0 | P52: 0 | Q52: 0 | R52: 0 | S52: 0 | T52: 0 | U52: 0 | V52: 0 | W52: 0 | X52: 0 | Y52: 0 | Z52: 0 | AA52: 0 | AB52: 0 | AC52: 0 | AD52: 0 | AE52: 0 | AF52: 0 | AG52: 0 | AH52: 0 | AI52: 0 | AJ52: 0 | AK52: 0 | AM52: 0
A53: =+'Original ABG Allocation'!A53 -> 48 | B53: =+'Original ABG Allocation'!B53 -> MONROE | C53: 0 | D53: 0 | E53: 0 | F53: 0 | G53: 0 | H53: 0 | I53: 0 | J53: 0 | K53: 0 | L53: 0 | M53: 0 | N53: 0 | O53: 0 | P53: 0 | Q53: 0 | R53: 0 | S53: 0 | T53: 0 | U53: 0 | V53: 0 | W53: 0 | X53: 0 | Y53: 0 | Z53: 0 | AA53: 0 | AB53: 0 | AC53: 0 | AD53: 0 | AE53: 0 | AF53: 0 | AG53: 0 | AH53: 0 | AI53: 0 | AJ53: 0 | AK53: 0 | AM53: 0
A54: =+'Original ABG Allocation'!A54 -> 49 | B54: =+'Original ABG Allocation'!B54 -> CLARION | C54: 0 | D54: 0 | E54: 0 | F54: 0 | G54: 0 | H54: 0 | I54: 0 | J54: 0 | K54: 0 | L54: 0 | M54: 0 | N54: 0 | O54: 0 | P54: 0 | Q54: 0 | R54: 0 | S54: 0 | T54: 0 | U54: 0 | V54: 0 | W54: 0 | X54: 0 | Y54: 0 | Z54: 0 | AA54: 0 | AB54: 0 | AC54: 0 | AD54: 0 | AE54: 0 | AF54: 0 | AG54: 0 | AH54: 0 | AI54: 0 | AJ54: 0 | AK54: 0 | AM54: 0
A55: =+'Original ABG Allocation'!A55 -> 50 | B55: =+'Original ABG Allocation'!B55 -> BUTLER | C55: 0 | D55: 0 | E55: 0 | F55: 0 | G55: 0 | H55: 0 | I55: 0 | J55: 0 | K55: 0 | L55: 0 | M55: 0 | N55: 0 | O55: 0 | P55: 0 | Q55: 0 | R55: 0 | S55: 0 | T55: 0 | U55: 0 | V55: 0 | W55: 0 | X55: 0 | Y55: 0 | Z55: 0 | AA55: 0 | AB55: 0 | AC55: 0 | AD55: 0 | AE55: 0 | AF55: 0 | AG55: 0 | AH55: 0 | AI55: 0 | AJ55: 0 | AK55: 0 | AM55: 0
A56: =+'Original ABG Allocation'!A56 -> 51 | B56: =+'Original ABG Allocation'!B56 -> POTTER | C56: 0 | D56: 0 | E56: 0 | F56: 0 | G56: 0 | H56: 0 | I56: 0 | J56: 0 | K56: 0 | L56: 0 | M56: 0 | N56: 0 | O56: 0 | P56: 0 | Q56: 0 | R56: 0 | S56: 0 | T56: 0 | U56: 0 | V56: 0 | W56: 0 | X56: 0 | Y56: 0 | Z56: 0 | AA56: 0 | AB56: 0 | AC56: 0 | AD56: 0 | AE56: 0 | AF56: 0 | AG56: 0 | AH56: 0 | AI56: 0 | AJ56: 0 | AK56: 0 | AM56: 0
A57: =+'Original ABG Allocation'!A57 -> 52 | B57: =+'Original ABG Allocation'!B57 -> WAYNE | C57: 0 | D57: 0 | E57: 0 | F57: 0 | G57: 0 | H57: 0 | I57: 0 | J57: 0 | K57: 0 | L57: 0 | M57: 0 | N57: 0 | O57: 0 | P57: 0 | Q57: 0 | R57: 0 | S57: 0 | T57: 0 | U57: 0 | V57: 0 | W57: 0 | X57: 0 | Y57: 0 | Z57: 0 | AA57: 0 | AB57: 0 | AC57: 0 | AD57: 0 | AE57: 0 | AF57: 0 | AG57: 0 | AH57: 0 | AI57: 0 | AJ57: 0 | AK57: 0 | AM57: =SUM(C7:AL57) -> 0
B58: TOTALS | C58: =SUM(C6:C57) -> 0 | D58: =SUM(D6:D57) -> 0 | G58: =SUM(G6:G57) -> 0 | H58: 0 | I58: 0 | J58: 0 | K58: 0 | L58: 0 | M58: 0 | N58: 0 | O58: 0 | P58: 0 | Q58: 0 | R58: 0 | S58: =SUM(S6:S57) -> 0 | T58: 0 | U58: 0 | V58: 0 | W58: 0 | X58: 0 | AA58: =SUM(AA6:AA57) -> 0 | AB58: =SUM(AB6:AB57) -> 0 | AC58: 0 | AM58: =SUM(AK6:AM57) -> 0

Sheet Other Funds-Revision No. 1
A1: CHANGE NO. 1
A2: OTHER FUNDS
A3: =+'Original ABG Allocation'!A3 -> FY 2022-23 | C3: =+'Other Funds Summary'!C3 -> (1) | D3: =+'Other Funds Summary'!D3 -> (2) | E3: =+'Other Funds Summary'!E3 -> (3) | F3: =+'Other Funds Summary'!F3 -> (3) | G3: =+'Other Funds Summary'!G3 -> (4) | H3: =+'Other Funds Summary'!H3 -> (5) | I3: =+'Other Funds Summary'!I3 -> (6) | J3: =+'Other Funds Summary'!J3 -> (7) | K3: =+'Other Funds Summary'!K3 -> (8) | L3: =+'Other Funds Summary'!L3 -> (9) | M3: =+'Other Funds Summary'!M3 -> (10) | N3: =+'Other Funds Summary'!N3 -> (11) | O3: =+'Other Funds Summary'!O3 -> (12) | P3: =+'Other Funds Summary'!P3 -> (13) | Q3: =+'Other Funds Summary'!Q3 -> (14) | R3: =+'Other Funds Summary'!R3 -> (15) | S3: =+'Other Funds Summary'!S3 -> (16) | T3: =+'Other Funds Summary'!T3 -> (17) | U3: =+'Other Funds Summary'!U3 -> (18) | V3: =+'Other Funds Summary'!V3 -> (19) | W3: =+'Other Funds Summary'!W3 -> (20) | X3: =+'Other Funds Summary'!X3 -> (21) | Y3: =+'Other Funds Summary'!Y3 -> (22) | Z3: =+'Other Funds Summary'!Z3 -> (23) | AA3: =+'Other Funds Summary'!AA3 -> (24) | AB3: =+'Other Funds Summary'!AB3 -> (25) | AC3: =+'Other Funds Summary'!AC3 -> (26) | AD3: =+'Other Funds Summary'!AD3 -> (27) | AE3: =+'Other Funds Summary'!AE3 -> (28) | AF3: =+'Other Funds Summary'!AF3 -> (29) | AG3: =+'Other Funds Summary'!AG3 -> (30) | AH3: =+'Other Funds Summary'!AH3 -> (31) | AI3: =+'Other Funds Summary'!AI3 -> (32) | AJ3: =+'Other Funds Summary'!AJ3 -> (33) | AK3: =+'Other Funds Summary'!AK3 -> (34) | AL3: =+'Other Funds Summary'!AL3 -> (35)
C4: =+'Other Funds Summary'!C4 -> Ombudsman | D4: =+'Other Funds Summary'!D4 -> Ombudsman | E4: Ombudsman | F4: Ombudsman | G4: =+'Other Funds Summary'!G4 -> PA MEDI | H4: =+'Other Funds Summary'!H4 -> PA MEDI | I4: =+'Other Funds Summary'!I4 -> PA MEDI | J4: =+'Other Funds Summary'!J4 -> PA MEDI | K4: =+'Other Funds Summary'!K4 -> PA MEDI | L4: =+'Other Funds Summary'!L4 -> OPTIONS | M4: =+'Other Funds Summary'!M4 -> Block Grant | O4: =+'Other Funds Summary'!O4 -> Protective | P4: =+'Other Funds Summary'!P4 -> PS | Q4: =+'Other Funds Summary'!Q4 -> OPTIONS | R4: =+'Other Funds Summary'!R4 -> Block Grant | S4: =+'Other Funds Summary'!S4 -> ARPA | T4: =+'Other Funds Summary'!T4 -> ARPA | U4: =+'Other Funds Summary'!U4 -> ARPA | V4: =+'Other Funds Summary'!V4 -> ARPA | W4: =+'Other Funds Summary'!W4 -> ARPA | X4: ADRC | Y4: ='Other Funds Summary'!Y4 -> FFCRA | Z4: ='Other Funds Summary'!Z4 -> FFCRA | AA4: ='Other Funds Summary'!AA4 -> CARES | AB4: ='Other Funds Summary'!AB4 -> CARES | AC4: ='Other Funds Summary'!AC4 -> CARES | AD4: ='Other Funds Summary'!AD4 -> PS Reserve Staff | AE4: ='Other Funds Summary'!AE4 -> Senior Center | AF4: ='Other Funds Summary'!AF4 -> MIPPA-AAA | AG4: ='Other Funds Summary'!AG4 -> MIPPA-ADRC | AH4: ='Other Funds Summary'!AH4 -> MIPPA-SHIP | AI4: ='Other Funds Summary'!AI4 -> MIPPA-SHIP | AJ4: ='Other Funds Summary'!AJ4 -> MIPPA-SHIP | AK4: ='Other Funds Summary'!AK4 -> ADRC | AL4: ='Other Funds Summary'!AL4 -> Covid Vaccine | AM4: TOTAL
C5: =+'Other Funds Summary'!C5 -> ROC | D5: =+'Other Funds Summary'!D5 -> Volunteers | E5: Fed Care Act | F5: =+'Other Funds Summary'!F5 -> Fed Addl Care Act | G5: =+'Other Funds Summary'!G5 -> Reg. Staff | H5: =+'Other Funds Summary'!H5 -> Helpline | I5: =+'Other Funds Summary'!I5 -> Telecenter | J5: =+'Other Funds Summary'!J5 -> Base | K5: =+'Other Funds Summary'!K5 -> PHLP | L5: =+'Other Funds Summary'!L5 -> Services | M5: =+'Other Funds Summary'!M5 -> Supplement | N5: =+'Other Funds Summary'!N5 -> SNHT | O5: =+'Other Funds Summary'!O5 -> Services | P5: =+'Other Funds Summary'!P5 -> Personnel | Q5: =+'Other Funds Summary'!Q5 -> Services (2) | R5: =+'Other Funds Summary'!R5 -> Supplement (2) | S5: =+'Other Funds Summary'!S5 -> Suppt Svs | T5: =+'Other Funds Summary'!T5 -> HD Meals | U5: =+'Other Funds Summary'!U5 -> Cong Meals | V5: =+'Other Funds Summary'!V5 -> Prev Health | W5: =+'Other Funds Summary'!W5 -> Family Caregiver | X5: =+'Other Funds Summary'!X5 -> Vaccine Suppt | Y5: =+'Other Funds Summary'!Y5 -> HDMs | Z5: =+'Other Funds Summary'!Z5 -> CMs | AA5: =+'Other Funds Summary'!AA5 -> Services | AB5: =+'Other Funds Summary'!AB5 -> Meals | AC5: =+'Other Funds Summary'!AC5 -> Caregiver | AD5: =+'Other Funds Summary'!AD5 -> Grant | AE5: ='Other Funds Summary'!AE5 -> Grant | AF5: ='Other Funds Summary'!AF5 -> Priority 2 | AG5: ='Other Funds Summary'!AG5 -> Priority 3 | AH5: ='Other Funds Summary'!AH5 -> BDT | AI5: ='Other Funds Summary'!AI5 -> PHLP | AJ5: ='Other Funds Summary'!AJ5 -> Performance | AK5: ='Other Funds Summary'!AK5 -> Award | AL5: ='Other Funds Summary'!AL5 -> Access | AM5: OTHER
A6: =+'Original ABG Allocation'!A6 -> 01 | B6: =+'Original ABG Allocation'!B6 -> ERIE | C6: 0 | D6: 0 | E6: 8840 | F6: 0 | G6: 0 | H6: 0 | I6: 0 | J6: 0 | K6: 0 | L6: 0 | M6: 0 | N6: 0 | O6: 0 | P6: 0 | Q6: 0 | R6: 0 | S6: 0 | T6: 0 | U6: 0 | V6: 0 | W6: 0 | X6: 0 | Y6: 0 | Z6: 0 | AA6: 0 | AB6: 0 | AC6: 0 | AD6: 0 | AE6: 0 | AF6: 0 | AG6: 0 | AH6: 0 | AI6: 0 | AJ6: 0 | AK6: 0 | AL6: 41914 | AM6: =SUM(C6:AL6) -> 50754
A7: =+'Original ABG Allocation'!A7 -> 02 | B7: =+'Original ABG Allocation'!B7 -> CRAWFORD | C7: 0 | D7: 0 | E7: 8840 | F7: 0 | G7: 0 | H7: 0 | I7: 0 | J7: 0 | K7: 0 | L7: 0 | M7: 0 | N7: 0 | O7: 0 | P7: 0 | Q7: 0 | R7: 0 | S7: 0 | T7: 0 | U7: 0 | V7: 0 | W7: 0 | X7: 0 | Y7: 0 | Z7: 0 | AA7: 0 | AB7: 0 | AC7: 0 | AD7: 0 | AE7: 0 | AF7: 0 | AG7: 0 | AH7: 0 | AI7: 0 | AJ7: 0 | AK7: 0 | AL7: 19112 | AM7: =SUM(C7:AL7) -> 27952
A8: =+'Original ABG Allocation'!A8 -> 03 | B8: =+'Original ABG Allocation'!B8 -> CAM/ELK/MCKEAN | C8: 0 | D8: 0 | E8: 8840 | F8: 0 | G8: 0 | H8: 0 | I8: 0 | J8: 0 | K8: 0 | L8: 0 | M8: 0 | N8: 0 | O8: 0 | P8: 0 | Q8: 0 | R8: 0 | S8: 0 | T8: 0 | U8: 0 | V8: 0 | W8: 0 | X8: 0 | Y8: 0 | Z8: 0 | AA8: 0 | AB8: 0 | AC8: 0 | AD8: 0 | AE8: 0 | AF8: 0 | AG8: 0 | AH8: 0 | AI8: 0 | AJ8: 0 | AK8: 0 | AL8: 17686 | AM8: 26526
A9: =+'Original ABG Allocation'!A9 -> 04 | B9: =+'Original ABG Allocation'!B9 -> BEAVER | C9: 0 | D9: 0 | E9: 8840 | F9: 0 | G9: 0 | H9: 0 | I9: 0 | J9: 0 | K9: 0 | L9: 0 | M9: 0 | N9: 0 | O9: 0 | P9: 0 | Q9: 0 | R9: 0 | S9: 0 | T9: 0 | U9: 0 | V9: 0 | W9: 0 | X9: 0 | Y9: 0 | Z9: 0 | AA9: 0 | AB9: 0 | AC9: 0 | AD9: 0 | AE9: 0 | AF9: 0 | AG9: 0 | AH9: 0 | AI9: 0 | AJ9: 0 | AK9: 0 | AL9: 28437 | AM9: 37277
A10: =+'Original ABG Allocation'!A10 -> 05 | B10: =+'Original ABG Allocation'!B10 -> INDIANA | C10: 0 | D10: 0 | E10: 8840 | F10: 0 | G10: 0 | H10: 0 | I10: 0 | J10: 0 | K10: 0 | L10: 0 | M10: 0 | N10: 0 | O10: 0 | P10: 0 | Q10: 0 | R10: 0 | S10: 0 | T10: 0 | U10: 0 | V10: 0 | W10: 0 | X10: 0 | Y10: 0 | Z10: 0 | AA10: 0 | AB10: 0 | AC10: 0 | AD10: 0 | AE10: 0 | AF10: 0 | AG10: 0 | AH10: 0 | AI10: 0 | AJ10: 0 | AK10: 0 | AL10: 17663 | AM10: 26503
A11: =+'Original ABG Allocation'!A11 -> 06 | B11: =+'Original ABG Allocation'!B11 -> ALLEGHENY | C11: 0 | D11: 0 | E11: 8840 | F11: 0 | G11: 0 | H11: 0 | I11: 0 | J11: 0 | K11: 0 | L11: 0 | M11: 0 | N11: 0 | O11: 0 | P11: 0 | Q11: 0 | R11: 0 | S11: 0 | T11: 0 | U11: 0 | V11: 0 | W11: 0 | X11: 0 | Y11: 0 | Z11: 0 | AA11: 0 | AB11: 0 | AC11: 0 | AD11: 0 | AE11: 0 | AF11: 0 | AG11: 0 | AH11: 0 | AI11: 0 | AJ11: 0 | AK11: 0 | AL11: 180964 | AM11: 189804
A12: =+'Original ABG Allocation'!A12 -> 07 | B12: =+'Original ABG Allocation'!B12 -> WESTMORELAND | C12: 0 | D12: 0 | E12: 8840 | F12: 0 | G12: 0 | H12: 0 | I12: 0 | J12: 0 | K12: 0 | L12: 0 | M12: 0 | N12: 0 | O12: 0 | P12: 0 | Q12: 0 | R12: 0 | S12: 0 | T12: 0 | U12: 0 | V12: 0 | W12: 0 | X12: 0 | Y12: 0 | Z12: 0 | AA12: 0 | AB12: 0 | AC12: 0 | AD12: 0 | AE12: 0 | AF12: 0 | AG12: 0 | AH12: 0 | AI12: 0 | AJ12: 0 | AK12: 0 | AL12: 57991 | AM12: 66831
A13: =+'Original ABG Allocation'!A13 -> 08 | B13: =+'Original ABG Allocation'!B13 -> WASH/FAY/GREENE | C13: 0 | D13: 0 | E13: 8840 | F13: 0 | G13: 0 | H13: 0 | I13: 0 | J13: 0 | K13: 0 | L13: 0 | M13: 0 | N13: 0 | O13: 0 | P13: 0 | Q13: 0 | R13: 0 | S13: 0 | T13: 0 | U13: 0 | V13: 0 | W13: 0 | X13: 0 | Y13: 0 | Z13: 0 | AA13: 0 | AB13: 0 | AC13: 0 | AD13: 0 | AE13: 0 | AF13: 0 | AG13: 0 | AH13: 0 | AI13: 0 | AJ13: 0 | AK13: 0 | AL13: 72090 | AM13: 80930
A14: =+'Original ABG Allocation'!A14 -> 09 | B14: =+'Original ABG Allocation'!B14 -> SOMERSET | C14: 0 | D14: 0 | E14: 8840 | F14: 0 | G14: 0 | H14: 0 | I14: 0 | J14: 0 | K14: 0 | L14: 0 | M14: 0 | N14: 0 | O14: 0 | P14: 0 | Q14: 0 | R14: 0 | S14: 0 | T14: 0 | U14: 0 | V14: 0 | W14: 0 | X14: 0 | Y14: 0 | Z14: 0 | AA14: 0 | AB14: 0 | AC14: 0 | AD14: 0 | AE14: 0 | AF14: 0 | AG14: 0 | AH14: 0 | AI14: 0 | AJ14: 0 | AK14: 0 | AL14: 18722 | AM14: 27562
A15: =+'Original ABG Allocation'!A15 -> 10 | B15: =+'Original ABG Allocation'!B15 -> CAMBRIA | C15: 0 | D15: 0 | E15: 8840 | F15: 0 | G15: 0 | H15: 0 | I15: 0 | J15: 0 | K15: 0 | L15: 0 | M15: 0 | N15: 0 | O15: 0 | P15: 0 | Q15: 0 | R15: 0 | S15: 0 | T15: 0 | U15: 0 | V15: 0 | W15: 0 | X15: 0 | Y15: 0 | Z15: 0 | AA15: 0 | AB15: 0 | AC15: 0 | AD15: 0 | AE15: 0 | AF15: 0 | AG15: 0 | AH15: 0 | AI15: 0 | AJ15: 0 | AK15: 0 | AL15: 28922 | AM15: 37762
A16: =+'Original ABG Allocation'!A16 -> 11 | B16: =+'Original ABG Allocation'!B16 -> BLAIR | C16: 0 | D16: 0 | E16: 8840 | F16: 0 | G16: 0 | H16: 0 | I16: 0 | J16: 0 | K16: 0 | L16: 0 | M16: 0 | N16: 0 | O16: 0 | P16: 0 | Q16: 0 | R16: 0 | S16: 0 | T16: 0 | U16: 0 | V16: 0 | W16: 0 | X16: 0 | Y16: 0 | Z16: 0 | AA16: 0 | AB16: 0 | AC16: 0 | AD16: 0 | AE16: 0 | AF16: 0 | AG16: 0 | AH16: 0 | AI16: 0 | AJ16: 0 | AK16: 0 | AL16: 21456 | AM16: 30296
A17: =+'Original ABG Allocation'!A17 -> 12 | B17: =+'Original ABG Allocation'!B17 -> BED/FULT/HUNT | C17: 0 | D17: 0 | E17: 8840 | F17: 0 | G17: 0 | H17: 0 | I17: 0 | J17: 0 | K17: 0 | L17: 0 | M17: 0 | N17: 0 | O17: 0 | P17: 0 | Q17: 0 | R17: 0 | S17: 0 | T17: 0 | U17: 0 | V17: 0 | W17: 0 | X17: 0 | Y17: 0 | Z17: 0 | AA17: 0 | AB17: 0 | AC17: 0 | AD17: 0 | AE17: 0 | AF17: 0 | AG17: 0 | AH17: 0 | AI17: 0 | AJ17: 0 | AK17: 0 | AL17: 28502 | AM17: 37342
A18: =+'Original ABG Allocation'!A18 -> 13 | B18: =+'Original ABG Allocation'!B18 -> CENTRE | C18: 0 | D18: 0 | E18: 8840 | F18: 0 | G18: 0 | H18: 0 | I18: 0 | J18: 0 | K18: 0 | L18: 0 | M18: 0 | N18: 0 | O18: 0 | P18: 0 | Q18: 0 | R18: 0 | S18: 0 | T18: 0 | U18: 0 | V18: 0 | W18: 0 | X18: 0 | Y18: 0 | Z18: 0 | AA18: 0 | AB18: 0 | AC18: 0 | AD18: 0 | AE18: 0 | AF18: 0 | AG18: 0 | AH18: 0 | AI18: 0 | AJ18: 0 | AK18: 0 | AL18: 18588 | AM18: 27428
A19: =+'Original ABG Allocation'!A19 -> 14 | B19: =+'Original ABG Allocation'!B19 -> LYCOM/CLINTON | C19: 0 | D19: 0 | E19: 8840 | F19: 0 | G19: 0 | H19: 0 | I19: 0 | J19: 0 | K19: 0 | L19: 0 | M19: 0 | N19: 0 | O19: 0 | P19: 0 | Q19: 0 | R19: 0 | S19: 0 | T19: 0 | U19: 0 | V19: 0 | W19: 0 | X19: 0 | Y19: 0 | Z19: 0 | AA19: 0 | AB19: 0 | AC19: 0 | AD19: 0 | AE19: 0 | AF19: 0 | AG19: 0 | AH19: 0 | AI19: 0 | AJ19: 0 | AK19: 0 | AL19: 29172 | AM19: 38012
A20: =+'Original ABG Allocation'!A20 -> 15 | B20: =+'Original ABG Allocation'!B20 -> COLUM/MONT | C20: 0 | D20: 0 | E20: 8840 | F20: 0 | G20: 0 | H20: 0 | I20: 0 | J20: 0 | K20: 0 | L20: 0 | M20: 0 | N20: 0 | O20: 0 | P20: 0 | Q20: 0 | R20: 0 | S20: 0 | T20: 0 | U20: 0 | V20: 0 | W20: 0 | X20: 0 | Y20: 0 | Z20: 0 | AA20: 0 | AB20: 0 | AC20: 0 | AD20: 0 | AE20: 0 | AF20: 0 | AG20: 0 | AH20: 0 | AI20: 0 | AJ20: 0 | AK20: 0 | AL20: 16498 | AM20: 25338
A21: =+'Original ABG Allocation'!A21 -> 16 | B21: =+'Original ABG Allocation'!B21 -> NORTHUMBERLND | C21: 0 | D21: 0 | E21: 8840 | F21: 0 | G21: 0 | H21: 0 | I21: 0 | J21: 0 | K21: 0 | L21: 0 | M21: 0 | N21: 0 | O21: 0 | P21: 0 | Q21: 0 | R21: 0 | S21: 0 | T21: 0 | U21: 0 | V21: 0 | W21: 0 | X21: 0 | Y21: 0 | Z21: 0 | AA21: 0 | AB21: 0 | AC21: 0 | AD21: 0 | AE21: 0 | AF21: 0 | AG21: 0 | AH21: 0 | AI21: 0 | AJ21: 0 | AK21: 0 | AL21: 18995 | AM21: 27835
A22: =+'Original ABG Allocation'!A22 -> 17 | B22: =+'Original ABG Allocation'!B22 -> UNION/SNYDER | C22: 0 | D22: 0 | E22: 8840 | F22: 0 | G22: 0 | H22: 0 | I22: 0 | J22: 0 | K22: 0 | L22: 0 | M22: 0 | N22: 0 | O22: 0 | P22: 0 | Q22: 0 | R22: 0 | S22: 0 | T22: 0 | U22: 0 | V22: 0 | W22: 0 | X22: 0 | Y22: 0 | Z22: 0 | AA22: 0 | AB22: 0 | AC22: 0 | AD22: 0 | AE22: 0 | AF22: 0 | AG22: 0 | AH22: 0 | AI22: 0 | AJ22: 0 | AK22: 0 | AL22: 16338 | AM22: 25178
A23: =+'Original ABG Allocation'!A23 -> 18 | B23: =+'Original ABG Allocation'!B23 -> MIFF/JUNIATA | C23: 0 | D23: 0 | E23: 8840 | F23: 0 | G23: 0 | H23: 0 | I23: 0 | J23: 0 | K23: 0 | L23: 0 | M23: 0 | N23: 0 | O23: 0 | P23: 0 | Q23: 0 | R23: 0 | S23: 0 | T23: 0 | U23: 0 | V23: 0 | W23: 0 | X23: 0 | Y23: 0 | Z23: 0 | AA23: 0 | AB23: 0 | AC23: 0 | AD23: 0 | AE23: 0 | AF23: 0 | AG23: 0 | AH23: 0 | AI23: 0 | AJ23: 0 | AK23: 0 | AL23: 17134 | AM23: 25974
A24: =+'Original ABG Allocation'!A24 -> 19 | B24: =+'Original ABG Allocation'!B24 -> FRANKLIN | C24: 0 | D24: 0 | E24: 8840 | F24: 0 | G24: 0 | H24: 0 | I24: 0 | J24: 0 | K24: 0 | L24: 0 | M24: 0 | N24: 0 | O24: 0 | P24: 0 | Q24: 0 | R24: 0 | S24: 0 | T24: 0 | U24: 0 | V24: 0 | W24: 0 | X24: 0 | Y24: 0 | Z24: 0 | AA24: 0 | AB24: 0 | AC24: 0 | AD24: 0 | AE24: 0 | AF24: 0 | AG24: 0 | AH24: 0 | AI24: 0 | AJ24: 0 | AK24: 0 | AL24: 23033 | AM24: 31873
A25: =+'Original ABG Allocation'!A25 -> 20 | B25: =+'Original ABG Allocation'!B25 -> ADAMS | C25: 0 | D25: 0 | E25: 8840 | F25: 0 | G25: 0 | H25: 0 | I25: 0 | J25: 0 | K25: 0 | L25: 0 | M25: 0 | N25: 0 | O25: 0 | P25: 0 | Q25: 0 | R25: 0 | S25: 0 | T25: 0 | U25: 0 | V25: 0 | W25: 0 | X25: 0 | Y25: 0 | Z25: 0 | AA25: 0 | AB25: 0 | AC25: 0 | AD25: 0 | AE25: 0 | AF25: 0 | AG25: 0 | AH25: 0 | AI25: 0 | AJ25: 0 | AK25: 0 | AL25: 20260 | AM25: 29100
A26: =+'Original ABG Allocation'!A26 -> 21 | B26: =+'Original ABG Allocation'!B26 -> CUMBERLAND | C26: 0 | D26: 0 | E26: 8840 | F26: 0 | G26: 0 | H26: 0 | I26: 0 | J26: 0 | K26: 0 | L26: 0 | M26: 0 | N26: 0 | O26: 0 | P26: 0 | Q26: 0 | R26: 0 | S26: 0 | T26: 0 | U26: 0 | V26: 0 | W26: 0 | X26: 0 | Y26: 0 | Z26: 0 | AA26: 0 | AB26: 0 | AC26: 0 | AD26: 0 | AE26: 0 | AF26: 0 | AG26: 0 | AH26: 0 | AI26: 0 | AJ26: 0 | AK26: 0 | AL26: 29706 | AM26: 38546
A27: =+'Original ABG Allocation'!A27 -> 22 | B27: =+'Original ABG Allocation'!B27 -> PERRY | C27: 0 | D27: 0 | E27: 8840 | F27: 0 | G27: 0 | H27: 0 | I27: 0 | J27: 0 | K27: 0 | L27: 0 | M27: 0 | N27: 0 | O27: 0 | P27: 0 | Q27: 0 | R27: 0 | S27: 0 | T27: 0 | U27: 0 | V27: 0 | W27: 0 | X27: 0 | Y27: 0 | Z27: 0 | AA27: 0 | AB27: 0 | AC27: 0 | AD27: 0 | AE27: 0 | AF27: 0 | AG27: 0 | AH27: 0 | AI27: 0 | AJ27: 0 | AK27: 0 | AL27: 10262 | AM27: 19102
A28: =+'Original ABG Allocation'!A28 -> 23 | B28: =+'Original ABG Allocation'!B28 -> DAUPHIN | C28: 0 | D28: 0 | E28: 8840 | F28: 0 | G28: 0 | H28: 0 | I28: 0 | J28: 0 | K28: 0 | L28: 0 | M28: 0 | N28: 0 | O28: 0 | P28: 0 | Q28: 0 | R28: 0 | S28: 0 | T28: 0 | U28: 0 | V28: 0 | W28: 0 | X28: 0 | Y28: 0 | Z28: 0 | AA28: 0 | AB28: 0 | AC28: 0 | AD28: 0 | AE28: 0 | AF28: 0 | AG28: 0 | AH28: 0 | AI28: 0 | AJ28: 0 | AK28: 0 | AL28: 41146 | AM28: 49986
A29: =+'Original ABG Allocation'!A29 -> 24 | B29: =+'Original ABG Allocation'!B29 -> LEBANON | C29: 0 | D29: 0 | E29: 9215 | F29: 0 | G29: 0 | H29: 0 | I29: 0 | J29: 0 | K29: 0 | L29: 0 | M29: 0 | N29: 0 | O29: 0 | P29: 0 | Q29: 0 | R29: 0 | S29: 0 | T29: 0 | U29: 0 | V29: 0 | W29: 0 | X29: 0 | Y29: 0 | Z29: 0 | AA29: 0 | AB29: 0 | AC29: 0 | AD29: 0 | AE29: 0 | AF29: 0 | AG29: 0 | AH29: 0 | AI29: 0 | AJ29: 0 | AK29: 0 | AL29: 19343 | AM29: 28558
A30: =+'Original ABG Allocation'!A30 -> 25 | B30: =+'Original ABG Allocation'!B30 -> YORK | C30: 0 | D30: 0 | E30: 8840 | F30: 0 | G30: 0 | H30: 0 | I30: 0 | J30: 0 | K30: 0 | L30: 0 | M30: 0 | N30: 0 | O30: 0 | P30: 0 | Q30: 0 | R30: 0 | S30: 0 | T30: 0 | U30: 0 | V30: 0 | W30: 0 | X30: 0 | Y30: 0 | Z30: 0 | AA30: 0 | AB30: 0 | AC30: 0 | AD30: 0 | AE30: 0 | AF30: 0 | AG30: 0 | AH30: 0 | AI30: 0 | AJ30: 0 | AK30: 0 | AL30: 60311 | AM30: 69151
A31: =+'Original ABG Allocation'!A31 -> 26 | B31: =+'Original ABG Allocation'!B31 -> LANCASTER | C31: 0 | D31: 0 | E31: 8840 | F31: 0 | G31: 0 | H31: 0 | I31: 0 | J31: 0 | K31: 0 | L31: 0 | M31: 0 | N31: 0 | O31: 0 | P31: 0 | Q31: 0 | R31: 0 | S31: 0 | T31: 0 | U31: 0 | V31: 0 | W31: 0 | X31: 0 | Y31: 0 | Z31: 0 | AA31: 0 | AB31: 0 | AC31: 0 | AD31: 0 | AE31: 0 | AF31: 0 | AG31: 0 | AH31: 0 | AI31: 0 | AJ31: 0 | AK31: 0 | AL31: 68547 | AM31: 77387
A32: =+'Original ABG Allocation'!A32 -> 27 | B32: =+'Original ABG Allocation'!B32 -> CHESTER | C32: 0 | D32: 0 | E32: 8840 | F32: 0 | G32: 0 | H32: 0 | I32: 0 | J32: 0 | K32: 0 | L32: 0 | M32: 0 | N32: 0 | O32: 0 | P32: 0 | Q32: 0 | R32: 0 | S32: 0 | T32: 0 | U32: 0 | V32: 0 | W32: 0 | X32: 0 | Y32: 0 | Z32: 0 | AA32: 0 | AB32: 0 | AC32: 0 | AD32: 0 | AE32: 0 | AF32: 0 | AG32: 0 | AH32: 0 | AI32: 0 | AJ32: 0 | AK32: 0 | AL32: 51134 | AM32: 59974
A33: =+'Original ABG Allocation'!A33 -> 28 | B33: =+'Original ABG Allocation'!B33 -> MONTGOMERY | C33: 0 | D33: 0 | E33: 8840 | F33: 0 | G33: 0 | H33: 0 | I33: 0 | J33: 0 | K33: 0 | L33: 0 | M33: 0 | N33: 0 | O33: 0 | P33: 0 | Q33: 0 | R33: 0 | S33: 0 | T33: 0 | U33: 0 | V33: 0 | W33: 0 | X33: 0 | Y33: 0 | Z33: 0 | AA33: 0 | AB33: 0 | AC33: 0 | AD33: 0 | AE33: 0 | AF33: 0 | AG33: 0 | AH33: 0 | AI33: 0 | AJ33: 0 | AK33: 0 | AL33: 92594 | AM33: 101434
A34: =+'Original ABG Allocation'!A34 -> 29 | B34: =+'Original ABG Allocation'!B34 -> BUCKS | C34: 0 | D34: 0 | E34: 8840 | F34: 0 | G34: 0 | H34: 0 | I34: 0 | J34: 0 | K34: 0 | L34: 0 | M34: 0 | N34: 0 | O34: 0 | P34: 0 | Q34: 0 | R34: 0 | S34: 0 | T34: 0 | U34: 0 | V34: 0 | W34: 0 | X34: 0 | Y34: 0 | Z34: 0 | AA34: 0 | AB34: 0 | AC34: 0 | AD34: 0 | AE34: 0 | AF34: 0 | AG34: 0 | AH34: 0 | AI34: 0 | AJ34: 0 | AK34: 0 | AL34: 67441 | AM34: 76281
A35: =+'Original ABG Allocation'!A35 -> 30 | B35: =+'Original ABG Allocation'!B35 -> DELAWARE | C35: 0 | D35: 0 | E35: 8840 | F35: 0 | G35: 0 | H35: 0 | I35: 0 | J35: 0 | K35: 0 | L35: 0 | M35: 0 | N35: 0 | O35: 0 | P35: 0 | Q35: 0 | R35: 0 | S35: 0 | T35: 0 | U35: 0 | V35: 0 | W35: 0 | X35: 0 | Y35: 0 | Z35: 0 | AA35: 0 | AB35: 0 | AC35: 0 | AD35: 0 | AE35: 0 | AF35: 0 | AG35: 0 | AH35: 0 | AI35: 0 | AJ35: 0 | AK35: 0 | AL35: 73647 | AM35: 82487
A36: =+'Original ABG Allocation'!A36 -> 31 | B36: =+'Original ABG Allocation'!B36 -> PHILADELPHIA | C36: 0 | D36: 0 | E36: 10140 | F36: 0 | G36: 0 | H36: 0 | I36: 0 | J36: 0 | K36: 0 | L36: 0 | M36: 0 | N36: 0 | O36: 0 | P36: 0 | Q36: 0 | R36: 0 | S36: 0 | T36: 0 | U36: 0 | V36: 0 | W36: 0 | X36: 0 | Y36: 0 | Z36: 0 | AA36: 0 | AB36: 0 | AC36: 0 | AD36: 0 | AE36: 0 | AF36: 0 | AG36: 0 | AH36: 0 | AI36: 0 | AJ36: 0 | AK36: 0 | AL36: 365098 | AM36: 375238
A37: =+'Original ABG Allocation'!A37 -> 32 | B37: =+'Original ABG Allocation'!B37 -> BERKS | C37: 0 | D37: 0 | E37: 8840 | F37: 0 | G37: 0 | H37: 0 | I37: 0 | J37: 0 | K37: 0 | L37: 0 | M37: 0 | N37: 0 | O37: 0 | P37: 0 | Q37: 0 | R37: 0 | S37: 0 | T37: 0 | U37: 0 | V37: 0 | W37: 0 | X37: 0 | Y37: 0 | Z37: 0 | AA37: 0 | AB37: 0 | AC37: 0 | AD37: 0 | AE37: 0 | AF37: 0 | AG37: 0 | AH37: 0 | AI37: 0 | AJ37: 0 | AK37: 0 | AL37: 61542 | AM37: 70382
A38: =+'Original ABG Allocation'!A38 -> 33 | B38: =+'Original ABG Allocation'!B38 -> LEHIGH | C38: 0 | D38: 0 | E38: 8840 | F38: 0 | G38: 0 | H38: 0 | I38: 0 | J38: 0 | K38: 0 | L38: 0 | M38: 0 | N38: 0 | O38: 0 | P38: 0 | Q38: 0 | R38: 0 | S38: 0 | T38: 0 | U38: 0 | V38: 0 | W38: 0 | X38: 0 | Y38: 0 | Z38: 0 | AA38: 0 | AB38: 0 | AC38: 0 | AD38: 0 | AE38: 0 | AF38: 0 | AG38: 0 | AH38: 0 | AI38: 0 | AJ38: 0 | AK38: 0 | AL38: 49049 | AM38: 57889
A39: =+'Original ABG Allocation'!A39 -> 34 | B39: =+'Original ABG Allocation'!B39 -> NORTHAMPTON | C39: 0 | D39: 0 | E39: 8840 | F39: 0 | G39: 0 | H39: 0 | I39: 0 | J39: 0 | K39: 0 | L39: 0 | M39: 0 | N39: 0 | O39: 0 | P39: 0 | Q39: 0 | R39: 0 | S39: 0 | T39: 0 | U39: 0 | V39: 0 | W39: 0 | X39: 0 | Y39: 0 | Z39: 0 | AA39: 0 | AB39: 0 | AC39: 0 | AD39: 0 | AE39: 0 | AF39: 0 | AG39: 0 | AH39: 0 | AI39: 0 | AJ39: 0 | AK39: 0 | AL39: 37573 | AM39: 46413
A40: =+'Original ABG Allocation'!A40 -> 35 | B40: =+'Original ABG Allocation'!B40 -> PIKE | C40: 0 | D40: 0 | E40: 8840 | F40: 0 | G40: 0 | H40: 0 | I40: 0 | J40: 0 | K40: 0 | L40: 0 | M40: 0 | N40: 0 | O40: 0 | P40: 0 | Q40: 0 | R40: 0 | S40: 0 | T40: 0 | U40: 0 | V40: 0 | W40: 0 | X40: 0 | Y40: 0 | Z40: 0 | AA40: 0 | AB40: 0 | AC40: 0 | AD40: 0 | AE40: 0 | AF40: 0 | AG40: 0 | AH40: 0 | AI40: 0 | AJ40: 0 | AK40: 0 | AL40: 15706 | AM40: 24546
A41: =+'Original ABG Allocation'!A41 -> 36 | B41: =+'Original ABG Allocation'!B41 -> B/S/S/T | C41: 0 | D41: 0 | E41: 8840 | F41: 0 | G41: 0 | H41: 0 | I41: 0 | J41: 0 | K41: 0 | L41: 0 | M41: 0 | N41: 0 | O41: 0 | P41: 0 | Q41: 0 | R41: 0 | S41: 0 | T41: 0 | U41: 0 | V41: 0 | W41: 0 | X41: 0 | Y41: 0 | Z41: 0 | AA41: 0 | AB41: 0 | AC41: 0 | AD41: 0 | AE41: 0 | AF41: 0 | AG41: 0 | AH41: 0 | AI41: 0 | AJ41: 0 | AK41: 0 | AL41: 39593 | AM41: 48433
A42: =+'Original ABG Allocation'!A42 -> 37 | B42: =+'Original ABG Allocation'!B42 -> LUZERNE/WYOMING | C42: 0 | D42: 0 | E42: 8840 | F42: 0 | G42: 0 | H42: 0 | I42: 0 | J42: 0 | K42: 0 | L42: 0 | M42: 0 | N42: 0 | O42: 0 | P42: 0 | Q42: 0 | R42: 0 | S42: 0 | T42: 0 | U42: 0 | V42: 0 | W42: 0 | X42: 0 | Y42: 0 | Z42: 0 | AA42: 0 | AB42: 0 | AC42: 0 | AD42: 0 | AE42: 0 | AF42: 0 | AG42: 0 | AH42: 0 | AI42: 0 | AJ42: 0 | AK42: 0 | AL42: 53811 | AM42: 62651
A43: =+'Original ABG Allocation'!A43 -> 38 | B43: =+'Original ABG Allocation'!B43 -> LACKAWANNA | C43: 0 | D43: 0 | E43: 8840 | F43: 0 | G43: 0 | H43: 0 | I43: 0 | J43: 0 | K43: 0 | L43: 0 | M43: 0 | N43: 0 | O43: 0 | P43: 0 | Q43: 0 | R43: 0 | S43: 0 | T43: 0 | U43: 0 | V43: 0 | W43: 0 | X43: 0 | Y43: 0 | Z43: 0 | AA43: 0 | AB43: 0 | AC43: 0 | AD43: 0 | AE43: 0 | AF43: 0 | AG43: 0 | AH43: 0 | AI43: 0 | AJ43: 0 | AK43: 0 | AL43: 33417 | AM43: 42257
A44: =+'Original ABG Allocation'!A44 -> 39 | B44: =+'Original ABG Allocation'!B44 -> CARBON | C44: 0 | D44: 0 | E44: 8840 | F44: 0 | G44: 0 | H44: 0 | I44: 0 | J44: 0 | K44: 0 | L44: 0 | M44: 0 | N44: 0 | O44: 0 | P44: 0 | Q44: 0 | R44: 0 | S44: 0 | T44: 0 | U44: 0 | V44: 0 | W44: 0 | X44: 0 | Y44: 0 | Z44: 0 | AA44: 0 | AB44: 0 | AC44: 0 | AD44: 0 | AE44: 0 | AF44: 0 | AG44: 0 | AH44: 0 | AI44: 0 | AJ44: 0 | AK44: 0 | AL44: 14416 | AM44: 23256
A45: =+'Original ABG Allocation'!A45 -> 40 | B45: =+'Original ABG Allocation'!B45 -> SCHUYLKILL | C45: 0 | D45: 0 | E45: 11555 | F45: 0 | G45: 0 | H45: 0 | I45: 0 | J45: 0 | K45: 0 | L45: 0 | M45: 0 | N45: 0 | O45: 0 | P45: 0 | Q45: 0 | R45: 0 | S45: 0 | T45: 0 | U45: 0 | V45: 0 | W45: 0 | X45: 0 | Y45: 0 | Z45: 0 | AA45: 0 | AB45: 0 | AC45: 0 | AD45: 0 | AE45: 0 | AF45: 0 | AG45: 0 | AH45: 0 | AI45: 0 | AJ45: 0 | AK45: 0 | AL45: 30878 | AM45: 42433
A46: =+'Original ABG Allocation'!A46 -> 41 | B46: =+'Original ABG Allocation'!B46 -> CLEARFIELD | C46: 0 | D46: 0 | E46: 8840 | F46: 0 | G46: 0 | H46: 0 | I46: 0 | J46: 0 | K46: 0 | L46: 0 | M46: 0 | N46: 0 | O46: 0 | P46: 0 | Q46: 0 | R46: 0 | S46: 0 | T46: 0 | U46: 0 | V46: 0 | W46: 0 | X46: 0 | Y46: 0 | Z46: 0 | AA46: 0 | AB46: 0 | AC46: 0 | AD46: 0 | AE46: 0 | AF46: 0 | AG46: 0 | AH46: 0 | AI46: 0 | AJ46: 0 | AK46: 0 | AL46: 19666 | AM46: 28506
A47: =+'Original ABG Allocation'!A47 -> 42 | B47: =+'Original ABG Allocation'!B47 -> JEFFERSON | C47: 0 | D47: 0 | E47: 8840 | F47: 0 | G47: 0 | H47: 0 | I47: 0 | J47: 0 | K47: 0 | L47: 0 | M47: 0 | N47: 0 | O47: 0 | P47: 0 | Q47: 0 | R47: 0 | S47: 0 | T47: 0 | U47: 0 | V47: 0 | W47: 0 | X47: 0 | Y47: 0 | Z47: 0 | AA47: 0 | AB47: 0 | AC47: 0 | AD47: 0 | AE47: 0 | AF47: 0 | AG47: 0 | AH47: 0 | AI47: 0 | AJ47: 0 | AK47: 0 | AL47: 10201 | AM47: 19041
A48: =+'Original ABG Allocation'!A48 -> 43 | B48: =+'Original ABG Allocation'!B48 -> FOREST/WARREN | C48: 0 | D48: 0 | E48: 8840 | F48: 0 | G48: 0 | H48: 0 | I48: 0 | J48: 0 | K48: 0 | L48: 0 | M48: 0 | N48: 0 | O48: 0 | P48: 0 | Q48: 0 | R48: 0 | S48: 0 | T48: 0 | U48: 0 | V48: 0 | W48: 0 | X48: 0 | Y48: 0 | Z48: 0 | AA48: 0 | AB48: 0 | AC48: 0 | AD48: 0 | AE48: 0 | AF48: 0 | AG48: 0 | AH48: 0 | AI48: 0 | AJ48: 0 | AK48: 0 | AL48: 12228 | AM48: 21068
